Workbook

Sheet MainDisplay
O1: =TODAY() -> 2018-07-13
B2: =MOD(RTD("cqg.rtd", ,"SystemInfo", "Linetime"),1) -> 10:23:12 | F2: CQG NYSE & NASDAQ Equities 10-Day Map | AA2: =RTD("cqg.rtd", ,"SystemInfo", "Linetime") -> 43294.43278
B4: Symbol | D4: Equities | F4: =IF(RTD("cqg.rtd", ,"ContractData",Sheet3!$D$12, "NetLastTradeToday",, "T")>=0,"+",0) -> + | G4: Last | H4: =TEXT(RTD("cqg.rtd", ,"ContractData",Sheet3!$D$12, "LastTradeToday",, "T"),Sheet3!$F$17) -> 191.48 | J4: Net | K4: =IF(F4="+","+"&TEXT(RTD("cqg.rtd", ,"ContractData",Sheet3!$D$12, "NetLastTradeToday",, "T"),Sheet3!$F$17),TEXT(RTD("cqg.rtd", ,"ContractData",Sheet3!$D$12, "NetLastTradeToday",, "T"),Sheet3!$F$17)) -> +.45 | M4: Net $ Change | R4: Symbol | T4: Equities | V4: =IF(RTD("cqg.rtd", ,"ContractData",'Sheet3 (2)'!$D$12, "NetLastTradeToday",, "T")>=0,"+",0) -> + | W4: Last | X4: =TEXT(RTD("cqg.rtd", ,"ContractData",'Sheet3 (2)'!$D$12, "LastTradeToday",, "T"),'Sheet3 (2)'!$F$17) -> 1808.12 | Z4: Net | AA4: =IF(V4="+","+"&TEXT(RTD("cqg.rtd", ,"ContractData",'Sheet3 (2)'!$D$12, "NetLastTradeToday",, "T"),'Sheet3 (2)'!$F$17),TEXT(RTD("cqg.rtd", ,"ContractData",'Sheet3 (2)'!$D$12, "NetLastTradeToday",, "T"),'Sheet3 (2)'!$F$17)) -> +11.50 | AC4: Net $ Change
B5: S.AAPL | C5: =" "&RTD("cqg.rtd", ,"ContractData",Sheet3!$D$12, "LongDescription",, "T")&" " -> Apple Inc | G5: Trade | J5: Change | M5: =IFERROR(1/RTD("cqg.rtd",,"ContractData","Tsize("&B5&")","LastQuoteToday",,"T")*RTD("cqg.rtd",,"ContractData","PriceToDollar(Tsize("&B5&"))","LastQuoteToday")*RTD("cqg.rtd", ,"ContractData", B5, "NetLastTrade"),"") -> 0.45 | R5: S.AMZN | S5: =" "&RTD("cqg.rtd", ,"ContractData",'Sheet3 (2)'!D12, "LongDescription",, "T")&" " -> Amazon.com Inc | W5: Trade | Z5: Change | AC5: =IFERROR(1/RTD("cqg.rtd",,"ContractData","Tsize("&R5&")","LastQuoteToday",,"T")*RTD("cqg.rtd",,"ContractData","PriceToDollar(Tsize("&R5&"))","LastQuoteToday")*RTD("cqg.rtd", ,"ContractData", R5, "NetLastTrade"),"") -> 11.5
B6: =2*RTD("cqg.rtd",,"ContractData","Tsize("&B5&")","LastQuoteToday",,"T") -> 0.02 | G6: Open | H6: =TEXT(RTD("cqg.rtd", ,"ContractData",Sheet3!$D$12, "Open",, "T"),Sheet3!$F$17) -> 191.08 | I6: High | J6: =TEXT(RTD("cqg.rtd", ,"ContractData",Sheet3!$D$12, "High",, "T"),Sheet3!$F$17) -> 191.84 | K6: Low | L6: =TEXT(RTD("cqg.rtd", ,"ContractData",Sheet3!$D$12, "Low",, "T"),Sheet3!$F$17) -> 190.90 | R6: =2*RTD("cqg.rtd",,"ContractData","Tsize("&R5&")","LastQuoteToday",,"T") -> 0.02 | W6: Open | X6: =TEXT(RTD("cqg.rtd", ,"ContractData",'Sheet3 (2)'!$D$12, "Open",, "T"),'Sheet3 (2)'!$F$17) -> 1803.93 | Y6: High | Z6: =TEXT(RTD("cqg.rtd", ,"ContractData",'Sheet3 (2)'!$D$12, "High",, "T"),'Sheet3 (2)'!$F$17) -> 1815.19 | AA6: Low | AB6: =TEXT(RTD("cqg.rtd", ,"ContractData",'Sheet3 (2)'!$D$12, "Low",, "T"),'Sheet3 (2)'!$F$17) -> 1795.22
M7: =IF(J6-H4<=B6,1,0) -> 0 | O7: =IF(H4-L6<=B6,1,0) -> 0 | AC7: =IF(Z6-X4<=R6,1,0) -> 0 | AE7: =IF(X4-AB6<=R6,1,0) -> 0
B8: =Sheet4!I85+1 -> 9 | C8: =RTD("cqg.rtd", ,"ContractData",Sheet3!$D$12, "MT_LastBidVolume",, "T") -> 100 | E8: =TEXT(RTD("cqg.rtd", ,"ContractData",Sheet3!$D$12, "Bid",, "T"),Sheet3!$F$17) -> 191.48 | G8: =TEXT(RTD("cqg.rtd", ,"ContractData",Sheet3!$D$12, "Ask",, "T"),Sheet3!$F$17) -> 191.49 | I8: =RTD("cqg.rtd", ,"ContractData",Sheet3!$D$12, "MT_LastAskVolume",, "T") -> 500 | K8: Top Correlation to: | M8: Highlight | R8: ='Sheet4 (2)'!I85+1 -> 5 | S8: =RTD("cqg.rtd", ,"ContractData",'Sheet3 (2)'!$D$12, "MT_LastBidVolume",, "T") -> 100 | U8: =TEXT(RTD("cqg.rtd", ,"ContractData",'Sheet3 (2)'!$D$12, "Bid",, "T"),'Sheet3 (2)'!$F$17) -> 1808.06 | W8: =TEXT(RTD("cqg.rtd", ,"ContractData",'Sheet3 (2)'!$D$12, "Ask",, "T"),'Sheet3 (2)'!$F$17) -> 1808.73 | Y8: =RTD("cqg.rtd", ,"ContractData",'Sheet3 (2)'!$D$12, "MT_LastAskVolume",, "T") -> 100 | AA8: Top Correlation to: | AC8: Highlight
K9: =Sheet4!G85 -> 2018-07-02 | L9: =Sheet4!H85 -> 0.4654063872 | M9: Reset | AA9: ='Sheet4 (2)'!G85 -> 2018-07-09 | AB9: ='Sheet4 (2)'!H85 -> 0.4335533938 | AC9: Reset
A10: =IF(M14=$O$1,1,0) -> 0 | Q10: =IF(AC14=$O$1,1,0) -> 0
A11: 0 | Q11: =IF(AC15=$O$1,1,0) -> 0
A12: 0 | M12: Bar Time | N12: Corr | O12: =IFERROR(IF(TIME(0,5,0)-(MOD(B2,1)-M13)<0,1,TIME(0,5,0)-(MOD(B2,1)-M13)),"") -> 00:01:48 | Q12: =IF(AC16=$O$1,1,0) -> 0 | AC12: Bar Time | AD12: Corr | AE12: =IFERROR(IF(TIME(0,5,0)-(MOD(B2,1)-AC13)<0,1,TIME(0,5,0)-(MOD(B2,1)-AC13)),"") -> 00:01:48
A13: 0 | M13: =IFERROR(Sheet3!AC12,"") -> 10:20:00 | N13: Now | O13: % NC | Q13: =IF(AC17=$O$1,1,0) -> 1 | AC13: =IFERROR('Sheet3 (2)'!AC12,"") -> 10:20:00 | AD13: Now | AE13: % NC
A14: 0 | M14: =IFERROR(Sheet3!AG1,"") -> 2018-07-12 | N14: =IFERROR(VLOOKUP(M14,Sheet4!$G$85:$H$93,2,FALSE),"") -> 0.2765440056 | O14: =IFERROR(Sheet3!AH1,"") -> 0.01335959123 | Q14: =IF(AC18=$O$1,1,0) -> 0 | AC14: =IFERROR('Sheet3 (2)'!AG1,"") -> 2018-07-12 | AD14: =IFERROR(VLOOKUP(AC14,'Sheet4 (2)'!$G$85:$H$93,2,FALSE),"") -> 0.1636107566 | AE14: =IFERROR('Sheet3 (2)'!AH1,"") -> 0.01553846154
A15: 0 | M15: =IFERROR(Sheet3!AG2,"") -> 2018-07-09 | N15: =IFERROR(VLOOKUP(M15,Sheet4!$G$85:$H$93,2,FALSE),"") -> -0.05400231976 | O15: =IFERROR(Sheet3!AH2,"") -> 0.01207639517 | Q15: 0 | AC15: =IFERROR('Sheet3 (2)'!AG2,"") -> 2018-07-09 | AD15: =IFERROR(VLOOKUP(AC15,'Sheet4 (2)'!$G$85:$H$93,2,FALSE),"") -> 0.4335533938 | AE15: =IFERROR('Sheet3 (2)'!AH2,"") -> 0.01097841146
A16: 1 | M16: =IFERROR(Sheet3!AG3,"") -> 2018-07-06 | N16: =IFERROR(VLOOKUP(M16,Sheet4!$G$85:$H$93,2,FALSE),"") -> -0.0930116117 | O16: =IFERROR(Sheet3!AH3,"") -> 0.009546925566 | Q16: 0 | AC16: =IFERROR('Sheet3 (2)'!AG3,"") -> 2018-06-29 | AD16: =IFERROR(VLOOKUP(AC16,'Sheet4 (2)'!$G$85:$H$93,2,FALSE),"") -> 0.01397895366 | AE16: =IFERROR('Sheet3 (2)'!AH3,"") -> 0.008234153222
A17: 0 | M17: =IFERROR(Sheet3!AG4,"") -> 2018-07-02 | N17: =IFERROR(VLOOKUP(M17,Sheet4!$G$85:$H$93,2,FALSE),"") -> 0.4654063872 | O17: =IFERROR(Sheet3!AH4,"") -> 0.007022851278 | Q17: 0 | AC17: =IFERROR('Sheet3 (2)'!AG4,"") -> 2018-07-13 | AD17: =IFERROR(VLOOKUP(AC17,'Sheet4 (2)'!$G$85:$H$93,2,FALSE),"") ->  | AE17: =IFERROR('Sheet3 (2)'!AH4,"") -> 0.006400908372
A18: 0 | M18: =IFERROR(Sheet3!AG5,"") -> 2018-07-05 | N18: =IFERROR(VLOOKUP(M18,Sheet4!$G$85:$H$93,2,FALSE),"") -> -0.2770502008 | O18: =IFERROR(Sheet3!AH5,"") -> 0.006905176164 | Q18: 0 | AC18: =IFERROR('Sheet3 (2)'!AG5,"") -> 2018-07-06 | AD18: =IFERROR(VLOOKUP(AC18,'Sheet4 (2)'!$G$85:$H$93,2,FALSE),"") -> 0.4272897174 | AE18: =IFERROR('Sheet3 (2)'!AH5,"") -> 0.005671489001
A19: 0 | M19: =IFERROR(Sheet3!AG6,"") -> 2018-06-29 | N19: =IFERROR(VLOOKUP(M19,Sheet4!$G$85:$H$93,2,FALSE),"") -> -0.4663663227 | O19: =IFERROR(Sheet3!AH6,"") -> 0.004797843666 | Q19: 0 | AC19: =IFERROR('Sheet3 (2)'!AG6,"") -> 2018-07-10 | AD19: =IFERROR(VLOOKUP(AC19,'Sheet4 (2)'!$G$85:$H$93,2,FALSE),"") -> 0.2885531149 | AE19: =IFERROR('Sheet3 (2)'!AH6,"") -> 0.004094259986
M20: =IFERROR(Sheet3!AG7,"") -> 2018-07-13 | N20: =IFERROR(VLOOKUP(M20,Sheet4!$G$85:$H$93,2,FALSE),"") ->  | O20: =IFERROR(Sheet3!AH7,"") -> 0.002460346542 | AC20: =IFERROR('Sheet3 (2)'!AG7,"") -> 2018-07-11 | AD20: =IFERROR(VLOOKUP(AC20,'Sheet4 (2)'!$G$85:$H$93,2,FALSE),"") -> 0.08751041673 | AE20: =IFERROR('Sheet3 (2)'!AH7,"") -> 0.001422777054
M21: =IFERROR(Sheet3!AG8,"") -> 2018-07-10 | N21: =IFERROR(VLOOKUP(M21,Sheet4!$G$85:$H$93,2,FALSE),"") -> 0.09887584203 | O21: =IFERROR(Sheet3!AH8,"") -> 0.001469199286 | AC21: =IFERROR('Sheet3 (2)'!AG8,"") -> 2018-07-05 | AD21: =IFERROR(VLOOKUP(AC21,'Sheet4 (2)'!$G$85:$H$93,2,FALSE),"") -> -0.1783080036 | AE21: =IFERROR('Sheet3 (2)'!AH8,"") -> -0.0005017828048
M22: =IFERROR(Sheet3!AG9,"") -> 2018-07-03 | N22: =IFERROR(VLOOKUP(M22,Sheet4!$G$85:$H$93,2,FALSE),"") -> 0.08363469193 | O22: =IFERROR(Sheet3!AH9,"") -> -0.003419168715 | AC22: =IFERROR('Sheet3 (2)'!AG9,"") -> 2018-07-02 | AD22: =IFERROR(VLOOKUP(AC22,'Sheet4 (2)'!$G$85:$H$93,2,FALSE),"") -> 0.2939536946 | AE22: =IFERROR('Sheet3 (2)'!AH9,"") -> -0.001788445699
M23: =IFERROR(Sheet3!AG10,"") -> 2018-07-11 | N23: =IFERROR(VLOOKUP(M23,Sheet4!$G$85:$H$93,2,FALSE),"") -> -0.2910071911 | O23: =IFERROR(Sheet3!AH10,"") -> -0.009298660362 | AC23: =IFERROR('Sheet3 (2)'!AG10,"") -> 2018-07-03 | AD23: =IFERROR(VLOOKUP(AC23,'Sheet4 (2)'!$G$85:$H$93,2,FALSE),"") -> -0.2108078779 | AE23: =IFERROR('Sheet3 (2)'!AH10,"") -> -0.003372661602
B28: Session: 8:30 - 15:15 | R28: Session: 8:30 - 15:15
B30: Symbol | D30: Equities | F30: =IF(RTD("cqg.rtd", ,"ContractData",'Sheet3 (3)'!$D$12, "NetLastTradeToday",, "T")="","",IF(RTD("cqg.rtd", ,"ContractData",'Sheet3 (3)'!$D$12, "NetLastTradeToday",, "T")>=0,"+",0)) -> 0 | G30: Last | H30: =TEXT(RTD("cqg.rtd", ,"ContractData",'Sheet3 (3)'!$D$12, "LastTradeToday",, "T"),'Sheet3 (3)'!$F$17) -> 165.73 | J30: Net | K30: =IF(F30="","",IF(F30="+","+"&TEXT(RTD("cqg.rtd", ,"ContractData",'Sheet3 (3)'!$D$12, "NetLastTradeToday",, "T"),'Sheet3 (3)'!$F$17),TEXT(RTD("cqg.rtd", ,"ContractData",'Sheet3 (3)'!$D$12, "NetLastTradeToday",, "T"),'Sheet3 (3)'!$F$17))) -> -.10 | M30: Net $ Change | R30: Symbol | T30: Equities | V30: =IF(RTD("cqg.rtd", ,"ContractData",'Sheet3 (4)'!$D$12, "NetLastTradeToday",, "T")>=0,"+",0) -> 0 | W30: Last | X30: =TEXT(RTD("cqg.rtd", ,"ContractData",'Sheet3 (4)'!$D$12, "LastTradeToday",, "T"),'Sheet3 (3)'!$F$17) -> 400.80 | Z30: Net | AA30: =IF(V30="","",IF(V30="+","+"&TEXT(RTD("cqg.rtd", ,"ContractData",'Sheet3 (4)'!$D$12, "NetLastTradeToday",, "T"),'Sheet3 (4)'!$F$17),TEXT(RTD("cqg.rtd", ,"ContractData",'Sheet3 (4)'!$D$12, "NetLastTradeToday",, "T"),'Sheet3 (4)'!$F$17))) -> -12.67 | AC30: Net $ Change
B31: S.RYT | C31: =" "&RTD("cqg.rtd", ,"ContractData",'Sheet3 (3)'!$D$12, "LongDescription",, "T")&" " -> Guggenheim S&P 500 Eq Wt Technology ETF | G31: Trade | J31: Change | M31: =IFERROR(1/RTD("cqg.rtd",,"ContractData","Tsize("&B31&")","LastQuoteToday",,"T")*RTD("cqg.rtd",,"ContractData","PriceToDollar(Tsize("&B31&"))","LastQuoteToday")*RTD("cqg.rtd", ,"ContractData", B31, "NetLastTrade"),"") -> -0.1 | R31: S.NFLX | S31: =" "&RTD("cqg.rtd", ,"ContractData",'Sheet3 (4)'!D12, "LongDescription",, "T")&" " -> Netflix Inc | W31: Trade | Z31: Change | AC31: =IFERROR(1/RTD("cqg.rtd",,"ContractData","Tsize("&R31&")","LastQuoteToday",,"T")*RTD("cqg.rtd",,"ContractData","PriceToDollar(Tsize("&R31&"))","LastQuoteToday")*RTD("cqg.rtd", ,"ContractData", R31, "NetLastTrade",,"T"),"") -> -12.7
B32: =2*RTD("cqg.rtd",,"ContractData","Tsize("&B31&")","LastQuoteToday",,"T") -> 0.02 | G32: Open | H32: =TEXT(RTD("cqg.rtd", ,"ContractData",'Sheet3 (3)'!$D$12, "Open",, "T"),'Sheet3 (3)'!$F$17) -> 165.81 | I32: High | J32: =TEXT(RTD("cqg.rtd", ,"ContractData",'Sheet3 (3)'!$D$12, "High",, "T"),'Sheet3 (3)'!$F$17) -> 165.97 | K32: Low | L32: =TEXT(RTD("cqg.rtd", ,"ContractData",'Sheet3 (3)'!$D$12, "Low",, "T"),'Sheet3 (3)'!$F$17) -> 164.97 | R32: =2*RTD("cqg.rtd",,"ContractData","Tsize("&R31&")","LastQuoteToday",,"T") -> 0.02 | W32: Open | X32: =TEXT(RTD("cqg.rtd", ,"ContractData",'Sheet3 (4)'!$D$12, "Open",, "T"),'Sheet3 (3)'!$F$17) -> 409.19 | Y32: High | Z32: =TEXT(RTD("cqg.rtd", ,"ContractData",'Sheet3 (4)'!$D$12, "High",, "T"),'Sheet3 (3)'!$F$17) -> 410.00 | AA32: Low | AB32: =TEXT(RTD("cqg.rtd", ,"ContractData",'Sheet3 (4)'!$D$12, "Low",, "T"),'Sheet3 (4)'!$F$17) -> 395.58
M33: =IF(J32-H30<=B32,1,0) -> 0 | O33: =IF(H30-L32<=B32,1,0) -> 0 | AC33: =IF(Z32-X30<=R32,1,0) -> 0 | AE33: =IF(X30-AB32<=R32,1,0) -> 0
B34: ='Sheet4 (3)'!I85+1 -> 4 | C34: =RTD("cqg.rtd", ,"ContractData",'Sheet3 (3)'!$D$12, "MT_LastBidVolume",, "T") -> 200 | E34: =TEXT(RTD("cqg.rtd", ,"ContractData",'Sheet3 (3)'!$D$12, "Bid",, "T"),'Sheet3 (3)'!$F$17) -> 165.68 | G34: =TEXT(RTD("cqg.rtd", ,"ContractData",'Sheet3 (3)'!$D$12, "Ask",, "T"),'Sheet3 (3)'!$F$17) -> 165.73 | I34: =RTD("cqg.rtd", ,"ContractData",'Sheet3 (3)'!$D$12, "MT_LastAskVolume",, "T") -> 1200 | K34: Top Correlation to: | M34: Highlight | R34: ='Sheet4 (4)'!I85+1 -> 10 | S34: =RTD("cqg.rtd", ,"ContractData",'Sheet3 (4)'!$D$12, "MT_LastBidVolume",, "T") -> 100 | U34: =TEXT(RTD("cqg.rtd", ,"ContractData",'Sheet3 (4)'!$D$12, "Bid",, "T"),'Sheet3 (3)'!$F$17) -> 400.69 | W34: =TEXT(RTD("cqg.rtd", ,"ContractData",'Sheet3 (4)'!$D$12, "Ask",, "T"),'Sheet3 (4)'!$F$17) -> 400.90 | Y34: =RTD("cqg.rtd", ,"ContractData",'Sheet3 (4)'!$D$12, "MT_LastAskVolume",, "T") -> 300 | AA34: Top Correlation to: | AC34: Highlight
K35: ='Sheet4 (3)'!G85 -> 2018-07-10 | L35: ='Sheet4 (3)'!H85 -> 0.2796470736 | M35: Reset | AA35: ='Sheet4 (4)'!G85 -> 2018-06-29 | AB35: ='Sheet4 (4)'!H85 -> 0.7870359691 | AC35: Reset
A36: =IF(M40=$O$1,1,0) -> 0 | Q36: =IF(AC40=$O$1,1,0) -> 0
A37: 0 | Q37: =IF(AC41=$O$1,1,0) -> 0
A38: 0 | M38: Bar Time | N38: Corr | O38: =IFERROR(IF(TIME(0,5,0)-(MOD(B2,1)-M39)<0,1,TIME(0,5,0)-(MOD(B2,1)-M39)),"") -> 00:01:48 | Q38: 0 | AC38: Bar Time | AD38: Corr | AE38: =IFERROR(IF(TIME(0,5,0)-(MOD(B2,1)-AC39)<0,1,TIME(0,5,0)-(MOD(B2,1)-AC39)),"") -> 00:01:48
A39: 0 | M39: =IFERROR('Sheet3 (3)'!AC12,"") -> 10:20:00 | N39: Now | O39: % NC | Q39: 0 | AC39: =IFERROR('Sheet3 (4)'!AC12,"") -> 10:20:00 | AD39: Now | AE39: % NC
A40: 0 | M40: =IFERROR('Sheet3 (3)'!AG1,"") -> 2018-07-12 | N40: =IFERROR(VLOOKUP(M40,'Sheet4 (3)'!$G$85:$H$93,2,FALSE),"") -> 0.07037752239 | O40: =IFERROR('Sheet3 (3)'!AH1,"") -> 0.0154338068 | Q40: 0 | AC40: =IFERROR('Sheet3 (4)'!AG1,"") -> 2018-07-09 | AD40: =IFERROR(VLOOKUP(AC40,'Sheet4 (4)'!$G$85:$H$93,2,FALSE),"") -> 0.6798686832 | AE40: =IFERROR('Sheet3 (4)'!AH1,"") -> 0.01734231476
A41: 0 | M41: =IFERROR('Sheet3 (3)'!AG2,"") -> 2018-06-29 | N41: =IFERROR(VLOOKUP(M41,'Sheet4 (3)'!$G$85:$H$93,2,FALSE),"") -> 0.2102966209 | O41: =IFERROR('Sheet3 (3)'!AH2,"") -> 0.00847350449 | Q41: 0 | AC41: =IFERROR('Sheet3 (4)'!AG2,"") -> 2018-07-06 | AD41: =IFERROR(VLOOKUP(AC41,'Sheet4 (4)'!$G$85:$H$93,2,FALSE),"") -> -0.7641717043 | AE41: =IFERROR('Sheet3 (4)'!AH2,"") -> 0.01455859836
A42: 0 | M42: =IFERROR('Sheet3 (3)'!AG3,"") -> 2018-07-06 | N42: =IFERROR(VLOOKUP(M42,'Sheet4 (3)'!$G$85:$H$93,2,FALSE),"") -> 0.1856839558 | O42: =IFERROR('Sheet3 (3)'!AH3,"") -> 0.006538389688 | Q42: 0 | AC42: =IFERROR('Sheet3 (4)'!AG3,"") -> 2018-07-05 | AD42: =IFERROR(VLOOKUP(AC42,'Sheet4 (4)'!$G$85:$H$93,2,FALSE),"") -> 0.3346821298 | AE42: =IFERROR('Sheet3 (4)'!AH3,"") -> 0.008578305849
A43: 1 | M43: =IFERROR('Sheet3 (3)'!AG4,"") -> 2018-07-05 | N43: =IFERROR(VLOOKUP(M43,'Sheet4 (3)'!$G$85:$H$93,2,FALSE),"") -> 0.167384104 | O43: =IFERROR('Sheet3 (3)'!AH4,"") -> 0.006189603992 | Q43: 0 | AC43: =IFERROR('Sheet3 (4)'!AG4,"") -> 2018-07-11 | AD43: =IFERROR(VLOOKUP(AC43,'Sheet4 (4)'!$G$85:$H$93,2,FALSE),"") -> -0.5669057558 | AE43: =IFERROR('Sheet3 (4)'!AH4,"") -> 0.001178933186
A44: 0 | M44: =IFERROR('Sheet3 (3)'!AG5,"") -> 2018-07-10 | N44: =IFERROR(VLOOKUP(M44,'Sheet4 (3)'!$G$85:$H$93,2,FALSE),"") -> 0.2796470736 | O44: =IFERROR('Sheet3 (3)'!AH5,"") -> 0.002754989592 | Q44: 0 | AC44: =IFERROR('Sheet3 (4)'!AG5,"") -> 2018-06-29 | AD44: =IFERROR(VLOOKUP(AC44,'Sheet4 (4)'!$G$85:$H$93,2,FALSE),"") -> 0.7870359691 | AE44: =IFERROR('Sheet3 (4)'!AH5,"") -> -0.001163320014
A45: 0 | M45: =IFERROR('Sheet3 (3)'!AG6,"") -> 2018-07-09 | N45: =IFERROR(VLOOKUP(M45,'Sheet4 (3)'!$G$85:$H$93,2,FALSE),"") -> 0.1799593883 | O45: =IFERROR('Sheet3 (3)'!AH6,"") -> 0.0008016773557 | Q45: 1 | AC45: =IFERROR('Sheet3 (4)'!AG6,"") -> 2018-07-02 | AD45: =IFERROR(VLOOKUP(AC45,'Sheet4 (4)'!$G$85:$H$93,2,FALSE),"") -> -0.6261665774 | AE45: =IFERROR('Sheet3 (4)'!AH6,"") -> -0.00240145109
M46: =IFERROR('Sheet3 (3)'!AG7,"") -> 2018-07-02 | N46: =IFERROR(VLOOKUP(M46,'Sheet4 (3)'!$G$85:$H$93,2,FALSE),"") -> 0.04518879971 | O46: =IFERROR('Sheet3 (3)'!AH7,"") -> -0.0001262227832 | AC46: =IFERROR('Sheet3 (4)'!AG7,"") -> 2018-07-10 | AD46: =IFERROR(VLOOKUP(AC46,'Sheet4 (4)'!$G$85:$H$93,2,FALSE),"") -> -0.445865423 | AE46: =IFERROR('Sheet3 (4)'!AH7,"") -> -0.002720958541
M47: =IFERROR('Sheet3 (3)'!AG8,"") -> 2018-07-13 | N47: =IFERROR(VLOOKUP(M47,'Sheet4 (3)'!$G$85:$H$93,2,FALSE),"") ->  | O47: =IFERROR('Sheet3 (3)'!AH8,"") -> -0.0006030271965 | AC47: =IFERROR('Sheet3 (4)'!AG8,"") -> 2018-07-03 | AD47: =IFERROR(VLOOKUP(AC47,'Sheet4 (4)'!$G$85:$H$93,2,FALSE),"") -> 0.1436249138 | AE47: =IFERROR('Sheet3 (4)'!AH8,"") -> -0.006228338942
M48: =IFERROR('Sheet3 (3)'!AG9,"") -> 2018-07-03 | N48: =IFERROR(VLOOKUP(M48,'Sheet4 (3)'!$G$85:$H$93,2,FALSE),"") -> 0.1822386243 | O48: =IFERROR('Sheet3 (3)'!AH9,"") -> -0.001813860395 | AC48: =IFERROR('Sheet3 (4)'!AG9,"") -> 2018-07-12 | AD48: =IFERROR(VLOOKUP(AC48,'Sheet4 (4)'!$G$85:$H$93,2,FALSE),"") -> 0.4814123049 | AE48: =IFERROR('Sheet3 (4)'!AH9,"") -> -0.02254866834
M49: =IFERROR('Sheet3 (3)'!AG10,"") -> 2018-07-11 | N49: =IFERROR(VLOOKUP(M49,'Sheet4 (3)'!$G$85:$H$93,2,FALSE),"") -> 0.2165911411 | O49: =IFERROR('Sheet3 (3)'!AH10,"") -> -0.008176714669 | AC49: =IFERROR('Sheet3 (4)'!AG10,"") -> 2018-07-13 | AD49: =IFERROR(VLOOKUP(AC49,'Sheet4 (4)'!$G$85:$H$93,2,FALSE),"") ->  | AE49: =IFERROR('Sheet3 (4)'!AH10,"") -> -0.03071342201
B54: Session: 8:30 - 15:15 | R54: Session: 8:30 - 15:15
D55: Copyright © 2018 | J55: Designed by Thom Hartle

Sheet Sheet3 (hidden)
A1: 0 | B1: 08:30:00 | C1: =RTD("cqg.rtd",,"StudyData",$D$12, "Bar", "", "Time","D","0",,,,,"T") -> 2018-07-13 | D1: =YEAR(C1) -> 2018 | E1: =MONTH(C1) -> 7 | F1: =DAY(C1) -> 13 | H1: =RTD("cqg.rtd",,"StudyData", "Close("&$D$12&") when LocalYear("&$D$12&")="&$D$1&" and localMonth("&$D$12&") ="&$E$1&" and LocalDay("&$D$12&")="&$F$1&" and Barix("&$D$12&",reference:=StartOfSession)="&A1&"", "Bar", "", "Close","5","0","PrimaryOnly",,,"False","T","EveryTick") -> 191.13 | I1: =IFERROR((H1-$G$2)/$G$2,NA()) -> 0.0005234779878 | J1: =RTD("cqg.rtd",,"StudyData", "Close("&$D$12&") when LocalYear("&$D$12&")="&$D$2&" and localMonth("&$D$12&") ="&$E$2&" and LocalDay("&$D$12&")="&$F$2&" and Barix("&$D$12&",reference:=StartOfSession)="&A1&"", "Bar", "", "Close","5","0","PrimaryOnly",,,"False","T","EveryTick") -> 190.23 | K1: =IFERROR((J1-$G$3)/$G$3,NA()) -> 0.01250798382 | L1: =RTD("cqg.rtd",,"StudyData", "Close("&$D$12&") when LocalYear("&$D$12&")="&$D$3&" and localMonth("&$D$12&") ="&$E$3&" and LocalDay("&$D$12&")="&$F$3&" and Barix("&$D$12&",reference:=StartOfSession)="&A1&"", "Bar", "", "Close","5","0","PrimaryOnly",,,"False","T","EveryTick") -> 189.69 | M1: =IFERROR((L1-$G$4)/$G$4,NA()) -> -0.003467297084 | N1: =RTD("cqg.rtd",,"StudyData", "Close("&$D$12&") when LocalYear("&$D$12&")="&$D$4&" and localMonth("&$D$12&") ="&$E$4&" and LocalDay("&$D$12&")="&$F$4&" and Barix("&$D$12&",reference:=StartOfSession)="&A1&"", "Bar", "", "Close","5","0","PrimaryOnly",,,"False","T","EveryTick") -> 190.65 | O1: =IFERROR((N1-$G$5)/$G$5,NA()) -> 0.0003672998216 | P1: =RTD("cqg.rtd",,"StudyData", "Close("&$D$12&") when LocalYear("&$D$12&")="&$D$5&" and localMonth("&$D$12&") ="&$E$5&" and LocalDay("&$D$12&")="&$F$5&" and Barix("&$D$12&",reference:=StartOfSession)="&A1&"", "Bar", "", "Close","5","0","PrimaryOnly",,,"False","T","EveryTick") -> 189.94 | Q1: =IFERROR((P1-$G$6)/$G$6,NA()) -> 0.01048039581 | R1: =RTD("cqg.rtd",,"StudyData", "Close("&$D$12&") when LocalYear("&$D$12&")="&$D$6&" and localMonth("&$D$12&") ="&$E$6&" and LocalDay("&$D$12&")="&$F$6&" and Barix("&$D$12&",reference:=StartOfSession)="&A1&"", "Bar", "", "Close","5","0","PrimaryOnly",,,"False","T","EveryTick") -> 186.07 | S1: =IFERROR((R1-$G$7)/$G$7,NA()) -> 0.003613807983 | T1: =RTD("cqg.rtd",,"StudyData", "Close("&$D$12&") when LocalYear("&$D$12&")="&$D$7&" and localMonth("&$D$12&") ="&$E$7&" and LocalDay("&$D$12&")="&$F$7&" and Barix("&$D$12&",reference:=StartOfSession)="&A1&"", "Bar", "", "Close","5","0","PrimaryOnly",,,"False","T","EveryTick") -> 186.07 | U1: =IFERROR((T1-$G$8)/$G$8,NA()) -> 0.01168986516 | V1: =RTD("cqg.rtd",,"StudyData", "Close("&$D$12&") when LocalYear("&$D$12&")="&$D$8&" and localMonth("&$D$12&") ="&$E$8&" and LocalDay("&$D$12&")="&$F$8&" and Barix("&$D$12&",reference:=StartOfSession)="&A1&"", "Bar", "", "Close","5","0","PrimaryOnly",,,"False","T","EveryTick") -> 187.26 | W1: =IFERROR((V1-$G$9)/$G$9,NA()) -> 0.0004273960893 | X1: =RTD("cqg.rtd",,"StudyData", "Close("&$D$12&") when LocalYear("&$D$12&")="&$D$9&" and localMonth("&$D$12&") ="&$E$9&" and LocalDay("&$D$12&")="&$F$9&" and Barix("&$D$12&",reference:=StartOfSession)="&A1&"", "Bar", "", "Close","5","0","PrimaryOnly",,,"False","T","EveryTick") -> 184.35 | Y1: =IFERROR((X1-$G$10)/$G$10,NA()) -> -0.004105666901 | Z1: =RTD("cqg.rtd",,"StudyData", "Close("&$D$12&") when LocalYear("&$D$12&")="&$D$10&" and localMonth("&$D$12&") ="&$E$10&" and LocalDay("&$D$12&")="&$F$10&" and Barix("&$D$12&",reference:=StartOfSession)="&A1&"", "Bar", "", "Close","5","0","PrimaryOnly",,,"False","T","EveryTick") -> 186.72 | AA1: =IFERROR((Z1-$G$11)/$G$11,NA()) -> 0.006576819407 | AB1: =RANK(AD1,$AD$1:$AD$10)+COUNTIF($AD$1:AD1,AD1)-1 -> 7 | AC1: =DATE(D1,E1,F1) -> 2018-07-13 | AD1: =IFERROR(VLOOKUP(MAX(AE2:AE81),A1:I81,9,FALSE),"") -> 0.002460346542 | AF1: 1 | AG1: =VLOOKUP(AF1,$AB$1:$AD$10,2,FALSE) -> 2018-07-12 | AH1: =VLOOKUP(AF1,$AB$1:$AD$10,3,FALSE) -> 0.01335959123 | AK1: =AG1 -> 2018-07-12 | AL1: =AC1 -> 2018-07-13 | AM1: 0 | AN1: =VLOOKUP(AK1,$AL$1:$AM$10,2,FALSE) -> 1
A2: =A1+1 -> 1 | B2: 08:35:00 | C2: =RTD("cqg.rtd",,"StudyData",$D$12, "Bar", "", "Time","D","-1",,,,,"T") -> 2018-07-12 | D2: =YEAR(C2) -> 2018 | E2: =MONTH(C2) -> 7 | F2: =DAY(C2) -> 12 | G2: =RTD("cqg.rtd",,"StudyData",$D$12,"Bar",,"Close","D","-1",,,,,"T") -> 191.03 | H2: =RTD("cqg.rtd",,"StudyData", "Close("&$D$12&") when LocalYear("&$D$12&")="&$D$1&" and localMonth("&$D$12&") ="&$E$1&" and LocalDay("&$D$12&")="&$F$1&" and Barix("&$D$12&",reference:=StartOfSession)="&A2&"", "Bar", "", "Close","5","0","PrimaryOnly",,,"False","T","EveryTick") -> 191.26 | I2: =IFERROR((H2-$G$2)/$G$2,NA()) -> 0.001203999372 | J2: =RTD("cqg.rtd",,"StudyData", "Close("&$D$12&") when LocalYear("&$D$12&")="&$D$2&" and localMonth("&$D$12&") ="&$E$2&" and LocalDay("&$D$12&")="&$F$2&" and Barix("&$D$12&",reference:=StartOfSession)="&A2&"", "Bar", "", "Close","5","0","PrimaryOnly",,,"False","T","EveryTick") -> 189.94 | K2: =IFERROR((J2-$G$3)/$G$3,NA()) -> 0.01096444539 | L2: =RTD("cqg.rtd",,"StudyData", "Close("&$D$12&") when LocalYear("&$D$12&")="&$D$3&" and localMonth("&$D$12&") ="&$E$3&" and LocalDay("&$D$12&")="&$F$3&" and Barix("&$D$12&",reference:=StartOfSession)="&A2&"", "Bar", "", "Close","5","0","PrimaryOnly",,,"False","T","EveryTick") -> 189.29 | M2: =IFERROR((L2-$G$4)/$G$4,NA()) -> -0.005568689257 | N2: =RTD("cqg.rtd",,"StudyData", "Close("&$D$12&") when LocalYear("&$D$12&")="&$D$4&" and localMonth("&$D$12&") ="&$E$4&" and LocalDay("&$D$12&")="&$F$4&" and Barix("&$D$12&",reference:=StartOfSession)="&A2&"", "Bar", "", "Close","5","0","PrimaryOnly",,,"False","T","EveryTick") -> 190.51 | O2: =IFERROR((N2-$G$5)/$G$5,NA()) -> -0.0003672998216 | P2: =RTD("cqg.rtd",,"StudyData", "Close("&$D$12&") when LocalYear("&$D$12&")="&$D$5&" and localMonth("&$D$12&") ="&$E$5&" and LocalDay("&$D$12&")="&$F$5&" and Barix("&$D$12&",reference:=StartOfSession)="&A2&"", "Bar", "", "Close","5","0","PrimaryOnly",,,"False","T","EveryTick") -> 190.19 | Q2: =IFERROR((P2-$G$6)/$G$6,NA()) -> 0.01181039528 | R2: =RTD("cqg.rtd",,"StudyData", "Close("&$D$12&") when LocalYear("&$D$12&")="&$D$6&" and localMonth("&$D$12&") ="&$E$6&" and LocalDay("&$D$12&")="&$F$6&" and Barix("&$D$12&",reference:=StartOfSession)="&A2&"", "Bar", "", "Close","5","0","PrimaryOnly",,,"False","T","EveryTick") -> 186.41 | S2: =IFERROR((R2-$G$7)/$G$7,NA()) -> 0.00544768069 | T2: =RTD("cqg.rtd",,"StudyData", "Close("&$D$12&") when LocalYear("&$D$12&")="&$D$7&" and localMonth("&$D$12&") ="&$E$7&" and LocalDay("&$D$12&")="&$F$7&" and Barix("&$D$12&",reference:=StartOfSession)="&A2&"", "Bar", "", "Close","5","0","PrimaryOnly",,,"False","T","EveryTick") -> 186.34 | U2: =IFERROR((T2-$G$8)/$G$8,NA()) -> 0.01315789474 | V2: =RTD("cqg.rtd",,"StudyData", "Close("&$D$12&") when LocalYear("&$D$12&")="&$D$8&" and localMonth("&$D$12&") ="&$E$8&" and LocalDay("&$D$12&")="&$F$8&" and Barix("&$D$12&",reference:=StartOfSession)="&A2&"", "Bar", "", "Close","5","0","PrimaryOnly",,,"False","T","EveryTick") -> 186.63 | W2: =IFERROR((V2-$G$9)/$G$9,NA()) -> -0.002938348114 | X2: =RTD("cqg.rtd",,"StudyData", "Close("&$D$12&") when LocalYear("&$D$12&")="&$D$9&" and localMonth("&$D$12&") ="&$E$9&" and LocalDay("&$D$12&")="&$F$9&" and Barix("&$D$12&",reference:=StartOfSession)="&A2&"", "Bar", "", "Close","5","0","PrimaryOnly",,,"False","T","EveryTick") -> 184.99 | Y2: =IFERROR((X2-$G$10)/$G$10,NA()) -> -0.0006482631949 | Z2: =RTD("cqg.rtd",,"StudyData", "Close("&$D$12&") when LocalYear("&$D$12&")="&$D$10&" and localMonth("&$D$12&") ="&$E$10&" and LocalDay("&$D$12&")="&$F$10&" and Barix("&$D$12&",reference:=StartOfSession)="&A2&"", "Bar", "", "Close","5","0","PrimaryOnly",,,"False","T","EveryTick") -> 186.81 | AA2: =IFERROR((Z2-$G$11)/$G$11,NA()) -> 0.007061994609 | AB2: =RANK(AD2,$AD$1:$AD$10)+COUNTIF($AD$1:AD2,AD2)-1 -> 1 | AC2: =DATE(D2,E2,F2) -> 2018-07-12 | AD2: =IFERROR(VLOOKUP(MAX(AE2:AE81),A1:K81,11,FALSE),"") -> 0.01335959123 | AE2: =IF(AND(H1<>"",H2<>"",H3=""),A2,"") ->  | AF2: 2 | AG2: =VLOOKUP(AF2,$AB$1:$AD$10,2,FALSE) -> 2018-07-09 | AH2: =VLOOKUP(AF2,$AB$1:$AD$10,3,FALSE) -> 0.01207639517 | AK2: =AG2 -> 2018-07-09 | AL2: =AC2 -> 2018-07-12 | AM2: 1 | AN2: =VLOOKUP(AK2,$AL$1:$AM$10,2,FALSE) -> 4
A3: =A2+1 -> 2 | B3: 08:40:00 | C3: =RTD("cqg.rtd",,"StudyData",$D$12, "Bar", "", "Time","D","-2",,,,,"T") -> 2018-07-11 | D3: 2018 | E3: 7 | F3: 11 | G3: =RTD("cqg.rtd",,"StudyData",$D$12,"Bar",,"Close","D","-2",,,,,"T") -> 187.88 | H3: =RTD("cqg.rtd",,"StudyData", "Close("&$D$12&") when LocalYear("&$D$12&")="&$D$1&" and localMonth("&$D$12&") ="&$E$1&" and LocalDay("&$D$12&")="&$F$1&" and Barix("&$D$12&",reference:=StartOfSession)="&A3&"", "Bar", "", "Close","5","0","PrimaryOnly",,,"False","T","EveryTick") -> 191.57 | I3: =IFERROR((H3-$G$2)/$G$2,NA()) -> 0.002826781134 | J3: =RTD("cqg.rtd",,"StudyData", "Close("&$D$12&") when LocalYear("&$D$12&")="&$D$2&" and localMonth("&$D$12&") ="&$E$2&" and LocalDay("&$D$12&")="&$F$2&" and Barix("&$D$12&",reference:=StartOfSession)="&A3&"", "Bar", "", "Close","5","0","PrimaryOnly",,,"False","T","EveryTick") -> 189.79 | K3: 0.01016606344 | L3: =RTD("cqg.rtd",,"StudyData", "Close("&$D$12&") when LocalYear("&$D$12&")="&$D$3&" and localMonth("&$D$12&") ="&$E$3&" and LocalDay("&$D$12&")="&$F$3&" and Barix("&$D$12&",reference:=StartOfSession)="&A3&"", "Bar", "", "Close","5","0","PrimaryOnly",,,"False","T","EveryTick") -> 189.12 | M3: -0.00646178093 | N3: =RTD("cqg.rtd",,"StudyData", "Close("&$D$12&") when LocalYear("&$D$12&")="&$D$4&" and localMonth("&$D$12&") ="&$E$4&" and LocalDay("&$D$12&")="&$F$4&" and Barix("&$D$12&",reference:=StartOfSession)="&A3&"", "Bar", "", "Close","5","0","PrimaryOnly",,,"False","T","EveryTick") -> 190.6 | O3: 0.0001049428062 | P3: =RTD("cqg.rtd",,"StudyData", "Close("&$D$12&") when LocalYear("&$D$12&")="&$D$5&" and localMonth("&$D$12&") ="&$E$5&" and LocalDay("&$D$12&")="&$F$5&" and Barix("&$D$12&",reference:=StartOfSession)="&A3&"", "Bar", "", "Close","5","0","PrimaryOnly",,,"False","T","EveryTick") -> 190.53 | Q3: 0.01361919455 | R3: =RTD("cqg.rtd",,"StudyData", "Close("&$D$12&") when LocalYear("&$D$12&")="&$D$6&" and localMonth("&$D$12&") ="&$E$6&" and LocalDay("&$D$12&")="&$F$6&" and Barix("&$D$12&",reference:=StartOfSession)="&A3&"", "Bar", "", "Close","5","0","PrimaryOnly",,,"False","T","EveryTick") -> 186.44 | S3: 0.005609492988 | T3: =RTD("cqg.rtd",,"StudyData", "Close("&$D$12&") when LocalYear("&$D$12&")="&$D$7&" and localMonth("&$D$12&") ="&$E$7&" and LocalDay("&$D$12&")="&$F$7&" and Barix("&$D$12&",reference:=StartOfSession)="&A3&"", "Bar", "", "Close","5","0","PrimaryOnly",,,"False","T","EveryTick") -> 186.28 | U3: 0.01283166594 | V3: =RTD("cqg.rtd",,"StudyData", "Close("&$D$12&") when LocalYear("&$D$12&")="&$D$8&" and localMonth("&$D$12&") ="&$E$8&" and LocalDay("&$D$12&")="&$F$8&" and Barix("&$D$12&",reference:=StartOfSession)="&A3&"", "Bar", "", "Close","5","0","PrimaryOnly",,,"False","T","EveryTick") -> 186.5 | W3: -0.003632866759 | X3: =RTD("cqg.rtd",,"StudyData", "Close("&$D$12&") when LocalYear("&$D$12&")="&$D$9&" and localMonth("&$D$12&") ="&$E$9&" and LocalDay("&$D$12&")="&$F$9&" and Barix("&$D$12&",reference:=StartOfSession)="&A3&"", "Bar", "", "Close","5","0","PrimaryOnly",,,"False","T","EveryTick") -> 185.09 | Y3: -0.0001080438658 | Z3: =RTD("cqg.rtd",,"StudyData", "Close("&$D$12&") when LocalYear("&$D$12&")="&$D$10&" and localMonth("&$D$12&") ="&$E$10&" and LocalDay("&$D$12&")="&$F$10&" and Barix("&$D$12&",reference:=StartOfSession)="&A3&"", "Bar", "", "Close","5","0","PrimaryOnly",,,"False","T","EveryTick") -> 186.84 | AA3: 0.007223719677 | AB3: =RANK(AD3,$AD$1:$AD$10)+COUNTIF($AD$1:AD3,AD3)-1 -> 10 | AC3: 2018-07-11 | AD3: =IFERROR(VLOOKUP(MAX(AE2:AE81),A1:M81,13,FALSE),"") -> -0.009298660362 | AE3: =IF(AND(H2<>"",H3<>"",H4=""),A3,"") ->  | AF3: 3 | AG3: 2018-07-06 | AH3: 0.009546925566 | AK3: 2018-07-06 | AL3: 2018-07-11 | AM3: 2 | AN3: 5
A4: 3 | B4: 08:45:00 | C4: =RTD("cqg.rtd",,"StudyData",$D$12, "Bar", "", "Time","D","-3",,,,,"T") -> 2018-07-10 | D4: 2018 | E4: 7 | F4: 10 | G4: =RTD("cqg.rtd",,"StudyData",$D$12,"Bar",,"Close","D","-3",,,,,"T") -> 190.35 | H4: =RTD("cqg.rtd",,"StudyData", "Close("&$D$12&") when LocalYear("&$D$12&")="&$D$1&" and localMonth("&$D$12&") ="&$E$1&" and LocalDay("&$D$12&")="&$F$1&" and Barix("&$D$12&",reference:=StartOfSession)="&A4&"", "Bar", "", "Close","5","0","PrimaryOnly",,,"False","T","EveryTick") -> 191.76 | I4: 0.003821389311 | J4: =RTD("cqg.rtd",,"StudyData", "Close("&$D$12&") when LocalYear("&$D$12&")="&$D$2&" and localMonth("&$D$12&") ="&$E$2&" and LocalDay("&$D$12&")="&$F$2&" and Barix("&$D$12&",reference:=StartOfSession)="&A4&"", "Bar", "", "Close","5","0","PrimaryOnly",,,"False","T","EveryTick") -> 189.9 | K4: 0.01075154354 | L4: =RTD("cqg.rtd",,"StudyData", "Close("&$D$12&") when LocalYear("&$D$12&")="&$D$3&" and localMonth("&$D$12&") ="&$E$3&" and LocalDay("&$D$12&")="&$F$3&" and Barix("&$D$12&",reference:=StartOfSession)="&A4&"", "Bar", "", "Close","5","0","PrimaryOnly",,,"False","T","EveryTick") -> 189.28 | M4: -0.005621224061 | N4: =RTD("cqg.rtd",,"StudyData", "Close("&$D$12&") when LocalYear("&$D$12&")="&$D$4&" and localMonth("&$D$12&") ="&$E$4&" and LocalDay("&$D$12&")="&$F$4&" and Barix("&$D$12&",reference:=StartOfSession)="&A4&"", "Bar", "", "Close","5","0","PrimaryOnly",,,"False","T","EveryTick") -> 190.36 | O4: -0.001154370868 | P4: =RTD("cqg.rtd",,"StudyData", "Close("&$D$12&") when LocalYear("&$D$12&")="&$D$5&" and localMonth("&$D$12&") ="&$E$5&" and LocalDay("&$D$12&")="&$F$5&" and Barix("&$D$12&",reference:=StartOfSession)="&A4&"", "Bar", "", "Close","5","0","PrimaryOnly",,,"False","T","EveryTick") -> 190.57 | Q4: 0.01383199447 | R4: =RTD("cqg.rtd",,"StudyData", "Close("&$D$12&") when LocalYear("&$D$12&")="&$D$6&" and localMonth("&$D$12&") ="&$E$6&" and LocalDay("&$D$12&")="&$F$6&" and Barix("&$D$12&",reference:=StartOfSession)="&A4&"", "Bar", "", "Close","5","0","PrimaryOnly",,,"False","T","EveryTick") -> 186.55 | S4: 0.006202804746 | T4: =RTD("cqg.rtd",,"StudyData", "Close("&$D$12&") when LocalYear("&$D$12&")="&$D$7&" and localMonth("&$D$12&") ="&$E$7&" and LocalDay("&$D$12&")="&$F$7&" and Barix("&$D$12&",reference:=StartOfSession)="&A4&"", "Bar", "", "Close","5","0","PrimaryOnly",,,"False","T","EveryTick") -> 186.12 | U4: 0.01196172249 | V4: =RTD("cqg.rtd",,"StudyData", "Close("&$D$12&") when LocalYear("&$D$12&")="&$D$8&" and localMonth("&$D$12&") ="&$E$8&" and LocalDay("&$D$12&")="&$F$8&" and Barix("&$D$12&",reference:=StartOfSession)="&A4&"", "Bar", "", "Close","5","0","PrimaryOnly",,,"False","T","EveryTick") -> 186.73 | W4: -0.002404103002 | X4: =RTD("cqg.rtd",,"StudyData", "Close("&$D$12&") when LocalYear("&$D$12&")="&$D$9&" and localMonth("&$D$12&") ="&$E$9&" and LocalDay("&$D$12&")="&$F$9&" and Barix("&$D$12&",reference:=StartOfSession)="&A4&"", "Bar", "", "Close","5","0","PrimaryOnly",,,"False","T","EveryTick") -> 186.16 | Y4: 0.005672302955 | Z4: =RTD("cqg.rtd",,"StudyData", "Close("&$D$12&") when LocalYear("&$D$12&")="&$D$10&" and localMonth("&$D$12&") ="&$E$10&" and LocalDay("&$D$12&")="&$F$10&" and Barix("&$D$12&",reference:=StartOfSession)="&A4&"", "Bar", "", "Close","5","0","PrimaryOnly",,,"False","T","EveryTick") -> 186.45 | AA4: 0.005121293801 | AB4: =RANK(AD4,$AD$1:$AD$10)+COUNTIF($AD$1:AD4,AD4)-1 -> 8 | AC4: 2018-07-10 | AD4: =IFERROR(VLOOKUP(MAX(AE2:AE81),A1:O81,15,FALSE),"") -> 0.001469199286 | AF4: 4 | AG4: 2018-07-02 | AH4: 0.007022851278 | AK4: 2018-07-02 | AL4: 2018-07-10 | AM4: 3 | AN4: 8
A5: 4 | B5: 08:50:00 | C5: =RTD("cqg.rtd",,"StudyData",$D$12, "Bar", "", "Time","D","-4",,,,,"T") -> 2018-07-09 | D5: 2018 | E5: 7 | F5: 9 | G5: =RTD("cqg.rtd",,"StudyData",$D$12,"Bar",,"Close","D","-4",,,,,"T") -> 190.58 | H5: =RTD("cqg.rtd",,"StudyData", "Close("&$D$12&") when LocalYear("&$D$12&")="&$D$1&" and localMonth("&$D$12&") ="&$E$1&" and LocalDay("&$D$12&")="&$F$1&" and Barix("&$D$12&",reference:=StartOfSession)="&A5&"", "Bar", "", "Close","5","0","PrimaryOnly",,,"False","T","EveryTick") -> 191.37 | I5: 0.001779825158 | J5: =RTD("cqg.rtd",,"StudyData", "Close("&$D$12&") when LocalYear("&$D$12&")="&$D$2&" and localMonth("&$D$12&") ="&$E$2&" and LocalDay("&$D$12&")="&$F$2&" and Barix("&$D$12&",reference:=StartOfSession)="&A5&"", "Bar", "", "Close","5","0","PrimaryOnly",,,"False","T","EveryTick") -> 190.11 | K5: 0.01186927826 | L5: =RTD("cqg.rtd",,"StudyData", "Close("&$D$12&") when LocalYear("&$D$12&")="&$D$3&" and localMonth("&$D$12&") ="&$E$3&" and LocalDay("&$D$12&")="&$F$3&" and Barix("&$D$12&",reference:=StartOfSession)="&A5&"", "Bar", "", "Close","5","0","PrimaryOnly",,,"False","T","EveryTick") -> 188.99 | M5: -0.007144733386 | N5: =RTD("cqg.rtd",,"StudyData", "Close("&$D$12&") when LocalYear("&$D$12&")="&$D$4&" and localMonth("&$D$12&") ="&$E$4&" and LocalDay("&$D$12&")="&$F$4&" and Barix("&$D$12&",reference:=StartOfSession)="&A5&"", "Bar", "", "Close","5","0","PrimaryOnly",,,"False","T","EveryTick") -> 190.35 | O5: -0.001206842271 | P5: =RTD("cqg.rtd",,"StudyData", "Close("&$D$12&") when LocalYear("&$D$12&")="&$D$5&" and localMonth("&$D$12&") ="&$E$5&" and LocalDay("&$D$12&")="&$F$5&" and Barix("&$D$12&",reference:=StartOfSession)="&A5&"", "Bar", "", "Close","5","0","PrimaryOnly",,,"False","T","EveryTick") -> 190.03 | Q5: 0.01095919562 | R5: =RTD("cqg.rtd",,"StudyData", "Close("&$D$12&") when LocalYear("&$D$12&")="&$D$6&" and localMonth("&$D$12&") ="&$E$6&" and LocalDay("&$D$12&")="&$F$6&" and Barix("&$D$12&",reference:=StartOfSession)="&A5&"", "Bar", "", "Close","5","0","PrimaryOnly",,,"False","T","EveryTick") -> 186.88 | S5: 0.007982740022 | T5: =RTD("cqg.rtd",,"StudyData", "Close("&$D$12&") when LocalYear("&$D$12&")="&$D$7&" and localMonth("&$D$12&") ="&$E$7&" and LocalDay("&$D$12&")="&$F$7&" and Barix("&$D$12&",reference:=StartOfSession)="&A5&"", "Bar", "", "Close","5","0","PrimaryOnly",,,"False","T","EveryTick") -> 185.95 | U5: 0.01103740757 | V5: =RTD("cqg.rtd",,"StudyData", "Close("&$D$12&") when LocalYear("&$D$12&")="&$D$8&" and localMonth("&$D$12&") ="&$E$8&" and LocalDay("&$D$12&")="&$F$8&" and Barix("&$D$12&",reference:=StartOfSession)="&A5&"", "Bar", "", "Close","5","0","PrimaryOnly",,,"False","T","EveryTick") -> 186.66 | W5: -0.002778074581 | X5: =RTD("cqg.rtd",,"StudyData", "Close("&$D$12&") when LocalYear("&$D$12&")="&$D$9&" and localMonth("&$D$12&") ="&$E$9&" and LocalDay("&$D$12&")="&$F$9&" and Barix("&$D$12&",reference:=StartOfSession)="&A5&"", "Bar", "", "Close","5","0","PrimaryOnly",,,"False","T","EveryTick") -> 186.05 | Y5: 0.005078061693 | Z5: =RTD("cqg.rtd",,"StudyData", "Close("&$D$12&") when LocalYear("&$D$12&")="&$D$10&" and localMonth("&$D$12&") ="&$E$10&" and LocalDay("&$D$12&")="&$F$10&" and Barix("&$D$12&",reference:=StartOfSession)="&A5&"", "Bar", "", "Close","5","0","PrimaryOnly",,,"False","T","EveryTick") -> 186.46 | AA5: 0.005175202156 | AB5: =RANK(AD5,$AD$1:$AD$10)+COUNTIF($AD$1:AD5,AD5)-1 -> 2 | AC5: 2018-07-09 | AD5: =IFERROR(VLOOKUP(MAX(AE2:AE81),A1:Q81,17,FALSE),"") -> 0.01207639517 | AF5: 5 | AG5: 2018-07-05 | AH5: 0.006905176164 | AK5: 2018-07-05 | AL5: 2018-07-09 | AM5: 4 | AN5: 6
A6: 5 | B6: 08:55:00 | C6: =RTD("cqg.rtd",,"StudyData",$D$12, "Bar", "", "Time","D","-5",,,,,"T") -> 2018-07-06 | D6: 2018 | E6: 7 | F6: 6 | G6: =RTD("cqg.rtd",,"StudyData",$D$12,"Bar",,"Close","D","-5",,,,,"T") -> 187.97 | H6: =RTD("cqg.rtd",,"StudyData", "Close("&$D$12&") when LocalYear("&$D$12&")="&$D$1&" and localMonth("&$D$12&") ="&$E$1&" and LocalDay("&$D$12&")="&$F$1&" and Barix("&$D$12&",reference:=StartOfSession)="&A6&"", "Bar", "", "Close","5","0","PrimaryOnly",,,"False","T","EveryTick") -> 191.2 | I6: 0.0008899125792 | J6: =RTD("cqg.rtd",,"StudyData", "Close("&$D$12&") when LocalYear("&$D$12&")="&$D$2&" and localMonth("&$D$12&") ="&$E$2&" and LocalDay("&$D$12&")="&$F$2&" and Barix("&$D$12&",reference:=StartOfSession)="&A6&"", "Bar", "", "Close","5","0","PrimaryOnly",,,"False","T","EveryTick") -> 190.02 | K6: 0.0113902491 | L6: =RTD("cqg.rtd",,"StudyData", "Close("&$D$12&") when LocalYear("&$D$12&")="&$D$3&" and localMonth("&$D$12&") ="&$E$3&" and LocalDay("&$D$12&")="&$F$3&" and Barix("&$D$12&",reference:=StartOfSession)="&A6&"", "Bar", "", "Close","5","0","PrimaryOnly",,,"False","T","EveryTick") -> 188.95 | M6: -0.007354872603 | N6: =RTD("cqg.rtd",,"StudyData", "Close("&$D$12&") when LocalYear("&$D$12&")="&$D$4&" and localMonth("&$D$12&") ="&$E$4&" and LocalDay("&$D$12&")="&$F$4&" and Barix("&$D$12&",reference:=StartOfSession)="&A6&"", "Bar", "", "Close","5","0","PrimaryOnly",,,"False","T","EveryTick") -> 190.6 | O6: 0.0001049428062 | P6: =RTD("cqg.rtd",,"StudyData", "Close("&$D$12&") when LocalYear("&$D$12&")="&$D$5&" and localMonth("&$D$12&") ="&$E$5&" and LocalDay("&$D$12&")="&$F$5&" and Barix("&$D$12&",reference:=StartOfSession)="&A6&"", "Bar", "", "Close","5","0","PrimaryOnly",,,"False","T","EveryTick") -> 190.21 | Q6: 0.01191679523 | R6: =RTD("cqg.rtd",,"StudyData", "Close("&$D$12&") when LocalYear("&$D$12&")="&$D$6&" and localMonth("&$D$12&") ="&$E$6&" and LocalDay("&$D$12&")="&$F$6&" and Barix("&$D$12&",reference:=StartOfSession)="&A6&"", "Bar", "", "Close","5","0","PrimaryOnly",,,"False","T","EveryTick") -> 187.13 | S6: 0.009331175836 | T6: =RTD("cqg.rtd",,"StudyData", "Close("&$D$12&") when LocalYear("&$D$12&")="&$D$7&" and localMonth("&$D$12&") ="&$E$7&" and LocalDay("&$D$12&")="&$F$7&" and Barix("&$D$12&",reference:=StartOfSession)="&A6&"", "Bar", "", "Close","5","0","PrimaryOnly",,,"False","T","EveryTick") -> 185.56 | U6: 0.0089169204 | V6: =RTD("cqg.rtd",,"StudyData", "Close("&$D$12&") when LocalYear("&$D$12&")="&$D$8&" and localMonth("&$D$12&") ="&$E$8&" and LocalDay("&$D$12&")="&$F$8&" and Barix("&$D$12&",reference:=StartOfSession)="&A6&"", "Bar", "", "Close","5","0","PrimaryOnly",,,"False","T","EveryTick") -> 186.7 | W6: -0.002564376536 | X6: =RTD("cqg.rtd",,"StudyData", "Close("&$D$12&") when LocalYear("&$D$12&")="&$D$9&" and localMonth("&$D$12&") ="&$E$9&" and LocalDay("&$D$12&")="&$F$9&" and Barix("&$D$12&",reference:=StartOfSession)="&A6&"", "Bar", "", "Close","5","0","PrimaryOnly",,,"False","T","EveryTick") -> 186.12 | Y6: 0.005456215223 | Z6: =RTD("cqg.rtd",,"StudyData", "Close("&$D$12&") when LocalYear("&$D$12&")="&$D$10&" and localMonth("&$D$12&") ="&$E$10&" and LocalDay("&$D$12&")="&$F$10&" and Barix("&$D$12&",reference:=StartOfSession)="&A6&"", "Bar", "", "Close","5","0","PrimaryOnly",,,"False","T","EveryTick") -> 186.5 | AA6: 0.00539083558 | AB6: =RANK(AD6,$AD$1:$AD$10)+COUNTIF($AD$1:AD6,AD6)-1 -> 3 | AC6: 2018-07-06 | AD6: =IFERROR(VLOOKUP(MAX(AE2:AE81),A1:S81,19,FALSE),"") -> 0.009546925566 | AF6: 6 | AG6: 2018-06-29 | AH6: 0.004797843666 | AK6: 2018-06-29 | AL6: 2018-07-06 | AM6: 5 | AN6: 9
A7: 6 | B7: 09:00:00 | C7: =RTD("cqg.rtd",,"StudyData",$D$12, "Bar", "", "Time","D","-6",,,,,"T") -> 2018-07-05 | D7: 2018 | E7: 7 | F7: 5 | G7: =RTD("cqg.rtd",,"StudyData",$D$12,"Bar",,"Close","D","-6",,,,,"T") -> 185.4 | H7: =RTD("cqg.rtd",,"StudyData", "Close("&$D$12&") when LocalYear("&$D$12&")="&$D$1&" and localMonth("&$D$12&") ="&$E$1&" and LocalDay("&$D$12&")="&$F$1&" and Barix("&$D$12&",reference:=StartOfSession)="&A7&"", "Bar", "", "Close","5","0","PrimaryOnly",,,"False","T","EveryTick") -> 191.39 | I7: 0.001884520756 | J7: =RTD("cqg.rtd",,"StudyData", "Close("&$D$12&") when LocalYear("&$D$12&")="&$D$2&" and localMonth("&$D$12&") ="&$E$2&" and LocalDay("&$D$12&")="&$F$2&" and Barix("&$D$12&",reference:=StartOfSession)="&A7&"", "Bar", "", "Close","5","0","PrimaryOnly",,,"False","T","EveryTick") -> 190.14 | K7: 0.01202895465 | L7: =RTD("cqg.rtd",,"StudyData", "Close("&$D$12&") when LocalYear("&$D$12&")="&$D$3&" and localMonth("&$D$12&") ="&$E$3&" and LocalDay("&$D$12&")="&$F$3&" and Barix("&$D$12&",reference:=StartOfSession)="&A7&"", "Bar", "", "Close","5","0","PrimaryOnly",,,"False","T","EveryTick") -> 189.19 | M7: -0.0060940373 | N7: =RTD("cqg.rtd",,"StudyData", "Close("&$D$12&") when LocalYear("&$D$12&")="&$D$4&" and localMonth("&$D$12&") ="&$E$4&" and LocalDay("&$D$12&")="&$F$4&" and Barix("&$D$12&",reference:=StartOfSession)="&A7&"", "Bar", "", "Close","5","0","PrimaryOnly",,,"False","T","EveryTick") -> 190.48 | O7: -0.0005247140309 | P7: =RTD("cqg.rtd",,"StudyData", "Close("&$D$12&") when LocalYear("&$D$12&")="&$D$5&" and localMonth("&$D$12&") ="&$E$5&" and LocalDay("&$D$12&")="&$F$5&" and Barix("&$D$12&",reference:=StartOfSession)="&A7&"", "Bar", "", "Close","5","0","PrimaryOnly",,,"False","T","EveryTick") -> 190.18 | Q7: 0.0117571953 | R7: =RTD("cqg.rtd",,"StudyData", "Close("&$D$12&") when LocalYear("&$D$12&")="&$D$6&" and localMonth("&$D$12&") ="&$E$6&" and LocalDay("&$D$12&")="&$F$6&" and Barix("&$D$12&",reference:=StartOfSession)="&A7&"", "Bar", "", "Close","5","0","PrimaryOnly",,,"False","T","EveryTick") -> 186.71 | S7: 0.007065803668 | T7: =RTD("cqg.rtd",,"StudyData", "Close("&$D$12&") when LocalYear("&$D$12&")="&$D$7&" and localMonth("&$D$12&") ="&$E$7&" and LocalDay("&$D$12&")="&$F$7&" and Barix("&$D$12&",reference:=StartOfSession)="&A7&"", "Bar", "", "Close","5","0","PrimaryOnly",,,"False","T","EveryTick") -> 185.37 | U7: 0.007883862549 | V7: =RTD("cqg.rtd",,"StudyData", "Close("&$D$12&") when LocalYear("&$D$12&")="&$D$8&" and localMonth("&$D$12&") ="&$E$8&" and LocalDay("&$D$12&")="&$F$8&" and Barix("&$D$12&",reference:=StartOfSession)="&A7&"", "Bar", "", "Close","5","0","PrimaryOnly",,,"False","T","EveryTick") -> 186.74 | W7: -0.002350678491 | X7: =RTD("cqg.rtd",,"StudyData", "Close("&$D$12&") when LocalYear("&$D$12&")="&$D$9&" and localMonth("&$D$12&") ="&$E$9&" and LocalDay("&$D$12&")="&$F$9&" and Barix("&$D$12&",reference:=StartOfSession)="&A7&"", "Bar", "", "Close","5","0","PrimaryOnly",,,"False","T","EveryTick") -> 186.06 | Y7: 0.005132083626 | Z7: =RTD("cqg.rtd",,"StudyData", "Close("&$D$12&") when LocalYear("&$D$12&")="&$D$10&" and localMonth("&$D$12&") ="&$E$10&" and LocalDay("&$D$12&")="&$F$10&" and Barix("&$D$12&",reference:=StartOfSession)="&A7&"", "Bar", "", "Close","5","0","PrimaryOnly",,,"False","T","EveryTick") -> 186.58 | AA7: 0.005822102426 | AB7: =RANK(AD7,$AD$1:$AD$10)+COUNTIF($AD$1:AD7,AD7)-1 -> 5 | AC7: 2018-07-05 | AD7: =IFERROR(VLOOKUP(MAX(AE2:AE81),A1:U81,21,FALSE),"") -> 0.006905176164 | AF7: 7 | AG7: 2018-07-13 | AH7: 0.002460346542 | AK7: 2018-07-13 | AL7: 2018-07-05 | AM7: 6 | AN7: 0
A8: 7 | B8: 09:05:00 | C8: =RTD("cqg.rtd",,"StudyData",$D$12, "Bar", "", "Time","D","-7",,,,,"T") -> 2018-07-03 | D8: 2018 | E8: 7 | F8: 3 | G8: =RTD("cqg.rtd",,"StudyData",$D$12,"Bar",,"Close","D","-7",,,,,"T") -> 183.92 | H8: =RTD("cqg.rtd",,"StudyData", "Close("&$D$12&") when LocalYear("&$D$12&")="&$D$1&" and localMonth("&$D$12&") ="&$E$1&" and LocalDay("&$D$12&")="&$F$1&" and Barix("&$D$12&",reference:=StartOfSession)="&A8&"", "Bar", "", "Close","5","0","PrimaryOnly",,,"False","T","EveryTick") -> 191.64 | I8: 0.003193215725 | J8: =RTD("cqg.rtd",,"StudyData", "Close("&$D$12&") when LocalYear("&$D$12&")="&$D$2&" and localMonth("&$D$12&") ="&$E$2&" and LocalDay("&$D$12&")="&$F$2&" and Barix("&$D$12&",reference:=StartOfSession)="&A8&"", "Bar", "", "Close","5","0","PrimaryOnly",,,"False","T","EveryTick") -> 190.48 | K8: 0.0138386204 | L8: =RTD("cqg.rtd",,"StudyData", "Close("&$D$12&") when LocalYear("&$D$12&")="&$D$3&" and localMonth("&$D$12&") ="&$E$3&" and LocalDay("&$D$12&")="&$F$3&" and Barix("&$D$12&",reference:=StartOfSession)="&A8&"", "Bar", "", "Close","5","0","PrimaryOnly",,,"False","T","EveryTick") -> 188.97 | M8: -0.007249802994 | N8: =RTD("cqg.rtd",,"StudyData", "Close("&$D$12&") when LocalYear("&$D$12&")="&$D$4&" and localMonth("&$D$12&") ="&$E$4&" and LocalDay("&$D$12&")="&$F$4&" and Barix("&$D$12&",reference:=StartOfSession)="&A8&"", "Bar", "", "Close","5","0","PrimaryOnly",,,"False","T","EveryTick") -> 190.37 | O8: -0.001101899465 | P8: =RTD("cqg.rtd",,"StudyData", "Close("&$D$12&") when LocalYear("&$D$12&")="&$D$5&" and localMonth("&$D$12&") ="&$E$5&" and LocalDay("&$D$12&")="&$F$5&" and Barix("&$D$12&",reference:=StartOfSession)="&A8&"", "Bar", "", "Close","5","0","PrimaryOnly",,,"False","T","EveryTick") -> 190 | Q8: 0.01079959568 | R8: =RTD("cqg.rtd",,"StudyData", "Close("&$D$12&") when LocalYear("&$D$12&")="&$D$6&" and localMonth("&$D$12&") ="&$E$6&" and LocalDay("&$D$12&")="&$F$6&" and Barix("&$D$12&",reference:=StartOfSession)="&A8&"", "Bar", "", "Close","5","0","PrimaryOnly",,,"False","T","EveryTick") -> 186.77 | S8: 0.007389428263 | T8: =RTD("cqg.rtd",,"StudyData", "Close("&$D$12&") when LocalYear("&$D$12&")="&$D$7&" and localMonth("&$D$12&") ="&$E$7&" and LocalDay("&$D$12&")="&$F$7&" and Barix("&$D$12&",reference:=StartOfSession)="&A8&"", "Bar", "", "Close","5","0","PrimaryOnly",,,"False","T","EveryTick") -> 185.52 | U8: 0.008699434537 | V8: =RTD("cqg.rtd",,"StudyData", "Close("&$D$12&") when LocalYear("&$D$12&")="&$D$8&" and localMonth("&$D$12&") ="&$E$8&" and LocalDay("&$D$12&")="&$F$8&" and Barix("&$D$12&",reference:=StartOfSession)="&A8&"", "Bar", "", "Close","5","0","PrimaryOnly",,,"False","T","EveryTick") -> 186.6 | W8: -0.003098621648 | X8: =RTD("cqg.rtd",,"StudyData", "Close("&$D$12&") when LocalYear("&$D$12&")="&$D$9&" and localMonth("&$D$12&") ="&$E$9&" and LocalDay("&$D$12&")="&$F$9&" and Barix("&$D$12&",reference:=StartOfSession)="&A8&"", "Bar", "", "Close","5","0","PrimaryOnly",,,"False","T","EveryTick") -> 186.14 | Y8: 0.005564259089 | Z8: =RTD("cqg.rtd",,"StudyData", "Close("&$D$12&") when LocalYear("&$D$12&")="&$D$10&" and localMonth("&$D$12&") ="&$E$10&" and LocalDay("&$D$12&")="&$F$10&" and Barix("&$D$12&",reference:=StartOfSession)="&A8&"", "Bar", "", "Close","5","0","PrimaryOnly",,,"False","T","EveryTick") -> 186.36 | AA8: 0.004636118598 | AB8: =RANK(AD8,$AD$1:$AD$10)+COUNTIF($AD$1:AD8,AD8)-1 -> 9 | AC8: 2018-07-03 | AD8: =IFERROR(VLOOKUP(MAX(AE2:AE81),A1:W81,23,FALSE),"") -> -0.003419168715 | AF8: 8 | AG8: 2018-07-10 | AH8: 0.001469199286 | AK8: 2018-07-10 | AL8: 2018-07-03 | AM8: 7 | AN8: 3
A9: 8 | B9: 09:10:00 | C9: =RTD("cqg.rtd",,"StudyData",$D$12, "Bar", "", "Time","D","-8",,,,,"T") -> 2018-07-02 | D9: 2018 | E9: 7 | F9: 2 | G9: =RTD("cqg.rtd",,"StudyData",$D$12,"Bar",,"Close","D","-8",,,,,"T") -> 187.18 | H9: =RTD("cqg.rtd",,"StudyData", "Close("&$D$12&") when LocalYear("&$D$12&")="&$D$1&" and localMonth("&$D$12&") ="&$E$1&" and LocalDay("&$D$12&")="&$F$1&" and Barix("&$D$12&",reference:=StartOfSession)="&A9&"", "Bar", "", "Close","5","0","PrimaryOnly",,,"False","T","EveryTick") -> 191.61 | I9: 0.003036172329 | J9: =RTD("cqg.rtd",,"StudyData", "Close("&$D$12&") when LocalYear("&$D$12&")="&$D$2&" and localMonth("&$D$12&") ="&$E$2&" and LocalDay("&$D$12&")="&$F$2&" and Barix("&$D$12&",reference:=StartOfSession)="&A9&"", "Bar", "", "Close","5","0","PrimaryOnly",,,"False","T","EveryTick") -> 190.37 | K9: 0.0132531403 | L9: =RTD("cqg.rtd",,"StudyData", "Close("&$D$12&") when LocalYear("&$D$12&")="&$D$3&" and localMonth("&$D$12&") ="&$E$3&" and LocalDay("&$D$12&")="&$F$3&" and Barix("&$D$12&",reference:=StartOfSession)="&A9&"", "Bar", "", "Close","5","0","PrimaryOnly",,,"False","T","EveryTick") -> 188.73 | M9: -0.008510638298 | N9: =RTD("cqg.rtd",,"StudyData", "Close("&$D$12&") when LocalYear("&$D$12&")="&$D$4&" and localMonth("&$D$12&") ="&$E$4&" and LocalDay("&$D$12&")="&$F$4&" and Barix("&$D$12&",reference:=StartOfSession)="&A9&"", "Bar", "", "Close","5","0","PrimaryOnly",,,"False","T","EveryTick") -> 190.3 | O9: -0.001469199286 | P9: =RTD("cqg.rtd",,"StudyData", "Close("&$D$12&") when LocalYear("&$D$12&")="&$D$5&" and localMonth("&$D$12&") ="&$E$5&" and LocalDay("&$D$12&")="&$F$5&" and Barix("&$D$12&",reference:=StartOfSession)="&A9&"", "Bar", "", "Close","5","0","PrimaryOnly",,,"False","T","EveryTick") -> 189.57 | Q9: 0.008511996595 | R9: =RTD("cqg.rtd",,"StudyData", "Close("&$D$12&") when LocalYear("&$D$12&")="&$D$6&" and localMonth("&$D$12&") ="&$E$6&" and LocalDay("&$D$12&")="&$F$6&" and Barix("&$D$12&",reference:=StartOfSession)="&A9&"", "Bar", "", "Close","5","0","PrimaryOnly",,,"False","T","EveryTick") -> 186.76 | S9: 0.007335490831 | T9: =RTD("cqg.rtd",,"StudyData", "Close("&$D$12&") when LocalYear("&$D$12&")="&$D$7&" and localMonth("&$D$12&") ="&$E$7&" and LocalDay("&$D$12&")="&$F$7&" and Barix("&$D$12&",reference:=StartOfSession)="&A9&"", "Bar", "", "Close","5","0","PrimaryOnly",,,"False","T","EveryTick") -> 185.23 | U9: 0.007122662027 | V9: =RTD("cqg.rtd",,"StudyData", "Close("&$D$12&") when LocalYear("&$D$12&")="&$D$8&" and localMonth("&$D$12&") ="&$E$8&" and LocalDay("&$D$12&")="&$F$8&" and Barix("&$D$12&",reference:=StartOfSession)="&A9&"", "Bar", "", "Close","5","0","PrimaryOnly",,,"False","T","EveryTick") -> 186.69 | W9: -0.002617801047 | X9: =RTD("cqg.rtd",,"StudyData", "Close("&$D$12&") when LocalYear("&$D$12&")="&$D$9&" and localMonth("&$D$12&") ="&$E$9&" and LocalDay("&$D$12&")="&$F$9&" and Barix("&$D$12&",reference:=StartOfSession)="&A9&"", "Bar", "", "Close","5","0","PrimaryOnly",,,"False","T","EveryTick") -> 185.69 | Y9: 0.003133272108 | Z9: =RTD("cqg.rtd",,"StudyData", "Close("&$D$12&") when LocalYear("&$D$12&")="&$D$10&" and localMonth("&$D$12&") ="&$E$10&" and LocalDay("&$D$12&")="&$F$10&" and Barix("&$D$12&",reference:=StartOfSession)="&A9&"", "Bar", "", "Close","5","0","PrimaryOnly",,,"False","T","EveryTick") -> 186.21 | AA9: 0.003827493261 | AB9: =RANK(AD9,$AD$1:$AD$10)+COUNTIF($AD$1:AD9,AD9)-1 -> 4 | AC9: 2018-07-02 | AD9: =IFERROR(VLOOKUP(MAX(AE2:AE81),A1:Y81,25,FALSE),"") -> 0.007022851278 | AF9: 9 | AG9: 2018-07-03 | AH9: -0.003419168715 | AK9: 2018-07-03 | AL9: 2018-07-02 | AM9: 8 | AN9: 7
A10: 9 | B10: 09:15:00 | C10: =RTD("cqg.rtd",,"StudyData",$D$12, "Bar", "", "Time","D","-9",,,,,"T") -> 2018-06-29 | D10: 2018 | E10: 6 | F10: 29 | G10: =RTD("cqg.rtd",,"StudyData",$D$12,"Bar",,"Close","D","-9",,,,,"T") -> 185.11 | H10: =RTD("cqg.rtd",,"StudyData", "Close("&$D$12&") when LocalYear("&$D$12&")="&$D$1&" and localMonth("&$D$12&") ="&$E$1&" and LocalDay("&$D$12&")="&$F$1&" and Barix("&$D$12&",reference:=StartOfSession)="&A10&"", "Bar", "", "Close","5","0","PrimaryOnly",,,"False","T","EveryTick") -> 191.52 | I10: 0.00256504214 | J10: =RTD("cqg.rtd",,"StudyData", "Close("&$D$12&") when LocalYear("&$D$12&")="&$D$2&" and localMonth("&$D$12&") ="&$E$2&" and LocalDay("&$D$12&")="&$F$2&" and Barix("&$D$12&",reference:=StartOfSession)="&A10&"", "Bar", "", "Close","5","0","PrimaryOnly",,,"False","T","EveryTick") -> 190.42 | K10: 0.01351926762 | L10: =RTD("cqg.rtd",,"StudyData", "Close("&$D$12&") when LocalYear("&$D$12&")="&$D$3&" and localMonth("&$D$12&") ="&$E$3&" and LocalDay("&$D$12&")="&$F$3&" and Barix("&$D$12&",reference:=StartOfSession)="&A10&"", "Bar", "", "Close","5","0","PrimaryOnly",,,"False","T","EveryTick") -> 189.06 | M10: -0.006776989756 | N10: =RTD("cqg.rtd",,"StudyData", "Close("&$D$12&") when LocalYear("&$D$12&")="&$D$4&" and localMonth("&$D$12&") ="&$E$4&" and LocalDay("&$D$12&")="&$F$4&" and Barix("&$D$12&",reference:=StartOfSession)="&A10&"", "Bar", "", "Close","5","0","PrimaryOnly",,,"False","T","EveryTick") -> 190.7 | O10: 0.000629656837 | P10: =RTD("cqg.rtd",,"StudyData", "Close("&$D$12&") when LocalYear("&$D$12&")="&$D$5&" and localMonth("&$D$12&") ="&$E$5&" and LocalDay("&$D$12&")="&$F$5&" and Barix("&$D$12&",reference:=StartOfSession)="&A10&"", "Bar", "", "Close","5","0","PrimaryOnly",,,"False","T","EveryTick") -> 189.62 | Q10: 0.008777996489 | R10: =RTD("cqg.rtd",,"StudyData", "Close("&$D$12&") when LocalYear("&$D$12&")="&$D$6&" and localMonth("&$D$12&") ="&$E$6&" and LocalDay("&$D$12&")="&$F$6&" and Barix("&$D$12&",reference:=StartOfSession)="&A10&"", "Bar", "", "Close","5","0","PrimaryOnly",,,"False","T","EveryTick") -> 186.59 | S10: 0.006418554477 | T10: =RTD("cqg.rtd",,"StudyData", "Close("&$D$12&") when LocalYear("&$D$12&")="&$D$7&" and localMonth("&$D$12&") ="&$E$7&" and LocalDay("&$D$12&")="&$F$7&" and Barix("&$D$12&",reference:=StartOfSession)="&A10&"", "Bar", "", "Close","5","0","PrimaryOnly",,,"False","T","EveryTick") -> 185.1 | U10: 0.006415832971 | V10: =RTD("cqg.rtd",,"StudyData", "Close("&$D$12&") when LocalYear("&$D$12&")="&$D$8&" and localMonth("&$D$12&") ="&$E$8&" and LocalDay("&$D$12&")="&$F$8&" and Barix("&$D$12&",reference:=StartOfSession)="&A10&"", "Bar", "", "Close","5","0","PrimaryOnly",,,"False","T","EveryTick") -> 187 | W10: -0.000961641201 | X10: =RTD("cqg.rtd",,"StudyData", "Close("&$D$12&") when LocalYear("&$D$12&")="&$D$9&" and localMonth("&$D$12&") ="&$E$9&" and LocalDay("&$D$12&")="&$F$9&" and Barix("&$D$12&",reference:=StartOfSession)="&A10&"", "Bar", "", "Close","5","0","PrimaryOnly",,,"False","T","EveryTick") -> 186.07 | Y10: 0.005186105559 | Z10: =RTD("cqg.rtd",,"StudyData", "Close("&$D$12&") when LocalYear("&$D$12&")="&$D$10&" and localMonth("&$D$12&") ="&$E$10&" and LocalDay("&$D$12&")="&$F$10&" and Barix("&$D$12&",reference:=StartOfSession)="&A10&"", "Bar", "", "Close","5","0","PrimaryOnly",,,"False","T","EveryTick") -> 186.24 | AA10: 0.003989218329 | AB10: =RANK(AD10,$AD$1:$AD$10)+COUNTIF($AD$1:AD10,AD10)-1 -> 6 | AC10: 2018-06-29 | AD10: =IFERROR(VLOOKUP(MAX(AE2:AE81),A1:AA81,27,FALSE),"") -> 0.004797843666 | AF10: 10 | AG10: 2018-07-11 | AH10: -0.009298660362 | AK10: 2018-07-11 | AL10: 2018-06-29 | AM10: 9 | AN10: 2
A11: 10 | B11: 09:20:00 | C11: =RTD("cqg.rtd",,"StudyData",$D$12, "Bar", "", "Time","D","-10",,,,,"T") -> 2018-06-28 | D11: 2018 | E11: =MONTH(C11) -> 6 | F11: =DAY(C11) -> 28 | G11: =RTD("cqg.rtd",,"StudyData",$D$12,"Bar",,"Close","D","-10",,,,,"T") -> 185.5 | H11: =RTD("cqg.rtd",,"StudyData", "Close("&$D$12&") when LocalYear("&$D$12&")="&$D$1&" and localMonth("&$D$12&") ="&$E$1&" and LocalDay("&$D$12&")="&$F$1&" and Barix("&$D$12&",reference:=StartOfSession)="&A11&"", "Bar", "", "Close","5","0","PrimaryOnly",,,"False","T","EveryTick") -> 191.56 | I11: 0.002774433335 | J11: =RTD("cqg.rtd",,"StudyData", "Close("&$D$12&") when LocalYear("&$D$12&")="&$D$2&" and localMonth("&$D$12&") ="&$E$2&" and LocalDay("&$D$12&")="&$F$2&" and Barix("&$D$12&",reference:=StartOfSession)="&A11&"", "Bar", "", "Close","5","0","PrimaryOnly",,,"False","T","EveryTick") -> 190.26 | K11: 0.01266766021 | L11: =RTD("cqg.rtd",,"StudyData", "Close("&$D$12&") when LocalYear("&$D$12&")="&$D$3&" and localMonth("&$D$12&") ="&$E$3&" and LocalDay("&$D$12&")="&$F$3&" and Barix("&$D$12&",reference:=StartOfSession)="&A11&"", "Bar", "", "Close","5","0","PrimaryOnly",,,"False","T","EveryTick") -> 189.09 | M11: -0.006619385343 | N11: =RTD("cqg.rtd",,"StudyData", "Close("&$D$12&") when LocalYear("&$D$12&")="&$D$4&" and localMonth("&$D$12&") ="&$E$4&" and LocalDay("&$D$12&")="&$F$4&" and Barix("&$D$12&",reference:=StartOfSession)="&A11&"", "Bar", "", "Close","5","0","PrimaryOnly",,,"False","T","EveryTick") -> 190.67 | O11: 0.0004722426278 | P11: =RTD("cqg.rtd",,"StudyData", "Close("&$D$12&") when LocalYear("&$D$12&")="&$D$5&" and localMonth("&$D$12&") ="&$E$5&" and LocalDay("&$D$12&")="&$F$5&" and Barix("&$D$12&",reference:=StartOfSession)="&A11&"", "Bar", "", "Close","5","0","PrimaryOnly",,,"False","T","EveryTick") -> 189.77 | Q11: 0.00957599617 | R11: =RTD("cqg.rtd",,"StudyData", "Close("&$D$12&") when LocalYear("&$D$12&")="&$D$6&" and localMonth("&$D$12&") ="&$E$6&" and LocalDay("&$D$12&")="&$F$6&" and Barix("&$D$12&",reference:=StartOfSession)="&A11&"", "Bar", "", "Close","5","0","PrimaryOnly",,,"False","T","EveryTick") -> 186.35 | S11: 0.005124056095 | T11: =RTD("cqg.rtd",,"StudyData", "Close("&$D$12&") when LocalYear("&$D$12&")="&$D$7&" and localMonth("&$D$12&") ="&$E$7&" and LocalDay("&$D$12&")="&$F$7&" and Barix("&$D$12&",reference:=StartOfSession)="&A11&"", "Bar", "", "Close","5","0","PrimaryOnly",,,"False","T","EveryTick") -> 184.97 | U11: 0.005709003915 | V11: =RTD("cqg.rtd",,"StudyData", "Close("&$D$12&") when LocalYear("&$D$12&")="&$D$8&" and localMonth("&$D$12&") ="&$E$8&" and LocalDay("&$D$12&")="&$F$8&" and Barix("&$D$12&",reference:=StartOfSession)="&A11&"", "Bar", "", "Close","5","0","PrimaryOnly",,,"False","T","EveryTick") -> 187.18 | W11: 0 | X11: =RTD("cqg.rtd",,"StudyData", "Close("&$D$12&") when LocalYear("&$D$12&")="&$D$9&" and localMonth("&$D$12&") ="&$E$9&" and LocalDay("&$D$12&")="&$F$9&" and Barix("&$D$12&",reference:=StartOfSession)="&A11&"", "Bar", "", "Close","5","0","PrimaryOnly",,,"False","T","EveryTick") -> 186.04 | Y11: 0.00502403976 | Z11: =RTD("cqg.rtd",,"StudyData", "Close("&$D$12&") when LocalYear("&$D$12&")="&$D$10&" and localMonth("&$D$12&") ="&$E$10&" and LocalDay("&$D$12&")="&$F$10&" and Barix("&$D$12&",reference:=StartOfSession)="&A11&"", "Bar", "", "Close","5","0","PrimaryOnly",,,"False","T","EveryTick") -> 186.43 | AA11: 0.005013477089
A12: 11 | B12: 09:25:00 | D12: =MainDisplay!B5 -> S.AAPL | H12: =RTD("cqg.rtd",,"StudyData", "Close("&$D$12&") when LocalYear("&$D$12&")="&$D$1&" and localMonth("&$D$12&") ="&$E$1&" and LocalDay("&$D$12&")="&$F$1&" and Barix("&$D$12&",reference:=StartOfSession)="&A12&"", "Bar", "", "Close","5","0","PrimaryOnly",,,"False","T","EveryTick") -> 191.54 | I12: 0.002669737738 | J12: =RTD("cqg.rtd",,"StudyData", "Close("&$D$12&") when LocalYear("&$D$12&")="&$D$2&" and localMonth("&$D$12&") ="&$E$2&" and LocalDay("&$D$12&")="&$F$2&" and Barix("&$D$12&",reference:=StartOfSession)="&A12&"", "Bar", "", "Close","5","0","PrimaryOnly",,,"False","T","EveryTick") -> 190.41 | K12: 0.01346604215 | L12: =RTD("cqg.rtd",,"StudyData", "Close("&$D$12&") when LocalYear("&$D$12&")="&$D$3&" and localMonth("&$D$12&") ="&$E$3&" and LocalDay("&$D$12&")="&$F$3&" and Barix("&$D$12&",reference:=StartOfSession)="&A12&"", "Bar", "", "Close","5","0","PrimaryOnly",,,"False","T","EveryTick") -> 188.94 | M12: -0.007407407407 | N12: =RTD("cqg.rtd",,"StudyData", "Close("&$D$12&") when LocalYear("&$D$12&")="&$D$4&" and localMonth("&$D$12&") ="&$E$4&" and LocalDay("&$D$12&")="&$F$4&" and Barix("&$D$12&",reference:=StartOfSession)="&A12&"", "Bar", "", "Close","5","0","PrimaryOnly",,,"False","T","EveryTick") -> 190.91 | O12: 0.001731556302 | P12: =RTD("cqg.rtd",,"StudyData", "Close("&$D$12&") when LocalYear("&$D$12&")="&$D$5&" and localMonth("&$D$12&") ="&$E$5&" and LocalDay("&$D$12&")="&$F$5&" and Barix("&$D$12&",reference:=StartOfSession)="&A12&"", "Bar", "", "Close","5","0","PrimaryOnly",,,"False","T","EveryTick") -> 189.7 | Q12: 0.009203596319 | R12: =RTD("cqg.rtd",,"StudyData", "Close("&$D$12&") when LocalYear("&$D$12&")="&$D$6&" and localMonth("&$D$12&") ="&$E$6&" and LocalDay("&$D$12&")="&$F$6&" and Barix("&$D$12&",reference:=StartOfSession)="&A12&"", "Bar", "", "Close","5","0","PrimaryOnly",,,"False","T","EveryTick") -> 186.39 | S12: 0.005339805825 | T12: =RTD("cqg.rtd",,"StudyData", "Close("&$D$12&") when LocalYear("&$D$12&")="&$D$7&" and localMonth("&$D$12&") ="&$E$7&" and LocalDay("&$D$12&")="&$F$7&" and Barix("&$D$12&",reference:=StartOfSession)="&A12&"", "Bar", "", "Close","5","0","PrimaryOnly",,,"False","T","EveryTick") -> 184.92 | U12: 0.005437146585 | V12: =RTD("cqg.rtd",,"StudyData", "Close("&$D$12&") when LocalYear("&$D$12&")="&$D$8&" and localMonth("&$D$12&") ="&$E$8&" and LocalDay("&$D$12&")="&$F$8&" and Barix("&$D$12&",reference:=StartOfSession)="&A12&"", "Bar", "", "Close","5","0","PrimaryOnly",,,"False","T","EveryTick") -> 186.99 | W12: -0.001015065712 | X12: =RTD("cqg.rtd",,"StudyData", "Close("&$D$12&") when LocalYear("&$D$12&")="&$D$9&" and localMonth("&$D$12&") ="&$E$9&" and LocalDay("&$D$12&")="&$F$9&" and Barix("&$D$12&",reference:=StartOfSession)="&A12&"", "Bar", "", "Close","5","0","PrimaryOnly",,,"False","T","EveryTick") -> 186.33 | Y12: 0.006590675814 | Z12: =RTD("cqg.rtd",,"StudyData", "Close("&$D$12&") when LocalYear("&$D$12&")="&$D$10&" and localMonth("&$D$12&") ="&$E$10&" and LocalDay("&$D$12&")="&$F$10&" and Barix("&$D$12&",reference:=StartOfSession)="&A12&"", "Bar", "", "Close","5","0","PrimaryOnly",,,"False","T","EveryTick") -> 186.23 | AA12: 0.003935309973 | AC12: =VLOOKUP(MAX(AE2:AE81),A1:B81,2,FALSE) -> 10:20:00
A13: 12 | B13: 09:30:00 | D13: =RTD("cqg.rtd", ,"ContractData",D12, "LastQuoteToday",, "T") -> 191.48 | G13: =C1 -> 2018-07-13 | H13: =RTD("cqg.rtd",,"StudyData", "Close("&$D$12&") when LocalYear("&$D$12&")="&$D$1&" and localMonth("&$D$12&") ="&$E$1&" and LocalDay("&$D$12&")="&$F$1&" and Barix("&$D$12&",reference:=StartOfSession)="&A13&"", "Bar", "", "Close","5","0","PrimaryOnly",,,"False","T","EveryTick") -> 191.58 | I13: 0.002879128933 | J13: =RTD("cqg.rtd",,"StudyData", "Close("&$D$12&") when LocalYear("&$D$12&")="&$D$2&" and localMonth("&$D$12&") ="&$E$2&" and LocalDay("&$D$12&")="&$F$2&" and Barix("&$D$12&",reference:=StartOfSession)="&A13&"", "Bar", "", "Close","5","0","PrimaryOnly",,,"False","T","EveryTick") -> 190.64 | K13: 0.0146902278 | L13: =RTD("cqg.rtd",,"StudyData", "Close("&$D$12&") when LocalYear("&$D$12&")="&$D$3&" and localMonth("&$D$12&") ="&$E$3&" and LocalDay("&$D$12&")="&$F$3&" and Barix("&$D$12&",reference:=StartOfSession)="&A13&"", "Bar", "", "Close","5","0","PrimaryOnly",,,"False","T","EveryTick") -> 188.88 | M13: -0.007722616233 | N13: =RTD("cqg.rtd",,"StudyData", "Close("&$D$12&") when LocalYear("&$D$12&")="&$D$4&" and localMonth("&$D$12&") ="&$E$4&" and LocalDay("&$D$12&")="&$F$4&" and Barix("&$D$12&",reference:=StartOfSession)="&A13&"", "Bar", "", "Close","5","0","PrimaryOnly",,,"False","T","EveryTick") -> 190.99 | O13: 0.002151327526 | P13: =RTD("cqg.rtd",,"StudyData", "Close("&$D$12&") when LocalYear("&$D$12&")="&$D$5&" and localMonth("&$D$12&") ="&$E$5&" and LocalDay("&$D$12&")="&$F$5&" and Barix("&$D$12&",reference:=StartOfSession)="&A13&"", "Bar", "", "Close","5","0","PrimaryOnly",,,"False","T","EveryTick") -> 189.76 | Q13: 0.009522796191 | R13: =RTD("cqg.rtd",,"StudyData", "Close("&$D$12&") when LocalYear("&$D$12&")="&$D$6&" and localMonth("&$D$12&") ="&$E$6&" and LocalDay("&$D$12&")="&$F$6&" and Barix("&$D$12&",reference:=StartOfSession)="&A13&"", "Bar", "", "Close","5","0","PrimaryOnly",,,"False","T","EveryTick") -> 186.1 | S13: 0.00377562028 | T13: =RTD("cqg.rtd",,"StudyData", "Close("&$D$12&") when LocalYear("&$D$12&")="&$D$7&" and localMonth("&$D$12&") ="&$E$7&" and LocalDay("&$D$12&")="&$F$7&" and Barix("&$D$12&",reference:=StartOfSession)="&A13&"", "Bar", "", "Close","5","0","PrimaryOnly",,,"False","T","EveryTick") -> 184.88 | U13: 0.005219660722 | V13: =RTD("cqg.rtd",,"StudyData", "Close("&$D$12&") when LocalYear("&$D$12&")="&$D$8&" and localMonth("&$D$12&") ="&$E$8&" and LocalDay("&$D$12&")="&$F$8&" and Barix("&$D$12&",reference:=StartOfSession)="&A13&"", "Bar", "", "Close","5","0","PrimaryOnly",,,"False","T","EveryTick") -> 187.24 | W13: 0.000320547067 | X13: =RTD("cqg.rtd",,"StudyData", "Close("&$D$12&") when LocalYear("&$D$12&")="&$D$9&" and localMonth("&$D$12&") ="&$E$9&" and LocalDay("&$D$12&")="&$F$9&" and Barix("&$D$12&",reference:=StartOfSession)="&A13&"", "Bar", "", "Close","5","0","PrimaryOnly",,,"False","T","EveryTick") -> 186.49 | Y13: 0.007455026741 | Z13: =RTD("cqg.rtd",,"StudyData", "Close("&$D$12&") when LocalYear("&$D$12&")="&$D$10&" and localMonth("&$D$12&") ="&$E$10&" and LocalDay("&$D$12&")="&$F$10&" and Barix("&$D$12&",reference:=StartOfSession)="&A13&"", "Bar", "", "Close","5","0","PrimaryOnly",,,"False","T","EveryTick") -> 186.33 | AA13: 0.004474393531
A14: 13 | B14: 09:35:00 | D14: =RTD("cqg.rtd", ,"ContractData",D12, "LongDescription",, "T") -> Apple Inc | G14: =C2 -> 2018-07-12 | H14: =RTD("cqg.rtd",,"StudyData", "Close("&$D$12&") when LocalYear("&$D$12&")="&$D$1&" and localMonth("&$D$12&") ="&$E$1&" and LocalDay("&$D$12&")="&$F$1&" and Barix("&$D$12&",reference:=StartOfSession)="&A14&"", "Bar", "", "Close","5","0","PrimaryOnly",,,"False","T","EveryTick") -> 191.67 | I14: 0.003350259122 | J14: =RTD("cqg.rtd",,"StudyData", "Close("&$D$12&") when LocalYear("&$D$12&")="&$D$2&" and localMonth("&$D$12&") ="&$E$2&" and LocalDay("&$D$12&")="&$F$2&" and Barix("&$D$12&",reference:=StartOfSession)="&A14&"", "Bar", "", "Close","5","0","PrimaryOnly",,,"False","T","EveryTick") -> 190.41 | K14: 0.01346604215 | L14: =RTD("cqg.rtd",,"StudyData", "Close("&$D$12&") when LocalYear("&$D$12&")="&$D$3&" and localMonth("&$D$12&") ="&$E$3&" and LocalDay("&$D$12&")="&$F$3&" and Barix("&$D$12&",reference:=StartOfSession)="&A14&"", "Bar", "", "Close","5","0","PrimaryOnly",,,"False","T","EveryTick") -> 188.97 | M14: -0.007249802994 | N14: =RTD("cqg.rtd",,"StudyData", "Close("&$D$12&") when LocalYear("&$D$12&")="&$D$4&" and localMonth("&$D$12&") ="&$E$4&" and LocalDay("&$D$12&")="&$F$4&" and Barix("&$D$12&",reference:=StartOfSession)="&A14&"", "Bar", "", "Close","5","0","PrimaryOnly",,,"False","T","EveryTick") -> 191.16 | O14: 0.003043341379 | P14: =RTD("cqg.rtd",,"StudyData", "Close("&$D$12&") when LocalYear("&$D$12&")="&$D$5&" and localMonth("&$D$12&") ="&$E$5&" and LocalDay("&$D$12&")="&$F$5&" and Barix("&$D$12&",reference:=StartOfSession)="&A14&"", "Bar", "", "Close","5","0","PrimaryOnly",,,"False","T","EveryTick") -> 190.04 | Q14: 0.0110123956 | R14: =RTD("cqg.rtd",,"StudyData", "Close("&$D$12&") when LocalYear("&$D$12&")="&$D$6&" and localMonth("&$D$12&") ="&$E$6&" and LocalDay("&$D$12&")="&$F$6&" and Barix("&$D$12&",reference:=StartOfSession)="&A14&"", "Bar", "", "Close","5","0","PrimaryOnly",,,"False","T","EveryTick") -> 186.23 | S14: 0.004476806904 | T14: =RTD("cqg.rtd",,"StudyData", "Close("&$D$12&") when LocalYear("&$D$12&")="&$D$7&" and localMonth("&$D$12&") ="&$E$7&" and LocalDay("&$D$12&")="&$F$7&" and Barix("&$D$12&",reference:=StartOfSession)="&A14&"", "Bar", "", "Close","5","0","PrimaryOnly",,,"False","T","EveryTick") -> 184.87 | U14: 0.005165289256 | V14: =RTD("cqg.rtd",,"StudyData", "Close("&$D$12&") when LocalYear("&$D$12&")="&$D$8&" and localMonth("&$D$12&") ="&$E$8&" and LocalDay("&$D$12&")="&$F$8&" and Barix("&$D$12&",reference:=StartOfSession)="&A14&"", "Bar", "", "Close","5","0","PrimaryOnly",,,"False","T","EveryTick") -> 187.34 | W14: 0.0008547921787 | X14: =RTD("cqg.rtd",,"StudyData", "Close("&$D$12&") when LocalYear("&$D$12&")="&$D$9&" and localMonth("&$D$12&") ="&$E$9&" and LocalDay("&$D$12&")="&$F$9&" and Barix("&$D$12&",reference:=StartOfSession)="&A14&"", "Bar", "", "Close","5","0","PrimaryOnly",,,"False","T","EveryTick") -> 186.37 | Y14: 0.006806763546 | Z14: =RTD("cqg.rtd",,"StudyData", "Close("&$D$12&") when LocalYear("&$D$12&")="&$D$10&" and localMonth("&$D$12&") ="&$E$10&" and LocalDay("&$D$12&")="&$F$10&" and Barix("&$D$12&",reference:=StartOfSession)="&A14&"", "Bar", "", "Close","5","0","PrimaryOnly",,,"False","T","EveryTick") -> 186.25 | AA14: 0.004043126685
A15: 14 | B15: 09:40:00 | G15: 2018-07-11 | H15: =RTD("cqg.rtd",,"StudyData", "Close("&$D$12&") when LocalYear("&$D$12&")="&$D$1&" and localMonth("&$D$12&") ="&$E$1&" and LocalDay("&$D$12&")="&$F$1&" and Barix("&$D$12&",reference:=StartOfSession)="&A15&"", "Bar", "", "Close","5","0","PrimaryOnly",,,"False","T","EveryTick") -> 191.6 | I15: 0.00298382453 | J15: =RTD("cqg.rtd",,"StudyData", "Close("&$D$12&") when LocalYear("&$D$12&")="&$D$2&" and localMonth("&$D$12&") ="&$E$2&" and LocalDay("&$D$12&")="&$F$2&" and Barix("&$D$12&",reference:=StartOfSession)="&A15&"", "Bar", "", "Close","5","0","PrimaryOnly",,,"False","T","EveryTick") -> 190.27 | K15: 0.01272088567 | L15: =RTD("cqg.rtd",,"StudyData", "Close("&$D$12&") when LocalYear("&$D$12&")="&$D$3&" and localMonth("&$D$12&") ="&$E$3&" and LocalDay("&$D$12&")="&$F$3&" and Barix("&$D$12&",reference:=StartOfSession)="&A15&"", "Bar", "", "Close","5","0","PrimaryOnly",,,"False","T","EveryTick") -> 188.98 | M15: -0.00719726819 | N15: =RTD("cqg.rtd",,"StudyData", "Close("&$D$12&") when LocalYear("&$D$12&")="&$D$4&" and localMonth("&$D$12&") ="&$E$4&" and LocalDay("&$D$12&")="&$F$4&" and Barix("&$D$12&",reference:=StartOfSession)="&A15&"", "Bar", "", "Close","5","0","PrimaryOnly",,,"False","T","EveryTick") -> 191.05 | O15: 0.002466155945 | P15: =RTD("cqg.rtd",,"StudyData", "Close("&$D$12&") when LocalYear("&$D$12&")="&$D$5&" and localMonth("&$D$12&") ="&$E$5&" and LocalDay("&$D$12&")="&$F$5&" and Barix("&$D$12&",reference:=StartOfSession)="&A15&"", "Bar", "", "Close","5","0","PrimaryOnly",,,"False","T","EveryTick") -> 189.72 | Q15: 0.009309996276 | R15: =RTD("cqg.rtd",,"StudyData", "Close("&$D$12&") when LocalYear("&$D$12&")="&$D$6&" and localMonth("&$D$12&") ="&$E$6&" and LocalDay("&$D$12&")="&$F$6&" and Barix("&$D$12&",reference:=StartOfSession)="&A15&"", "Bar", "", "Close","5","0","PrimaryOnly",,,"False","T","EveryTick") -> 186.7 | S15: 0.007011866235 | T15: =RTD("cqg.rtd",,"StudyData", "Close("&$D$12&") when LocalYear("&$D$12&")="&$D$7&" and localMonth("&$D$12&") ="&$E$7&" and LocalDay("&$D$12&")="&$F$7&" and Barix("&$D$12&",reference:=StartOfSession)="&A15&"", "Bar", "", "Close","5","0","PrimaryOnly",,,"False","T","EveryTick") -> 185.03 | U15: 0.00603523271 | V15: =RTD("cqg.rtd",,"StudyData", "Close("&$D$12&") when LocalYear("&$D$12&")="&$D$8&" and localMonth("&$D$12&") ="&$E$8&" and LocalDay("&$D$12&")="&$F$8&" and Barix("&$D$12&",reference:=StartOfSession)="&A15&"", "Bar", "", "Close","5","0","PrimaryOnly",,,"False","T","EveryTick") -> 187.24 | W15: 0.000320547067 | X15: =RTD("cqg.rtd",,"StudyData", "Close("&$D$12&") when LocalYear("&$D$12&")="&$D$9&" and localMonth("&$D$12&") ="&$E$9&" and LocalDay("&$D$12&")="&$F$9&" and Barix("&$D$12&",reference:=StartOfSession)="&A15&"", "Bar", "", "Close","5","0","PrimaryOnly",,,"False","T","EveryTick") -> 186.62 | Y15: 0.008157311869 | Z15: =RTD("cqg.rtd",,"StudyData", "Close("&$D$12&") when LocalYear("&$D$12&")="&$D$10&" and localMonth("&$D$12&") ="&$E$10&" and LocalDay("&$D$12&")="&$F$10&" and Barix("&$D$12&",reference:=StartOfSession)="&A15&"", "Bar", "", "Close","5","0","PrimaryOnly",,,"False","T","EveryTick") -> 186.16 | AA15: 0.003557951482
A16: 15 | B16: 09:45:00 | D16: =RTD("cqg.rtd", ,"ContractData",D12, "Ticksize",, "T") -> 0.01 | G16: 2018-07-10 | H16: =RTD("cqg.rtd",,"StudyData", "Close("&$D$12&") when LocalYear("&$D$12&")="&$D$1&" and localMonth("&$D$12&") ="&$E$1&" and LocalDay("&$D$12&")="&$F$1&" and Barix("&$D$12&",reference:=StartOfSession)="&A16&"", "Bar", "", "Close","5","0","PrimaryOnly",,,"False","T","EveryTick") -> 191.41 | I16: 0.001989216353 | J16: =RTD("cqg.rtd",,"StudyData", "Close("&$D$12&") when LocalYear("&$D$12&")="&$D$2&" and localMonth("&$D$12&") ="&$E$2&" and LocalDay("&$D$12&")="&$F$2&" and Barix("&$D$12&",reference:=StartOfSession)="&A16&"", "Bar", "", "Close","5","0","PrimaryOnly",,,"False","T","EveryTick") -> 190.13 | K16: 0.01197572919 | L16: =RTD("cqg.rtd",,"StudyData", "Close("&$D$12&") when LocalYear("&$D$12&")="&$D$3&" and localMonth("&$D$12&") ="&$E$3&" and LocalDay("&$D$12&")="&$F$3&" and Barix("&$D$12&",reference:=StartOfSession)="&A16&"", "Bar", "", "Close","5","0","PrimaryOnly",,,"False","T","EveryTick") -> 188.69 | M16: -0.008720777515 | N16: =RTD("cqg.rtd",,"StudyData", "Close("&$D$12&") when LocalYear("&$D$12&")="&$D$4&" and localMonth("&$D$12&") ="&$E$4&" and LocalDay("&$D$12&")="&$F$4&" and Barix("&$D$12&",reference:=StartOfSession)="&A16&"", "Bar", "", "Close","5","0","PrimaryOnly",,,"False","T","EveryTick") -> 190.91 | O16: 0.001731556302 | P16: =RTD("cqg.rtd",,"StudyData", "Close("&$D$12&") when LocalYear("&$D$12&")="&$D$5&" and localMonth("&$D$12&") ="&$E$5&" and LocalDay("&$D$12&")="&$F$5&" and Barix("&$D$12&",reference:=StartOfSession)="&A16&"", "Bar", "", "Close","5","0","PrimaryOnly",,,"False","T","EveryTick") -> 189.96 | Q16: 0.01058679577 | R16: =RTD("cqg.rtd",,"StudyData", "Close("&$D$12&") when LocalYear("&$D$12&")="&$D$6&" and localMonth("&$D$12&") ="&$E$6&" and LocalDay("&$D$12&")="&$F$6&" and Barix("&$D$12&",reference:=StartOfSession)="&A16&"", "Bar", "", "Close","5","0","PrimaryOnly",,,"False","T","EveryTick") -> 186.74 | S16: 0.007227615965 | T16: =RTD("cqg.rtd",,"StudyData", "Close("&$D$12&") when LocalYear("&$D$12&")="&$D$7&" and localMonth("&$D$12&") ="&$E$7&" and LocalDay("&$D$12&")="&$F$7&" and Barix("&$D$12&",reference:=StartOfSession)="&A16&"", "Bar", "", "Close","5","0","PrimaryOnly",,,"False","T","EveryTick") -> 185.2 | U16: 0.006959547629 | V16: =RTD("cqg.rtd",,"StudyData", "Close("&$D$12&") when LocalYear("&$D$12&")="&$D$8&" and localMonth("&$D$12&") ="&$E$8&" and LocalDay("&$D$12&")="&$F$8&" and Barix("&$D$12&",reference:=StartOfSession)="&A16&"", "Bar", "", "Close","5","0","PrimaryOnly",,,"False","T","EveryTick") -> 186.86 | W16: -0.001709584357 | X16: =RTD("cqg.rtd",,"StudyData", "Close("&$D$12&") when LocalYear("&$D$12&")="&$D$9&" and localMonth("&$D$12&") ="&$E$9&" and LocalDay("&$D$12&")="&$F$9&" and Barix("&$D$12&",reference:=StartOfSession)="&A16&"", "Bar", "", "Close","5","0","PrimaryOnly",,,"False","T","EveryTick") -> 186.48 | Y16: 0.007401004808 | Z16: =RTD("cqg.rtd",,"StudyData", "Close("&$D$12&") when LocalYear("&$D$12&")="&$D$10&" and localMonth("&$D$12&") ="&$E$10&" and LocalDay("&$D$12&")="&$F$10&" and Barix("&$D$12&",reference:=StartOfSession)="&A16&"", "Bar", "", "Close","5","0","PrimaryOnly",,,"False","T","EveryTick") -> 186.22 | AA16: 0.003881401617
A17: 16 | B17: 09:50:00 | D17: =IF(D16>=1,0,IF(LEN(D16)-2=1,2,LEN(D16)-2)) -> 2 | F17: =VLOOKUP(D17,D18:E25,2,FALSE) -> #.00 | G17: 2018-07-09 | H17: =RTD("cqg.rtd",,"StudyData", "Close("&$D$12&") when LocalYear("&$D$12&")="&$D$1&" and localMonth("&$D$12&") ="&$E$1&" and LocalDay("&$D$12&")="&$F$1&" and Barix("&$D$12&",reference:=StartOfSession)="&A17&"", "Bar", "", "Close","5","0","PrimaryOnly",,,"False","T","EveryTick") -> 191.5 | I17: 0.002460346542 | J17: =RTD("cqg.rtd",,"StudyData", "Close("&$D$12&") when LocalYear("&$D$12&")="&$D$2&" and localMonth("&$D$12&") ="&$E$2&" and LocalDay("&$D$12&")="&$F$2&" and Barix("&$D$12&",reference:=StartOfSession)="&A17&"", "Bar", "", "Close","5","0","PrimaryOnly",,,"False","T","EveryTick") -> 190.2 | K17: 0.01234830743 | L17: =RTD("cqg.rtd",,"StudyData", "Close("&$D$12&") when LocalYear("&$D$12&")="&$D$3&" and localMonth("&$D$12&") ="&$E$3&" and LocalDay("&$D$12&")="&$F$3&" and Barix("&$D$12&",reference:=StartOfSession)="&A17&"", "Bar", "", "Close","5","0","PrimaryOnly",,,"False","T","EveryTick") -> 188.82 | M17: -0.008037825059 | N17: =RTD("cqg.rtd",,"StudyData", "Close("&$D$12&") when LocalYear("&$D$12&")="&$D$4&" and localMonth("&$D$12&") ="&$E$4&" and LocalDay("&$D$12&")="&$F$4&" and Barix("&$D$12&",reference:=StartOfSession)="&A17&"", "Bar", "", "Close","5","0","PrimaryOnly",,,"False","T","EveryTick") -> 191.07 | O17: 0.002571098751 | P17: =RTD("cqg.rtd",,"StudyData", "Close("&$D$12&") when LocalYear("&$D$12&")="&$D$5&" and localMonth("&$D$12&") ="&$E$5&" and LocalDay("&$D$12&")="&$F$5&" and Barix("&$D$12&",reference:=StartOfSession)="&A17&"", "Bar", "", "Close","5","0","PrimaryOnly",,,"False","T","EveryTick") -> 190.01 | Q17: 0.01085279566 | R17: =RTD("cqg.rtd",,"StudyData", "Close("&$D$12&") when LocalYear("&$D$12&")="&$D$6&" and localMonth("&$D$12&") ="&$E$6&" and LocalDay("&$D$12&")="&$F$6&" and Barix("&$D$12&",reference:=StartOfSession)="&A17&"", "Bar", "", "Close","5","0","PrimaryOnly",,,"False","T","EveryTick") -> 186.81 | S17: 0.007605177994 | T17: =RTD("cqg.rtd",,"StudyData", "Close("&$D$12&") when LocalYear("&$D$12&")="&$D$7&" and localMonth("&$D$12&") ="&$E$7&" and LocalDay("&$D$12&")="&$F$7&" and Barix("&$D$12&",reference:=StartOfSession)="&A17&"", "Bar", "", "Close","5","0","PrimaryOnly",,,"False","T","EveryTick") -> 184.44 | U17: 0.002827316224 | V17: =RTD("cqg.rtd",,"StudyData", "Close("&$D$12&") when LocalYear("&$D$12&")="&$D$8&" and localMonth("&$D$12&") ="&$E$8&" and LocalDay("&$D$12&")="&$F$8&" and Barix("&$D$12&",reference:=StartOfSession)="&A17&"", "Bar", "", "Close","5","0","PrimaryOnly",,,"False","T","EveryTick") -> 186.9 | W17: -0.001495886313 | X17: =RTD("cqg.rtd",,"StudyData", "Close("&$D$12&") when LocalYear("&$D$12&")="&$D$9&" and localMonth("&$D$12&") ="&$E$9&" and LocalDay("&$D$12&")="&$F$9&" and Barix("&$D$12&",reference:=StartOfSession)="&A17&"", "Bar", "", "Close","5","0","PrimaryOnly",,,"False","T","EveryTick") -> 186.43 | Y17: 0.007130895143 | Z17: =RTD("cqg.rtd",,"StudyData", "Close("&$D$12&") when LocalYear("&$D$12&")="&$D$10&" and localMonth("&$D$12&") ="&$E$10&" and LocalDay("&$D$12&")="&$F$10&" and Barix("&$D$12&",reference:=StartOfSession)="&A17&"", "Bar", "", "Close","5","0","PrimaryOnly",,,"False","T","EveryTick") -> 186.23 | AA17: 0.003935309973
A18: 17 | B18: 09:55:00 | D18: 0 | E18: # | G18: 2018-07-06 | H18: =RTD("cqg.rtd",,"StudyData", "Close("&$D$12&") when LocalYear("&$D$12&")="&$D$1&" and localMonth("&$D$12&") ="&$E$1&" and LocalDay("&$D$12&")="&$F$1&" and Barix("&$D$12&",reference:=StartOfSession)="&A18&"", "Bar", "", "Close","5","0","PrimaryOnly",,,"False","T","EveryTick") -> 191.41 | I18: 0.001989216353 | J18: =RTD("cqg.rtd",,"StudyData", "Close("&$D$12&") when LocalYear("&$D$12&")="&$D$2&" and localMonth("&$D$12&") ="&$E$2&" and LocalDay("&$D$12&")="&$F$2&" and Barix("&$D$12&",reference:=StartOfSession)="&A18&"", "Bar", "", "Close","5","0","PrimaryOnly",,,"False","T","EveryTick") -> 190.03 | K18: 0.01144347456 | L18: =RTD("cqg.rtd",,"StudyData", "Close("&$D$12&") when LocalYear("&$D$12&")="&$D$3&" and localMonth("&$D$12&") ="&$E$3&" and LocalDay("&$D$12&")="&$F$3&" and Barix("&$D$12&",reference:=StartOfSession)="&A18&"", "Bar", "", "Close","5","0","PrimaryOnly",,,"False","T","EveryTick") -> 188.96 | M18: -0.007302337799 | N18: =RTD("cqg.rtd",,"StudyData", "Close("&$D$12&") when LocalYear("&$D$12&")="&$D$4&" and localMonth("&$D$12&") ="&$E$4&" and LocalDay("&$D$12&")="&$F$4&" and Barix("&$D$12&",reference:=StartOfSession)="&A18&"", "Bar", "", "Close","5","0","PrimaryOnly",,,"False","T","EveryTick") -> 190.97 | O18: 0.00204638472 | P18: =RTD("cqg.rtd",,"StudyData", "Close("&$D$12&") when LocalYear("&$D$12&")="&$D$5&" and localMonth("&$D$12&") ="&$E$5&" and LocalDay("&$D$12&")="&$F$5&" and Barix("&$D$12&",reference:=StartOfSession)="&A18&"", "Bar", "", "Close","5","0","PrimaryOnly",,,"False","T","EveryTick") -> 190.08 | Q18: 0.01122519551 | R18: =RTD("cqg.rtd",,"StudyData", "Close("&$D$12&") when LocalYear("&$D$12&")="&$D$6&" and localMonth("&$D$12&") ="&$E$6&" and LocalDay("&$D$12&")="&$F$6&" and Barix("&$D$12&",reference:=StartOfSession)="&A18&"", "Bar", "", "Close","5","0","PrimaryOnly",,,"False","T","EveryTick") -> 186.67 | S18: 0.006850053937 | T18: =RTD("cqg.rtd",,"StudyData", "Close("&$D$12&") when LocalYear("&$D$12&")="&$D$7&" and localMonth("&$D$12&") ="&$E$7&" and LocalDay("&$D$12&")="&$F$7&" and Barix("&$D$12&",reference:=StartOfSession)="&A18&"", "Bar", "", "Close","5","0","PrimaryOnly",,,"False","T","EveryTick") -> 184.55 | U18: 0.003425402349 | V18: =RTD("cqg.rtd",,"StudyData", "Close("&$D$12&") when LocalYear("&$D$12&")="&$D$8&" and localMonth("&$D$12&") ="&$E$8&" and LocalDay("&$D$12&")="&$F$8&" and Barix("&$D$12&",reference:=StartOfSession)="&A18&"", "Bar", "", "Close","5","0","PrimaryOnly",,,"False","T","EveryTick") -> 186.97 | W18: -0.001121914734 | X18: =RTD("cqg.rtd",,"StudyData", "Close("&$D$12&") when LocalYear("&$D$12&")="&$D$9&" and localMonth("&$D$12&") ="&$E$9&" and LocalDay("&$D$12&")="&$F$9&" and Barix("&$D$12&",reference:=StartOfSession)="&A18&"", "Bar", "", "Close","5","0","PrimaryOnly",,,"False","T","EveryTick") -> 186.57 | Y18: 0.007887202204 | Z18: =RTD("cqg.rtd",,"StudyData", "Close("&$D$12&") when LocalYear("&$D$12&")="&$D$10&" and localMonth("&$D$12&") ="&$E$10&" and LocalDay("&$D$12&")="&$F$10&" and Barix("&$D$12&",reference:=StartOfSession)="&A18&"", "Bar", "", "Close","5","0","PrimaryOnly",,,"False","T","EveryTick") -> 186.21 | AA18: 0.003827493261
A19: 18 | B19: 10:00:00 | D19: 1 | E19: #.0 | G19: 2018-07-05 | H19: =RTD("cqg.rtd",,"StudyData", "Close("&$D$12&") when LocalYear("&$D$12&")="&$D$1&" and localMonth("&$D$12&") ="&$E$1&" and LocalDay("&$D$12&")="&$F$1&" and Barix("&$D$12&",reference:=StartOfSession)="&A19&"", "Bar", "", "Close","5","0","PrimaryOnly",,,"False","T","EveryTick") -> 191.55 | I19: 0.002722085536 | J19: =RTD("cqg.rtd",,"StudyData", "Close("&$D$12&") when LocalYear("&$D$12&")="&$D$2&" and localMonth("&$D$12&") ="&$E$2&" and LocalDay("&$D$12&")="&$F$2&" and Barix("&$D$12&",reference:=StartOfSession)="&A19&"", "Bar", "", "Close","5","0","PrimaryOnly",,,"False","T","EveryTick") -> 190.21 | K19: 0.01240153289 | L19: =RTD("cqg.rtd",,"StudyData", "Close("&$D$12&") when LocalYear("&$D$12&")="&$D$3&" and localMonth("&$D$12&") ="&$E$3&" and LocalDay("&$D$12&")="&$F$3&" and Barix("&$D$12&",reference:=StartOfSession)="&A19&"", "Bar", "", "Close","5","0","PrimaryOnly",,,"False","T","EveryTick") -> 188.85 | M19: -0.007880220646 | N19: =RTD("cqg.rtd",,"StudyData", "Close("&$D$12&") when LocalYear("&$D$12&")="&$D$4&" and localMonth("&$D$12&") ="&$E$4&" and LocalDay("&$D$12&")="&$F$4&" and Barix("&$D$12&",reference:=StartOfSession)="&A19&"", "Bar", "", "Close","5","0","PrimaryOnly",,,"False","T","EveryTick") -> 191.06 | O19: 0.002518627348 | P19: =RTD("cqg.rtd",,"StudyData", "Close("&$D$12&") when LocalYear("&$D$12&")="&$D$5&" and localMonth("&$D$12&") ="&$E$5&" and LocalDay("&$D$12&")="&$F$5&" and Barix("&$D$12&",reference:=StartOfSession)="&A19&"", "Bar", "", "Close","5","0","PrimaryOnly",,,"False","T","EveryTick") -> 190.21 | Q19: 0.01191679523 | R19: =RTD("cqg.rtd",,"StudyData", "Close("&$D$12&") when LocalYear("&$D$12&")="&$D$6&" and localMonth("&$D$12&") ="&$E$6&" and LocalDay("&$D$12&")="&$F$6&" and Barix("&$D$12&",reference:=StartOfSession)="&A19&"", "Bar", "", "Close","5","0","PrimaryOnly",,,"False","T","EveryTick") -> 186.79 | S19: 0.007497303128 | T19: =RTD("cqg.rtd",,"StudyData", "Close("&$D$12&") when LocalYear("&$D$12&")="&$D$7&" and localMonth("&$D$12&") ="&$E$7&" and LocalDay("&$D$12&")="&$F$7&" and Barix("&$D$12&",reference:=StartOfSession)="&A19&"", "Bar", "", "Close","5","0","PrimaryOnly",,,"False","T","EveryTick") -> 184.56 | U19: 0.003479773815 | V19: =RTD("cqg.rtd",,"StudyData", "Close("&$D$12&") when LocalYear("&$D$12&")="&$D$8&" and localMonth("&$D$12&") ="&$E$8&" and LocalDay("&$D$12&")="&$F$8&" and Barix("&$D$12&",reference:=StartOfSession)="&A19&"", "Bar", "", "Close","5","0","PrimaryOnly",,,"False","T","EveryTick") -> 186.93 | W19: -0.001335612779 | X19: =RTD("cqg.rtd",,"StudyData", "Close("&$D$12&") when LocalYear("&$D$12&")="&$D$9&" and localMonth("&$D$12&") ="&$E$9&" and LocalDay("&$D$12&")="&$F$9&" and Barix("&$D$12&",reference:=StartOfSession)="&A19&"", "Bar", "", "Close","5","0","PrimaryOnly",,,"False","T","EveryTick") -> 186.68 | Y19: 0.008481443466 | Z19: =RTD("cqg.rtd",,"StudyData", "Close("&$D$12&") when LocalYear("&$D$12&")="&$D$10&" and localMonth("&$D$12&") ="&$E$10&" and LocalDay("&$D$12&")="&$F$10&" and Barix("&$D$12&",reference:=StartOfSession)="&A19&"", "Bar", "", "Close","5","0","PrimaryOnly",,,"False","T","EveryTick") -> 186.33 | AA19: 0.004474393531
A20: 19 | B20: 10:05:00 | D20: 2 | E20: #.00 | G20: 2018-07-03 | H20: =RTD("cqg.rtd",,"StudyData", "Close("&$D$12&") when LocalYear("&$D$12&")="&$D$1&" and localMonth("&$D$12&") ="&$E$1&" and LocalDay("&$D$12&")="&$F$1&" and Barix("&$D$12&",reference:=StartOfSession)="&A20&"", "Bar", "", "Close","5","0","PrimaryOnly",,,"False","T","EveryTick") -> 191.47 | I20: 0.002303303146 | J20: =RTD("cqg.rtd",,"StudyData", "Close("&$D$12&") when LocalYear("&$D$12&")="&$D$2&" and localMonth("&$D$12&") ="&$E$2&" and LocalDay("&$D$12&")="&$F$2&" and Barix("&$D$12&",reference:=StartOfSession)="&A20&"", "Bar", "", "Close","5","0","PrimaryOnly",,,"False","T","EveryTick") -> 190.17 | K20: 0.01218863104 | L20: =RTD("cqg.rtd",,"StudyData", "Close("&$D$12&") when LocalYear("&$D$12&")="&$D$3&" and localMonth("&$D$12&") ="&$E$3&" and LocalDay("&$D$12&")="&$F$3&" and Barix("&$D$12&",reference:=StartOfSession)="&A20&"", "Bar", "", "Close","5","0","PrimaryOnly",,,"False","T","EveryTick") -> 188.74 | M20: -0.008458103494 | N20: =RTD("cqg.rtd",,"StudyData", "Close("&$D$12&") when LocalYear("&$D$12&")="&$D$4&" and localMonth("&$D$12&") ="&$E$4&" and LocalDay("&$D$12&")="&$F$4&" and Barix("&$D$12&",reference:=StartOfSession)="&A20&"", "Bar", "", "Close","5","0","PrimaryOnly",,,"False","T","EveryTick") -> 191.07 | O20: 0.002571098751 | P20: =RTD("cqg.rtd",,"StudyData", "Close("&$D$12&") when LocalYear("&$D$12&")="&$D$5&" and localMonth("&$D$12&") ="&$E$5&" and LocalDay("&$D$12&")="&$F$5&" and Barix("&$D$12&",reference:=StartOfSession)="&A20&"", "Bar", "", "Close","5","0","PrimaryOnly",,,"False","T","EveryTick") -> 190.23 | Q20: 0.01202319519 | R20: =RTD("cqg.rtd",,"StudyData", "Close("&$D$12&") when LocalYear("&$D$12&")="&$D$6&" and localMonth("&$D$12&") ="&$E$6&" and LocalDay("&$D$12&")="&$F$6&" and Barix("&$D$12&",reference:=StartOfSession)="&A20&"", "Bar", "", "Close","5","0","PrimaryOnly",,,"False","T","EveryTick") -> 187.02 | S20: 0.008737864078 | T20: =RTD("cqg.rtd",,"StudyData", "Close("&$D$12&") when LocalYear("&$D$12&")="&$D$7&" and localMonth("&$D$12&") ="&$E$7&" and LocalDay("&$D$12&")="&$F$7&" and Barix("&$D$12&",reference:=StartOfSession)="&A20&"", "Bar", "", "Close","5","0","PrimaryOnly",,,"False","T","EveryTick") -> 184.68 | U20: 0.004132231405 | V20: =RTD("cqg.rtd",,"StudyData", "Close("&$D$12&") when LocalYear("&$D$12&")="&$D$8&" and localMonth("&$D$12&") ="&$E$8&" and LocalDay("&$D$12&")="&$F$8&" and Barix("&$D$12&",reference:=StartOfSession)="&A20&"", "Bar", "", "Close","5","0","PrimaryOnly",,,"False","T","EveryTick") -> 186.65 | W20: -0.002831499092 | X20: =RTD("cqg.rtd",,"StudyData", "Close("&$D$12&") when LocalYear("&$D$12&")="&$D$9&" and localMonth("&$D$12&") ="&$E$9&" and LocalDay("&$D$12&")="&$F$9&" and Barix("&$D$12&",reference:=StartOfSession)="&A20&"", "Bar", "", "Close","5","0","PrimaryOnly",,,"False","T","EveryTick") -> 186.6 | Y20: 0.008049268003 | Z20: =RTD("cqg.rtd",,"StudyData", "Close("&$D$12&") when LocalYear("&$D$12&")="&$D$10&" and localMonth("&$D$12&") ="&$E$10&" and LocalDay("&$D$12&")="&$F$10&" and Barix("&$D$12&",reference:=StartOfSession)="&A20&"", "Bar", "", "Close","5","0","PrimaryOnly",,,"False","T","EveryTick") -> 186.43 | AA20: 0.005013477089
A21: 20 | B21: 10:10:00 | D21: 3 | E21: #.000 | G21: 2018-07-02 | H21: =RTD("cqg.rtd",,"StudyData", "Close("&$D$12&") when LocalYear("&$D$12&")="&$D$1&" and localMonth("&$D$12&") ="&$E$1&" and LocalDay("&$D$12&")="&$F$1&" and Barix("&$D$12&",reference:=StartOfSession)="&A21&"", "Bar", "", "Close","5","0","PrimaryOnly",,,"False","T","EveryTick") -> 191.46 | I21: 0.002250955347 | J21: =RTD("cqg.rtd",,"StudyData", "Close("&$D$12&") when LocalYear("&$D$12&")="&$D$2&" and localMonth("&$D$12&") ="&$E$2&" and LocalDay("&$D$12&")="&$F$2&" and Barix("&$D$12&",reference:=StartOfSession)="&A21&"", "Bar", "", "Close","5","0","PrimaryOnly",,,"False","T","EveryTick") -> 190.4 | K21: 0.01341281669 | L21: =RTD("cqg.rtd",,"StudyData", "Close("&$D$12&") when LocalYear("&$D$12&")="&$D$3&" and localMonth("&$D$12&") ="&$E$3&" and LocalDay("&$D$12&")="&$F$3&" and Barix("&$D$12&",reference:=StartOfSession)="&A21&"", "Bar", "", "Close","5","0","PrimaryOnly",,,"False","T","EveryTick") -> 188.59 | M21: -0.009246125558 | N21: =RTD("cqg.rtd",,"StudyData", "Close("&$D$12&") when LocalYear("&$D$12&")="&$D$4&" and localMonth("&$D$12&") ="&$E$4&" and LocalDay("&$D$12&")="&$F$4&" and Barix("&$D$12&",reference:=StartOfSession)="&A21&"", "Bar", "", "Close","5","0","PrimaryOnly",,,"False","T","EveryTick") -> 190.89 | O21: 0.001626613496 | P21: =RTD("cqg.rtd",,"StudyData", "Close("&$D$12&") when LocalYear("&$D$12&")="&$D$5&" and localMonth("&$D$12&") ="&$E$5&" and LocalDay("&$D$12&")="&$F$5&" and Barix("&$D$12&",reference:=StartOfSession)="&A21&"", "Bar", "", "Close","5","0","PrimaryOnly",,,"False","T","EveryTick") -> 190.21 | Q21: 0.01191679523 | R21: =RTD("cqg.rtd",,"StudyData", "Close("&$D$12&") when LocalYear("&$D$12&")="&$D$6&" and localMonth("&$D$12&") ="&$E$6&" and LocalDay("&$D$12&")="&$F$6&" and Barix("&$D$12&",reference:=StartOfSession)="&A21&"", "Bar", "", "Close","5","0","PrimaryOnly",,,"False","T","EveryTick") -> 187.06 | S21: 0.008953613808 | T21: =RTD("cqg.rtd",,"StudyData", "Close("&$D$12&") when LocalYear("&$D$12&")="&$D$7&" and localMonth("&$D$12&") ="&$E$7&" and LocalDay("&$D$12&")="&$F$7&" and Barix("&$D$12&",reference:=StartOfSession)="&A21&"", "Bar", "", "Close","5","0","PrimaryOnly",,,"False","T","EveryTick") -> 184.91 | U21: 0.00538277512 | V21: =RTD("cqg.rtd",,"StudyData", "Close("&$D$12&") when LocalYear("&$D$12&")="&$D$8&" and localMonth("&$D$12&") ="&$E$8&" and LocalDay("&$D$12&")="&$F$8&" and Barix("&$D$12&",reference:=StartOfSession)="&A21&"", "Bar", "", "Close","5","0","PrimaryOnly",,,"False","T","EveryTick") -> 186.64 | W21: -0.002884923603 | X21: =RTD("cqg.rtd",,"StudyData", "Close("&$D$12&") when LocalYear("&$D$12&")="&$D$9&" and localMonth("&$D$12&") ="&$E$9&" and LocalDay("&$D$12&")="&$F$9&" and Barix("&$D$12&",reference:=StartOfSession)="&A21&"", "Bar", "", "Close","5","0","PrimaryOnly",,,"False","T","EveryTick") -> 186.38 | Y21: 0.006860785479 | Z21: =RTD("cqg.rtd",,"StudyData", "Close("&$D$12&") when LocalYear("&$D$12&")="&$D$10&" and localMonth("&$D$12&") ="&$E$10&" and LocalDay("&$D$12&")="&$F$10&" and Barix("&$D$12&",reference:=StartOfSession)="&A21&"", "Bar", "", "Close","5","0","PrimaryOnly",,,"False","T","EveryTick") -> 186.37 | AA21: 0.004690026954
A22: 21 | B22: 10:15:00 | D22: 4 | E22: #.0000 | G22: 2018-06-29 | H22: =RTD("cqg.rtd",,"StudyData", "Close("&$D$12&") when LocalYear("&$D$12&")="&$D$1&" and localMonth("&$D$12&") ="&$E$1&" and LocalDay("&$D$12&")="&$F$1&" and Barix("&$D$12&",reference:=StartOfSession)="&A22&"", "Bar", "", "Close","5","0","PrimaryOnly",,,"False","T","EveryTick") -> 191.47 | I22: 0.002303303146 | J22: =RTD("cqg.rtd",,"StudyData", "Close("&$D$12&") when LocalYear("&$D$12&")="&$D$2&" and localMonth("&$D$12&") ="&$E$2&" and LocalDay("&$D$12&")="&$F$2&" and Barix("&$D$12&",reference:=StartOfSession)="&A22&"", "Bar", "", "Close","5","0","PrimaryOnly",,,"False","T","EveryTick") -> 190.42 | K22: 0.01351926762 | L22: =RTD("cqg.rtd",,"StudyData", "Close("&$D$12&") when LocalYear("&$D$12&")="&$D$3&" and localMonth("&$D$12&") ="&$E$3&" and LocalDay("&$D$12&")="&$F$3&" and Barix("&$D$12&",reference:=StartOfSession)="&A22&"", "Bar", "", "Close","5","0","PrimaryOnly",,,"False","T","EveryTick") -> 188.56 | M22: -0.009403729971 | N22: =RTD("cqg.rtd",,"StudyData", "Close("&$D$12&") when LocalYear("&$D$12&")="&$D$4&" and localMonth("&$D$12&") ="&$E$4&" and LocalDay("&$D$12&")="&$F$4&" and Barix("&$D$12&",reference:=StartOfSession)="&A22&"", "Bar", "", "Close","5","0","PrimaryOnly",,,"False","T","EveryTick") -> 191 | O22: 0.00220379893 | P22: =RTD("cqg.rtd",,"StudyData", "Close("&$D$12&") when LocalYear("&$D$12&")="&$D$5&" and localMonth("&$D$12&") ="&$E$5&" and LocalDay("&$D$12&")="&$F$5&" and Barix("&$D$12&",reference:=StartOfSession)="&A22&"", "Bar", "", "Close","5","0","PrimaryOnly",,,"False","T","EveryTick") -> 190.23 | Q22: 0.01202319519 | R22: =RTD("cqg.rtd",,"StudyData", "Close("&$D$12&") when LocalYear("&$D$12&")="&$D$6&" and localMonth("&$D$12&") ="&$E$6&" and LocalDay("&$D$12&")="&$F$6&" and Barix("&$D$12&",reference:=StartOfSession)="&A22&"", "Bar", "", "Close","5","0","PrimaryOnly",,,"False","T","EveryTick") -> 187.16 | S22: 0.009492988134 | T22: =RTD("cqg.rtd",,"StudyData", "Close("&$D$12&") when LocalYear("&$D$12&")="&$D$7&" and localMonth("&$D$12&") ="&$E$7&" and LocalDay("&$D$12&")="&$F$7&" and Barix("&$D$12&",reference:=StartOfSession)="&A22&"", "Bar", "", "Close","5","0","PrimaryOnly",,,"False","T","EveryTick") -> 185.2 | U22: 0.006959547629 | V22: =RTD("cqg.rtd",,"StudyData", "Close("&$D$12&") when LocalYear("&$D$12&")="&$D$8&" and localMonth("&$D$12&") ="&$E$8&" and LocalDay("&$D$12&")="&$F$8&" and Barix("&$D$12&",reference:=StartOfSession)="&A22&"", "Bar", "", "Close","5","0","PrimaryOnly",,,"False","T","EveryTick") -> 186.69 | W22: -0.002617801047 | X22: =RTD("cqg.rtd",,"StudyData", "Close("&$D$12&") when LocalYear("&$D$12&")="&$D$9&" and localMonth("&$D$12&") ="&$E$9&" and LocalDay("&$D$12&")="&$F$9&" and Barix("&$D$12&",reference:=StartOfSession)="&A22&"", "Bar", "", "Close","5","0","PrimaryOnly",,,"False","T","EveryTick") -> 186.36 | Y22: 0.006752741613 | Z22: =RTD("cqg.rtd",,"StudyData", "Close("&$D$12&") when LocalYear("&$D$12&")="&$D$10&" and localMonth("&$D$12&") ="&$E$10&" and LocalDay("&$D$12&")="&$F$10&" and Barix("&$D$12&",reference:=StartOfSession)="&A22&"", "Bar", "", "Close","5","0","PrimaryOnly",,,"False","T","EveryTick") -> 186.35 | AA22: 0.004582210243
A23: 22 | B23: 10:20:00 | D23: 5 | E23: #.00000 | H23: =RTD("cqg.rtd",,"StudyData", "Close("&$D$12&") when LocalYear("&$D$12&")="&$D$1&" and localMonth("&$D$12&") ="&$E$1&" and LocalDay("&$D$12&")="&$F$1&" and Barix("&$D$12&",reference:=StartOfSession)="&A23&"", "Bar", "", "Close","5","0","PrimaryOnly",,,"False","T","EveryTick") -> 191.5 | I23: 0.002460346542 | J23: =RTD("cqg.rtd",,"StudyData", "Close("&$D$12&") when LocalYear("&$D$12&")="&$D$2&" and localMonth("&$D$12&") ="&$E$2&" and LocalDay("&$D$12&")="&$F$2&" and Barix("&$D$12&",reference:=StartOfSession)="&A23&"", "Bar", "", "Close","5","0","PrimaryOnly",,,"False","T","EveryTick") -> 190.39 | K23: 0.01335959123 | L23: =RTD("cqg.rtd",,"StudyData", "Close("&$D$12&") when LocalYear("&$D$12&")="&$D$3&" and localMonth("&$D$12&") ="&$E$3&" and LocalDay("&$D$12&")="&$F$3&" and Barix("&$D$12&",reference:=StartOfSession)="&A23&"", "Bar", "", "Close","5","0","PrimaryOnly",,,"False","T","EveryTick") -> 188.58 | M23: -0.009298660362 | N23: =RTD("cqg.rtd",,"StudyData", "Close("&$D$12&") when LocalYear("&$D$12&")="&$D$4&" and localMonth("&$D$12&") ="&$E$4&" and LocalDay("&$D$12&")="&$F$4&" and Barix("&$D$12&",reference:=StartOfSession)="&A23&"", "Bar", "", "Close","5","0","PrimaryOnly",,,"False","T","EveryTick") -> 190.86 | O23: 0.001469199286 | P23: =RTD("cqg.rtd",,"StudyData", "Close("&$D$12&") when LocalYear("&$D$12&")="&$D$5&" and localMonth("&$D$12&") ="&$E$5&" and LocalDay("&$D$12&")="&$F$5&" and Barix("&$D$12&",reference:=StartOfSession)="&A23&"", "Bar", "", "Close","5","0","PrimaryOnly",,,"False","T","EveryTick") -> 190.24 | Q23: 0.01207639517 | R23: =RTD("cqg.rtd",,"StudyData", "Close("&$D$12&") when LocalYear("&$D$12&")="&$D$6&" and localMonth("&$D$12&") ="&$E$6&" and LocalDay("&$D$12&")="&$F$6&" and Barix("&$D$12&",reference:=StartOfSession)="&A23&"", "Bar", "", "Close","5","0","PrimaryOnly",,,"False","T","EveryTick") -> 187.17 | S23: 0.009546925566 | T23: =RTD("cqg.rtd",,"StudyData", "Close("&$D$12&") when LocalYear("&$D$12&")="&$D$7&" and localMonth("&$D$12&") ="&$E$7&" and LocalDay("&$D$12&")="&$F$7&" and Barix("&$D$12&",reference:=StartOfSession)="&A23&"", "Bar", "", "Close","5","0","PrimaryOnly",,,"False","T","EveryTick") -> 185.19 | U23: 0.006905176164 | V23: =RTD("cqg.rtd",,"StudyData", "Close("&$D$12&") when LocalYear("&$D$12&")="&$D$8&" and localMonth("&$D$12&") ="&$E$8&" and LocalDay("&$D$12&")="&$F$8&" and Barix("&$D$12&",reference:=StartOfSession)="&A23&"", "Bar", "", "Close","5","0","PrimaryOnly",,,"False","T","EveryTick") -> 186.54 | W23: -0.003419168715 | X23: =RTD("cqg.rtd",,"StudyData", "Close("&$D$12&") when LocalYear("&$D$12&")="&$D$9&" and localMonth("&$D$12&") ="&$E$9&" and LocalDay("&$D$12&")="&$F$9&" and Barix("&$D$12&",reference:=StartOfSession)="&A23&"", "Bar", "", "Close","5","0","PrimaryOnly",,,"False","T","EveryTick") -> 186.41 | Y23: 0.007022851278 | Z23: =RTD("cqg.rtd",,"StudyData", "Close("&$D$12&") when LocalYear("&$D$12&")="&$D$10&" and localMonth("&$D$12&") ="&$E$10&" and LocalDay("&$D$12&")="&$F$10&" and Barix("&$D$12&",reference:=StartOfSession)="&A23&"", "Bar", "", "Close","5","0","PrimaryOnly",,,"False","T","EveryTick") -> 186.39 | AA23: 0.004797843666 | AE23: 22
A24: 23 | B24: 10:25:00 | D24: 6 | E24: #.000000 | H24: =RTD("cqg.rtd",,"StudyData", "Close("&$D$12&") when LocalYear("&$D$12&")="&$D$1&" and localMonth("&$D$12&") ="&$E$1&" and LocalDay("&$D$12&")="&$F$1&" and Barix("&$D$12&",reference:=StartOfSession)="&A24&"", "Bar", "", "Close","5","0","PrimaryOnly",,,"False","T","EveryTick") ->  | J24: =RTD("cqg.rtd",,"StudyData", "Close("&$D$12&") when LocalYear("&$D$12&")="&$D$2&" and localMonth("&$D$12&") ="&$E$2&" and LocalDay("&$D$12&")="&$F$2&" and Barix("&$D$12&",reference:=StartOfSession)="&A24&"", "Bar", "", "Close","5","0","PrimaryOnly",,,"False","T","EveryTick") -> 190.49 | K24: 0.01389184586 | L24: =RTD("cqg.rtd",,"StudyData", "Close("&$D$12&") when LocalYear("&$D$12&")="&$D$3&" and localMonth("&$D$12&") ="&$E$3&" and LocalDay("&$D$12&")="&$F$3&" and Barix("&$D$12&",reference:=StartOfSession)="&A24&"", "Bar", "", "Close","5","0","PrimaryOnly",,,"False","T","EveryTick") -> 188.41 | M24: -0.01019175204 | N24: =RTD("cqg.rtd",,"StudyData", "Close("&$D$12&") when LocalYear("&$D$12&")="&$D$4&" and localMonth("&$D$12&") ="&$E$4&" and LocalDay("&$D$12&")="&$F$4&" and Barix("&$D$12&",reference:=StartOfSession)="&A24&"", "Bar", "", "Close","5","0","PrimaryOnly",,,"False","T","EveryTick") -> 191.04 | O24: 0.002413684542 | P24: =RTD("cqg.rtd",,"StudyData", "Close("&$D$12&") when LocalYear("&$D$12&")="&$D$5&" and localMonth("&$D$12&") ="&$E$5&" and LocalDay("&$D$12&")="&$F$5&" and Barix("&$D$12&",reference:=StartOfSession)="&A24&"", "Bar", "", "Close","5","0","PrimaryOnly",,,"False","T","EveryTick") -> 190.33 | Q24: 0.01255519498 | R24: =RTD("cqg.rtd",,"StudyData", "Close("&$D$12&") when LocalYear("&$D$12&")="&$D$6&" and localMonth("&$D$12&") ="&$E$6&" and LocalDay("&$D$12&")="&$F$6&" and Barix("&$D$12&",reference:=StartOfSession)="&A24&"", "Bar", "", "Close","5","0","PrimaryOnly",,,"False","T","EveryTick") -> 187.36 | S24: 0.01057173679 | T24: =RTD("cqg.rtd",,"StudyData", "Close("&$D$12&") when LocalYear("&$D$12&")="&$D$7&" and localMonth("&$D$12&") ="&$E$7&" and LocalDay("&$D$12&")="&$F$7&" and Barix("&$D$12&",reference:=StartOfSession)="&A24&"", "Bar", "", "Close","5","0","PrimaryOnly",,,"False","T","EveryTick") -> 185.34 | U24: 0.007720748151 | V24: =RTD("cqg.rtd",,"StudyData", "Close("&$D$12&") when LocalYear("&$D$12&")="&$D$8&" and localMonth("&$D$12&") ="&$E$8&" and LocalDay("&$D$12&")="&$F$8&" and Barix("&$D$12&",reference:=StartOfSession)="&A24&"", "Bar", "", "Close","5","0","PrimaryOnly",,,"False","T","EveryTick") -> 186.71 | W24: -0.002510952025 | X24: =RTD("cqg.rtd",,"StudyData", "Close("&$D$12&") when LocalYear("&$D$12&")="&$D$9&" and localMonth("&$D$12&") ="&$E$9&" and LocalDay("&$D$12&")="&$F$9&" and Barix("&$D$12&",reference:=StartOfSession)="&A24&"", "Bar", "", "Close","5","0","PrimaryOnly",,,"False","T","EveryTick") -> 186.3 | Y24: 0.006428610016 | Z24: =RTD("cqg.rtd",,"StudyData", "Close("&$D$12&") when LocalYear("&$D$12&")="&$D$10&" and localMonth("&$D$12&") ="&$E$10&" and LocalDay("&$D$12&")="&$F$10&" and Barix("&$D$12&",reference:=StartOfSession)="&A24&"", "Bar", "", "Close","5","0","PrimaryOnly",,,"False","T","EveryTick") -> 186.29 | AA24: 0.004258760108
A25: 24 | B25: 10:30:00 | D25: 7 | E25: #.0000000 | H25: =RTD("cqg.rtd",,"StudyData", "Close("&$D$12&") when LocalYear("&$D$12&")="&$D$1&" and localMonth("&$D$12&") ="&$E$1&" and LocalDay("&$D$12&")="&$F$1&" and Barix("&$D$12&",reference:=StartOfSession)="&A25&"", "Bar", "", "Close","5","0","PrimaryOnly",,,"False","T","EveryTick") ->  | J25: =RTD("cqg.rtd",,"StudyData", "Close("&$D$12&") when LocalYear("&$D$12&")="&$D$2&" and localMonth("&$D$12&") ="&$E$2&" and LocalDay("&$D$12&")="&$F$2&" and Barix("&$D$12&",reference:=StartOfSession)="&A25&"", "Bar", "", "Close","5","0","PrimaryOnly",,,"False","T","EveryTick") -> 190.49 | K25: 0.01389184586 | L25: =RTD("cqg.rtd",,"StudyData", "Close("&$D$12&") when LocalYear("&$D$12&")="&$D$3&" and localMonth("&$D$12&") ="&$E$3&" and LocalDay("&$D$12&")="&$F$3&" and Barix("&$D$12&",reference:=StartOfSession)="&A25&"", "Bar", "", "Close","5","0","PrimaryOnly",,,"False","T","EveryTick") -> 188.26 | M25: -0.0109797741 | N25: =RTD("cqg.rtd",,"StudyData", "Close("&$D$12&") when LocalYear("&$D$12&")="&$D$4&" and localMonth("&$D$12&") ="&$E$4&" and LocalDay("&$D$12&")="&$F$4&" and Barix("&$D$12&",reference:=StartOfSession)="&A25&"", "Bar", "", "Close","5","0","PrimaryOnly",,,"False","T","EveryTick") -> 190.85 | O25: 0.001416727883 | P25: =RTD("cqg.rtd",,"StudyData", "Close("&$D$12&") when LocalYear("&$D$12&")="&$D$5&" and localMonth("&$D$12&") ="&$E$5&" and LocalDay("&$D$12&")="&$F$5&" and Barix("&$D$12&",reference:=StartOfSession)="&A25&"", "Bar", "", "Close","5","0","PrimaryOnly",,,"False","T","EveryTick") -> 190.13 | Q25: 0.0114911954 | R25: =RTD("cqg.rtd",,"StudyData", "Close("&$D$12&") when LocalYear("&$D$12&")="&$D$6&" and localMonth("&$D$12&") ="&$E$6&" and LocalDay("&$D$12&")="&$F$6&" and Barix("&$D$12&",reference:=StartOfSession)="&A25&"", "Bar", "", "Close","5","0","PrimaryOnly",,,"False","T","EveryTick") -> 187.45 | S25: 0.01105717368 | T25: =RTD("cqg.rtd",,"StudyData", "Close("&$D$12&") when LocalYear("&$D$12&")="&$D$7&" and localMonth("&$D$12&") ="&$E$7&" and LocalDay("&$D$12&")="&$F$7&" and Barix("&$D$12&",reference:=StartOfSession)="&A25&"", "Bar", "", "Close","5","0","PrimaryOnly",,,"False","T","EveryTick") -> 185.48 | U25: 0.008481948673 | V25: =RTD("cqg.rtd",,"StudyData", "Close("&$D$12&") when LocalYear("&$D$12&")="&$D$8&" and localMonth("&$D$12&") ="&$E$8&" and LocalDay("&$D$12&")="&$F$8&" and Barix("&$D$12&",reference:=StartOfSession)="&A25&"", "Bar", "", "Close","5","0","PrimaryOnly",,,"False","T","EveryTick") -> 186.66 | W25: -0.002778074581 | X25: =RTD("cqg.rtd",,"StudyData", "Close("&$D$12&") when LocalYear("&$D$12&")="&$D$9&" and localMonth("&$D$12&") ="&$E$9&" and LocalDay("&$D$12&")="&$F$9&" and Barix("&$D$12&",reference:=StartOfSession)="&A25&"", "Bar", "", "Close","5","0","PrimaryOnly",,,"False","T","EveryTick") -> 186.07 | Y25: 0.005186105559 | Z25: =RTD("cqg.rtd",,"StudyData", "Close("&$D$12&") when LocalYear("&$D$12&")="&$D$10&" and localMonth("&$D$12&") ="&$E$10&" and LocalDay("&$D$12&")="&$F$10&" and Barix("&$D$12&",reference:=StartOfSession)="&A25&"", "Bar", "", "Close","5","0","PrimaryOnly",,,"False","T","EveryTick") -> 186.2 | AA25: 0.003773584906
A26: 25 | B26: 10:35:00 | H26: =RTD("cqg.rtd",,"StudyData", "Close("&$D$12&") when LocalYear("&$D$12&")="&$D$1&" and localMonth("&$D$12&") ="&$E$1&" and LocalDay("&$D$12&")="&$F$1&" and Barix("&$D$12&",reference:=StartOfSession)="&A26&"", "Bar", "", "Close","5","0","PrimaryOnly",,,"False","T","EveryTick") ->  | J26: =RTD("cqg.rtd",,"StudyData", "Close("&$D$12&") when LocalYear("&$D$12&")="&$D$2&" and localMonth("&$D$12&") ="&$E$2&" and LocalDay("&$D$12&")="&$F$2&" and Barix("&$D$12&",reference:=StartOfSession)="&A26&"", "Bar", "", "Close","5","0","PrimaryOnly",,,"False","T","EveryTick") -> 190.59 | K26: 0.01442410049 | L26: =RTD("cqg.rtd",,"StudyData", "Close("&$D$12&") when LocalYear("&$D$12&")="&$D$3&" and localMonth("&$D$12&") ="&$E$3&" and LocalDay("&$D$12&")="&$F$3&" and Barix("&$D$12&",reference:=StartOfSession)="&A26&"", "Bar", "", "Close","5","0","PrimaryOnly",,,"False","T","EveryTick") -> 188.27 | M26: -0.0109272393 | N26: =RTD("cqg.rtd",,"StudyData", "Close("&$D$12&") when LocalYear("&$D$12&")="&$D$4&" and localMonth("&$D$12&") ="&$E$4&" and LocalDay("&$D$12&")="&$F$4&" and Barix("&$D$12&",reference:=StartOfSession)="&A26&"", "Bar", "", "Close","5","0","PrimaryOnly",,,"False","T","EveryTick") -> 190.95 | O26: 0.001941441914 | P26: =RTD("cqg.rtd",,"StudyData", "Close("&$D$12&") when LocalYear("&$D$12&")="&$D$5&" and localMonth("&$D$12&") ="&$E$5&" and LocalDay("&$D$12&")="&$F$5&" and Barix("&$D$12&",reference:=StartOfSession)="&A26&"", "Bar", "", "Close","5","0","PrimaryOnly",,,"False","T","EveryTick") -> 190.21 | Q26: 0.01191679523 | R26: =RTD("cqg.rtd",,"StudyData", "Close("&$D$12&") when LocalYear("&$D$12&")="&$D$6&" and localMonth("&$D$12&") ="&$E$6&" and LocalDay("&$D$12&")="&$F$6&" and Barix("&$D$12&",reference:=StartOfSession)="&A26&"", "Bar", "", "Close","5","0","PrimaryOnly",,,"False","T","EveryTick") -> 187.69 | S26: 0.01235167206 | T26: =RTD("cqg.rtd",,"StudyData", "Close("&$D$12&") when LocalYear("&$D$12&")="&$D$7&" and localMonth("&$D$12&") ="&$E$7&" and LocalDay("&$D$12&")="&$F$7&" and Barix("&$D$12&",reference:=StartOfSession)="&A26&"", "Bar", "", "Close","5","0","PrimaryOnly",,,"False","T","EveryTick") -> 185.4 | U26: 0.008046976946 | V26: =RTD("cqg.rtd",,"StudyData", "Close("&$D$12&") when LocalYear("&$D$12&")="&$D$8&" and localMonth("&$D$12&") ="&$E$8&" and LocalDay("&$D$12&")="&$F$8&" and Barix("&$D$12&",reference:=StartOfSession)="&A26&"", "Bar", "", "Close","5","0","PrimaryOnly",,,"False","T","EveryTick") -> 186.62 | W26: -0.002991772625 | X26: =RTD("cqg.rtd",,"StudyData", "Close("&$D$12&") when LocalYear("&$D$12&")="&$D$9&" and localMonth("&$D$12&") ="&$E$9&" and LocalDay("&$D$12&")="&$F$9&" and Barix("&$D$12&",reference:=StartOfSession)="&A26&"", "Bar", "", "Close","5","0","PrimaryOnly",,,"False","T","EveryTick") -> 185.96 | Y26: 0.004591864297 | Z26: =RTD("cqg.rtd",,"StudyData", "Close("&$D$12&") when LocalYear("&$D$12&")="&$D$10&" and localMonth("&$D$12&") ="&$E$10&" and LocalDay("&$D$12&")="&$F$10&" and Barix("&$D$12&",reference:=StartOfSession)="&A26&"", "Bar", "", "Close","5","0","PrimaryOnly",,,"False","T","EveryTick") -> 186.23 | AA26: 0.003935309973
A27: 26 | B27: 10:40:00 | H27: =RTD("cqg.rtd",,"StudyData", "Close("&$D$12&") when LocalYear("&$D$12&")="&$D$1&" and localMonth("&$D$12&") ="&$E$1&" and LocalDay("&$D$12&")="&$F$1&" and Barix("&$D$12&",reference:=StartOfSession)="&A27&"", "Bar", "", "Close","5","0","PrimaryOnly",,,"False","T","EveryTick") ->  | J27: =RTD("cqg.rtd",,"StudyData", "Close("&$D$12&") when LocalYear("&$D$12&")="&$D$2&" and localMonth("&$D$12&") ="&$E$2&" and LocalDay("&$D$12&")="&$F$2&" and Barix("&$D$12&",reference:=StartOfSession)="&A27&"", "Bar", "", "Close","5","0","PrimaryOnly",,,"False","T","EveryTick") -> 190.67 | K27: 0.01484990419 | L27: =RTD("cqg.rtd",,"StudyData", "Close("&$D$12&") when LocalYear("&$D$12&")="&$D$3&" and localMonth("&$D$12&") ="&$E$3&" and LocalDay("&$D$12&")="&$F$3&" and Barix("&$D$12&",reference:=StartOfSession)="&A27&"", "Bar", "", "Close","5","0","PrimaryOnly",,,"False","T","EveryTick") -> 188.07 | M27: -0.01197793538 | N27: =RTD("cqg.rtd",,"StudyData", "Close("&$D$12&") when LocalYear("&$D$12&")="&$D$4&" and localMonth("&$D$12&") ="&$E$4&" and LocalDay("&$D$12&")="&$F$4&" and Barix("&$D$12&",reference:=StartOfSession)="&A27&"", "Bar", "", "Close","5","0","PrimaryOnly",,,"False","T","EveryTick") -> 191.05 | O27: 0.002466155945 | P27: =RTD("cqg.rtd",,"StudyData", "Close("&$D$12&") when LocalYear("&$D$12&")="&$D$5&" and localMonth("&$D$12&") ="&$E$5&" and LocalDay("&$D$12&")="&$F$5&" and Barix("&$D$12&",reference:=StartOfSession)="&A27&"", "Bar", "", "Close","5","0","PrimaryOnly",,,"False","T","EveryTick") -> 190.3 | Q27: 0.01239559504 | R27: =RTD("cqg.rtd",,"StudyData", "Close("&$D$12&") when LocalYear("&$D$12&")="&$D$6&" and localMonth("&$D$12&") ="&$E$6&" and LocalDay("&$D$12&")="&$F$6&" and Barix("&$D$12&",reference:=StartOfSession)="&A27&"", "Bar", "", "Close","5","0","PrimaryOnly",,,"False","T","EveryTick") -> 187.6 | S27: 0.01186623517 | T27: =RTD("cqg.rtd",,"StudyData", "Close("&$D$12&") when LocalYear("&$D$12&")="&$D$7&" and localMonth("&$D$12&") ="&$E$7&" and LocalDay("&$D$12&")="&$F$7&" and Barix("&$D$12&",reference:=StartOfSession)="&A27&"", "Bar", "", "Close","5","0","PrimaryOnly",,,"False","T","EveryTick") -> 185.42 | U27: 0.008155719878 | V27: =RTD("cqg.rtd",,"StudyData", "Close("&$D$12&") when LocalYear("&$D$12&")="&$D$8&" and localMonth("&$D$12&") ="&$E$8&" and LocalDay("&$D$12&")="&$F$8&" and Barix("&$D$12&",reference:=StartOfSession)="&A27&"", "Bar", "", "Close","5","0","PrimaryOnly",,,"False","T","EveryTick") -> 186.57 | W27: -0.003258895181 | X27: =RTD("cqg.rtd",,"StudyData", "Close("&$D$12&") when LocalYear("&$D$12&")="&$D$9&" and localMonth("&$D$12&") ="&$E$9&" and LocalDay("&$D$12&")="&$F$9&" and Barix("&$D$12&",reference:=StartOfSession)="&A27&"", "Bar", "", "Close","5","0","PrimaryOnly",,,"False","T","EveryTick") -> 185.9 | Y27: 0.004267732699 | Z27: =RTD("cqg.rtd",,"StudyData", "Close("&$D$12&") when LocalYear("&$D$12&")="&$D$10&" and localMonth("&$D$12&") ="&$E$10&" and LocalDay("&$D$12&")="&$F$10&" and Barix("&$D$12&",reference:=StartOfSession)="&A27&"", "Bar", "", "Close","5","0","PrimaryOnly",,,"False","T","EveryTick") -> 186.34 | AA27: 0.004528301887
A28: 27 | B28: 10:45:00 | H28: =RTD("cqg.rtd",,"StudyData", "Close("&$D$12&") when LocalYear("&$D$12&")="&$D$1&" and localMonth("&$D$12&") ="&$E$1&" and LocalDay("&$D$12&")="&$F$1&" and Barix("&$D$12&",reference:=StartOfSession)="&A28&"", "Bar", "", "Close","5","0","PrimaryOnly",,,"False","T","EveryTick") ->  | J28: =RTD("cqg.rtd",,"StudyData", "Close("&$D$12&") when LocalYear("&$D$12&")="&$D$2&" and localMonth("&$D$12&") ="&$E$2&" and LocalDay("&$D$12&")="&$F$2&" and Barix("&$D$12&",reference:=StartOfSession)="&A28&"", "Bar", "", "Close","5","0","PrimaryOnly",,,"False","T","EveryTick") -> 190.78 | K28: 0.01543538429 | L28: =RTD("cqg.rtd",,"StudyData", "Close("&$D$12&") when LocalYear("&$D$12&")="&$D$3&" and localMonth("&$D$12&") ="&$E$3&" and LocalDay("&$D$12&")="&$F$3&" and Barix("&$D$12&",reference:=StartOfSession)="&A28&"", "Bar", "", "Close","5","0","PrimaryOnly",,,"False","T","EveryTick") -> 188.13 | M28: -0.01166272656 | N28: =RTD("cqg.rtd",,"StudyData", "Close("&$D$12&") when LocalYear("&$D$12&")="&$D$4&" and localMonth("&$D$12&") ="&$E$4&" and LocalDay("&$D$12&")="&$F$4&" and Barix("&$D$12&",reference:=StartOfSession)="&A28&"", "Bar", "", "Close","5","0","PrimaryOnly",,,"False","T","EveryTick") -> 191.04 | O28: 0.002413684542 | P28: =RTD("cqg.rtd",,"StudyData", "Close("&$D$12&") when LocalYear("&$D$12&")="&$D$5&" and localMonth("&$D$12&") ="&$E$5&" and LocalDay("&$D$12&")="&$F$5&" and Barix("&$D$12&",reference:=StartOfSession)="&A28&"", "Bar", "", "Close","5","0","PrimaryOnly",,,"False","T","EveryTick") -> 190.37 | Q28: 0.01276799489 | R28: =RTD("cqg.rtd",,"StudyData", "Close("&$D$12&") when LocalYear("&$D$12&")="&$D$6&" and localMonth("&$D$12&") ="&$E$6&" and LocalDay("&$D$12&")="&$F$6&" and Barix("&$D$12&",reference:=StartOfSession)="&A28&"", "Bar", "", "Close","5","0","PrimaryOnly",,,"False","T","EveryTick") -> 187.61 | S28: 0.0119201726 | T28: =RTD("cqg.rtd",,"StudyData", "Close("&$D$12&") when LocalYear("&$D$12&")="&$D$7&" and localMonth("&$D$12&") ="&$E$7&" and LocalDay("&$D$12&")="&$F$7&" and Barix("&$D$12&",reference:=StartOfSession)="&A28&"", "Bar", "", "Close","5","0","PrimaryOnly",,,"False","T","EveryTick") -> 185.49 | U28: 0.008536320139 | V28: =RTD("cqg.rtd",,"StudyData", "Close("&$D$12&") when LocalYear("&$D$12&")="&$D$8&" and localMonth("&$D$12&") ="&$E$8&" and LocalDay("&$D$12&")="&$F$8&" and Barix("&$D$12&",reference:=StartOfSession)="&A28&"", "Bar", "", "Close","5","0","PrimaryOnly",,,"False","T","EveryTick") -> 186.57 | W28: -0.003258895181 | X28: =RTD("cqg.rtd",,"StudyData", "Close("&$D$12&") when LocalYear("&$D$12&")="&$D$9&" and localMonth("&$D$12&") ="&$E$9&" and LocalDay("&$D$12&")="&$F$9&" and Barix("&$D$12&",reference:=StartOfSession)="&A28&"", "Bar", "", "Close","5","0","PrimaryOnly",,,"False","T","EveryTick") -> 185.76 | Y28: 0.003511425639 | Z28: =RTD("cqg.rtd",,"StudyData", "Close("&$D$12&") when LocalYear("&$D$12&")="&$D$10&" and localMonth("&$D$12&") ="&$E$10&" and LocalDay("&$D$12&")="&$F$10&" and Barix("&$D$12&",reference:=StartOfSession)="&A28&"", "Bar", "", "Close","5","0","PrimaryOnly",,,"False","T","EveryTick") -> 186.36 | AA28: 0.004636118598
A29: 28 | B29: 10:50:00 | H29: =RTD("cqg.rtd",,"StudyData", "Close("&$D$12&") when LocalYear("&$D$12&")="&$D$1&" and localMonth("&$D$12&") ="&$E$1&" and LocalDay("&$D$12&")="&$F$1&" and Barix("&$D$12&",reference:=StartOfSession)="&A29&"", "Bar", "", "Close","5","0","PrimaryOnly",,,"False","T","EveryTick") ->  | J29: =RTD("cqg.rtd",,"StudyData", "Close("&$D$12&") when LocalYear("&$D$12&")="&$D$2&" and localMonth("&$D$12&") ="&$E$2&" and LocalDay("&$D$12&")="&$F$2&" and Barix("&$D$12&",reference:=StartOfSession)="&A29&"", "Bar", "", "Close","5","0","PrimaryOnly",,,"False","T","EveryTick") -> 190.82 | K29: 0.01564828614 | L29: =RTD("cqg.rtd",,"StudyData", "Close("&$D$12&") when LocalYear("&$D$12&")="&$D$3&" and localMonth("&$D$12&") ="&$E$3&" and LocalDay("&$D$12&")="&$F$3&" and Barix("&$D$12&",reference:=StartOfSession)="&A29&"", "Bar", "", "Close","5","0","PrimaryOnly",,,"False","T","EveryTick") -> 188.13 | M29: -0.01166272656 | N29: =RTD("cqg.rtd",,"StudyData", "Close("&$D$12&") when LocalYear("&$D$12&")="&$D$4&" and localMonth("&$D$12&") ="&$E$4&" and LocalDay("&$D$12&")="&$F$4&" and Barix("&$D$12&",reference:=StartOfSession)="&A29&"", "Bar", "", "Close","5","0","PrimaryOnly",,,"False","T","EveryTick") -> 191.14 | O29: 0.002938398573 | P29: =RTD("cqg.rtd",,"StudyData", "Close("&$D$12&") when LocalYear("&$D$12&")="&$D$5&" and localMonth("&$D$12&") ="&$E$5&" and LocalDay("&$D$12&")="&$F$5&" and Barix("&$D$12&",reference:=StartOfSession)="&A29&"", "Bar", "", "Close","5","0","PrimaryOnly",,,"False","T","EveryTick") -> 190.41 | Q29: 0.01298079481 | R29: =RTD("cqg.rtd",,"StudyData", "Close("&$D$12&") when LocalYear("&$D$12&")="&$D$6&" and localMonth("&$D$12&") ="&$E$6&" and LocalDay("&$D$12&")="&$F$6&" and Barix("&$D$12&",reference:=StartOfSession)="&A29&"", "Bar", "", "Close","5","0","PrimaryOnly",,,"False","T","EveryTick") -> 187.43 | S29: 0.01094929881 | T29: =RTD("cqg.rtd",,"StudyData", "Close("&$D$12&") when LocalYear("&$D$12&")="&$D$7&" and localMonth("&$D$12&") ="&$E$7&" and LocalDay("&$D$12&")="&$F$7&" and Barix("&$D$12&",reference:=StartOfSession)="&A29&"", "Bar", "", "Close","5","0","PrimaryOnly",,,"False","T","EveryTick") -> 185.64 | U29: 0.009351892127 | V29: =RTD("cqg.rtd",,"StudyData", "Close("&$D$12&") when LocalYear("&$D$12&")="&$D$8&" and localMonth("&$D$12&") ="&$E$8&" and LocalDay("&$D$12&")="&$F$8&" and Barix("&$D$12&",reference:=StartOfSession)="&A29&"", "Bar", "", "Close","5","0","PrimaryOnly",,,"False","T","EveryTick") -> 186.29 | W29: -0.004754781494 | X29: =RTD("cqg.rtd",,"StudyData", "Close("&$D$12&") when LocalYear("&$D$12&")="&$D$9&" and localMonth("&$D$12&") ="&$E$9&" and LocalDay("&$D$12&")="&$F$9&" and Barix("&$D$12&",reference:=StartOfSession)="&A29&"", "Bar", "", "Close","5","0","PrimaryOnly",,,"False","T","EveryTick") -> 185.92 | Y29: 0.004375776565 | Z29: =RTD("cqg.rtd",,"StudyData", "Close("&$D$12&") when LocalYear("&$D$12&")="&$D$10&" and localMonth("&$D$12&") ="&$E$10&" and LocalDay("&$D$12&")="&$F$10&" and Barix("&$D$12&",reference:=StartOfSession)="&A29&"", "Bar", "", "Close","5","0","PrimaryOnly",,,"False","T","EveryTick") -> 186.12 | AA29: 0.003342318059
A30: 29 | B30: 10:55:00 | H30: =RTD("cqg.rtd",,"StudyData", "Close("&$D$12&") when LocalYear("&$D$12&")="&$D$1&" and localMonth("&$D$12&") ="&$E$1&" and LocalDay("&$D$12&")="&$F$1&" and Barix("&$D$12&",reference:=StartOfSession)="&A30&"", "Bar", "", "Close","5","0","PrimaryOnly",,,"False","T","EveryTick") ->  | J30: =RTD("cqg.rtd",,"StudyData", "Close("&$D$12&") when LocalYear("&$D$12&")="&$D$2&" and localMonth("&$D$12&") ="&$E$2&" and LocalDay("&$D$12&")="&$F$2&" and Barix("&$D$12&",reference:=StartOfSession)="&A30&"", "Bar", "", "Close","5","0","PrimaryOnly",,,"False","T","EveryTick") -> 190.97 | K30: 0.01644666809 | L30: =RTD("cqg.rtd",,"StudyData", "Close("&$D$12&") when LocalYear("&$D$12&")="&$D$3&" and localMonth("&$D$12&") ="&$E$3&" and LocalDay("&$D$12&")="&$F$3&" and Barix("&$D$12&",reference:=StartOfSession)="&A30&"", "Bar", "", "Close","5","0","PrimaryOnly",,,"False","T","EveryTick") -> 187.97 | M30: -0.01250328343 | N30: =RTD("cqg.rtd",,"StudyData", "Close("&$D$12&") when LocalYear("&$D$12&")="&$D$4&" and localMonth("&$D$12&") ="&$E$4&" and LocalDay("&$D$12&")="&$F$4&" and Barix("&$D$12&",reference:=StartOfSession)="&A30&"", "Bar", "", "Close","5","0","PrimaryOnly",,,"False","T","EveryTick") -> 191.19 | O30: 0.003200755588 | P30: =RTD("cqg.rtd",,"StudyData", "Close("&$D$12&") when LocalYear("&$D$12&")="&$D$5&" and localMonth("&$D$12&") ="&$E$5&" and LocalDay("&$D$12&")="&$F$5&" and Barix("&$D$12&",reference:=StartOfSession)="&A30&"", "Bar", "", "Close","5","0","PrimaryOnly",,,"False","T","EveryTick") -> 190.31 | Q30: 0.01244879502 | R30: =RTD("cqg.rtd",,"StudyData", "Close("&$D$12&") when LocalYear("&$D$12&")="&$D$6&" and localMonth("&$D$12&") ="&$E$6&" and LocalDay("&$D$12&")="&$F$6&" and Barix("&$D$12&",reference:=StartOfSession)="&A30&"", "Bar", "", "Close","5","0","PrimaryOnly",,,"False","T","EveryTick") -> 187.4 | S30: 0.01078748652 | T30: =RTD("cqg.rtd",,"StudyData", "Close("&$D$12&") when LocalYear("&$D$12&")="&$D$7&" and localMonth("&$D$12&") ="&$E$7&" and LocalDay("&$D$12&")="&$F$7&" and Barix("&$D$12&",reference:=StartOfSession)="&A30&"", "Bar", "", "Close","5","0","PrimaryOnly",,,"False","T","EveryTick") -> 185.44 | U30: 0.00826446281 | V30: =RTD("cqg.rtd",,"StudyData", "Close("&$D$12&") when LocalYear("&$D$12&")="&$D$8&" and localMonth("&$D$12&") ="&$E$8&" and LocalDay("&$D$12&")="&$F$8&" and Barix("&$D$12&",reference:=StartOfSession)="&A30&"", "Bar", "", "Close","5","0","PrimaryOnly",,,"False","T","EveryTick") -> 186.44 | W30: -0.003953413826 | X30: =RTD("cqg.rtd",,"StudyData", "Close("&$D$12&") when LocalYear("&$D$12&")="&$D$9&" and localMonth("&$D$12&") ="&$E$9&" and LocalDay("&$D$12&")="&$F$9&" and Barix("&$D$12&",reference:=StartOfSession)="&A30&"", "Bar", "", "Close","5","0","PrimaryOnly",,,"False","T","EveryTick") -> 185.98 | Y30: 0.004699908163 | Z30: =RTD("cqg.rtd",,"StudyData", "Close("&$D$12&") when LocalYear("&$D$12&")="&$D$10&" and localMonth("&$D$12&") ="&$E$10&" and LocalDay("&$D$12&")="&$F$10&" and Barix("&$D$12&",reference:=StartOfSession)="&A30&"", "Bar", "", "Close","5","0","PrimaryOnly",,,"False","T","EveryTick") -> 186.13 | AA30: 0.003396226415
A31: 30 | B31: 11:00:00 | H31: =RTD("cqg.rtd",,"StudyData", "Close("&$D$12&") when LocalYear("&$D$12&")="&$D$1&" and localMonth("&$D$12&") ="&$E$1&" and LocalDay("&$D$12&")="&$F$1&" and Barix("&$D$12&",reference:=StartOfSession)="&A31&"", "Bar", "", "Close","5","0","PrimaryOnly",,,"False","T","EveryTick") ->  | J31: =RTD("cqg.rtd",,"StudyData", "Close("&$D$12&") when LocalYear("&$D$12&")="&$D$2&" and localMonth("&$D$12&") ="&$E$2&" and LocalDay("&$D$12&")="&$F$2&" and Barix("&$D$12&",reference:=StartOfSession)="&A31&"", "Bar", "", "Close","5","0","PrimaryOnly",,,"False","T","EveryTick") -> 190.93 | K31: 0.01623376623 | L31: =RTD("cqg.rtd",,"StudyData", "Close("&$D$12&") when LocalYear("&$D$12&")="&$D$3&" and localMonth("&$D$12&") ="&$E$3&" and LocalDay("&$D$12&")="&$F$3&" and Barix("&$D$12&",reference:=StartOfSession)="&A31&"", "Bar", "", "Close","5","0","PrimaryOnly",,,"False","T","EveryTick") -> 187.84 | M31: -0.01318623588 | N31: =RTD("cqg.rtd",,"StudyData", "Close("&$D$12&") when LocalYear("&$D$12&")="&$D$4&" and localMonth("&$D$12&") ="&$E$4&" and LocalDay("&$D$12&")="&$F$4&" and Barix("&$D$12&",reference:=StartOfSession)="&A31&"", "Bar", "", "Close","5","0","PrimaryOnly",,,"False","T","EveryTick") -> 191.21 | O31: 0.003305698394 | P31: =RTD("cqg.rtd",,"StudyData", "Close("&$D$12&") when LocalYear("&$D$12&")="&$D$5&" and localMonth("&$D$12&") ="&$E$5&" and LocalDay("&$D$12&")="&$F$5&" and Barix("&$D$12&",reference:=StartOfSession)="&A31&"", "Bar", "", "Close","5","0","PrimaryOnly",,,"False","T","EveryTick") -> 190.41 | Q31: 0.01298079481 | R31: =RTD("cqg.rtd",,"StudyData", "Close("&$D$12&") when LocalYear("&$D$12&")="&$D$6&" and localMonth("&$D$12&") ="&$E$6&" and LocalDay("&$D$12&")="&$F$6&" and Barix("&$D$12&",reference:=StartOfSession)="&A31&"", "Bar", "", "Close","5","0","PrimaryOnly",,,"False","T","EveryTick") -> 187.5 | S31: 0.01132686084 | T31: =RTD("cqg.rtd",,"StudyData", "Close("&$D$12&") when LocalYear("&$D$12&")="&$D$7&" and localMonth("&$D$12&") ="&$E$7&" and LocalDay("&$D$12&")="&$F$7&" and Barix("&$D$12&",reference:=StartOfSession)="&A31&"", "Bar", "", "Close","5","0","PrimaryOnly",,,"False","T","EveryTick") -> 185.64 | U31: 0.009351892127 | V31: =RTD("cqg.rtd",,"StudyData", "Close("&$D$12&") when LocalYear("&$D$12&")="&$D$8&" and localMonth("&$D$12&") ="&$E$8&" and LocalDay("&$D$12&")="&$F$8&" and Barix("&$D$12&",reference:=StartOfSession)="&A31&"", "Bar", "", "Close","5","0","PrimaryOnly",,,"False","T","EveryTick") -> 186.42 | W31: -0.004060262849 | X31: =RTD("cqg.rtd",,"StudyData", "Close("&$D$12&") when LocalYear("&$D$12&")="&$D$9&" and localMonth("&$D$12&") ="&$E$9&" and LocalDay("&$D$12&")="&$F$9&" and Barix("&$D$12&",reference:=StartOfSession)="&A31&"", "Bar", "", "Close","5","0","PrimaryOnly",,,"False","T","EveryTick") -> 185.8 | Y31: 0.00372751337 | Z31: =RTD("cqg.rtd",,"StudyData", "Close("&$D$12&") when LocalYear("&$D$12&")="&$D$10&" and localMonth("&$D$12&") ="&$E$10&" and LocalDay("&$D$12&")="&$F$10&" and Barix("&$D$12&",reference:=StartOfSession)="&A31&"", "Bar", "", "Close","5","0","PrimaryOnly",,,"False","T","EveryTick") -> 186.2 | AA31: 0.003773584906
A32: 31 | B32: 11:05:00 | H32: =RTD("cqg.rtd",,"StudyData", "Close("&$D$12&") when LocalYear("&$D$12&")="&$D$1&" and localMonth("&$D$12&") ="&$E$1&" and LocalDay("&$D$12&")="&$F$1&" and Barix("&$D$12&",reference:=StartOfSession)="&A32&"", "Bar", "", "Close","5","0","PrimaryOnly",,,"False","T","EveryTick") ->  | J32: =RTD("cqg.rtd",,"StudyData", "Close("&$D$12&") when LocalYear("&$D$12&")="&$D$2&" and localMonth("&$D$12&") ="&$E$2&" and LocalDay("&$D$12&")="&$F$2&" and Barix("&$D$12&",reference:=StartOfSession)="&A32&"", "Bar", "", "Close","5","0","PrimaryOnly",,,"False","T","EveryTick") -> 190.95 | K32: 0.01634021716 | L32: =RTD("cqg.rtd",,"StudyData", "Close("&$D$12&") when LocalYear("&$D$12&")="&$D$3&" and localMonth("&$D$12&") ="&$E$3&" and LocalDay("&$D$12&")="&$F$3&" and Barix("&$D$12&",reference:=StartOfSession)="&A32&"", "Bar", "", "Close","5","0","PrimaryOnly",,,"False","T","EveryTick") -> 187.83 | M32: -0.01323877069 | N32: =RTD("cqg.rtd",,"StudyData", "Close("&$D$12&") when LocalYear("&$D$12&")="&$D$4&" and localMonth("&$D$12&") ="&$E$4&" and LocalDay("&$D$12&")="&$F$4&" and Barix("&$D$12&",reference:=StartOfSession)="&A32&"", "Bar", "", "Close","5","0","PrimaryOnly",,,"False","T","EveryTick") -> 191.13 | O32: 0.00288592717 | P32: =RTD("cqg.rtd",,"StudyData", "Close("&$D$12&") when LocalYear("&$D$12&")="&$D$5&" and localMonth("&$D$12&") ="&$E$5&" and LocalDay("&$D$12&")="&$F$5&" and Barix("&$D$12&",reference:=StartOfSession)="&A32&"", "Bar", "", "Close","5","0","PrimaryOnly",,,"False","T","EveryTick") -> 190.33 | Q32: 0.01255519498 | R32: =RTD("cqg.rtd",,"StudyData", "Close("&$D$12&") when LocalYear("&$D$12&")="&$D$6&" and localMonth("&$D$12&") ="&$E$6&" and LocalDay("&$D$12&")="&$F$6&" and Barix("&$D$12&",reference:=StartOfSession)="&A32&"", "Bar", "", "Close","5","0","PrimaryOnly",,,"False","T","EveryTick") -> 187.51 | S32: 0.01138079827 | T32: =RTD("cqg.rtd",,"StudyData", "Close("&$D$12&") when LocalYear("&$D$12&")="&$D$7&" and localMonth("&$D$12&") ="&$E$7&" and LocalDay("&$D$12&")="&$F$7&" and Barix("&$D$12&",reference:=StartOfSession)="&A32&"", "Bar", "", "Close","5","0","PrimaryOnly",,,"False","T","EveryTick") -> 185.83 | U32: 0.01038494998 | V32: =RTD("cqg.rtd",,"StudyData", "Close("&$D$12&") when LocalYear("&$D$12&")="&$D$8&" and localMonth("&$D$12&") ="&$E$8&" and LocalDay("&$D$12&")="&$F$8&" and Barix("&$D$12&",reference:=StartOfSession)="&A32&"", "Bar", "", "Close","5","0","PrimaryOnly",,,"False","T","EveryTick") -> 186.28 | W32: -0.004808206005 | X32: =RTD("cqg.rtd",,"StudyData", "Close("&$D$12&") when LocalYear("&$D$12&")="&$D$9&" and localMonth("&$D$12&") ="&$E$9&" and LocalDay("&$D$12&")="&$F$9&" and Barix("&$D$12&",reference:=StartOfSession)="&A32&"", "Bar", "", "Close","5","0","PrimaryOnly",,,"False","T","EveryTick") -> 185.84 | Y32: 0.003943601102 | Z32: =RTD("cqg.rtd",,"StudyData", "Close("&$D$12&") when LocalYear("&$D$12&")="&$D$10&" and localMonth("&$D$12&") ="&$E$10&" and LocalDay("&$D$12&")="&$F$10&" and Barix("&$D$12&",reference:=StartOfSession)="&A32&"", "Bar", "", "Close","5","0","PrimaryOnly",,,"False","T","EveryTick") -> 186.47 | AA32: 0.005229110512
A33: 32 | B33: 11:10:00 | H33: =RTD("cqg.rtd",,"StudyData", "Close("&$D$12&") when LocalYear("&$D$12&")="&$D$1&" and localMonth("&$D$12&") ="&$E$1&" and LocalDay("&$D$12&")="&$F$1&" and Barix("&$D$12&",reference:=StartOfSession)="&A33&"", "Bar", "", "Close","5","0","PrimaryOnly",,,"False","T","EveryTick") ->  | J33: =RTD("cqg.rtd",,"StudyData", "Close("&$D$12&") when LocalYear("&$D$12&")="&$D$2&" and localMonth("&$D$12&") ="&$E$2&" and LocalDay("&$D$12&")="&$F$2&" and Barix("&$D$12&",reference:=StartOfSession)="&A33&"", "Bar", "", "Close","5","0","PrimaryOnly",,,"False","T","EveryTick") -> 191.11 | K33: 0.01719182457 | L33: =RTD("cqg.rtd",,"StudyData", "Close("&$D$12&") when LocalYear("&$D$12&")="&$D$3&" and localMonth("&$D$12&") ="&$E$3&" and LocalDay("&$D$12&")="&$F$3&" and Barix("&$D$12&",reference:=StartOfSession)="&A33&"", "Bar", "", "Close","5","0","PrimaryOnly",,,"False","T","EveryTick") -> 188.09 | M33: -0.01187286577 | N33: =RTD("cqg.rtd",,"StudyData", "Close("&$D$12&") when LocalYear("&$D$12&")="&$D$4&" and localMonth("&$D$12&") ="&$E$4&" and LocalDay("&$D$12&")="&$F$4&" and Barix("&$D$12&",reference:=StartOfSession)="&A33&"", "Bar", "", "Close","5","0","PrimaryOnly",,,"False","T","EveryTick") -> 191.09 | O33: 0.002676041557 | P33: =RTD("cqg.rtd",,"StudyData", "Close("&$D$12&") when LocalYear("&$D$12&")="&$D$5&" and localMonth("&$D$12&") ="&$E$5&" and LocalDay("&$D$12&")="&$F$5&" and Barix("&$D$12&",reference:=StartOfSession)="&A33&"", "Bar", "", "Close","5","0","PrimaryOnly",,,"False","T","EveryTick") -> 190.35 | Q33: 0.01266159494 | R33: =RTD("cqg.rtd",,"StudyData", "Close("&$D$12&") when LocalYear("&$D$12&")="&$D$6&" and localMonth("&$D$12&") ="&$E$6&" and LocalDay("&$D$12&")="&$F$6&" and Barix("&$D$12&",reference:=StartOfSession)="&A33&"", "Bar", "", "Close","5","0","PrimaryOnly",,,"False","T","EveryTick") -> 187.65 | S33: 0.01213592233 | T33: =RTD("cqg.rtd",,"StudyData", "Close("&$D$12&") when LocalYear("&$D$12&")="&$D$7&" and localMonth("&$D$12&") ="&$E$7&" and LocalDay("&$D$12&")="&$F$7&" and Barix("&$D$12&",reference:=StartOfSession)="&A33&"", "Bar", "", "Close","5","0","PrimaryOnly",,,"False","T","EveryTick") -> 185.9 | U33: 0.01076555024 | V33: =RTD("cqg.rtd",,"StudyData", "Close("&$D$12&") when LocalYear("&$D$12&")="&$D$8&" and localMonth("&$D$12&") ="&$E$8&" and LocalDay("&$D$12&")="&$F$8&" and Barix("&$D$12&",reference:=StartOfSession)="&A33&"", "Bar", "", "Close","5","0","PrimaryOnly",,,"False","T","EveryTick") -> 185.77 | W33: -0.007532856074 | X33: =RTD("cqg.rtd",,"StudyData", "Close("&$D$12&") when LocalYear("&$D$12&")="&$D$9&" and localMonth("&$D$12&") ="&$E$9&" and LocalDay("&$D$12&")="&$F$9&" and Barix("&$D$12&",reference:=StartOfSession)="&A33&"", "Bar", "", "Close","5","0","PrimaryOnly",,,"False","T","EveryTick") -> 185.73 | Y33: 0.00334935984 | Z33: =RTD("cqg.rtd",,"StudyData", "Close("&$D$12&") when LocalYear("&$D$12&")="&$D$10&" and localMonth("&$D$12&") ="&$E$10&" and LocalDay("&$D$12&")="&$F$10&" and Barix("&$D$12&",reference:=StartOfSession)="&A33&"", "Bar", "", "Close","5","0","PrimaryOnly",,,"False","T","EveryTick") -> 186.4 | AA33: 0.004851752022
A34: 33 | B34: 11:15:00 | H34: =RTD("cqg.rtd",,"StudyData", "Close("&$D$12&") when LocalYear("&$D$12&")="&$D$1&" and localMonth("&$D$12&") ="&$E$1&" and LocalDay("&$D$12&")="&$F$1&" and Barix("&$D$12&",reference:=StartOfSession)="&A34&"", "Bar", "", "Close","5","0","PrimaryOnly",,,"False","T","EveryTick") ->  | J34: =RTD("cqg.rtd",,"StudyData", "Close("&$D$12&") when LocalYear("&$D$12&")="&$D$2&" and localMonth("&$D$12&") ="&$E$2&" and LocalDay("&$D$12&")="&$F$2&" and Barix("&$D$12&",reference:=StartOfSession)="&A34&"", "Bar", "", "Close","5","0","PrimaryOnly",,,"False","T","EveryTick") -> 191.22 | K34: 0.01777730466 | L34: =RTD("cqg.rtd",,"StudyData", "Close("&$D$12&") when LocalYear("&$D$12&")="&$D$3&" and localMonth("&$D$12&") ="&$E$3&" and LocalDay("&$D$12&")="&$F$3&" and Barix("&$D$12&",reference:=StartOfSession)="&A34&"", "Bar", "", "Close","5","0","PrimaryOnly",,,"False","T","EveryTick") -> 188.08 | M34: -0.01192540058 | N34: =RTD("cqg.rtd",,"StudyData", "Close("&$D$12&") when LocalYear("&$D$12&")="&$D$4&" and localMonth("&$D$12&") ="&$E$4&" and LocalDay("&$D$12&")="&$F$4&" and Barix("&$D$12&",reference:=StartOfSession)="&A34&"", "Bar", "", "Close","5","0","PrimaryOnly",,,"False","T","EveryTick") -> 191.06 | O34: 0.002518627348 | P34: =RTD("cqg.rtd",,"StudyData", "Close("&$D$12&") when LocalYear("&$D$12&")="&$D$5&" and localMonth("&$D$12&") ="&$E$5&" and LocalDay("&$D$12&")="&$F$5&" and Barix("&$D$12&",reference:=StartOfSession)="&A34&"", "Bar", "", "Close","5","0","PrimaryOnly",,,"False","T","EveryTick") -> 190.15 | Q34: 0.01159759536 | R34: =RTD("cqg.rtd",,"StudyData", "Close("&$D$12&") when LocalYear("&$D$12&")="&$D$6&" and localMonth("&$D$12&") ="&$E$6&" and LocalDay("&$D$12&")="&$F$6&" and Barix("&$D$12&",reference:=StartOfSession)="&A34&"", "Bar", "", "Close","5","0","PrimaryOnly",,,"False","T","EveryTick") -> 187.61 | S34: 0.0119201726 | T34: =RTD("cqg.rtd",,"StudyData", "Close("&$D$12&") when LocalYear("&$D$12&")="&$D$7&" and localMonth("&$D$12&") ="&$E$7&" and LocalDay("&$D$12&")="&$F$7&" and Barix("&$D$12&",reference:=StartOfSession)="&A34&"", "Bar", "", "Close","5","0","PrimaryOnly",,,"False","T","EveryTick") -> 185.92 | U34: 0.01087429317 | V34: =RTD("cqg.rtd",,"StudyData", "Close("&$D$12&") when LocalYear("&$D$12&")="&$D$8&" and localMonth("&$D$12&") ="&$E$8&" and LocalDay("&$D$12&")="&$F$8&" and Barix("&$D$12&",reference:=StartOfSession)="&A34&"", "Bar", "", "Close","5","0","PrimaryOnly",,,"False","T","EveryTick") -> 185.73 | W34: -0.007746554119 | X34: =RTD("cqg.rtd",,"StudyData", "Close("&$D$12&") when LocalYear("&$D$12&")="&$D$9&" and localMonth("&$D$12&") ="&$E$9&" and LocalDay("&$D$12&")="&$F$9&" and Barix("&$D$12&",reference:=StartOfSession)="&A34&"", "Bar", "", "Close","5","0","PrimaryOnly",,,"False","T","EveryTick") -> 185.7 | Y34: 0.003187294041 | Z34: =RTD("cqg.rtd",,"StudyData", "Close("&$D$12&") when LocalYear("&$D$12&")="&$D$10&" and localMonth("&$D$12&") ="&$E$10&" and LocalDay("&$D$12&")="&$F$10&" and Barix("&$D$12&",reference:=StartOfSession)="&A34&"", "Bar", "", "Close","5","0","PrimaryOnly",,,"False","T","EveryTick") -> 186.49 | AA34: 0.005336927224
A35: 34 | B35: 11:20:00 | H35: =RTD("cqg.rtd",,"StudyData", "Close("&$D$12&") when LocalYear("&$D$12&")="&$D$1&" and localMonth("&$D$12&") ="&$E$1&" and LocalDay("&$D$12&")="&$F$1&" and Barix("&$D$12&",reference:=StartOfSession)="&A35&"", "Bar", "", "Close","5","0","PrimaryOnly",,,"False","T","EveryTick") ->  | J35: =RTD("cqg.rtd",,"StudyData", "Close("&$D$12&") when LocalYear("&$D$12&")="&$D$2&" and localMonth("&$D$12&") ="&$E$2&" and LocalDay("&$D$12&")="&$F$2&" and Barix("&$D$12&",reference:=StartOfSession)="&A35&"", "Bar", "", "Close","5","0","PrimaryOnly",,,"False","T","EveryTick") -> 191.02 | K35: 0.0167127954 | L35: =RTD("cqg.rtd",,"StudyData", "Close("&$D$12&") when LocalYear("&$D$12&")="&$D$3&" and localMonth("&$D$12&") ="&$E$3&" and LocalDay("&$D$12&")="&$F$3&" and Barix("&$D$12&",reference:=StartOfSession)="&A35&"", "Bar", "", "Close","5","0","PrimaryOnly",,,"False","T","EveryTick") -> 187.9 | M35: -0.01287102706 | N35: =RTD("cqg.rtd",,"StudyData", "Close("&$D$12&") when LocalYear("&$D$12&")="&$D$4&" and localMonth("&$D$12&") ="&$E$4&" and LocalDay("&$D$12&")="&$F$4&" and Barix("&$D$12&",reference:=StartOfSession)="&A35&"", "Bar", "", "Close","5","0","PrimaryOnly",,,"False","T","EveryTick") -> 191.02 | O35: 0.002308741736 | P35: =RTD("cqg.rtd",,"StudyData", "Close("&$D$12&") when LocalYear("&$D$12&")="&$D$5&" and localMonth("&$D$12&") ="&$E$5&" and LocalDay("&$D$12&")="&$F$5&" and Barix("&$D$12&",reference:=StartOfSession)="&A35&"", "Bar", "", "Close","5","0","PrimaryOnly",,,"False","T","EveryTick") -> 190.17 | Q35: 0.01170399532 | R35: =RTD("cqg.rtd",,"StudyData", "Close("&$D$12&") when LocalYear("&$D$12&")="&$D$6&" and localMonth("&$D$12&") ="&$E$6&" and LocalDay("&$D$12&")="&$F$6&" and Barix("&$D$12&",reference:=StartOfSession)="&A35&"", "Bar", "", "Close","5","0","PrimaryOnly",,,"False","T","EveryTick") -> 187.72 | S35: 0.01251348436 | T35: =RTD("cqg.rtd",,"StudyData", "Close("&$D$12&") when LocalYear("&$D$12&")="&$D$7&" and localMonth("&$D$12&") ="&$E$7&" and LocalDay("&$D$12&")="&$F$7&" and Barix("&$D$12&",reference:=StartOfSession)="&A35&"", "Bar", "", "Close","5","0","PrimaryOnly",,,"False","T","EveryTick") -> 185.97 | U35: 0.0111461505 | V35: =RTD("cqg.rtd",,"StudyData", "Close("&$D$12&") when LocalYear("&$D$12&")="&$D$8&" and localMonth("&$D$12&") ="&$E$8&" and LocalDay("&$D$12&")="&$F$8&" and Barix("&$D$12&",reference:=StartOfSession)="&A35&"", "Bar", "", "Close","5","0","PrimaryOnly",,,"False","T","EveryTick") -> 185.58 | W35: -0.008547921787 | X35: =RTD("cqg.rtd",,"StudyData", "Close("&$D$12&") when LocalYear("&$D$12&")="&$D$9&" and localMonth("&$D$12&") ="&$E$9&" and LocalDay("&$D$12&")="&$F$9&" and Barix("&$D$12&",reference:=StartOfSession)="&A35&"", "Bar", "", "Close","5","0","PrimaryOnly",,,"False","T","EveryTick") -> 185.88 | Y35: 0.004159688834 | Z35: =RTD("cqg.rtd",,"StudyData", "Close("&$D$12&") when LocalYear("&$D$12&")="&$D$10&" and localMonth("&$D$12&") ="&$E$10&" and LocalDay("&$D$12&")="&$F$10&" and Barix("&$D$12&",reference:=StartOfSession)="&A35&"", "Bar", "", "Close","5","0","PrimaryOnly",,,"False","T","EveryTick") -> 186.49 | AA35: 0.005336927224
A36: 35 | B36: 11:25:00 | H36: =RTD("cqg.rtd",,"StudyData", "Close("&$D$12&") when LocalYear("&$D$12&")="&$D$1&" and localMonth("&$D$12&") ="&$E$1&" and LocalDay("&$D$12&")="&$F$1&" and Barix("&$D$12&",reference:=StartOfSession)="&A36&"", "Bar", "", "Close","5","0","PrimaryOnly",,,"False","T","EveryTick") ->  | J36: =RTD("cqg.rtd",,"StudyData", "Close("&$D$12&") when LocalYear("&$D$12&")="&$D$2&" and localMonth("&$D$12&") ="&$E$2&" and LocalDay("&$D$12&")="&$F$2&" and Barix("&$D$12&",reference:=StartOfSession)="&A36&"", "Bar", "", "Close","5","0","PrimaryOnly",,,"False","T","EveryTick") -> 191.03 | K36: 0.01676602086 | L36: =RTD("cqg.rtd",,"StudyData", "Close("&$D$12&") when LocalYear("&$D$12&")="&$D$3&" and localMonth("&$D$12&") ="&$E$3&" and LocalDay("&$D$12&")="&$F$3&" and Barix("&$D$12&",reference:=StartOfSession)="&A36&"", "Bar", "", "Close","5","0","PrimaryOnly",,,"False","T","EveryTick") -> 188.04 | M36: -0.0121355398 | N36: =RTD("cqg.rtd",,"StudyData", "Close("&$D$12&") when LocalYear("&$D$12&")="&$D$4&" and localMonth("&$D$12&") ="&$E$4&" and LocalDay("&$D$12&")="&$F$4&" and Barix("&$D$12&",reference:=StartOfSession)="&A36&"", "Bar", "", "Close","5","0","PrimaryOnly",,,"False","T","EveryTick") -> 191.09 | O36: 0.002676041557 | P36: =RTD("cqg.rtd",,"StudyData", "Close("&$D$12&") when LocalYear("&$D$12&")="&$D$5&" and localMonth("&$D$12&") ="&$E$5&" and LocalDay("&$D$12&")="&$F$5&" and Barix("&$D$12&",reference:=StartOfSession)="&A36&"", "Bar", "", "Close","5","0","PrimaryOnly",,,"False","T","EveryTick") -> 190.06 | Q36: 0.01111879555 | R36: =RTD("cqg.rtd",,"StudyData", "Close("&$D$12&") when LocalYear("&$D$12&")="&$D$6&" and localMonth("&$D$12&") ="&$E$6&" and LocalDay("&$D$12&")="&$F$6&" and Barix("&$D$12&",reference:=StartOfSession)="&A36&"", "Bar", "", "Close","5","0","PrimaryOnly",,,"False","T","EveryTick") -> 187.67 | S36: 0.0122437972 | T36: =RTD("cqg.rtd",,"StudyData", "Close("&$D$12&") when LocalYear("&$D$12&")="&$D$7&" and localMonth("&$D$12&") ="&$E$7&" and LocalDay("&$D$12&")="&$F$7&" and Barix("&$D$12&",reference:=StartOfSession)="&A36&"", "Bar", "", "Close","5","0","PrimaryOnly",,,"False","T","EveryTick") -> 185.99 | U36: 0.01125489343 | V36: =RTD("cqg.rtd",,"StudyData", "Close("&$D$12&") when LocalYear("&$D$12&")="&$D$8&" and localMonth("&$D$12&") ="&$E$8&" and LocalDay("&$D$12&")="&$F$8&" and Barix("&$D$12&",reference:=StartOfSession)="&A36&"", "Bar", "", "Close","5","0","PrimaryOnly",,,"False","T","EveryTick") -> 185.22 | W36: -0.01047120419 | X36: =RTD("cqg.rtd",,"StudyData", "Close("&$D$12&") when LocalYear("&$D$12&")="&$D$9&" and localMonth("&$D$12&") ="&$E$9&" and LocalDay("&$D$12&")="&$F$9&" and Barix("&$D$12&",reference:=StartOfSession)="&A36&"", "Bar", "", "Close","5","0","PrimaryOnly",,,"False","T","EveryTick") -> 185.95 | Y36: 0.004537842364 | Z36: =RTD("cqg.rtd",,"StudyData", "Close("&$D$12&") when LocalYear("&$D$12&")="&$D$10&" and localMonth("&$D$12&") ="&$E$10&" and LocalDay("&$D$12&")="&$F$10&" and Barix("&$D$12&",reference:=StartOfSession)="&A36&"", "Bar", "", "Close","5","0","PrimaryOnly",,,"False","T","EveryTick") -> 186.44 | AA36: 0.005067385445
A37: 36 | B37: 11:30:00 | H37: =RTD("cqg.rtd",,"StudyData", "Close("&$D$12&") when LocalYear("&$D$12&")="&$D$1&" and localMonth("&$D$12&") ="&$E$1&" and LocalDay("&$D$12&")="&$F$1&" and Barix("&$D$12&",reference:=StartOfSession)="&A37&"", "Bar", "", "Close","5","0","PrimaryOnly",,,"False","T","EveryTick") ->  | J37: =RTD("cqg.rtd",,"StudyData", "Close("&$D$12&") when LocalYear("&$D$12&")="&$D$2&" and localMonth("&$D$12&") ="&$E$2&" and LocalDay("&$D$12&")="&$F$2&" and Barix("&$D$12&",reference:=StartOfSession)="&A37&"", "Bar", "", "Close","5","0","PrimaryOnly",,,"False","T","EveryTick") -> 191.01 | K37: 0.01665956994 | L37: =RTD("cqg.rtd",,"StudyData", "Close("&$D$12&") when LocalYear("&$D$12&")="&$D$3&" and localMonth("&$D$12&") ="&$E$3&" and LocalDay("&$D$12&")="&$F$3&" and Barix("&$D$12&",reference:=StartOfSession)="&A37&"", "Bar", "", "Close","5","0","PrimaryOnly",,,"False","T","EveryTick") -> 188.23 | M37: -0.01113737851 | N37: =RTD("cqg.rtd",,"StudyData", "Close("&$D$12&") when LocalYear("&$D$12&")="&$D$4&" and localMonth("&$D$12&") ="&$E$4&" and LocalDay("&$D$12&")="&$F$4&" and Barix("&$D$12&",reference:=StartOfSession)="&A37&"", "Bar", "", "Close","5","0","PrimaryOnly",,,"False","T","EveryTick") -> 191.07 | O37: 0.002571098751 | P37: =RTD("cqg.rtd",,"StudyData", "Close("&$D$12&") when LocalYear("&$D$12&")="&$D$5&" and localMonth("&$D$12&") ="&$E$5&" and LocalDay("&$D$12&")="&$F$5&" and Barix("&$D$12&",reference:=StartOfSession)="&A37&"", "Bar", "", "Close","5","0","PrimaryOnly",,,"False","T","EveryTick") -> 190.08 | Q37: 0.01122519551 | R37: =RTD("cqg.rtd",,"StudyData", "Close("&$D$12&") when LocalYear("&$D$12&")="&$D$6&" and localMonth("&$D$12&") ="&$E$6&" and LocalDay("&$D$12&")="&$F$6&" and Barix("&$D$12&",reference:=StartOfSession)="&A37&"", "Bar", "", "Close","5","0","PrimaryOnly",,,"False","T","EveryTick") -> 187.7 | S37: 0.01240560949 | T37: =RTD("cqg.rtd",,"StudyData", "Close("&$D$12&") when LocalYear("&$D$12&")="&$D$7&" and localMonth("&$D$12&") ="&$E$7&" and LocalDay("&$D$12&")="&$F$7&" and Barix("&$D$12&",reference:=StartOfSession)="&A37&"", "Bar", "", "Close","5","0","PrimaryOnly",,,"False","T","EveryTick") -> 185.89 | U37: 0.01071117877 | V37: =RTD("cqg.rtd",,"StudyData", "Close("&$D$12&") when LocalYear("&$D$12&")="&$D$8&" and localMonth("&$D$12&") ="&$E$8&" and LocalDay("&$D$12&")="&$F$8&" and Barix("&$D$12&",reference:=StartOfSession)="&A37&"", "Bar", "", "Close","5","0","PrimaryOnly",,,"False","T","EveryTick") -> 185.17 | W37: -0.01073832674 | X37: =RTD("cqg.rtd",,"StudyData", "Close("&$D$12&") when LocalYear("&$D$12&")="&$D$9&" and localMonth("&$D$12&") ="&$E$9&" and LocalDay("&$D$12&")="&$F$9&" and Barix("&$D$12&",reference:=StartOfSession)="&A37&"", "Bar", "", "Close","5","0","PrimaryOnly",,,"False","T","EveryTick") -> 185.89 | Y37: 0.004213710767 | Z37: =RTD("cqg.rtd",,"StudyData", "Close("&$D$12&") when LocalYear("&$D$12&")="&$D$10&" and localMonth("&$D$12&") ="&$E$10&" and LocalDay("&$D$12&")="&$F$10&" and Barix("&$D$12&",reference:=StartOfSession)="&A37&"", "Bar", "", "Close","5","0","PrimaryOnly",,,"False","T","EveryTick") -> 186.27 | AA37: 0.004150943396
A38: 37 | B38: 11:35:00 | C38: -40 | D38: =RTD("cqg.rtd",,"StudyData", $D$12, "Tick", "FlatTicks=0", "Tick","D",C38,"PrimaryOnly") -> 191.46 | F38: EP | H38: =RTD("cqg.rtd",,"StudyData", "Close("&$D$12&") when LocalYear("&$D$12&")="&$D$1&" and localMonth("&$D$12&") ="&$E$1&" and LocalDay("&$D$12&")="&$F$1&" and Barix("&$D$12&",reference:=StartOfSession)="&A38&"", "Bar", "", "Close","5","0","PrimaryOnly",,,"False","T","EveryTick") ->  | J38: =RTD("cqg.rtd",,"StudyData", "Close("&$D$12&") when LocalYear("&$D$12&")="&$D$2&" and localMonth("&$D$12&") ="&$E$2&" and LocalDay("&$D$12&")="&$F$2&" and Barix("&$D$12&",reference:=StartOfSession)="&A38&"", "Bar", "", "Close","5","0","PrimaryOnly",,,"False","T","EveryTick") -> 190.97 | K38: 0.01644666809 | L38: =RTD("cqg.rtd",,"StudyData", "Close("&$D$12&") when LocalYear("&$D$12&")="&$D$3&" and localMonth("&$D$12&") ="&$E$3&" and LocalDay("&$D$12&")="&$F$3&" and Barix("&$D$12&",reference:=StartOfSession)="&A38&"", "Bar", "", "Close","5","0","PrimaryOnly",,,"False","T","EveryTick") -> 188.2 | M38: -0.01129498293 | N38: =RTD("cqg.rtd",,"StudyData", "Close("&$D$12&") when LocalYear("&$D$12&")="&$D$4&" and localMonth("&$D$12&") ="&$E$4&" and LocalDay("&$D$12&")="&$F$4&" and Barix("&$D$12&",reference:=StartOfSession)="&A38&"", "Bar", "", "Close","5","0","PrimaryOnly",,,"False","T","EveryTick") -> 191.08 | O38: 0.002623570154 | P38: =RTD("cqg.rtd",,"StudyData", "Close("&$D$12&") when LocalYear("&$D$12&")="&$D$5&" and localMonth("&$D$12&") ="&$E$5&" and LocalDay("&$D$12&")="&$F$5&" and Barix("&$D$12&",reference:=StartOfSession)="&A38&"", "Bar", "", "Close","5","0","PrimaryOnly",,,"False","T","EveryTick") -> 190.03 | Q38: 0.01095919562 | R38: =RTD("cqg.rtd",,"StudyData", "Close("&$D$12&") when LocalYear("&$D$12&")="&$D$6&" and localMonth("&$D$12&") ="&$E$6&" and LocalDay("&$D$12&")="&$F$6&" and Barix("&$D$12&",reference:=StartOfSession)="&A38&"", "Bar", "", "Close","5","0","PrimaryOnly",,,"False","T","EveryTick") -> 187.82 | S38: 0.01305285868 | T38: =RTD("cqg.rtd",,"StudyData", "Close("&$D$12&") when LocalYear("&$D$12&")="&$D$7&" and localMonth("&$D$12&") ="&$E$7&" and LocalDay("&$D$12&")="&$F$7&" and Barix("&$D$12&",reference:=StartOfSession)="&A38&"", "Bar", "", "Close","5","0","PrimaryOnly",,,"False","T","EveryTick") -> 185.87 | U38: 0.01060243584 | V38: =RTD("cqg.rtd",,"StudyData", "Close("&$D$12&") when LocalYear("&$D$12&")="&$D$8&" and localMonth("&$D$12&") ="&$E$8&" and LocalDay("&$D$12&")="&$F$8&" and Barix("&$D$12&",reference:=StartOfSession)="&A38&"", "Bar", "", "Close","5","0","PrimaryOnly",,,"False","T","EveryTick") -> 185.08 | W38: -0.01121914734 | X38: =RTD("cqg.rtd",,"StudyData", "Close("&$D$12&") when LocalYear("&$D$12&")="&$D$9&" and localMonth("&$D$12&") ="&$E$9&" and LocalDay("&$D$12&")="&$F$9&" and Barix("&$D$12&",reference:=StartOfSession)="&A38&"", "Bar", "", "Close","5","0","PrimaryOnly",,,"False","T","EveryTick") -> 185.71 | Y38: 0.003241315974 | Z38: =RTD("cqg.rtd",,"StudyData", "Close("&$D$12&") when LocalYear("&$D$12&")="&$D$10&" and localMonth("&$D$12&") ="&$E$10&" and LocalDay("&$D$12&")="&$F$10&" and Barix("&$D$12&",reference:=StartOfSession)="&A38&"", "Bar", "", "Close","5","0","PrimaryOnly",,,"False","T","EveryTick") -> 186.32 | AA38: 0.004420485175
A39: 38 | B39: 11:40:00 | C39: =C38+1 -> -39 | D39: =RTD("cqg.rtd",,"StudyData", $D$12, "Tick", "FlatTicks=0", "Tick","D",C39,"PrimaryOnly") -> 191.47 | F39: ENQ | H39: =RTD("cqg.rtd",,"StudyData", "Close("&$D$12&") when LocalYear("&$D$12&")="&$D$1&" and localMonth("&$D$12&") ="&$E$1&" and LocalDay("&$D$12&")="&$F$1&" and Barix("&$D$12&",reference:=StartOfSession)="&A39&"", "Bar", "", "Close","5","0","PrimaryOnly",,,"False","T","EveryTick") ->  | J39: =RTD("cqg.rtd",,"StudyData", "Close("&$D$12&") when LocalYear("&$D$12&")="&$D$2&" and localMonth("&$D$12&") ="&$E$2&" and LocalDay("&$D$12&")="&$F$2&" and Barix("&$D$12&",reference:=StartOfSession)="&A39&"", "Bar", "", "Close","5","0","PrimaryOnly",,,"False","T","EveryTick") -> 190.92 | K39: 0.01618054077 | L39: =RTD("cqg.rtd",,"StudyData", "Close("&$D$12&") when LocalYear("&$D$12&")="&$D$3&" and localMonth("&$D$12&") ="&$E$3&" and LocalDay("&$D$12&")="&$F$3&" and Barix("&$D$12&",reference:=StartOfSession)="&A39&"", "Bar", "", "Close","5","0","PrimaryOnly",,,"False","T","EveryTick") -> 188.23 | M39: -0.01113737851 | N39: =RTD("cqg.rtd",,"StudyData", "Close("&$D$12&") when LocalYear("&$D$12&")="&$D$4&" and localMonth("&$D$12&") ="&$E$4&" and LocalDay("&$D$12&")="&$F$4&" and Barix("&$D$12&",reference:=StartOfSession)="&A39&"", "Bar", "", "Close","5","0","PrimaryOnly",,,"False","T","EveryTick") -> 190.97 | O39: 0.00204638472 | P39: =RTD("cqg.rtd",,"StudyData", "Close("&$D$12&") when LocalYear("&$D$12&")="&$D$5&" and localMonth("&$D$12&") ="&$E$5&" and LocalDay("&$D$12&")="&$F$5&" and Barix("&$D$12&",reference:=StartOfSession)="&A39&"", "Bar", "", "Close","5","0","PrimaryOnly",,,"False","T","EveryTick") -> 190.04 | Q39: 0.0110123956 | R39: =RTD("cqg.rtd",,"StudyData", "Close("&$D$12&") when LocalYear("&$D$12&")="&$D$6&" and localMonth("&$D$12&") ="&$E$6&" and LocalDay("&$D$12&")="&$F$6&" and Barix("&$D$12&",reference:=StartOfSession)="&A39&"", "Bar", "", "Close","5","0","PrimaryOnly",,,"False","T","EveryTick") -> 187.66 | S39: 0.01218985976 | T39: =RTD("cqg.rtd",,"StudyData", "Close("&$D$12&") when LocalYear("&$D$12&")="&$D$7&" and localMonth("&$D$12&") ="&$E$7&" and LocalDay("&$D$12&")="&$F$7&" and Barix("&$D$12&",reference:=StartOfSession)="&A39&"", "Bar", "", "Close","5","0","PrimaryOnly",,,"False","T","EveryTick") -> 185.91 | U39: 0.01081992171 | V39: =RTD("cqg.rtd",,"StudyData", "Close("&$D$12&") when LocalYear("&$D$12&")="&$D$8&" and localMonth("&$D$12&") ="&$E$8&" and LocalDay("&$D$12&")="&$F$8&" and Barix("&$D$12&",reference:=StartOfSession)="&A39&"", "Bar", "", "Close","5","0","PrimaryOnly",,,"False","T","EveryTick") -> 185.07 | W39: -0.01127257186 | X39: =RTD("cqg.rtd",,"StudyData", "Close("&$D$12&") when LocalYear("&$D$12&")="&$D$9&" and localMonth("&$D$12&") ="&$E$9&" and LocalDay("&$D$12&")="&$F$9&" and Barix("&$D$12&",reference:=StartOfSession)="&A39&"", "Bar", "", "Close","5","0","PrimaryOnly",,,"False","T","EveryTick") -> 185.69 | Y39: 0.003133272108 | Z39: =RTD("cqg.rtd",,"StudyData", "Close("&$D$12&") when LocalYear("&$D$12&")="&$D$10&" and localMonth("&$D$12&") ="&$E$10&" and LocalDay("&$D$12&")="&$F$10&" and Barix("&$D$12&",reference:=StartOfSession)="&A39&"", "Bar", "", "Close","5","0","PrimaryOnly",,,"False","T","EveryTick") -> 186.4 | AA39: 0.004851752022
A40: 39 | B40: 11:45:00 | C40: =C39+1 -> -38 | D40: =RTD("cqg.rtd",,"StudyData", $D$12, "Tick", "FlatTicks=0", "Tick","D",C40,"PrimaryOnly") -> 191.46 | F40: YM | H40: =RTD("cqg.rtd",,"StudyData", "Close("&$D$12&") when LocalYear("&$D$12&")="&$D$1&" and localMonth("&$D$12&") ="&$E$1&" and LocalDay("&$D$12&")="&$F$1&" and Barix("&$D$12&",reference:=StartOfSession)="&A40&"", "Bar", "", "Close","5","0","PrimaryOnly",,,"False","T","EveryTick") ->  | J40: =RTD("cqg.rtd",,"StudyData", "Close("&$D$12&") when LocalYear("&$D$12&")="&$D$2&" and localMonth("&$D$12&") ="&$E$2&" and LocalDay("&$D$12&")="&$F$2&" and Barix("&$D$12&",reference:=StartOfSession)="&A40&"", "Bar", "", "Close","5","0","PrimaryOnly",,,"False","T","EveryTick") -> 190.99 | K40: 0.01655311901 | L40: =RTD("cqg.rtd",,"StudyData", "Close("&$D$12&") when LocalYear("&$D$12&")="&$D$3&" and localMonth("&$D$12&") ="&$E$3&" and LocalDay("&$D$12&")="&$F$3&" and Barix("&$D$12&",reference:=StartOfSession)="&A40&"", "Bar", "", "Close","5","0","PrimaryOnly",,,"False","T","EveryTick") -> 188.28 | M40: -0.01087470449 | N40: =RTD("cqg.rtd",,"StudyData", "Close("&$D$12&") when LocalYear("&$D$12&")="&$D$4&" and localMonth("&$D$12&") ="&$E$4&" and LocalDay("&$D$12&")="&$F$4&" and Barix("&$D$12&",reference:=StartOfSession)="&A40&"", "Bar", "", "Close","5","0","PrimaryOnly",,,"False","T","EveryTick") -> 190.97 | O40: 0.00204638472 | P40: =RTD("cqg.rtd",,"StudyData", "Close("&$D$12&") when LocalYear("&$D$12&")="&$D$5&" and localMonth("&$D$12&") ="&$E$5&" and LocalDay("&$D$12&")="&$F$5&" and Barix("&$D$12&",reference:=StartOfSession)="&A40&"", "Bar", "", "Close","5","0","PrimaryOnly",,,"False","T","EveryTick") -> 189.99 | Q40: 0.0107463957 | R40: =RTD("cqg.rtd",,"StudyData", "Close("&$D$12&") when LocalYear("&$D$12&")="&$D$6&" and localMonth("&$D$12&") ="&$E$6&" and LocalDay("&$D$12&")="&$F$6&" and Barix("&$D$12&",reference:=StartOfSession)="&A40&"", "Bar", "", "Close","5","0","PrimaryOnly",,,"False","T","EveryTick") -> 187.54 | S40: 0.01154261057 | T40: =RTD("cqg.rtd",,"StudyData", "Close("&$D$12&") when LocalYear("&$D$12&")="&$D$7&" and localMonth("&$D$12&") ="&$E$7&" and LocalDay("&$D$12&")="&$F$7&" and Barix("&$D$12&",reference:=StartOfSession)="&A40&"", "Bar", "", "Close","5","0","PrimaryOnly",,,"False","T","EveryTick") -> 185.75 | U40: 0.009949978251 | V40: =RTD("cqg.rtd",,"StudyData", "Close("&$D$12&") when LocalYear("&$D$12&")="&$D$8&" and localMonth("&$D$12&") ="&$E$8&" and LocalDay("&$D$12&")="&$F$8&" and Barix("&$D$12&",reference:=StartOfSession)="&A40&"", "Bar", "", "Close","5","0","PrimaryOnly",,,"False","T","EveryTick") -> 184.77 | W40: -0.01287530719 | X40: =RTD("cqg.rtd",,"StudyData", "Close("&$D$12&") when LocalYear("&$D$12&")="&$D$9&" and localMonth("&$D$12&") ="&$E$9&" and LocalDay("&$D$12&")="&$F$9&" and Barix("&$D$12&",reference:=StartOfSession)="&A40&"", "Bar", "", "Close","5","0","PrimaryOnly",,,"False","T","EveryTick") -> 185.9 | Y40: 0.004267732699 | Z40: =RTD("cqg.rtd",,"StudyData", "Close("&$D$12&") when LocalYear("&$D$12&")="&$D$10&" and localMonth("&$D$12&") ="&$E$10&" and LocalDay("&$D$12&")="&$F$10&" and Barix("&$D$12&",reference:=StartOfSession)="&A40&"", "Bar", "", "Close","5","0","PrimaryOnly",,,"False","T","EveryTick") -> 186.2 | AA40: 0.003773584906
A41: 40 | B41: 11:50:00 | C41: -37 | D41: =RTD("cqg.rtd",,"StudyData", $D$12, "Tick", "FlatTicks=0", "Tick","D",C41,"PrimaryOnly") -> 191.45 | F41: RTY | H41: =RTD("cqg.rtd",,"StudyData", "Close("&$D$12&") when LocalYear("&$D$12&")="&$D$1&" and localMonth("&$D$12&") ="&$E$1&" and LocalDay("&$D$12&")="&$F$1&" and Barix("&$D$12&",reference:=StartOfSession)="&A41&"", "Bar", "", "Close","5","0","PrimaryOnly",,,"False","T","EveryTick") ->  | J41: =RTD("cqg.rtd",,"StudyData", "Close("&$D$12&") when LocalYear("&$D$12&")="&$D$2&" and localMonth("&$D$12&") ="&$E$2&" and LocalDay("&$D$12&")="&$F$2&" and Barix("&$D$12&",reference:=StartOfSession)="&A41&"", "Bar", "", "Close","5","0","PrimaryOnly",,,"False","T","EveryTick") -> 191.21 | K41: 0.0177240792 | L41: =RTD("cqg.rtd",,"StudyData", "Close("&$D$12&") when LocalYear("&$D$12&")="&$D$3&" and localMonth("&$D$12&") ="&$E$3&" and LocalDay("&$D$12&")="&$F$3&" and Barix("&$D$12&",reference:=StartOfSession)="&A41&"", "Bar", "", "Close","5","0","PrimaryOnly",,,"False","T","EveryTick") -> 188.18 | M41: -0.01140005253 | N41: =RTD("cqg.rtd",,"StudyData", "Close("&$D$12&") when LocalYear("&$D$12&")="&$D$4&" and localMonth("&$D$12&") ="&$E$4&" and LocalDay("&$D$12&")="&$F$4&" and Barix("&$D$12&",reference:=StartOfSession)="&A41&"", "Bar", "", "Close","5","0","PrimaryOnly",,,"False","T","EveryTick") -> 190.94 | O41: 0.001888970511 | P41: =RTD("cqg.rtd",,"StudyData", "Close("&$D$12&") when LocalYear("&$D$12&")="&$D$5&" and localMonth("&$D$12&") ="&$E$5&" and LocalDay("&$D$12&")="&$F$5&" and Barix("&$D$12&",reference:=StartOfSession)="&A41&"", "Bar", "", "Close","5","0","PrimaryOnly",,,"False","T","EveryTick") -> 190.02 | Q41: 0.01090599564 | R41: =RTD("cqg.rtd",,"StudyData", "Close("&$D$12&") when LocalYear("&$D$12&")="&$D$6&" and localMonth("&$D$12&") ="&$E$6&" and LocalDay("&$D$12&")="&$F$6&" and Barix("&$D$12&",reference:=StartOfSession)="&A41&"", "Bar", "", "Close","5","0","PrimaryOnly",,,"False","T","EveryTick") -> 187.6 | S41: 0.01186623517 | T41: =RTD("cqg.rtd",,"StudyData", "Close("&$D$12&") when LocalYear("&$D$12&")="&$D$7&" and localMonth("&$D$12&") ="&$E$7&" and LocalDay("&$D$12&")="&$F$7&" and Barix("&$D$12&",reference:=StartOfSession)="&A41&"", "Bar", "", "Close","5","0","PrimaryOnly",,,"False","T","EveryTick") -> 185.74 | U41: 0.009895606786 | V41: =RTD("cqg.rtd",,"StudyData", "Close("&$D$12&") when LocalYear("&$D$12&")="&$D$8&" and localMonth("&$D$12&") ="&$E$8&" and LocalDay("&$D$12&")="&$F$8&" and Barix("&$D$12&",reference:=StartOfSession)="&A41&"", "Bar", "", "Close","5","0","PrimaryOnly",,,"False","T","EveryTick") -> 184.12 | W41: -0.01634790042 | X41: =RTD("cqg.rtd",,"StudyData", "Close("&$D$12&") when LocalYear("&$D$12&")="&$D$9&" and localMonth("&$D$12&") ="&$E$9&" and LocalDay("&$D$12&")="&$F$9&" and Barix("&$D$12&",reference:=StartOfSession)="&A41&"", "Bar", "", "Close","5","0","PrimaryOnly",,,"False","T","EveryTick") -> 185.88 | Y41: 0.004159688834 | Z41: =RTD("cqg.rtd",,"StudyData", "Close("&$D$12&") when LocalYear("&$D$12&")="&$D$10&" and localMonth("&$D$12&") ="&$E$10&" and LocalDay("&$D$12&")="&$F$10&" and Barix("&$D$12&",reference:=StartOfSession)="&A41&"", "Bar", "", "Close","5","0","PrimaryOnly",,,"False","T","EveryTick") -> 186.12 | AA41: 0.003342318059
A42: 41 | B42: 11:55:00 | C42: -36 | D42: =RTD("cqg.rtd",,"StudyData", $D$12, "Tick", "FlatTicks=0", "Tick","D",C42,"PrimaryOnly") -> 191.46 | F42: EMD | H42: =RTD("cqg.rtd",,"StudyData", "Close("&$D$12&") when LocalYear("&$D$12&")="&$D$1&" and localMonth("&$D$12&") ="&$E$1&" and LocalDay("&$D$12&")="&$F$1&" and Barix("&$D$12&",reference:=StartOfSession)="&A42&"", "Bar", "", "Close","5","0","PrimaryOnly",,,"False","T","EveryTick") ->  | J42: =RTD("cqg.rtd",,"StudyData", "Close("&$D$12&") when LocalYear("&$D$12&")="&$D$2&" and localMonth("&$D$12&") ="&$E$2&" and LocalDay("&$D$12&")="&$F$2&" and Barix("&$D$12&",reference:=StartOfSession)="&A42&"", "Bar", "", "Close","5","0","PrimaryOnly",,,"False","T","EveryTick") -> 191.2 | K42: 0.01767085374 | L42: =RTD("cqg.rtd",,"StudyData", "Close("&$D$12&") when LocalYear("&$D$12&")="&$D$3&" and localMonth("&$D$12&") ="&$E$3&" and LocalDay("&$D$12&")="&$F$3&" and Barix("&$D$12&",reference:=StartOfSession)="&A42&"", "Bar", "", "Close","5","0","PrimaryOnly",,,"False","T","EveryTick") -> 187.99 | M42: -0.01239821382 | N42: =RTD("cqg.rtd",,"StudyData", "Close("&$D$12&") when LocalYear("&$D$12&")="&$D$4&" and localMonth("&$D$12&") ="&$E$4&" and LocalDay("&$D$12&")="&$F$4&" and Barix("&$D$12&",reference:=StartOfSession)="&A42&"", "Bar", "", "Close","5","0","PrimaryOnly",,,"False","T","EveryTick") -> 190.87 | O42: 0.001521670689 | P42: =RTD("cqg.rtd",,"StudyData", "Close("&$D$12&") when LocalYear("&$D$12&")="&$D$5&" and localMonth("&$D$12&") ="&$E$5&" and LocalDay("&$D$12&")="&$F$5&" and Barix("&$D$12&",reference:=StartOfSession)="&A42&"", "Bar", "", "Close","5","0","PrimaryOnly",,,"False","T","EveryTick") -> 189.97 | Q42: 0.01063999574 | R42: =RTD("cqg.rtd",,"StudyData", "Close("&$D$12&") when LocalYear("&$D$12&")="&$D$6&" and localMonth("&$D$12&") ="&$E$6&" and LocalDay("&$D$12&")="&$F$6&" and Barix("&$D$12&",reference:=StartOfSession)="&A42&"", "Bar", "", "Close","5","0","PrimaryOnly",,,"False","T","EveryTick") -> 187.68 | S42: 0.01229773463 | T42: =RTD("cqg.rtd",,"StudyData", "Close("&$D$12&") when LocalYear("&$D$12&")="&$D$7&" and localMonth("&$D$12&") ="&$E$7&" and LocalDay("&$D$12&")="&$F$7&" and Barix("&$D$12&",reference:=StartOfSession)="&A42&"", "Bar", "", "Close","5","0","PrimaryOnly",,,"False","T","EveryTick") -> 185.81 | U42: 0.01027620705 | V42: =RTD("cqg.rtd",,"StudyData", "Close("&$D$12&") when LocalYear("&$D$12&")="&$D$8&" and localMonth("&$D$12&") ="&$E$8&" and LocalDay("&$D$12&")="&$F$8&" and Barix("&$D$12&",reference:=StartOfSession)="&A42&"", "Bar", "", "Close","5","0","PrimaryOnly",,,"False","T","EveryTick") -> 183.64 | W42: -0.01891227695 | X42: =RTD("cqg.rtd",,"StudyData", "Close("&$D$12&") when LocalYear("&$D$12&")="&$D$9&" and localMonth("&$D$12&") ="&$E$9&" and LocalDay("&$D$12&")="&$F$9&" and Barix("&$D$12&",reference:=StartOfSession)="&A42&"", "Bar", "", "Close","5","0","PrimaryOnly",,,"False","T","EveryTick") -> 185.81 | Y42: 0.003781535303 | Z42: =RTD("cqg.rtd",,"StudyData", "Close("&$D$12&") when LocalYear("&$D$12&")="&$D$10&" and localMonth("&$D$12&") ="&$E$10&" and LocalDay("&$D$12&")="&$F$10&" and Barix("&$D$12&",reference:=StartOfSession)="&A42&"", "Bar", "", "Close","5","0","PrimaryOnly",,,"False","T","EveryTick") -> 186.13 | AA42: 0.003396226415
A43: 42 | B43: 12:00:00 | C43: -35 | D43: =RTD("cqg.rtd",,"StudyData", $D$12, "Tick", "FlatTicks=0", "Tick","D",C43,"PrimaryOnly") -> 191.47 | F43: FTS | H43: =RTD("cqg.rtd",,"StudyData", "Close("&$D$12&") when LocalYear("&$D$12&")="&$D$1&" and localMonth("&$D$12&") ="&$E$1&" and LocalDay("&$D$12&")="&$F$1&" and Barix("&$D$12&",reference:=StartOfSession)="&A43&"", "Bar", "", "Close","5","0","PrimaryOnly",,,"False","T","EveryTick") ->  | J43: =RTD("cqg.rtd",,"StudyData", "Close("&$D$12&") when LocalYear("&$D$12&")="&$D$2&" and localMonth("&$D$12&") ="&$E$2&" and LocalDay("&$D$12&")="&$F$2&" and Barix("&$D$12&",reference:=StartOfSession)="&A43&"", "Bar", "", "Close","5","0","PrimaryOnly",,,"False","T","EveryTick") -> 191.34 | K43: 0.01841601022 | L43: =RTD("cqg.rtd",,"StudyData", "Close("&$D$12&") when LocalYear("&$D$12&")="&$D$3&" and localMonth("&$D$12&") ="&$E$3&" and LocalDay("&$D$12&")="&$F$3&" and Barix("&$D$12&",reference:=StartOfSession)="&A43&"", "Bar", "", "Close","5","0","PrimaryOnly",,,"False","T","EveryTick") -> 188.01 | M43: -0.01229314421 | N43: =RTD("cqg.rtd",,"StudyData", "Close("&$D$12&") when LocalYear("&$D$12&")="&$D$4&" and localMonth("&$D$12&") ="&$E$4&" and LocalDay("&$D$12&")="&$F$4&" and Barix("&$D$12&",reference:=StartOfSession)="&A43&"", "Bar", "", "Close","5","0","PrimaryOnly",,,"False","T","EveryTick") -> 190.89 | O43: 0.001626613496 | P43: =RTD("cqg.rtd",,"StudyData", "Close("&$D$12&") when LocalYear("&$D$12&")="&$D$5&" and localMonth("&$D$12&") ="&$E$5&" and LocalDay("&$D$12&")="&$F$5&" and Barix("&$D$12&",reference:=StartOfSession)="&A43&"", "Bar", "", "Close","5","0","PrimaryOnly",,,"False","T","EveryTick") -> 189.91 | Q43: 0.01032079587 | R43: =RTD("cqg.rtd",,"StudyData", "Close("&$D$12&") when LocalYear("&$D$12&")="&$D$6&" and localMonth("&$D$12&") ="&$E$6&" and LocalDay("&$D$12&")="&$F$6&" and Barix("&$D$12&",reference:=StartOfSession)="&A43&"", "Bar", "", "Close","5","0","PrimaryOnly",,,"False","T","EveryTick") -> 187.71 | S43: 0.01245954693 | T43: =RTD("cqg.rtd",,"StudyData", "Close("&$D$12&") when LocalYear("&$D$12&")="&$D$7&" and localMonth("&$D$12&") ="&$E$7&" and LocalDay("&$D$12&")="&$F$7&" and Barix("&$D$12&",reference:=StartOfSession)="&A43&"", "Bar", "", "Close","5","0","PrimaryOnly",,,"False","T","EveryTick") -> 185.9 | U43: 0.01076555024 | V43: =RTD("cqg.rtd",,"StudyData", "Close("&$D$12&") when LocalYear("&$D$12&")="&$D$8&" and localMonth("&$D$12&") ="&$E$8&" and LocalDay("&$D$12&")="&$F$8&" and Barix("&$D$12&",reference:=StartOfSession)="&A43&"", "Bar", "", "Close","5","0","PrimaryOnly",,,"False","T","EveryTick") ->  | X43: =RTD("cqg.rtd",,"StudyData", "Close("&$D$12&") when LocalYear("&$D$12&")="&$D$9&" and localMonth("&$D$12&") ="&$E$9&" and LocalDay("&$D$12&")="&$F$9&" and Barix("&$D$12&",reference:=StartOfSession)="&A43&"", "Bar", "", "Close","5","0","PrimaryOnly",,,"False","T","EveryTick") -> 185.76 | Y43: 0.003511425639 | Z43: =RTD("cqg.rtd",,"StudyData", "Close("&$D$12&") when LocalYear("&$D$12&")="&$D$10&" and localMonth("&$D$12&") ="&$E$10&" and LocalDay("&$D$12&")="&$F$10&" and Barix("&$D$12&",reference:=StartOfSession)="&A43&"", "Bar", "", "Close","5","0","PrimaryOnly",,,"False","T","EveryTick") -> 186.08 | AA43: 0.003126684636
A44: 43 | B44: 12:05:00 | C44: -34 | D44: =RTD("cqg.rtd",,"StudyData", $D$12, "Tick", "FlatTicks=0", "Tick","D",C44,"PrimaryOnly") -> 191.48 | F44: BTC | H44: =RTD("cqg.rtd",,"StudyData", "Close("&$D$12&") when LocalYear("&$D$12&")="&$D$1&" and localMonth("&$D$12&") ="&$E$1&" and LocalDay("&$D$12&")="&$F$1&" and Barix("&$D$12&",reference:=StartOfSession)="&A44&"", "Bar", "", "Close","5","0","PrimaryOnly",,,"False","T","EveryTick") ->  | J44: =RTD("cqg.rtd",,"StudyData", "Close("&$D$12&") when LocalYear("&$D$12&")="&$D$2&" and localMonth("&$D$12&") ="&$E$2&" and LocalDay("&$D$12&")="&$F$2&" and Barix("&$D$12&",reference:=StartOfSession)="&A44&"", "Bar", "", "Close","5","0","PrimaryOnly",,,"False","T","EveryTick") -> 191.32 | K44: 0.01830955929 | L44: =RTD("cqg.rtd",,"StudyData", "Close("&$D$12&") when LocalYear("&$D$12&")="&$D$3&" and localMonth("&$D$12&") ="&$E$3&" and LocalDay("&$D$12&")="&$F$3&" and Barix("&$D$12&",reference:=StartOfSession)="&A44&"", "Bar", "", "Close","5","0","PrimaryOnly",,,"False","T","EveryTick") -> 187.98 | M44: -0.01245074862 | N44: =RTD("cqg.rtd",,"StudyData", "Close("&$D$12&") when LocalYear("&$D$12&")="&$D$4&" and localMonth("&$D$12&") ="&$E$4&" and LocalDay("&$D$12&")="&$F$4&" and Barix("&$D$12&",reference:=StartOfSession)="&A44&"", "Bar", "", "Close","5","0","PrimaryOnly",,,"False","T","EveryTick") -> 190.66 | O44: 0.0004197712247 | P44: =RTD("cqg.rtd",,"StudyData", "Close("&$D$12&") when LocalYear("&$D$12&")="&$D$5&" and localMonth("&$D$12&") ="&$E$5&" and LocalDay("&$D$12&")="&$F$5&" and Barix("&$D$12&",reference:=StartOfSession)="&A44&"", "Bar", "", "Close","5","0","PrimaryOnly",,,"False","T","EveryTick") -> 189.88 | Q44: 0.01016119594 | R44: =RTD("cqg.rtd",,"StudyData", "Close("&$D$12&") when LocalYear("&$D$12&")="&$D$6&" and localMonth("&$D$12&") ="&$E$6&" and LocalDay("&$D$12&")="&$F$6&" and Barix("&$D$12&",reference:=StartOfSession)="&A44&"", "Bar", "", "Close","5","0","PrimaryOnly",,,"False","T","EveryTick") -> 187.6 | S44: 0.01186623517 | T44: =RTD("cqg.rtd",,"StudyData", "Close("&$D$12&") when LocalYear("&$D$12&")="&$D$7&" and localMonth("&$D$12&") ="&$E$7&" and LocalDay("&$D$12&")="&$F$7&" and Barix("&$D$12&",reference:=StartOfSession)="&A44&"", "Bar", "", "Close","5","0","PrimaryOnly",,,"False","T","EveryTick") -> 185.73 | U44: 0.00984123532 | V44: =RTD("cqg.rtd",,"StudyData", "Close("&$D$12&") when LocalYear("&$D$12&")="&$D$8&" and localMonth("&$D$12&") ="&$E$8&" and LocalDay("&$D$12&")="&$F$8&" and Barix("&$D$12&",reference:=StartOfSession)="&A44&"", "Bar", "", "Close","5","0","PrimaryOnly",,,"False","T","EveryTick") ->  | X44: =RTD("cqg.rtd",,"StudyData", "Close("&$D$12&") when LocalYear("&$D$12&")="&$D$9&" and localMonth("&$D$12&") ="&$E$9&" and LocalDay("&$D$12&")="&$F$9&" and Barix("&$D$12&",reference:=StartOfSession)="&A44&"", "Bar", "", "Close","5","0","PrimaryOnly",,,"False","T","EveryTick") -> 185.68 | Y44: 0.003079250176 | Z44: =RTD("cqg.rtd",,"StudyData", "Close("&$D$12&") when LocalYear("&$D$12&")="&$D$10&" and localMonth("&$D$12&") ="&$E$10&" and LocalDay("&$D$12&")="&$F$10&" and Barix("&$D$12&",reference:=StartOfSession)="&A44&"", "Bar", "", "Close","5","0","PrimaryOnly",,,"False","T","EveryTick") -> 186.19 | AA44: 0.00371967655
A45: 44 | B45: 12:10:00 | C45: -33 | D45: =RTD("cqg.rtd",,"StudyData", $D$12, "Tick", "FlatTicks=0", "Tick","D",C45,"PrimaryOnly") -> 191.47 | H45: =RTD("cqg.rtd",,"StudyData", "Close("&$D$12&") when LocalYear("&$D$12&")="&$D$1&" and localMonth("&$D$12&") ="&$E$1&" and LocalDay("&$D$12&")="&$F$1&" and Barix("&$D$12&",reference:=StartOfSession)="&A45&"", "Bar", "", "Close","5","0","PrimaryOnly",,,"False","T","EveryTick") ->  | J45: =RTD("cqg.rtd",,"StudyData", "Close("&$D$12&") when LocalYear("&$D$12&")="&$D$2&" and localMonth("&$D$12&") ="&$E$2&" and LocalDay("&$D$12&")="&$F$2&" and Barix("&$D$12&",reference:=StartOfSession)="&A45&"", "Bar", "", "Close","5","0","PrimaryOnly",,,"False","T","EveryTick") -> 191.17 | K45: 0.01751117735 | L45: =RTD("cqg.rtd",,"StudyData", "Close("&$D$12&") when LocalYear("&$D$12&")="&$D$3&" and localMonth("&$D$12&") ="&$E$3&" and LocalDay("&$D$12&")="&$F$3&" and Barix("&$D$12&",reference:=StartOfSession)="&A45&"", "Bar", "", "Close","5","0","PrimaryOnly",,,"False","T","EveryTick") -> 188.04 | M45: -0.0121355398 | N45: =RTD("cqg.rtd",,"StudyData", "Close("&$D$12&") when LocalYear("&$D$12&")="&$D$4&" and localMonth("&$D$12&") ="&$E$4&" and LocalDay("&$D$12&")="&$F$4&" and Barix("&$D$12&",reference:=StartOfSession)="&A45&"", "Bar", "", "Close","5","0","PrimaryOnly",,,"False","T","EveryTick") -> 190.74 | O45: 0.0008395424494 | P45: =RTD("cqg.rtd",,"StudyData", "Close("&$D$12&") when LocalYear("&$D$12&")="&$D$5&" and localMonth("&$D$12&") ="&$E$5&" and LocalDay("&$D$12&")="&$F$5&" and Barix("&$D$12&",reference:=StartOfSession)="&A45&"", "Bar", "", "Close","5","0","PrimaryOnly",,,"False","T","EveryTick") -> 189.88 | Q45: 0.01016119594 | R45: =RTD("cqg.rtd",,"StudyData", "Close("&$D$12&") when LocalYear("&$D$12&")="&$D$6&" and localMonth("&$D$12&") ="&$E$6&" and LocalDay("&$D$12&")="&$F$6&" and Barix("&$D$12&",reference:=StartOfSession)="&A45&"", "Bar", "", "Close","5","0","PrimaryOnly",,,"False","T","EveryTick") -> 187.44 | S45: 0.01100323625 | T45: =RTD("cqg.rtd",,"StudyData", "Close("&$D$12&") when LocalYear("&$D$12&")="&$D$7&" and localMonth("&$D$12&") ="&$E$7&" and LocalDay("&$D$12&")="&$F$7&" and Barix("&$D$12&",reference:=StartOfSession)="&A45&"", "Bar", "", "Close","5","0","PrimaryOnly",,,"False","T","EveryTick") -> 185.77 | U45: 0.01005872118 | V45: =RTD("cqg.rtd",,"StudyData", "Close("&$D$12&") when LocalYear("&$D$12&")="&$D$8&" and localMonth("&$D$12&") ="&$E$8&" and LocalDay("&$D$12&")="&$F$8&" and Barix("&$D$12&",reference:=StartOfSession)="&A45&"", "Bar", "", "Close","5","0","PrimaryOnly",,,"False","T","EveryTick") ->  | X45: =RTD("cqg.rtd",,"StudyData", "Close("&$D$12&") when LocalYear("&$D$12&")="&$D$9&" and localMonth("&$D$12&") ="&$E$9&" and LocalDay("&$D$12&")="&$F$9&" and Barix("&$D$12&",reference:=StartOfSession)="&A45&"", "Bar", "", "Close","5","0","PrimaryOnly",,,"False","T","EveryTick") -> 185.43 | Y45: 0.001728701853 | Z45: =RTD("cqg.rtd",,"StudyData", "Close("&$D$12&") when LocalYear("&$D$12&")="&$D$10&" and localMonth("&$D$12&") ="&$E$10&" and LocalDay("&$D$12&")="&$F$10&" and Barix("&$D$12&",reference:=StartOfSession)="&A45&"", "Bar", "", "Close","5","0","PrimaryOnly",,,"False","T","EveryTick") -> 186.24 | AA45: 0.003989218329
A46: 45 | B46: 12:15:00 | C46: -32 | D46: =RTD("cqg.rtd",,"StudyData", $D$12, "Tick", "FlatTicks=0", "Tick","D",C46,"PrimaryOnly") -> 191.45 | H46: =RTD("cqg.rtd",,"StudyData", "Close("&$D$12&") when LocalYear("&$D$12&")="&$D$1&" and localMonth("&$D$12&") ="&$E$1&" and LocalDay("&$D$12&")="&$F$1&" and Barix("&$D$12&",reference:=StartOfSession)="&A46&"", "Bar", "", "Close","5","0","PrimaryOnly",,,"False","T","EveryTick") ->  | J46: =RTD("cqg.rtd",,"StudyData", "Close("&$D$12&") when LocalYear("&$D$12&")="&$D$2&" and localMonth("&$D$12&") ="&$E$2&" and LocalDay("&$D$12&")="&$F$2&" and Barix("&$D$12&",reference:=StartOfSession)="&A46&"", "Bar", "", "Close","5","0","PrimaryOnly",,,"False","T","EveryTick") -> 191.16 | K46: 0.01745795188 | L46: =RTD("cqg.rtd",,"StudyData", "Close("&$D$12&") when LocalYear("&$D$12&")="&$D$3&" and localMonth("&$D$12&") ="&$E$3&" and LocalDay("&$D$12&")="&$F$3&" and Barix("&$D$12&",reference:=StartOfSession)="&A46&"", "Bar", "", "Close","5","0","PrimaryOnly",,,"False","T","EveryTick") -> 188.12 | M46: -0.01171526136 | N46: =RTD("cqg.rtd",,"StudyData", "Close("&$D$12&") when LocalYear("&$D$12&")="&$D$4&" and localMonth("&$D$12&") ="&$E$4&" and LocalDay("&$D$12&")="&$F$4&" and Barix("&$D$12&",reference:=StartOfSession)="&A46&"", "Bar", "", "Close","5","0","PrimaryOnly",,,"False","T","EveryTick") -> 190.74 | O46: 0.0008395424494 | P46: =RTD("cqg.rtd",,"StudyData", "Close("&$D$12&") when LocalYear("&$D$12&")="&$D$5&" and localMonth("&$D$12&") ="&$E$5&" and LocalDay("&$D$12&")="&$F$5&" and Barix("&$D$12&",reference:=StartOfSession)="&A46&"", "Bar", "", "Close","5","0","PrimaryOnly",,,"False","T","EveryTick") -> 190.06 | Q46: 0.01111879555 | R46: =RTD("cqg.rtd",,"StudyData", "Close("&$D$12&") when LocalYear("&$D$12&")="&$D$6&" and localMonth("&$D$12&") ="&$E$6&" and LocalDay("&$D$12&")="&$F$6&" and Barix("&$D$12&",reference:=StartOfSession)="&A46&"", "Bar", "", "Close","5","0","PrimaryOnly",,,"False","T","EveryTick") -> 187.55 | S46: 0.011596548 | T46: =RTD("cqg.rtd",,"StudyData", "Close("&$D$12&") when LocalYear("&$D$12&")="&$D$7&" and localMonth("&$D$12&") ="&$E$7&" and LocalDay("&$D$12&")="&$F$7&" and Barix("&$D$12&",reference:=StartOfSession)="&A46&"", "Bar", "", "Close","5","0","PrimaryOnly",,,"False","T","EveryTick") -> 185.81 | U46: 0.01027620705 | V46: =RTD("cqg.rtd",,"StudyData", "Close("&$D$12&") when LocalYear("&$D$12&")="&$D$8&" and localMonth("&$D$12&") ="&$E$8&" and LocalDay("&$D$12&")="&$F$8&" and Barix("&$D$12&",reference:=StartOfSession)="&A46&"", "Bar", "", "Close","5","0","PrimaryOnly",,,"False","T","EveryTick") ->  | X46: =RTD("cqg.rtd",,"StudyData", "Close("&$D$12&") when LocalYear("&$D$12&")="&$D$9&" and localMonth("&$D$12&") ="&$E$9&" and LocalDay("&$D$12&")="&$F$9&" and Barix("&$D$12&",reference:=StartOfSession)="&A46&"", "Bar", "", "Close","5","0","PrimaryOnly",,,"False","T","EveryTick") -> 185.39 | Y46: 0.001512614121 | Z46: =RTD("cqg.rtd",,"StudyData", "Close("&$D$12&") when LocalYear("&$D$12&")="&$D$10&" and localMonth("&$D$12&") ="&$E$10&" and LocalDay("&$D$12&")="&$F$10&" and Barix("&$D$12&",reference:=StartOfSession)="&A46&"", "Bar", "", "Close","5","0","PrimaryOnly",,,"False","T","EveryTick") -> 186.28 | AA46: 0.004204851752
A47: 46 | B47: 12:20:00 | C47: -31 | D47: =RTD("cqg.rtd",,"StudyData", $D$12, "Tick", "FlatTicks=0", "Tick","D",C47,"PrimaryOnly") -> 191.46 | H47: =RTD("cqg.rtd",,"StudyData", "Close("&$D$12&") when LocalYear("&$D$12&")="&$D$1&" and localMonth("&$D$12&") ="&$E$1&" and LocalDay("&$D$12&")="&$F$1&" and Barix("&$D$12&",reference:=StartOfSession)="&A47&"", "Bar", "", "Close","5","0","PrimaryOnly",,,"False","T","EveryTick") ->  | J47: =RTD("cqg.rtd",,"StudyData", "Close("&$D$12&") when LocalYear("&$D$12&")="&$D$2&" and localMonth("&$D$12&") ="&$E$2&" and LocalDay("&$D$12&")="&$F$2&" and Barix("&$D$12&",reference:=StartOfSession)="&A47&"", "Bar", "", "Close","5","0","PrimaryOnly",,,"False","T","EveryTick") -> 191.08 | K47: 0.01703214818 | L47: =RTD("cqg.rtd",,"StudyData", "Close("&$D$12&") when LocalYear("&$D$12&")="&$D$3&" and localMonth("&$D$12&") ="&$E$3&" and LocalDay("&$D$12&")="&$F$3&" and Barix("&$D$12&",reference:=StartOfSession)="&A47&"", "Bar", "", "Close","5","0","PrimaryOnly",,,"False","T","EveryTick") -> 188.44 | M47: -0.01003414762 | N47: =RTD("cqg.rtd",,"StudyData", "Close("&$D$12&") when LocalYear("&$D$12&")="&$D$4&" and localMonth("&$D$12&") ="&$E$4&" and LocalDay("&$D$12&")="&$F$4&" and Barix("&$D$12&",reference:=StartOfSession)="&A47&"", "Bar", "", "Close","5","0","PrimaryOnly",,,"False","T","EveryTick") -> 190.62 | O47: 0.0002098856123 | P47: =RTD("cqg.rtd",,"StudyData", "Close("&$D$12&") when LocalYear("&$D$12&")="&$D$5&" and localMonth("&$D$12&") ="&$E$5&" and LocalDay("&$D$12&")="&$F$5&" and Barix("&$D$12&",reference:=StartOfSession)="&A47&"", "Bar", "", "Close","5","0","PrimaryOnly",,,"False","T","EveryTick") -> 190.24 | Q47: 0.01207639517 | R47: =RTD("cqg.rtd",,"StudyData", "Close("&$D$12&") when LocalYear("&$D$12&")="&$D$6&" and localMonth("&$D$12&") ="&$E$6&" and LocalDay("&$D$12&")="&$F$6&" and Barix("&$D$12&",reference:=StartOfSession)="&A47&"", "Bar", "", "Close","5","0","PrimaryOnly",,,"False","T","EveryTick") -> 187.48 | S47: 0.01121898598 | T47: =RTD("cqg.rtd",,"StudyData", "Close("&$D$12&") when LocalYear("&$D$12&")="&$D$7&" and localMonth("&$D$12&") ="&$E$7&" and LocalDay("&$D$12&")="&$F$7&" and Barix("&$D$12&",reference:=StartOfSession)="&A47&"", "Bar", "", "Close","5","0","PrimaryOnly",,,"False","T","EveryTick") -> 185.74 | U47: 0.009895606786 | V47: =RTD("cqg.rtd",,"StudyData", "Close("&$D$12&") when LocalYear("&$D$12&")="&$D$8&" and localMonth("&$D$12&") ="&$E$8&" and LocalDay("&$D$12&")="&$F$8&" and Barix("&$D$12&",reference:=StartOfSession)="&A47&"", "Bar", "", "Close","5","0","PrimaryOnly",,,"False","T","EveryTick") ->  | X47: =RTD("cqg.rtd",,"StudyData", "Close("&$D$12&") when LocalYear("&$D$12&")="&$D$9&" and localMonth("&$D$12&") ="&$E$9&" and LocalDay("&$D$12&")="&$F$9&" and Barix("&$D$12&",reference:=StartOfSession)="&A47&"", "Bar", "", "Close","5","0","PrimaryOnly",,,"False","T","EveryTick") -> 185.44 | Y47: 0.001782723786 | Z47: =RTD("cqg.rtd",,"StudyData", "Close("&$D$12&") when LocalYear("&$D$12&")="&$D$10&" and localMonth("&$D$12&") ="&$E$10&" and LocalDay("&$D$12&")="&$F$10&" and Barix("&$D$12&",reference:=StartOfSession)="&A47&"", "Bar", "", "Close","5","0","PrimaryOnly",,,"False","T","EveryTick") -> 186.21 | AA47: 0.003827493261
A48: 47 | B48: 12:25:00 | C48: -30 | D48: =RTD("cqg.rtd",,"StudyData", $D$12, "Tick", "FlatTicks=0", "Tick","D",C48,"PrimaryOnly") -> 191.45 | H48: =RTD("cqg.rtd",,"StudyData", "Close("&$D$12&") when LocalYear("&$D$12&")="&$D$1&" and localMonth("&$D$12&") ="&$E$1&" and LocalDay("&$D$12&")="&$F$1&" and Barix("&$D$12&",reference:=StartOfSession)="&A48&"", "Bar", "", "Close","5","0","PrimaryOnly",,,"False","T","EveryTick") ->  | J48: =RTD("cqg.rtd",,"StudyData", "Close("&$D$12&") when LocalYear("&$D$12&")="&$D$2&" and localMonth("&$D$12&") ="&$E$2&" and LocalDay("&$D$12&")="&$F$2&" and Barix("&$D$12&",reference:=StartOfSession)="&A48&"", "Bar", "", "Close","5","0","PrimaryOnly",,,"False","T","EveryTick") -> 191.13 | K48: 0.01729827549 | L48: =RTD("cqg.rtd",,"StudyData", "Close("&$D$12&") when LocalYear("&$D$12&")="&$D$3&" and localMonth("&$D$12&") ="&$E$3&" and LocalDay("&$D$12&")="&$F$3&" and Barix("&$D$12&",reference:=StartOfSession)="&A48&"", "Bar", "", "Close","5","0","PrimaryOnly",,,"False","T","EveryTick") -> 188.42 | M48: -0.01013921723 | N48: =RTD("cqg.rtd",,"StudyData", "Close("&$D$12&") when LocalYear("&$D$12&")="&$D$4&" and localMonth("&$D$12&") ="&$E$4&" and LocalDay("&$D$12&")="&$F$4&" and Barix("&$D$12&",reference:=StartOfSession)="&A48&"", "Bar", "", "Close","5","0","PrimaryOnly",,,"False","T","EveryTick") -> 190.64 | O48: 0.0003148284185 | P48: =RTD("cqg.rtd",,"StudyData", "Close("&$D$12&") when LocalYear("&$D$12&")="&$D$5&" and localMonth("&$D$12&") ="&$E$5&" and LocalDay("&$D$12&")="&$F$5&" and Barix("&$D$12&",reference:=StartOfSession)="&A48&"", "Bar", "", "Close","5","0","PrimaryOnly",,,"False","T","EveryTick") -> 190.22 | Q48: 0.01196999521 | R48: =RTD("cqg.rtd",,"StudyData", "Close("&$D$12&") when LocalYear("&$D$12&")="&$D$6&" and localMonth("&$D$12&") ="&$E$6&" and LocalDay("&$D$12&")="&$F$6&" and Barix("&$D$12&",reference:=StartOfSession)="&A48&"", "Bar", "", "Close","5","0","PrimaryOnly",,,"False","T","EveryTick") -> 187.48 | S48: 0.01121898598 | T48: =RTD("cqg.rtd",,"StudyData", "Close("&$D$12&") when LocalYear("&$D$12&")="&$D$7&" and localMonth("&$D$12&") ="&$E$7&" and LocalDay("&$D$12&")="&$F$7&" and Barix("&$D$12&",reference:=StartOfSession)="&A48&"", "Bar", "", "Close","5","0","PrimaryOnly",,,"False","T","EveryTick") -> 185.71 | U48: 0.009732492388 | V48: =RTD("cqg.rtd",,"StudyData", "Close("&$D$12&") when LocalYear("&$D$12&")="&$D$8&" and localMonth("&$D$12&") ="&$E$8&" and LocalDay("&$D$12&")="&$F$8&" and Barix("&$D$12&",reference:=StartOfSession)="&A48&"", "Bar", "", "Close","5","0","PrimaryOnly",,,"False","T","EveryTick") ->  | X48: =RTD("cqg.rtd",,"StudyData", "Close("&$D$12&") when LocalYear("&$D$12&")="&$D$9&" and localMonth("&$D$12&") ="&$E$9&" and LocalDay("&$D$12&")="&$F$9&" and Barix("&$D$12&",reference:=StartOfSession)="&A48&"", "Bar", "", "Close","5","0","PrimaryOnly",,,"False","T","EveryTick") -> 185.44 | Y48: 0.001782723786 | Z48: =RTD("cqg.rtd",,"StudyData", "Close("&$D$12&") when LocalYear("&$D$12&")="&$D$10&" and localMonth("&$D$12&") ="&$E$10&" and LocalDay("&$D$12&")="&$F$10&" and Barix("&$D$12&",reference:=StartOfSession)="&A48&"", "Bar", "", "Close","5","0","PrimaryOnly",,,"False","T","EveryTick") -> 186.18 | AA48: 0.003665768194
A49: 48 | B49: 12:30:00 | C49: -29 | D49: =RTD("cqg.rtd",,"StudyData", $D$12, "Tick", "FlatTicks=0", "Tick","D",C49,"PrimaryOnly") -> 191.46 | H49: =RTD("cqg.rtd",,"StudyData", "Close("&$D$12&") when LocalYear("&$D$12&")="&$D$1&" and localMonth("&$D$12&") ="&$E$1&" and LocalDay("&$D$12&")="&$F$1&" and Barix("&$D$12&",reference:=StartOfSession)="&A49&"", "Bar", "", "Close","5","0","PrimaryOnly",,,"False","T","EveryTick") ->  | J49: =RTD("cqg.rtd",,"StudyData", "Close("&$D$12&") when LocalYear("&$D$12&")="&$D$2&" and localMonth("&$D$12&") ="&$E$2&" and LocalDay("&$D$12&")="&$F$2&" and Barix("&$D$12&",reference:=StartOfSession)="&A49&"", "Bar", "", "Close","5","0","PrimaryOnly",,,"False","T","EveryTick") -> 190.89 | K49: 0.01602086438 | L49: =RTD("cqg.rtd",,"StudyData", "Close("&$D$12&") when LocalYear("&$D$12&")="&$D$3&" and localMonth("&$D$12&") ="&$E$3&" and LocalDay("&$D$12&")="&$F$3&" and Barix("&$D$12&",reference:=StartOfSession)="&A49&"", "Bar", "", "Close","5","0","PrimaryOnly",,,"False","T","EveryTick") -> 188.41 | M49: -0.01019175204 | N49: =RTD("cqg.rtd",,"StudyData", "Close("&$D$12&") when LocalYear("&$D$12&")="&$D$4&" and localMonth("&$D$12&") ="&$E$4&" and LocalDay("&$D$12&")="&$F$4&" and Barix("&$D$12&",reference:=StartOfSession)="&A49&"", "Bar", "", "Close","5","0","PrimaryOnly",,,"False","T","EveryTick") -> 190.53 | O49: -0.0002623570154 | P49: =RTD("cqg.rtd",,"StudyData", "Close("&$D$12&") when LocalYear("&$D$12&")="&$D$5&" and localMonth("&$D$12&") ="&$E$5&" and LocalDay("&$D$12&")="&$F$5&" and Barix("&$D$12&",reference:=StartOfSession)="&A49&"", "Bar", "", "Close","5","0","PrimaryOnly",,,"False","T","EveryTick") -> 190.25 | Q49: 0.01212959515 | R49: =RTD("cqg.rtd",,"StudyData", "Close("&$D$12&") when LocalYear("&$D$12&")="&$D$6&" and localMonth("&$D$12&") ="&$E$6&" and LocalDay("&$D$12&")="&$F$6&" and Barix("&$D$12&",reference:=StartOfSession)="&A49&"", "Bar", "", "Close","5","0","PrimaryOnly",,,"False","T","EveryTick") -> 187.5 | S49: 0.01132686084 | T49: =RTD("cqg.rtd",,"StudyData", "Close("&$D$12&") when LocalYear("&$D$12&")="&$D$7&" and localMonth("&$D$12&") ="&$E$7&" and LocalDay("&$D$12&")="&$F$7&" and Barix("&$D$12&",reference:=StartOfSession)="&A49&"", "Bar", "", "Close","5","0","PrimaryOnly",,,"False","T","EveryTick") -> 185.61 | U49: 0.009188777729 | V49: =RTD("cqg.rtd",,"StudyData", "Close("&$D$12&") when LocalYear("&$D$12&")="&$D$8&" and localMonth("&$D$12&") ="&$E$8&" and LocalDay("&$D$12&")="&$F$8&" and Barix("&$D$12&",reference:=StartOfSession)="&A49&"", "Bar", "", "Close","5","0","PrimaryOnly",,,"False","T","EveryTick") ->  | X49: =RTD("cqg.rtd",,"StudyData", "Close("&$D$12&") when LocalYear("&$D$12&")="&$D$9&" and localMonth("&$D$12&") ="&$E$9&" and LocalDay("&$D$12&")="&$F$9&" and Barix("&$D$12&",reference:=StartOfSession)="&A49&"", "Bar", "", "Close","5","0","PrimaryOnly",,,"False","T","EveryTick") -> 185.48 | Y49: 0.001998811517 | Z49: =RTD("cqg.rtd",,"StudyData", "Close("&$D$12&") when LocalYear("&$D$12&")="&$D$10&" and localMonth("&$D$12&") ="&$E$10&" and LocalDay("&$D$12&")="&$F$10&" and Barix("&$D$12&",reference:=StartOfSession)="&A49&"", "Bar", "", "Close","5","0","PrimaryOnly",,,"False","T","EveryTick") -> 186.09 | AA49: 0.003180592992
A50: 49 | B50: 12:35:00 | C50: -28 | D50: =RTD("cqg.rtd",,"StudyData", $D$12, "Tick", "FlatTicks=0", "Tick","D",C50,"PrimaryOnly") -> 191.48 | H50: =RTD("cqg.rtd",,"StudyData", "Close("&$D$12&") when LocalYear("&$D$12&")="&$D$1&" and localMonth("&$D$12&") ="&$E$1&" and LocalDay("&$D$12&")="&$F$1&" and Barix("&$D$12&",reference:=StartOfSession)="&A50&"", "Bar", "", "Close","5","0","PrimaryOnly",,,"False","T","EveryTick") ->  | J50: =RTD("cqg.rtd",,"StudyData", "Close("&$D$12&") when LocalYear("&$D$12&")="&$D$2&" and localMonth("&$D$12&") ="&$E$2&" and LocalDay("&$D$12&")="&$F$2&" and Barix("&$D$12&",reference:=StartOfSession)="&A50&"", "Bar", "", "Close","5","0","PrimaryOnly",,,"False","T","EveryTick") -> 191.02 | K50: 0.0167127954 | L50: =RTD("cqg.rtd",,"StudyData", "Close("&$D$12&") when LocalYear("&$D$12&")="&$D$3&" and localMonth("&$D$12&") ="&$E$3&" and LocalDay("&$D$12&")="&$F$3&" and Barix("&$D$12&",reference:=StartOfSession)="&A50&"", "Bar", "", "Close","5","0","PrimaryOnly",,,"False","T","EveryTick") -> 188.3 | M50: -0.01076963488 | N50: =RTD("cqg.rtd",,"StudyData", "Close("&$D$12&") when LocalYear("&$D$12&")="&$D$4&" and localMonth("&$D$12&") ="&$E$4&" and LocalDay("&$D$12&")="&$F$4&" and Barix("&$D$12&",reference:=StartOfSession)="&A50&"", "Bar", "", "Close","5","0","PrimaryOnly",,,"False","T","EveryTick") -> 190.46 | O50: -0.000629656837 | P50: =RTD("cqg.rtd",,"StudyData", "Close("&$D$12&") when LocalYear("&$D$12&")="&$D$5&" and localMonth("&$D$12&") ="&$E$5&" and LocalDay("&$D$12&")="&$F$5&" and Barix("&$D$12&",reference:=StartOfSession)="&A50&"", "Bar", "", "Close","5","0","PrimaryOnly",,,"False","T","EveryTick") -> 190.18 | Q50: 0.0117571953 | R50: =RTD("cqg.rtd",,"StudyData", "Close("&$D$12&") when LocalYear("&$D$12&")="&$D$6&" and localMonth("&$D$12&") ="&$E$6&" and LocalDay("&$D$12&")="&$F$6&" and Barix("&$D$12&",reference:=StartOfSession)="&A50&"", "Bar", "", "Close","5","0","PrimaryOnly",,,"False","T","EveryTick") -> 187.5 | S50: 0.01132686084 | T50: =RTD("cqg.rtd",,"StudyData", "Close("&$D$12&") when LocalYear("&$D$12&")="&$D$7&" and localMonth("&$D$12&") ="&$E$7&" and LocalDay("&$D$12&")="&$F$7&" and Barix("&$D$12&",reference:=StartOfSession)="&A50&"", "Bar", "", "Close","5","0","PrimaryOnly",,,"False","T","EveryTick") -> 185.56 | U50: 0.0089169204 | V50: =RTD("cqg.rtd",,"StudyData", "Close("&$D$12&") when LocalYear("&$D$12&")="&$D$8&" and localMonth("&$D$12&") ="&$E$8&" and LocalDay("&$D$12&")="&$F$8&" and Barix("&$D$12&",reference:=StartOfSession)="&A50&"", "Bar", "", "Close","5","0","PrimaryOnly",,,"False","T","EveryTick") ->  | X50: =RTD("cqg.rtd",,"StudyData", "Close("&$D$12&") when LocalYear("&$D$12&")="&$D$9&" and localMonth("&$D$12&") ="&$E$9&" and LocalDay("&$D$12&")="&$F$9&" and Barix("&$D$12&",reference:=StartOfSession)="&A50&"", "Bar", "", "Close","5","0","PrimaryOnly",,,"False","T","EveryTick") -> 185.69 | Y50: 0.003133272108 | Z50: =RTD("cqg.rtd",,"StudyData", "Close("&$D$12&") when LocalYear("&$D$12&")="&$D$10&" and localMonth("&$D$12&") ="&$E$10&" and LocalDay("&$D$12&")="&$F$10&" and Barix("&$D$12&",reference:=StartOfSession)="&A50&"", "Bar", "", "Close","5","0","PrimaryOnly",,,"False","T","EveryTick") -> 186.18 | AA50: 0.003665768194
A51: 50 | B51: 12:40:00 | C51: -27 | D51: =RTD("cqg.rtd",,"StudyData", $D$12, "Tick", "FlatTicks=0", "Tick","D",C51,"PrimaryOnly") -> 191.49 | H51: =RTD("cqg.rtd",,"StudyData", "Close("&$D$12&") when LocalYear("&$D$12&")="&$D$1&" and localMonth("&$D$12&") ="&$E$1&" and LocalDay("&$D$12&")="&$F$1&" and Barix("&$D$12&",reference:=StartOfSession)="&A51&"", "Bar", "", "Close","5","0","PrimaryOnly",,,"False","T","EveryTick") ->  | J51: =RTD("cqg.rtd",,"StudyData", "Close("&$D$12&") when LocalYear("&$D$12&")="&$D$2&" and localMonth("&$D$12&") ="&$E$2&" and LocalDay("&$D$12&")="&$F$2&" and Barix("&$D$12&",reference:=StartOfSession)="&A51&"", "Bar", "", "Close","5","0","PrimaryOnly",,,"False","T","EveryTick") -> 191.02 | K51: 0.0167127954 | L51: =RTD("cqg.rtd",,"StudyData", "Close("&$D$12&") when LocalYear("&$D$12&")="&$D$3&" and localMonth("&$D$12&") ="&$E$3&" and LocalDay("&$D$12&")="&$F$3&" and Barix("&$D$12&",reference:=StartOfSession)="&A51&"", "Bar", "", "Close","5","0","PrimaryOnly",,,"False","T","EveryTick") -> 188.34 | M51: -0.01055949567 | N51: =RTD("cqg.rtd",,"StudyData", "Close("&$D$12&") when LocalYear("&$D$12&")="&$D$4&" and localMonth("&$D$12&") ="&$E$4&" and LocalDay("&$D$12&")="&$F$4&" and Barix("&$D$12&",reference:=StartOfSession)="&A51&"", "Bar", "", "Close","5","0","PrimaryOnly",,,"False","T","EveryTick") -> 190.56 | O51: -0.0001049428062 | P51: =RTD("cqg.rtd",,"StudyData", "Close("&$D$12&") when LocalYear("&$D$12&")="&$D$5&" and localMonth("&$D$12&") ="&$E$5&" and LocalDay("&$D$12&")="&$F$5&" and Barix("&$D$12&",reference:=StartOfSession)="&A51&"", "Bar", "", "Close","5","0","PrimaryOnly",,,"False","T","EveryTick") -> 190.03 | Q51: 0.01095919562 | R51: =RTD("cqg.rtd",,"StudyData", "Close("&$D$12&") when LocalYear("&$D$12&")="&$D$6&" and localMonth("&$D$12&") ="&$E$6&" and LocalDay("&$D$12&")="&$F$6&" and Barix("&$D$12&",reference:=StartOfSession)="&A51&"", "Bar", "", "Close","5","0","PrimaryOnly",,,"False","T","EveryTick") -> 187.48 | S51: 0.01121898598 | T51: =RTD("cqg.rtd",,"StudyData", "Close("&$D$12&") when LocalYear("&$D$12&")="&$D$7&" and localMonth("&$D$12&") ="&$E$7&" and LocalDay("&$D$12&")="&$F$7&" and Barix("&$D$12&",reference:=StartOfSession)="&A51&"", "Bar", "", "Close","5","0","PrimaryOnly",,,"False","T","EveryTick") -> 185.55 | U51: 0.008862548934 | V51: =RTD("cqg.rtd",,"StudyData", "Close("&$D$12&") when LocalYear("&$D$12&")="&$D$8&" and localMonth("&$D$12&") ="&$E$8&" and LocalDay("&$D$12&")="&$F$8&" and Barix("&$D$12&",reference:=StartOfSession)="&A51&"", "Bar", "", "Close","5","0","PrimaryOnly",,,"False","T","EveryTick") ->  | X51: =RTD("cqg.rtd",,"StudyData", "Close("&$D$12&") when LocalYear("&$D$12&")="&$D$9&" and localMonth("&$D$12&") ="&$E$9&" and LocalDay("&$D$12&")="&$F$9&" and Barix("&$D$12&",reference:=StartOfSession)="&A51&"", "Bar", "", "Close","5","0","PrimaryOnly",,,"False","T","EveryTick") -> 185.83 | Y51: 0.003889579169 | Z51: =RTD("cqg.rtd",,"StudyData", "Close("&$D$12&") when LocalYear("&$D$12&")="&$D$10&" and localMonth("&$D$12&") ="&$E$10&" and LocalDay("&$D$12&")="&$F$10&" and Barix("&$D$12&",reference:=StartOfSession)="&A51&"", "Bar", "", "Close","5","0","PrimaryOnly",,,"False","T","EveryTick") -> 186.27 | AA51: 0.004150943396
A52: 51 | B52: 12:45:00 | C52: -26 | D52: =RTD("cqg.rtd",,"StudyData", $D$12, "Tick", "FlatTicks=0", "Tick","D",C52,"PrimaryOnly") -> 191.48 | H52: =RTD("cqg.rtd",,"StudyData", "Close("&$D$12&") when LocalYear("&$D$12&")="&$D$1&" and localMonth("&$D$12&") ="&$E$1&" and LocalDay("&$D$12&")="&$F$1&" and Barix("&$D$12&",reference:=StartOfSession)="&A52&"", "Bar", "", "Close","5","0","PrimaryOnly",,,"False","T","EveryTick") ->  | J52: =RTD("cqg.rtd",,"StudyData", "Close("&$D$12&") when LocalYear("&$D$12&")="&$D$2&" and localMonth("&$D$12&") ="&$E$2&" and LocalDay("&$D$12&")="&$F$2&" and Barix("&$D$12&",reference:=StartOfSession)="&A52&"", "Bar", "", "Close","5","0","PrimaryOnly",,,"False","T","EveryTick") -> 190.92 | K52: 0.01618054077 | L52: =RTD("cqg.rtd",,"StudyData", "Close("&$D$12&") when LocalYear("&$D$12&")="&$D$3&" and localMonth("&$D$12&") ="&$E$3&" and LocalDay("&$D$12&")="&$F$3&" and Barix("&$D$12&",reference:=StartOfSession)="&A52&"", "Bar", "", "Close","5","0","PrimaryOnly",,,"False","T","EveryTick") -> 188.24 | M52: -0.01108484371 | N52: =RTD("cqg.rtd",,"StudyData", "Close("&$D$12&") when LocalYear("&$D$12&")="&$D$4&" and localMonth("&$D$12&") ="&$E$4&" and LocalDay("&$D$12&")="&$F$4&" and Barix("&$D$12&",reference:=StartOfSession)="&A52&"", "Bar", "", "Close","5","0","PrimaryOnly",,,"False","T","EveryTick") -> 190.35 | O52: -0.001206842271 | P52: =RTD("cqg.rtd",,"StudyData", "Close("&$D$12&") when LocalYear("&$D$12&")="&$D$5&" and localMonth("&$D$12&") ="&$E$5&" and LocalDay("&$D$12&")="&$F$5&" and Barix("&$D$12&",reference:=StartOfSession)="&A52&"", "Bar", "", "Close","5","0","PrimaryOnly",,,"False","T","EveryTick") -> 190.17 | Q52: 0.01170399532 | R52: =RTD("cqg.rtd",,"StudyData", "Close("&$D$12&") when LocalYear("&$D$12&")="&$D$6&" and localMonth("&$D$12&") ="&$E$6&" and LocalDay("&$D$12&")="&$F$6&" and Barix("&$D$12&",reference:=StartOfSession)="&A52&"", "Bar", "", "Close","5","0","PrimaryOnly",,,"False","T","EveryTick") -> 187.58 | S52: 0.0117583603 | T52: =RTD("cqg.rtd",,"StudyData", "Close("&$D$12&") when LocalYear("&$D$12&")="&$D$7&" and localMonth("&$D$12&") ="&$E$7&" and LocalDay("&$D$12&")="&$F$7&" and Barix("&$D$12&",reference:=StartOfSession)="&A52&"", "Bar", "", "Close","5","0","PrimaryOnly",,,"False","T","EveryTick") -> 185.57 | U52: 0.008971291866 | V52: =RTD("cqg.rtd",,"StudyData", "Close("&$D$12&") when LocalYear("&$D$12&")="&$D$8&" and localMonth("&$D$12&") ="&$E$8&" and LocalDay("&$D$12&")="&$F$8&" and Barix("&$D$12&",reference:=StartOfSession)="&A52&"", "Bar", "", "Close","5","0","PrimaryOnly",,,"False","T","EveryTick") ->  | X52: =RTD("cqg.rtd",,"StudyData", "Close("&$D$12&") when LocalYear("&$D$12&")="&$D$9&" and localMonth("&$D$12&") ="&$E$9&" and LocalDay("&$D$12&")="&$F$9&" and Barix("&$D$12&",reference:=StartOfSession)="&A52&"", "Bar", "", "Close","5","0","PrimaryOnly",,,"False","T","EveryTick") -> 186.24 | Y52: 0.006104478418 | Z52: =RTD("cqg.rtd",,"StudyData", "Close("&$D$12&") when LocalYear("&$D$12&")="&$D$10&" and localMonth("&$D$12&") ="&$E$10&" and LocalDay("&$D$12&")="&$F$10&" and Barix("&$D$12&",reference:=StartOfSession)="&A52&"", "Bar", "", "Close","5","0","PrimaryOnly",,,"False","T","EveryTick") -> 186.2 | AA52: 0.003773584906
A53: 52 | B53: 12:50:00 | C53: -25 | D53: =RTD("cqg.rtd",,"StudyData", $D$12, "Tick", "FlatTicks=0", "Tick","D",C53,"PrimaryOnly") -> 191.49 | H53: =RTD("cqg.rtd",,"StudyData", "Close("&$D$12&") when LocalYear("&$D$12&")="&$D$1&" and localMonth("&$D$12&") ="&$E$1&" and LocalDay("&$D$12&")="&$F$1&" and Barix("&$D$12&",reference:=StartOfSession)="&A53&"", "Bar", "", "Close","5","0","PrimaryOnly",,,"False","T","EveryTick") ->  | J53: =RTD("cqg.rtd",,"StudyData", "Close("&$D$12&") when LocalYear("&$D$12&")="&$D$2&" and localMonth("&$D$12&") ="&$E$2&" and LocalDay("&$D$12&")="&$F$2&" and Barix("&$D$12&",reference:=StartOfSession)="&A53&"", "Bar", "", "Close","5","0","PrimaryOnly",,,"False","T","EveryTick") -> 190.81 | K53: 0.01559506068 | L53: =RTD("cqg.rtd",,"StudyData", "Close("&$D$12&") when LocalYear("&$D$12&")="&$D$3&" and localMonth("&$D$12&") ="&$E$3&" and LocalDay("&$D$12&")="&$F$3&" and Barix("&$D$12&",reference:=StartOfSession)="&A53&"", "Bar", "", "Close","5","0","PrimaryOnly",,,"False","T","EveryTick") -> 188.15 | M53: -0.01155765695 | N53: =RTD("cqg.rtd",,"StudyData", "Close("&$D$12&") when LocalYear("&$D$12&")="&$D$4&" and localMonth("&$D$12&") ="&$E$4&" and LocalDay("&$D$12&")="&$F$4&" and Barix("&$D$12&",reference:=StartOfSession)="&A53&"", "Bar", "", "Close","5","0","PrimaryOnly",,,"False","T","EveryTick") -> 190.42 | O53: -0.0008395424494 | P53: =RTD("cqg.rtd",,"StudyData", "Close("&$D$12&") when LocalYear("&$D$12&")="&$D$5&" and localMonth("&$D$12&") ="&$E$5&" and LocalDay("&$D$12&")="&$F$5&" and Barix("&$D$12&",reference:=StartOfSession)="&A53&"", "Bar", "", "Close","5","0","PrimaryOnly",,,"False","T","EveryTick") -> 190.3 | Q53: 0.01239559504 | R53: =RTD("cqg.rtd",,"StudyData", "Close("&$D$12&") when LocalYear("&$D$12&")="&$D$6&" and localMonth("&$D$12&") ="&$E$6&" and LocalDay("&$D$12&")="&$F$6&" and Barix("&$D$12&",reference:=StartOfSession)="&A53&"", "Bar", "", "Close","5","0","PrimaryOnly",,,"False","T","EveryTick") -> 187.68 | S53: 0.01229773463 | T53: =RTD("cqg.rtd",,"StudyData", "Close("&$D$12&") when LocalYear("&$D$12&")="&$D$7&" and localMonth("&$D$12&") ="&$E$7&" and LocalDay("&$D$12&")="&$F$7&" and Barix("&$D$12&",reference:=StartOfSession)="&A53&"", "Bar", "", "Close","5","0","PrimaryOnly",,,"False","T","EveryTick") -> 185.45 | U53: 0.008318834276 | V53: =RTD("cqg.rtd",,"StudyData", "Close("&$D$12&") when LocalYear("&$D$12&")="&$D$8&" and localMonth("&$D$12&") ="&$E$8&" and LocalDay("&$D$12&")="&$F$8&" and Barix("&$D$12&",reference:=StartOfSession)="&A53&"", "Bar", "", "Close","5","0","PrimaryOnly",,,"False","T","EveryTick") ->  | X53: =RTD("cqg.rtd",,"StudyData", "Close("&$D$12&") when LocalYear("&$D$12&")="&$D$9&" and localMonth("&$D$12&") ="&$E$9&" and LocalDay("&$D$12&")="&$F$9&" and Barix("&$D$12&",reference:=StartOfSession)="&A53&"", "Bar", "", "Close","5","0","PrimaryOnly",,,"False","T","EveryTick") -> 186.38 | Y53: 0.006860785479 | Z53: =RTD("cqg.rtd",,"StudyData", "Close("&$D$12&") when LocalYear("&$D$12&")="&$D$10&" and localMonth("&$D$12&") ="&$E$10&" and LocalDay("&$D$12&")="&$F$10&" and Barix("&$D$12&",reference:=StartOfSession)="&A53&"", "Bar", "", "Close","5","0","PrimaryOnly",,,"False","T","EveryTick") -> 186.38 | AA53: 0.00474393531
A54: 53 | B54: 12:55:00 | C54: -24 | D54: =RTD("cqg.rtd",,"StudyData", $D$12, "Tick", "FlatTicks=0", "Tick","D",C54,"PrimaryOnly") -> 191.48 | H54: =RTD("cqg.rtd",,"StudyData", "Close("&$D$12&") when LocalYear("&$D$12&")="&$D$1&" and localMonth("&$D$12&") ="&$E$1&" and LocalDay("&$D$12&")="&$F$1&" and Barix("&$D$12&",reference:=StartOfSession)="&A54&"", "Bar", "", "Close","5","0","PrimaryOnly",,,"False","T","EveryTick") ->  | J54: =RTD("cqg.rtd",,"StudyData", "Close("&$D$12&") when LocalYear("&$D$12&")="&$D$2&" and localMonth("&$D$12&") ="&$E$2&" and LocalDay("&$D$12&")="&$F$2&" and Barix("&$D$12&",reference:=StartOfSession)="&A54&"", "Bar", "", "Close","5","0","PrimaryOnly",,,"False","T","EveryTick") -> 190.76 | K54: 0.01532893336 | L54: =RTD("cqg.rtd",,"StudyData", "Close("&$D$12&") when LocalYear("&$D$12&")="&$D$3&" and localMonth("&$D$12&") ="&$E$3&" and LocalDay("&$D$12&")="&$F$3&" and Barix("&$D$12&",reference:=StartOfSession)="&A54&"", "Bar", "", "Close","5","0","PrimaryOnly",,,"False","T","EveryTick") -> 188.14 | M54: -0.01161019175 | N54: =RTD("cqg.rtd",,"StudyData", "Close("&$D$12&") when LocalYear("&$D$12&")="&$D$4&" and localMonth("&$D$12&") ="&$E$4&" and LocalDay("&$D$12&")="&$F$4&" and Barix("&$D$12&",reference:=StartOfSession)="&A54&"", "Bar", "", "Close","5","0","PrimaryOnly",,,"False","T","EveryTick") -> 190.5 | O54: -0.0004197712247 | P54: =RTD("cqg.rtd",,"StudyData", "Close("&$D$12&") when LocalYear("&$D$12&")="&$D$5&" and localMonth("&$D$12&") ="&$E$5&" and LocalDay("&$D$12&")="&$F$5&" and Barix("&$D$12&",reference:=StartOfSession)="&A54&"", "Bar", "", "Close","5","0","PrimaryOnly",,,"False","T","EveryTick") -> 190.28 | Q54: 0.01228919508 | R54: =RTD("cqg.rtd",,"StudyData", "Close("&$D$12&") when LocalYear("&$D$12&")="&$D$6&" and localMonth("&$D$12&") ="&$E$6&" and LocalDay("&$D$12&")="&$F$6&" and Barix("&$D$12&",reference:=StartOfSession)="&A54&"", "Bar", "", "Close","5","0","PrimaryOnly",,,"False","T","EveryTick") -> 187.68 | S54: 0.01229773463 | T54: =RTD("cqg.rtd",,"StudyData", "Close("&$D$12&") when LocalYear("&$D$12&")="&$D$7&" and localMonth("&$D$12&") ="&$E$7&" and LocalDay("&$D$12&")="&$F$7&" and Barix("&$D$12&",reference:=StartOfSession)="&A54&"", "Bar", "", "Close","5","0","PrimaryOnly",,,"False","T","EveryTick") -> 185.56 | U54: 0.0089169204 | V54: =RTD("cqg.rtd",,"StudyData", "Close("&$D$12&") when LocalYear("&$D$12&")="&$D$8&" and localMonth("&$D$12&") ="&$E$8&" and LocalDay("&$D$12&")="&$F$8&" and Barix("&$D$12&",reference:=StartOfSession)="&A54&"", "Bar", "", "Close","5","0","PrimaryOnly",,,"False","T","EveryTick") ->  | X54: =RTD("cqg.rtd",,"StudyData", "Close("&$D$12&") when LocalYear("&$D$12&")="&$D$9&" and localMonth("&$D$12&") ="&$E$9&" and LocalDay("&$D$12&")="&$F$9&" and Barix("&$D$12&",reference:=StartOfSession)="&A54&"", "Bar", "", "Close","5","0","PrimaryOnly",,,"False","T","EveryTick") -> 186.42 | Y54: 0.007076873211 | Z54: =RTD("cqg.rtd",,"StudyData", "Close("&$D$12&") when LocalYear("&$D$12&")="&$D$10&" and localMonth("&$D$12&") ="&$E$10&" and LocalDay("&$D$12&")="&$F$10&" and Barix("&$D$12&",reference:=StartOfSession)="&A54&"", "Bar", "", "Close","5","0","PrimaryOnly",,,"False","T","EveryTick") -> 186.31 | AA54: 0.004366576819
A55: 54 | B55: 13:00:00 | C55: -23 | D55: =RTD("cqg.rtd",,"StudyData", $D$12, "Tick", "FlatTicks=0", "Tick","D",C55,"PrimaryOnly") -> 191.49 | H55: =RTD("cqg.rtd",,"StudyData", "Close("&$D$12&") when LocalYear("&$D$12&")="&$D$1&" and localMonth("&$D$12&") ="&$E$1&" and LocalDay("&$D$12&")="&$F$1&" and Barix("&$D$12&",reference:=StartOfSession)="&A55&"", "Bar", "", "Close","5","0","PrimaryOnly",,,"False","T","EveryTick") ->  | J55: =RTD("cqg.rtd",,"StudyData", "Close("&$D$12&") when LocalYear("&$D$12&")="&$D$2&" and localMonth("&$D$12&") ="&$E$2&" and LocalDay("&$D$12&")="&$F$2&" and Barix("&$D$12&",reference:=StartOfSession)="&A55&"", "Bar", "", "Close","5","0","PrimaryOnly",,,"False","T","EveryTick") -> 190.78 | K55: 0.01543538429 | L55: =RTD("cqg.rtd",,"StudyData", "Close("&$D$12&") when LocalYear("&$D$12&")="&$D$3&" and localMonth("&$D$12&") ="&$E$3&" and LocalDay("&$D$12&")="&$F$3&" and Barix("&$D$12&",reference:=StartOfSession)="&A55&"", "Bar", "", "Close","5","0","PrimaryOnly",,,"False","T","EveryTick") -> 188.19 | M55: -0.01134751773 | N55: =RTD("cqg.rtd",,"StudyData", "Close("&$D$12&") when LocalYear("&$D$12&")="&$D$4&" and localMonth("&$D$12&") ="&$E$4&" and LocalDay("&$D$12&")="&$F$4&" and Barix("&$D$12&",reference:=StartOfSession)="&A55&"", "Bar", "", "Close","5","0","PrimaryOnly",,,"False","T","EveryTick") -> 190.52 | O55: -0.0003148284185 | P55: =RTD("cqg.rtd",,"StudyData", "Close("&$D$12&") when LocalYear("&$D$12&")="&$D$5&" and localMonth("&$D$12&") ="&$E$5&" and LocalDay("&$D$12&")="&$F$5&" and Barix("&$D$12&",reference:=StartOfSession)="&A55&"", "Bar", "", "Close","5","0","PrimaryOnly",,,"False","T","EveryTick") -> 190.24 | Q55: 0.01207639517 | R55: =RTD("cqg.rtd",,"StudyData", "Close("&$D$12&") when LocalYear("&$D$12&")="&$D$6&" and localMonth("&$D$12&") ="&$E$6&" and LocalDay("&$D$12&")="&$F$6&" and Barix("&$D$12&",reference:=StartOfSession)="&A55&"", "Bar", "", "Close","5","0","PrimaryOnly",,,"False","T","EveryTick") -> 187.73 | S55: 0.01256742179 | T55: =RTD("cqg.rtd",,"StudyData", "Close("&$D$12&") when LocalYear("&$D$12&")="&$D$7&" and localMonth("&$D$12&") ="&$E$7&" and LocalDay("&$D$12&")="&$F$7&" and Barix("&$D$12&",reference:=StartOfSession)="&A55&"", "Bar", "", "Close","5","0","PrimaryOnly",,,"False","T","EveryTick") -> 185.3 | U55: 0.007503262288 | V55: =RTD("cqg.rtd",,"StudyData", "Close("&$D$12&") when LocalYear("&$D$12&")="&$D$8&" and localMonth("&$D$12&") ="&$E$8&" and LocalDay("&$D$12&")="&$F$8&" and Barix("&$D$12&",reference:=StartOfSession)="&A55&"", "Bar", "", "Close","5","0","PrimaryOnly",,,"False","T","EveryTick") ->  | X55: =RTD("cqg.rtd",,"StudyData", "Close("&$D$12&") when LocalYear("&$D$12&")="&$D$9&" and localMonth("&$D$12&") ="&$E$9&" and LocalDay("&$D$12&")="&$F$9&" and Barix("&$D$12&",reference:=StartOfSession)="&A55&"", "Bar", "", "Close","5","0","PrimaryOnly",,,"False","T","EveryTick") -> 186.7 | Y55: 0.008589487332 | Z55: =RTD("cqg.rtd",,"StudyData", "Close("&$D$12&") when LocalYear("&$D$12&")="&$D$10&" and localMonth("&$D$12&") ="&$E$10&" and LocalDay("&$D$12&")="&$F$10&" and Barix("&$D$12&",reference:=StartOfSession)="&A55&"", "Bar", "", "Close","5","0","PrimaryOnly",,,"False","T","EveryTick") -> 186.33 | AA55: 0.004474393531
A56: 55 | B56: 13:05:00 | C56: -22 | D56: =RTD("cqg.rtd",,"StudyData", $D$12, "Tick", "FlatTicks=0", "Tick","D",C56,"PrimaryOnly") -> 191.48 | H56: =RTD("cqg.rtd",,"StudyData", "Close("&$D$12&") when LocalYear("&$D$12&")="&$D$1&" and localMonth("&$D$12&") ="&$E$1&" and LocalDay("&$D$12&")="&$F$1&" and Barix("&$D$12&",reference:=StartOfSession)="&A56&"", "Bar", "", "Close","5","0","PrimaryOnly",,,"False","T","EveryTick") ->  | J56: =RTD("cqg.rtd",,"StudyData", "Close("&$D$12&") when LocalYear("&$D$12&")="&$D$2&" and localMonth("&$D$12&") ="&$E$2&" and LocalDay("&$D$12&")="&$F$2&" and Barix("&$D$12&",reference:=StartOfSession)="&A56&"", "Bar", "", "Close","5","0","PrimaryOnly",,,"False","T","EveryTick") -> 190.66 | K56: 0.01479667873 | L56: =RTD("cqg.rtd",,"StudyData", "Close("&$D$12&") when LocalYear("&$D$12&")="&$D$3&" and localMonth("&$D$12&") ="&$E$3&" and LocalDay("&$D$12&")="&$F$3&" and Barix("&$D$12&",reference:=StartOfSession)="&A56&"", "Bar", "", "Close","5","0","PrimaryOnly",,,"False","T","EveryTick") -> 188.14 | M56: -0.01161019175 | N56: =RTD("cqg.rtd",,"StudyData", "Close("&$D$12&") when LocalYear("&$D$12&")="&$D$4&" and localMonth("&$D$12&") ="&$E$4&" and LocalDay("&$D$12&")="&$F$4&" and Barix("&$D$12&",reference:=StartOfSession)="&A56&"", "Bar", "", "Close","5","0","PrimaryOnly",,,"False","T","EveryTick") -> 190.53 | O56: -0.0002623570154 | P56: =RTD("cqg.rtd",,"StudyData", "Close("&$D$12&") when LocalYear("&$D$12&")="&$D$5&" and localMonth("&$D$12&") ="&$E$5&" and LocalDay("&$D$12&")="&$F$5&" and Barix("&$D$12&",reference:=StartOfSession)="&A56&"", "Bar", "", "Close","5","0","PrimaryOnly",,,"False","T","EveryTick") -> 190.11 | Q56: 0.01138479545 | R56: =RTD("cqg.rtd",,"StudyData", "Close("&$D$12&") when LocalYear("&$D$12&")="&$D$6&" and localMonth("&$D$12&") ="&$E$6&" and LocalDay("&$D$12&")="&$F$6&" and Barix("&$D$12&",reference:=StartOfSession)="&A56&"", "Bar", "", "Close","5","0","PrimaryOnly",,,"False","T","EveryTick") -> 187.67 | S56: 0.0122437972 | T56: =RTD("cqg.rtd",,"StudyData", "Close("&$D$12&") when LocalYear("&$D$12&")="&$D$7&" and localMonth("&$D$12&") ="&$E$7&" and LocalDay("&$D$12&")="&$F$7&" and Barix("&$D$12&",reference:=StartOfSession)="&A56&"", "Bar", "", "Close","5","0","PrimaryOnly",,,"False","T","EveryTick") -> 185.28 | U56: 0.007394519356 | V56: =RTD("cqg.rtd",,"StudyData", "Close("&$D$12&") when LocalYear("&$D$12&")="&$D$8&" and localMonth("&$D$12&") ="&$E$8&" and LocalDay("&$D$12&")="&$F$8&" and Barix("&$D$12&",reference:=StartOfSession)="&A56&"", "Bar", "", "Close","5","0","PrimaryOnly",,,"False","T","EveryTick") ->  | X56: =RTD("cqg.rtd",,"StudyData", "Close("&$D$12&") when LocalYear("&$D$12&")="&$D$9&" and localMonth("&$D$12&") ="&$E$9&" and LocalDay("&$D$12&")="&$F$9&" and Barix("&$D$12&",reference:=StartOfSession)="&A56&"", "Bar", "", "Close","5","0","PrimaryOnly",,,"False","T","EveryTick") -> 186.69 | Y56: 0.008535465399 | Z56: =RTD("cqg.rtd",,"StudyData", "Close("&$D$12&") when LocalYear("&$D$12&")="&$D$10&" and localMonth("&$D$12&") ="&$E$10&" and LocalDay("&$D$12&")="&$F$10&" and Barix("&$D$12&",reference:=StartOfSession)="&A56&"", "Bar", "", "Close","5","0","PrimaryOnly",,,"False","T","EveryTick") -> 186.25 | AA56: 0.004043126685
A57: 56 | B57: 13:10:00 | C57: -21 | D57: =RTD("cqg.rtd",,"StudyData", $D$12, "Tick", "FlatTicks=0", "Tick","D",C57,"PrimaryOnly") -> 191.49 | H57: =RTD("cqg.rtd",,"StudyData", "Close("&$D$12&") when LocalYear("&$D$12&")="&$D$1&" and localMonth("&$D$12&") ="&$E$1&" and LocalDay("&$D$12&")="&$F$1&" and Barix("&$D$12&",reference:=StartOfSession)="&A57&"", "Bar", "", "Close","5","0","PrimaryOnly",,,"False","T","EveryTick") ->  | J57: =RTD("cqg.rtd",,"StudyData", "Close("&$D$12&") when LocalYear("&$D$12&")="&$D$2&" and localMonth("&$D$12&") ="&$E$2&" and LocalDay("&$D$12&")="&$F$2&" and Barix("&$D$12&",reference:=StartOfSession)="&A57&"", "Bar", "", "Close","5","0","PrimaryOnly",,,"False","T","EveryTick") -> 190.79 | K57: 0.01548860975 | L57: =RTD("cqg.rtd",,"StudyData", "Close("&$D$12&") when LocalYear("&$D$12&")="&$D$3&" and localMonth("&$D$12&") ="&$E$3&" and LocalDay("&$D$12&")="&$F$3&" and Barix("&$D$12&",reference:=StartOfSession)="&A57&"", "Bar", "", "Close","5","0","PrimaryOnly",,,"False","T","EveryTick") -> 187.87 | M57: -0.01302863147 | N57: =RTD("cqg.rtd",,"StudyData", "Close("&$D$12&") when LocalYear("&$D$12&")="&$D$4&" and localMonth("&$D$12&") ="&$E$4&" and LocalDay("&$D$12&")="&$F$4&" and Barix("&$D$12&",reference:=StartOfSession)="&A57&"", "Bar", "", "Close","5","0","PrimaryOnly",,,"False","T","EveryTick") -> 190.52 | O57: -0.0003148284185 | P57: =RTD("cqg.rtd",,"StudyData", "Close("&$D$12&") when LocalYear("&$D$12&")="&$D$5&" and localMonth("&$D$12&") ="&$E$5&" and LocalDay("&$D$12&")="&$F$5&" and Barix("&$D$12&",reference:=StartOfSession)="&A57&"", "Bar", "", "Close","5","0","PrimaryOnly",,,"False","T","EveryTick") -> 190.17 | Q57: 0.01170399532 | R57: =RTD("cqg.rtd",,"StudyData", "Close("&$D$12&") when LocalYear("&$D$12&")="&$D$6&" and localMonth("&$D$12&") ="&$E$6&" and LocalDay("&$D$12&")="&$F$6&" and Barix("&$D$12&",reference:=StartOfSession)="&A57&"", "Bar", "", "Close","5","0","PrimaryOnly",,,"False","T","EveryTick") -> 187.63 | S57: 0.01202804746 | T57: =RTD("cqg.rtd",,"StudyData", "Close("&$D$12&") when LocalYear("&$D$12&")="&$D$7&" and localMonth("&$D$12&") ="&$E$7&" and LocalDay("&$D$12&")="&$F$7&" and Barix("&$D$12&",reference:=StartOfSession)="&A57&"", "Bar", "", "Close","5","0","PrimaryOnly",,,"False","T","EveryTick") -> 185.08 | U57: 0.006307090039 | V57: =RTD("cqg.rtd",,"StudyData", "Close("&$D$12&") when LocalYear("&$D$12&")="&$D$8&" and localMonth("&$D$12&") ="&$E$8&" and LocalDay("&$D$12&")="&$F$8&" and Barix("&$D$12&",reference:=StartOfSession)="&A57&"", "Bar", "", "Close","5","0","PrimaryOnly",,,"False","T","EveryTick") ->  | X57: =RTD("cqg.rtd",,"StudyData", "Close("&$D$12&") when LocalYear("&$D$12&")="&$D$9&" and localMonth("&$D$12&") ="&$E$9&" and LocalDay("&$D$12&")="&$F$9&" and Barix("&$D$12&",reference:=StartOfSession)="&A57&"", "Bar", "", "Close","5","0","PrimaryOnly",,,"False","T","EveryTick") -> 186.69 | Y57: 0.008535465399 | Z57: =RTD("cqg.rtd",,"StudyData", "Close("&$D$12&") when LocalYear("&$D$12&")="&$D$10&" and localMonth("&$D$12&") ="&$E$10&" and LocalDay("&$D$12&")="&$F$10&" and Barix("&$D$12&",reference:=StartOfSession)="&A57&"", "Bar", "", "Close","5","0","PrimaryOnly",,,"False","T","EveryTick") -> 186.23 | AA57: 0.003935309973
A58: 57 | B58: 13:15:00 | C58: -20 | D58: =RTD("cqg.rtd",,"StudyData", $D$12, "Tick", "FlatTicks=0", "Tick","D",C58,"PrimaryOnly") -> 191.48 | H58: =RTD("cqg.rtd",,"StudyData", "Close("&$D$12&") when LocalYear("&$D$12&")="&$D$1&" and localMonth("&$D$12&") ="&$E$1&" and LocalDay("&$D$12&")="&$F$1&" and Barix("&$D$12&",reference:=StartOfSession)="&A58&"", "Bar", "", "Close","5","0","PrimaryOnly",,,"False","T","EveryTick") ->  | J58: =RTD("cqg.rtd",,"StudyData", "Close("&$D$12&") when LocalYear("&$D$12&")="&$D$2&" and localMonth("&$D$12&") ="&$E$2&" and LocalDay("&$D$12&")="&$F$2&" and Barix("&$D$12&",reference:=StartOfSession)="&A58&"", "Bar", "", "Close","5","0","PrimaryOnly",,,"False","T","EveryTick") -> 190.93 | K58: 0.01623376623 | L58: =RTD("cqg.rtd",,"StudyData", "Close("&$D$12&") when LocalYear("&$D$12&")="&$D$3&" and localMonth("&$D$12&") ="&$E$3&" and LocalDay("&$D$12&")="&$F$3&" and Barix("&$D$12&",reference:=StartOfSession)="&A58&"", "Bar", "", "Close","5","0","PrimaryOnly",,,"False","T","EveryTick") -> 188 | M58: -0.01234567901 | N58: =RTD("cqg.rtd",,"StudyData", "Close("&$D$12&") when LocalYear("&$D$12&")="&$D$4&" and localMonth("&$D$12&") ="&$E$4&" and LocalDay("&$D$12&")="&$F$4&" and Barix("&$D$12&",reference:=StartOfSession)="&A58&"", "Bar", "", "Close","5","0","PrimaryOnly",,,"False","T","EveryTick") -> 190.38 | O58: -0.001049428062 | P58: =RTD("cqg.rtd",,"StudyData", "Close("&$D$12&") when LocalYear("&$D$12&")="&$D$5&" and localMonth("&$D$12&") ="&$E$5&" and LocalDay("&$D$12&")="&$F$5&" and Barix("&$D$12&",reference:=StartOfSession)="&A58&"", "Bar", "", "Close","5","0","PrimaryOnly",,,"False","T","EveryTick") -> 190.28 | Q58: 0.01228919508 | R58: =RTD("cqg.rtd",,"StudyData", "Close("&$D$12&") when LocalYear("&$D$12&")="&$D$6&" and localMonth("&$D$12&") ="&$E$6&" and LocalDay("&$D$12&")="&$F$6&" and Barix("&$D$12&",reference:=StartOfSession)="&A58&"", "Bar", "", "Close","5","0","PrimaryOnly",,,"False","T","EveryTick") -> 187.61 | S58: 0.0119201726 | T58: =RTD("cqg.rtd",,"StudyData", "Close("&$D$12&") when LocalYear("&$D$12&")="&$D$7&" and localMonth("&$D$12&") ="&$E$7&" and LocalDay("&$D$12&")="&$F$7&" and Barix("&$D$12&",reference:=StartOfSession)="&A58&"", "Bar", "", "Close","5","0","PrimaryOnly",,,"False","T","EveryTick") -> 185.37 | U58: 0.007883862549 | V58: =RTD("cqg.rtd",,"StudyData", "Close("&$D$12&") when LocalYear("&$D$12&")="&$D$8&" and localMonth("&$D$12&") ="&$E$8&" and LocalDay("&$D$12&")="&$F$8&" and Barix("&$D$12&",reference:=StartOfSession)="&A58&"", "Bar", "", "Close","5","0","PrimaryOnly",,,"False","T","EveryTick") ->  | X58: =RTD("cqg.rtd",,"StudyData", "Close("&$D$12&") when LocalYear("&$D$12&")="&$D$9&" and localMonth("&$D$12&") ="&$E$9&" and LocalDay("&$D$12&")="&$F$9&" and Barix("&$D$12&",reference:=StartOfSession)="&A58&"", "Bar", "", "Close","5","0","PrimaryOnly",,,"False","T","EveryTick") -> 186.85 | Y58: 0.009399816325 | Z58: =RTD("cqg.rtd",,"StudyData", "Close("&$D$12&") when LocalYear("&$D$12&")="&$D$10&" and localMonth("&$D$12&") ="&$E$10&" and LocalDay("&$D$12&")="&$F$10&" and Barix("&$D$12&",reference:=StartOfSession)="&A58&"", "Bar", "", "Close","5","0","PrimaryOnly",,,"False","T","EveryTick") -> 186.17 | AA58: 0.003611859838
A59: 58 | B59: 13:20:00 | C59: =C58+1 -> -19 | D59: =RTD("cqg.rtd",,"StudyData", $D$12, "Tick", "FlatTicks=0", "Tick","D",C59,"PrimaryOnly") -> 191.49 | H59: =RTD("cqg.rtd",,"StudyData", "Close("&$D$12&") when LocalYear("&$D$12&")="&$D$1&" and localMonth("&$D$12&") ="&$E$1&" and LocalDay("&$D$12&")="&$F$1&" and Barix("&$D$12&",reference:=StartOfSession)="&A59&"", "Bar", "", "Close","5","0","PrimaryOnly",,,"False","T","EveryTick") ->  | J59: =RTD("cqg.rtd",,"StudyData", "Close("&$D$12&") when LocalYear("&$D$12&")="&$D$2&" and localMonth("&$D$12&") ="&$E$2&" and LocalDay("&$D$12&")="&$F$2&" and Barix("&$D$12&",reference:=StartOfSession)="&A59&"", "Bar", "", "Close","5","0","PrimaryOnly",,,"False","T","EveryTick") -> 190.96 | K59: 0.01639344262 | L59: =RTD("cqg.rtd",,"StudyData", "Close("&$D$12&") when LocalYear("&$D$12&")="&$D$3&" and localMonth("&$D$12&") ="&$E$3&" and LocalDay("&$D$12&")="&$F$3&" and Barix("&$D$12&",reference:=StartOfSession)="&A59&"", "Bar", "", "Close","5","0","PrimaryOnly",,,"False","T","EveryTick") -> 188.17 | M59: -0.01145258734 | N59: =RTD("cqg.rtd",,"StudyData", "Close("&$D$12&") when LocalYear("&$D$12&")="&$D$4&" and localMonth("&$D$12&") ="&$E$4&" and LocalDay("&$D$12&")="&$F$4&" and Barix("&$D$12&",reference:=StartOfSession)="&A59&"", "Bar", "", "Close","5","0","PrimaryOnly",,,"False","T","EveryTick") -> 190.4 | O59: -0.0009444852555 | P59: =RTD("cqg.rtd",,"StudyData", "Close("&$D$12&") when LocalYear("&$D$12&")="&$D$5&" and localMonth("&$D$12&") ="&$E$5&" and LocalDay("&$D$12&")="&$F$5&" and Barix("&$D$12&",reference:=StartOfSession)="&A59&"", "Bar", "", "Close","5","0","PrimaryOnly",,,"False","T","EveryTick") -> 190.18 | Q59: 0.0117571953 | R59: =RTD("cqg.rtd",,"StudyData", "Close("&$D$12&") when LocalYear("&$D$12&")="&$D$6&" and localMonth("&$D$12&") ="&$E$6&" and LocalDay("&$D$12&")="&$F$6&" and Barix("&$D$12&",reference:=StartOfSession)="&A59&"", "Bar", "", "Close","5","0","PrimaryOnly",,,"False","T","EveryTick") -> 187.64 | S59: 0.0120819849 | T59: =RTD("cqg.rtd",,"StudyData", "Close("&$D$12&") when LocalYear("&$D$12&")="&$D$7&" and localMonth("&$D$12&") ="&$E$7&" and LocalDay("&$D$12&")="&$F$7&" and Barix("&$D$12&",reference:=StartOfSession)="&A59&"", "Bar", "", "Close","5","0","PrimaryOnly",,,"False","T","EveryTick") -> 185.42 | U59: 0.008155719878 | V59: =RTD("cqg.rtd",,"StudyData", "Close("&$D$12&") when LocalYear("&$D$12&")="&$D$8&" and localMonth("&$D$12&") ="&$E$8&" and LocalDay("&$D$12&")="&$F$8&" and Barix("&$D$12&",reference:=StartOfSession)="&A59&"", "Bar", "", "Close","5","0","PrimaryOnly",,,"False","T","EveryTick") ->  | X59: =RTD("cqg.rtd",,"StudyData", "Close("&$D$12&") when LocalYear("&$D$12&")="&$D$9&" and localMonth("&$D$12&") ="&$E$9&" and LocalDay("&$D$12&")="&$F$9&" and Barix("&$D$12&",reference:=StartOfSession)="&A59&"", "Bar", "", "Close","5","0","PrimaryOnly",,,"False","T","EveryTick") -> 186.89 | Y59: 0.009615904057 | Z59: =RTD("cqg.rtd",,"StudyData", "Close("&$D$12&") when LocalYear("&$D$12&")="&$D$10&" and localMonth("&$D$12&") ="&$E$10&" and LocalDay("&$D$12&")="&$F$10&" and Barix("&$D$12&",reference:=StartOfSession)="&A59&"", "Bar", "", "Close","5","0","PrimaryOnly",,,"False","T","EveryTick") -> 186.29 | AA59: 0.004258760108
A60: 59 | B60: 13:25:00 | C60: =C59+1 -> -18 | D60: =RTD("cqg.rtd",,"StudyData", $D$12, "Tick", "FlatTicks=0", "Tick","D",C60,"PrimaryOnly") -> 191.48 | H60: =RTD("cqg.rtd",,"StudyData", "Close("&$D$12&") when LocalYear("&$D$12&")="&$D$1&" and localMonth("&$D$12&") ="&$E$1&" and LocalDay("&$D$12&")="&$F$1&" and Barix("&$D$12&",reference:=StartOfSession)="&A60&"", "Bar", "", "Close","5","0","PrimaryOnly",,,"False","T","EveryTick") ->  | J60: =RTD("cqg.rtd",,"StudyData", "Close("&$D$12&") when LocalYear("&$D$12&")="&$D$2&" and localMonth("&$D$12&") ="&$E$2&" and LocalDay("&$D$12&")="&$F$2&" and Barix("&$D$12&",reference:=StartOfSession)="&A60&"", "Bar", "", "Close","5","0","PrimaryOnly",,,"False","T","EveryTick") -> 190.97 | K60: 0.01644666809 | L60: =RTD("cqg.rtd",,"StudyData", "Close("&$D$12&") when LocalYear("&$D$12&")="&$D$3&" and localMonth("&$D$12&") ="&$E$3&" and LocalDay("&$D$12&")="&$F$3&" and Barix("&$D$12&",reference:=StartOfSession)="&A60&"", "Bar", "", "Close","5","0","PrimaryOnly",,,"False","T","EveryTick") -> 188.29 | M60: -0.01082216969 | N60: =RTD("cqg.rtd",,"StudyData", "Close("&$D$12&") when LocalYear("&$D$12&")="&$D$4&" and localMonth("&$D$12&") ="&$E$4&" and LocalDay("&$D$12&")="&$F$4&" and Barix("&$D$12&",reference:=StartOfSession)="&A60&"", "Bar", "", "Close","5","0","PrimaryOnly",,,"False","T","EveryTick") -> 190.42 | O60: -0.0008395424494 | P60: =RTD("cqg.rtd",,"StudyData", "Close("&$D$12&") when LocalYear("&$D$12&")="&$D$5&" and localMonth("&$D$12&") ="&$E$5&" and LocalDay("&$D$12&")="&$F$5&" and Barix("&$D$12&",reference:=StartOfSession)="&A60&"", "Bar", "", "Close","5","0","PrimaryOnly",,,"False","T","EveryTick") -> 190.18 | Q60: 0.0117571953 | R60: =RTD("cqg.rtd",,"StudyData", "Close("&$D$12&") when LocalYear("&$D$12&")="&$D$6&" and localMonth("&$D$12&") ="&$E$6&" and LocalDay("&$D$12&")="&$F$6&" and Barix("&$D$12&",reference:=StartOfSession)="&A60&"", "Bar", "", "Close","5","0","PrimaryOnly",,,"False","T","EveryTick") -> 187.64 | S60: 0.0120819849 | T60: =RTD("cqg.rtd",,"StudyData", "Close("&$D$12&") when LocalYear("&$D$12&")="&$D$7&" and localMonth("&$D$12&") ="&$E$7&" and LocalDay("&$D$12&")="&$F$7&" and Barix("&$D$12&",reference:=StartOfSession)="&A60&"", "Bar", "", "Close","5","0","PrimaryOnly",,,"False","T","EveryTick") -> 185.59 | U60: 0.009080034798 | V60: =RTD("cqg.rtd",,"StudyData", "Close("&$D$12&") when LocalYear("&$D$12&")="&$D$8&" and localMonth("&$D$12&") ="&$E$8&" and LocalDay("&$D$12&")="&$F$8&" and Barix("&$D$12&",reference:=StartOfSession)="&A60&"", "Bar", "", "Close","5","0","PrimaryOnly",,,"False","T","EveryTick") ->  | X60: =RTD("cqg.rtd",,"StudyData", "Close("&$D$12&") when LocalYear("&$D$12&")="&$D$9&" and localMonth("&$D$12&") ="&$E$9&" and LocalDay("&$D$12&")="&$F$9&" and Barix("&$D$12&",reference:=StartOfSession)="&A60&"", "Bar", "", "Close","5","0","PrimaryOnly",,,"False","T","EveryTick") -> 186.87 | Y60: 0.009507860191 | Z60: =RTD("cqg.rtd",,"StudyData", "Close("&$D$12&") when LocalYear("&$D$12&")="&$D$10&" and localMonth("&$D$12&") ="&$E$10&" and LocalDay("&$D$12&")="&$F$10&" and Barix("&$D$12&",reference:=StartOfSession)="&A60&"", "Bar", "", "Close","5","0","PrimaryOnly",,,"False","T","EveryTick") -> 186.37 | AA60: 0.004690026954
A61: 60 | B61: 13:30:00 | C61: -17 | D61: =RTD("cqg.rtd",,"StudyData", $D$12, "Tick", "FlatTicks=0", "Tick","D",C61,"PrimaryOnly") -> 191.49 | H61: =RTD("cqg.rtd",,"StudyData", "Close("&$D$12&") when LocalYear("&$D$12&")="&$D$1&" and localMonth("&$D$12&") ="&$E$1&" and LocalDay("&$D$12&")="&$F$1&" and Barix("&$D$12&",reference:=StartOfSession)="&A61&"", "Bar", "", "Close","5","0","PrimaryOnly",,,"False","T","EveryTick") ->  | J61: =RTD("cqg.rtd",,"StudyData", "Close("&$D$12&") when LocalYear("&$D$12&")="&$D$2&" and localMonth("&$D$12&") ="&$E$2&" and LocalDay("&$D$12&")="&$F$2&" and Barix("&$D$12&",reference:=StartOfSession)="&A61&"", "Bar", "", "Close","5","0","PrimaryOnly",,,"False","T","EveryTick") -> 190.92 | K61: 0.01618054077 | L61: =RTD("cqg.rtd",,"StudyData", "Close("&$D$12&") when LocalYear("&$D$12&")="&$D$3&" and localMonth("&$D$12&") ="&$E$3&" and LocalDay("&$D$12&")="&$F$3&" and Barix("&$D$12&",reference:=StartOfSession)="&A61&"", "Bar", "", "Close","5","0","PrimaryOnly",,,"False","T","EveryTick") -> 188.24 | M61: -0.01108484371 | N61: =RTD("cqg.rtd",,"StudyData", "Close("&$D$12&") when LocalYear("&$D$12&")="&$D$4&" and localMonth("&$D$12&") ="&$E$4&" and LocalDay("&$D$12&")="&$F$4&" and Barix("&$D$12&",reference:=StartOfSession)="&A61&"", "Bar", "", "Close","5","0","PrimaryOnly",,,"False","T","EveryTick") -> 190.4 | O61: -0.0009444852555 | P61: =RTD("cqg.rtd",,"StudyData", "Close("&$D$12&") when LocalYear("&$D$12&")="&$D$5&" and localMonth("&$D$12&") ="&$E$5&" and LocalDay("&$D$12&")="&$F$5&" and Barix("&$D$12&",reference:=StartOfSession)="&A61&"", "Bar", "", "Close","5","0","PrimaryOnly",,,"False","T","EveryTick") -> 190.16 | Q61: 0.01165079534 | R61: =RTD("cqg.rtd",,"StudyData", "Close("&$D$12&") when LocalYear("&$D$12&")="&$D$6&" and localMonth("&$D$12&") ="&$E$6&" and LocalDay("&$D$12&")="&$F$6&" and Barix("&$D$12&",reference:=StartOfSession)="&A61&"", "Bar", "", "Close","5","0","PrimaryOnly",,,"False","T","EveryTick") -> 187.6 | S61: 0.01186623517 | T61: =RTD("cqg.rtd",,"StudyData", "Close("&$D$12&") when LocalYear("&$D$12&")="&$D$7&" and localMonth("&$D$12&") ="&$E$7&" and LocalDay("&$D$12&")="&$F$7&" and Barix("&$D$12&",reference:=StartOfSession)="&A61&"", "Bar", "", "Close","5","0","PrimaryOnly",,,"False","T","EveryTick") -> 185.66 | U61: 0.009460635059 | V61: =RTD("cqg.rtd",,"StudyData", "Close("&$D$12&") when LocalYear("&$D$12&")="&$D$8&" and localMonth("&$D$12&") ="&$E$8&" and LocalDay("&$D$12&")="&$F$8&" and Barix("&$D$12&",reference:=StartOfSession)="&A61&"", "Bar", "", "Close","5","0","PrimaryOnly",,,"False","T","EveryTick") ->  | X61: =RTD("cqg.rtd",,"StudyData", "Close("&$D$12&") when LocalYear("&$D$12&")="&$D$9&" and localMonth("&$D$12&") ="&$E$9&" and LocalDay("&$D$12&")="&$F$9&" and Barix("&$D$12&",reference:=StartOfSession)="&A61&"", "Bar", "", "Close","5","0","PrimaryOnly",,,"False","T","EveryTick") -> 186.88 | Y61: 0.009561882124 | Z61: =RTD("cqg.rtd",,"StudyData", "Close("&$D$12&") when LocalYear("&$D$12&")="&$D$10&" and localMonth("&$D$12&") ="&$E$10&" and LocalDay("&$D$12&")="&$F$10&" and Barix("&$D$12&",reference:=StartOfSession)="&A61&"", "Bar", "", "Close","5","0","PrimaryOnly",,,"False","T","EveryTick") -> 186.26 | AA61: 0.00409703504
A62: 61 | B62: 13:35:00 | C62: -16 | D62: =RTD("cqg.rtd",,"StudyData", $D$12, "Tick", "FlatTicks=0", "Tick","D",C62,"PrimaryOnly") -> 191.48 | H62: =RTD("cqg.rtd",,"StudyData", "Close("&$D$12&") when LocalYear("&$D$12&")="&$D$1&" and localMonth("&$D$12&") ="&$E$1&" and LocalDay("&$D$12&")="&$F$1&" and Barix("&$D$12&",reference:=StartOfSession)="&A62&"", "Bar", "", "Close","5","0","PrimaryOnly",,,"False","T","EveryTick") ->  | J62: =RTD("cqg.rtd",,"StudyData", "Close("&$D$12&") when LocalYear("&$D$12&")="&$D$2&" and localMonth("&$D$12&") ="&$E$2&" and LocalDay("&$D$12&")="&$F$2&" and Barix("&$D$12&",reference:=StartOfSession)="&A62&"", "Bar", "", "Close","5","0","PrimaryOnly",,,"False","T","EveryTick") -> 190.82 | K62: 0.01564828614 | L62: =RTD("cqg.rtd",,"StudyData", "Close("&$D$12&") when LocalYear("&$D$12&")="&$D$3&" and localMonth("&$D$12&") ="&$E$3&" and LocalDay("&$D$12&")="&$F$3&" and Barix("&$D$12&",reference:=StartOfSession)="&A62&"", "Bar", "", "Close","5","0","PrimaryOnly",,,"False","T","EveryTick") -> 188.22 | M62: -0.01118991332 | N62: =RTD("cqg.rtd",,"StudyData", "Close("&$D$12&") when LocalYear("&$D$12&")="&$D$4&" and localMonth("&$D$12&") ="&$E$4&" and LocalDay("&$D$12&")="&$F$4&" and Barix("&$D$12&",reference:=StartOfSession)="&A62&"", "Bar", "", "Close","5","0","PrimaryOnly",,,"False","T","EveryTick") -> 190.37 | O62: -0.001101899465 | P62: =RTD("cqg.rtd",,"StudyData", "Close("&$D$12&") when LocalYear("&$D$12&")="&$D$5&" and localMonth("&$D$12&") ="&$E$5&" and LocalDay("&$D$12&")="&$F$5&" and Barix("&$D$12&",reference:=StartOfSession)="&A62&"", "Bar", "", "Close","5","0","PrimaryOnly",,,"False","T","EveryTick") -> 190.2 | Q62: 0.01186359525 | R62: =RTD("cqg.rtd",,"StudyData", "Close("&$D$12&") when LocalYear("&$D$12&")="&$D$6&" and localMonth("&$D$12&") ="&$E$6&" and LocalDay("&$D$12&")="&$F$6&" and Barix("&$D$12&",reference:=StartOfSession)="&A62&"", "Bar", "", "Close","5","0","PrimaryOnly",,,"False","T","EveryTick") -> 187.44 | S62: 0.01100323625 | T62: =RTD("cqg.rtd",,"StudyData", "Close("&$D$12&") when LocalYear("&$D$12&")="&$D$7&" and localMonth("&$D$12&") ="&$E$7&" and LocalDay("&$D$12&")="&$F$7&" and Barix("&$D$12&",reference:=StartOfSession)="&A62&"", "Bar", "", "Close","5","0","PrimaryOnly",,,"False","T","EveryTick") -> 185.65 | U62: 0.009406263593 | V62: =RTD("cqg.rtd",,"StudyData", "Close("&$D$12&") when LocalYear("&$D$12&")="&$D$8&" and localMonth("&$D$12&") ="&$E$8&" and LocalDay("&$D$12&")="&$F$8&" and Barix("&$D$12&",reference:=StartOfSession)="&A62&"", "Bar", "", "Close","5","0","PrimaryOnly",,,"False","T","EveryTick") ->  | X62: =RTD("cqg.rtd",,"StudyData", "Close("&$D$12&") when LocalYear("&$D$12&")="&$D$9&" and localMonth("&$D$12&") ="&$E$9&" and LocalDay("&$D$12&")="&$F$9&" and Barix("&$D$12&",reference:=StartOfSession)="&A62&"", "Bar", "", "Close","5","0","PrimaryOnly",,,"False","T","EveryTick") -> 186.83 | Y62: 0.00929177246 | Z62: =RTD("cqg.rtd",,"StudyData", "Close("&$D$12&") when LocalYear("&$D$12&")="&$D$10&" and localMonth("&$D$12&") ="&$E$10&" and LocalDay("&$D$12&")="&$F$10&" and Barix("&$D$12&",reference:=StartOfSession)="&A62&"", "Bar", "", "Close","5","0","PrimaryOnly",,,"False","T","EveryTick") -> 186.28 | AA62: 0.004204851752
A63: 62 | B63: 13:40:00 | C63: -15 | D63: =RTD("cqg.rtd",,"StudyData", $D$12, "Tick", "FlatTicks=0", "Tick","D",C63,"PrimaryOnly") -> 191.49 | H63: =RTD("cqg.rtd",,"StudyData", "Close("&$D$12&") when LocalYear("&$D$12&")="&$D$1&" and localMonth("&$D$12&") ="&$E$1&" and LocalDay("&$D$12&")="&$F$1&" and Barix("&$D$12&",reference:=StartOfSession)="&A63&"", "Bar", "", "Close","5","0","PrimaryOnly",,,"False","T","EveryTick") ->  | J63: =RTD("cqg.rtd",,"StudyData", "Close("&$D$12&") when LocalYear("&$D$12&")="&$D$2&" and localMonth("&$D$12&") ="&$E$2&" and LocalDay("&$D$12&")="&$F$2&" and Barix("&$D$12&",reference:=StartOfSession)="&A63&"", "Bar", "", "Close","5","0","PrimaryOnly",,,"False","T","EveryTick") -> 190.83 | K63: 0.0157015116 | L63: =RTD("cqg.rtd",,"StudyData", "Close("&$D$12&") when LocalYear("&$D$12&")="&$D$3&" and localMonth("&$D$12&") ="&$E$3&" and LocalDay("&$D$12&")="&$F$3&" and Barix("&$D$12&",reference:=StartOfSession)="&A63&"", "Bar", "", "Close","5","0","PrimaryOnly",,,"False","T","EveryTick") -> 188.32 | M63: -0.01066456527 | N63: =RTD("cqg.rtd",,"StudyData", "Close("&$D$12&") when LocalYear("&$D$12&")="&$D$4&" and localMonth("&$D$12&") ="&$E$4&" and LocalDay("&$D$12&")="&$F$4&" and Barix("&$D$12&",reference:=StartOfSession)="&A63&"", "Bar", "", "Close","5","0","PrimaryOnly",,,"False","T","EveryTick") -> 190.29 | O63: -0.001521670689 | P63: =RTD("cqg.rtd",,"StudyData", "Close("&$D$12&") when LocalYear("&$D$12&")="&$D$5&" and localMonth("&$D$12&") ="&$E$5&" and LocalDay("&$D$12&")="&$F$5&" and Barix("&$D$12&",reference:=StartOfSession)="&A63&"", "Bar", "", "Close","5","0","PrimaryOnly",,,"False","T","EveryTick") -> 190.25 | Q63: 0.01212959515 | R63: =RTD("cqg.rtd",,"StudyData", "Close("&$D$12&") when LocalYear("&$D$12&")="&$D$6&" and localMonth("&$D$12&") ="&$E$6&" and LocalDay("&$D$12&")="&$F$6&" and Barix("&$D$12&",reference:=StartOfSession)="&A63&"", "Bar", "", "Close","5","0","PrimaryOnly",,,"False","T","EveryTick") -> 187.56 | S63: 0.01165048544 | T63: =RTD("cqg.rtd",,"StudyData", "Close("&$D$12&") when LocalYear("&$D$12&")="&$D$7&" and localMonth("&$D$12&") ="&$E$7&" and LocalDay("&$D$12&")="&$F$7&" and Barix("&$D$12&",reference:=StartOfSession)="&A63&"", "Bar", "", "Close","5","0","PrimaryOnly",,,"False","T","EveryTick") -> 185.55 | U63: 0.008862548934 | V63: =RTD("cqg.rtd",,"StudyData", "Close("&$D$12&") when LocalYear("&$D$12&")="&$D$8&" and localMonth("&$D$12&") ="&$E$8&" and LocalDay("&$D$12&")="&$F$8&" and Barix("&$D$12&",reference:=StartOfSession)="&A63&"", "Bar", "", "Close","5","0","PrimaryOnly",,,"False","T","EveryTick") ->  | X63: =RTD("cqg.rtd",,"StudyData", "Close("&$D$12&") when LocalYear("&$D$12&")="&$D$9&" and localMonth("&$D$12&") ="&$E$9&" and LocalDay("&$D$12&")="&$F$9&" and Barix("&$D$12&",reference:=StartOfSession)="&A63&"", "Bar", "", "Close","5","0","PrimaryOnly",,,"False","T","EveryTick") -> 186.82 | Y63: 0.009237750527 | Z63: =RTD("cqg.rtd",,"StudyData", "Close("&$D$12&") when LocalYear("&$D$12&")="&$D$10&" and localMonth("&$D$12&") ="&$E$10&" and LocalDay("&$D$12&")="&$F$10&" and Barix("&$D$12&",reference:=StartOfSession)="&A63&"", "Bar", "", "Close","5","0","PrimaryOnly",,,"False","T","EveryTick") -> 186.24 | AA63: 0.003989218329
A64: 63 | B64: 13:45:00 | C64: -14 | D64: =RTD("cqg.rtd",,"StudyData", $D$12, "Tick", "FlatTicks=0", "Tick","D",C64,"PrimaryOnly") -> 191.48 | H64: =RTD("cqg.rtd",,"StudyData", "Close("&$D$12&") when LocalYear("&$D$12&")="&$D$1&" and localMonth("&$D$12&") ="&$E$1&" and LocalDay("&$D$12&")="&$F$1&" and Barix("&$D$12&",reference:=StartOfSession)="&A64&"", "Bar", "", "Close","5","0","PrimaryOnly",,,"False","T","EveryTick") ->  | J64: =RTD("cqg.rtd",,"StudyData", "Close("&$D$12&") when LocalYear("&$D$12&")="&$D$2&" and localMonth("&$D$12&") ="&$E$2&" and LocalDay("&$D$12&")="&$F$2&" and Barix("&$D$12&",reference:=StartOfSession)="&A64&"", "Bar", "", "Close","5","0","PrimaryOnly",,,"False","T","EveryTick") -> 190.83 | K64: 0.0157015116 | L64: =RTD("cqg.rtd",,"StudyData", "Close("&$D$12&") when LocalYear("&$D$12&")="&$D$3&" and localMonth("&$D$12&") ="&$E$3&" and LocalDay("&$D$12&")="&$F$3&" and Barix("&$D$12&",reference:=StartOfSession)="&A64&"", "Bar", "", "Close","5","0","PrimaryOnly",,,"False","T","EveryTick") -> 188.27 | M64: -0.0109272393 | N64: =RTD("cqg.rtd",,"StudyData", "Close("&$D$12&") when LocalYear("&$D$12&")="&$D$4&" and localMonth("&$D$12&") ="&$E$4&" and LocalDay("&$D$12&")="&$F$4&" and Barix("&$D$12&",reference:=StartOfSession)="&A64&"", "Bar", "", "Close","5","0","PrimaryOnly",,,"False","T","EveryTick") -> 190.46 | O64: -0.000629656837 | P64: =RTD("cqg.rtd",,"StudyData", "Close("&$D$12&") when LocalYear("&$D$12&")="&$D$5&" and localMonth("&$D$12&") ="&$E$5&" and LocalDay("&$D$12&")="&$F$5&" and Barix("&$D$12&",reference:=StartOfSession)="&A64&"", "Bar", "", "Close","5","0","PrimaryOnly",,,"False","T","EveryTick") -> 190.32 | Q64: 0.012501995 | R64: =RTD("cqg.rtd",,"StudyData", "Close("&$D$12&") when LocalYear("&$D$12&")="&$D$6&" and localMonth("&$D$12&") ="&$E$6&" and LocalDay("&$D$12&")="&$F$6&" and Barix("&$D$12&",reference:=StartOfSession)="&A64&"", "Bar", "", "Close","5","0","PrimaryOnly",,,"False","T","EveryTick") -> 187.62 | S64: 0.01197411003 | T64: =RTD("cqg.rtd",,"StudyData", "Close("&$D$12&") when LocalYear("&$D$12&")="&$D$7&" and localMonth("&$D$12&") ="&$E$7&" and LocalDay("&$D$12&")="&$F$7&" and Barix("&$D$12&",reference:=StartOfSession)="&A64&"", "Bar", "", "Close","5","0","PrimaryOnly",,,"False","T","EveryTick") -> 185.6 | U64: 0.009134406264 | V64: =RTD("cqg.rtd",,"StudyData", "Close("&$D$12&") when LocalYear("&$D$12&")="&$D$8&" and localMonth("&$D$12&") ="&$E$8&" and LocalDay("&$D$12&")="&$F$8&" and Barix("&$D$12&",reference:=StartOfSession)="&A64&"", "Bar", "", "Close","5","0","PrimaryOnly",,,"False","T","EveryTick") ->  | X64: =RTD("cqg.rtd",,"StudyData", "Close("&$D$12&") when LocalYear("&$D$12&")="&$D$9&" and localMonth("&$D$12&") ="&$E$9&" and LocalDay("&$D$12&")="&$F$9&" and Barix("&$D$12&",reference:=StartOfSession)="&A64&"", "Bar", "", "Close","5","0","PrimaryOnly",,,"False","T","EveryTick") -> 186.68 | Y64: 0.008481443466 | Z64: =RTD("cqg.rtd",,"StudyData", "Close("&$D$12&") when LocalYear("&$D$12&")="&$D$10&" and localMonth("&$D$12&") ="&$E$10&" and LocalDay("&$D$12&")="&$F$10&" and Barix("&$D$12&",reference:=StartOfSession)="&A64&"", "Bar", "", "Close","5","0","PrimaryOnly",,,"False","T","EveryTick") -> 186.31 | AA64: 0.004366576819
A65: 64 | B65: 13:50:00 | C65: -13 | D65: =RTD("cqg.rtd",,"StudyData", $D$12, "Tick", "FlatTicks=0", "Tick","D",C65,"PrimaryOnly") -> 191.47 | H65: =RTD("cqg.rtd",,"StudyData", "Close("&$D$12&") when LocalYear("&$D$12&")="&$D$1&" and localMonth("&$D$12&") ="&$E$1&" and LocalDay("&$D$12&")="&$F$1&" and Barix("&$D$12&",reference:=StartOfSession)="&A65&"", "Bar", "", "Close","5","0","PrimaryOnly",,,"False","T","EveryTick") ->  | J65: =RTD("cqg.rtd",,"StudyData", "Close("&$D$12&") when LocalYear("&$D$12&")="&$D$2&" and localMonth("&$D$12&") ="&$E$2&" and LocalDay("&$D$12&")="&$F$2&" and Barix("&$D$12&",reference:=StartOfSession)="&A65&"", "Bar", "", "Close","5","0","PrimaryOnly",,,"False","T","EveryTick") -> 190.98 | K65: 0.01649989355 | L65: =RTD("cqg.rtd",,"StudyData", "Close("&$D$12&") when LocalYear("&$D$12&")="&$D$3&" and localMonth("&$D$12&") ="&$E$3&" and LocalDay("&$D$12&")="&$F$3&" and Barix("&$D$12&",reference:=StartOfSession)="&A65&"", "Bar", "", "Close","5","0","PrimaryOnly",,,"False","T","EveryTick") -> 188.27 | M65: -0.0109272393 | N65: =RTD("cqg.rtd",,"StudyData", "Close("&$D$12&") when LocalYear("&$D$12&")="&$D$4&" and localMonth("&$D$12&") ="&$E$4&" and LocalDay("&$D$12&")="&$F$4&" and Barix("&$D$12&",reference:=StartOfSession)="&A65&"", "Bar", "", "Close","5","0","PrimaryOnly",,,"False","T","EveryTick") -> 190.43 | O65: -0.0007870710463 | P65: =RTD("cqg.rtd",,"StudyData", "Close("&$D$12&") when LocalYear("&$D$12&")="&$D$5&" and localMonth("&$D$12&") ="&$E$5&" and LocalDay("&$D$12&")="&$F$5&" and Barix("&$D$12&",reference:=StartOfSession)="&A65&"", "Bar", "", "Close","5","0","PrimaryOnly",,,"False","T","EveryTick") -> 190.42 | Q65: 0.01303399479 | R65: =RTD("cqg.rtd",,"StudyData", "Close("&$D$12&") when LocalYear("&$D$12&")="&$D$6&" and localMonth("&$D$12&") ="&$E$6&" and LocalDay("&$D$12&")="&$F$6&" and Barix("&$D$12&",reference:=StartOfSession)="&A65&"", "Bar", "", "Close","5","0","PrimaryOnly",,,"False","T","EveryTick") -> 187.59 | S65: 0.01181229773 | T65: =RTD("cqg.rtd",,"StudyData", "Close("&$D$12&") when LocalYear("&$D$12&")="&$D$7&" and localMonth("&$D$12&") ="&$E$7&" and LocalDay("&$D$12&")="&$F$7&" and Barix("&$D$12&",reference:=StartOfSession)="&A65&"", "Bar", "", "Close","5","0","PrimaryOnly",,,"False","T","EveryTick") -> 185.61 | U65: 0.009188777729 | V65: =RTD("cqg.rtd",,"StudyData", "Close("&$D$12&") when LocalYear("&$D$12&")="&$D$8&" and localMonth("&$D$12&") ="&$E$8&" and LocalDay("&$D$12&")="&$F$8&" and Barix("&$D$12&",reference:=StartOfSession)="&A65&"", "Bar", "", "Close","5","0","PrimaryOnly",,,"False","T","EveryTick") ->  | X65: =RTD("cqg.rtd",,"StudyData", "Close("&$D$12&") when LocalYear("&$D$12&")="&$D$9&" and localMonth("&$D$12&") ="&$E$9&" and LocalDay("&$D$12&")="&$F$9&" and Barix("&$D$12&",reference:=StartOfSession)="&A65&"", "Bar", "", "Close","5","0","PrimaryOnly",,,"False","T","EveryTick") -> 186.53 | Y65: 0.007671114472 | Z65: =RTD("cqg.rtd",,"StudyData", "Close("&$D$12&") when LocalYear("&$D$12&")="&$D$10&" and localMonth("&$D$12&") ="&$E$10&" and LocalDay("&$D$12&")="&$F$10&" and Barix("&$D$12&",reference:=StartOfSession)="&A65&"", "Bar", "", "Close","5","0","PrimaryOnly",,,"False","T","EveryTick") -> 186.34 | AA65: 0.004528301887
A66: 65 | B66: 13:55:00 | C66: -12 | D66: =RTD("cqg.rtd",,"StudyData", $D$12, "Tick", "FlatTicks=0", "Tick","D",C66,"PrimaryOnly") -> 191.46 | H66: =RTD("cqg.rtd",,"StudyData", "Close("&$D$12&") when LocalYear("&$D$12&")="&$D$1&" and localMonth("&$D$12&") ="&$E$1&" and LocalDay("&$D$12&")="&$F$1&" and Barix("&$D$12&",reference:=StartOfSession)="&A66&"", "Bar", "", "Close","5","0","PrimaryOnly",,,"False","T","EveryTick") ->  | J66: =RTD("cqg.rtd",,"StudyData", "Close("&$D$12&") when LocalYear("&$D$12&")="&$D$2&" and localMonth("&$D$12&") ="&$E$2&" and LocalDay("&$D$12&")="&$F$2&" and Barix("&$D$12&",reference:=StartOfSession)="&A66&"", "Bar", "", "Close","5","0","PrimaryOnly",,,"False","T","EveryTick") -> 191.06 | K66: =IFERROR((J66-$G$3)/$G$3,NA()) -> 0.01692569725 | L66: =RTD("cqg.rtd",,"StudyData", "Close("&$D$12&") when LocalYear("&$D$12&")="&$D$3&" and localMonth("&$D$12&") ="&$E$3&" and LocalDay("&$D$12&")="&$F$3&" and Barix("&$D$12&",reference:=StartOfSession)="&A66&"", "Bar", "", "Close","5","0","PrimaryOnly",,,"False","T","EveryTick") -> 188.21 | M66: =IFERROR((L66-$G$4)/$G$4,NA()) -> -0.01124244812 | N66: =RTD("cqg.rtd",,"StudyData", "Close("&$D$12&") when LocalYear("&$D$12&")="&$D$4&" and localMonth("&$D$12&") ="&$E$4&" and LocalDay("&$D$12&")="&$F$4&" and Barix("&$D$12&",reference:=StartOfSession)="&A66&"", "Bar", "", "Close","5","0","PrimaryOnly",,,"False","T","EveryTick") -> 190.58 | O66: =IFERROR((N66-$G$5)/$G$5,NA()) -> 0 | P66: =RTD("cqg.rtd",,"StudyData", "Close("&$D$12&") when LocalYear("&$D$12&")="&$D$5&" and localMonth("&$D$12&") ="&$E$5&" and LocalDay("&$D$12&")="&$F$5&" and Barix("&$D$12&",reference:=StartOfSession)="&A66&"", "Bar", "", "Close","5","0","PrimaryOnly",,,"False","T","EveryTick") -> 190.44 | Q66: =IFERROR((P66-$G$6)/$G$6,NA()) -> 0.01314039474 | R66: =RTD("cqg.rtd",,"StudyData", "Close("&$D$12&") when LocalYear("&$D$12&")="&$D$6&" and localMonth("&$D$12&") ="&$E$6&" and LocalDay("&$D$12&")="&$F$6&" and Barix("&$D$12&",reference:=StartOfSession)="&A66&"", "Bar", "", "Close","5","0","PrimaryOnly",,,"False","T","EveryTick") -> 187.62 | S66: =IFERROR((R66-$G$7)/$G$7,NA()) -> 0.01197411003 | T66: =RTD("cqg.rtd",,"StudyData", "Close("&$D$12&") when LocalYear("&$D$12&")="&$D$7&" and localMonth("&$D$12&") ="&$E$7&" and LocalDay("&$D$12&")="&$F$7&" and Barix("&$D$12&",reference:=StartOfSession)="&A66&"", "Bar", "", "Close","5","0","PrimaryOnly",,,"False","T","EveryTick") -> 185.67 | U66: =IFERROR((T66-$G$8)/$G$8,NA()) -> 0.009515006525 | V66: =RTD("cqg.rtd",,"StudyData", "Close("&$D$12&") when LocalYear("&$D$12&")="&$D$8&" and localMonth("&$D$12&") ="&$E$8&" and LocalDay("&$D$12&")="&$F$8&" and Barix("&$D$12&",reference:=StartOfSession)="&A66&"", "Bar", "", "Close","5","0","PrimaryOnly",,,"False","T","EveryTick") ->  | W66: =IFERROR((V66-$G$9)/$G$9,NA()) ->  | X66: =RTD("cqg.rtd",,"StudyData", "Close("&$D$12&") when LocalYear("&$D$12&")="&$D$9&" and localMonth("&$D$12&") ="&$E$9&" and LocalDay("&$D$12&")="&$F$9&" and Barix("&$D$12&",reference:=StartOfSession)="&A66&"", "Bar", "", "Close","5","0","PrimaryOnly",,,"False","T","EveryTick") -> 186.39 | Y66: =IFERROR((X66-$G$10)/$G$10,NA()) -> 0.006914807412 | Z66: =RTD("cqg.rtd",,"StudyData", "Close("&$D$12&") when LocalYear("&$D$12&")="&$D$10&" and localMonth("&$D$12&") ="&$E$10&" and LocalDay("&$D$12&")="&$F$10&" and Barix("&$D$12&",reference:=StartOfSession)="&A66&"", "Bar", "", "Close","5","0","PrimaryOnly",,,"False","T","EveryTick") -> 186.4 | AA66: =IFERROR((Z66-$G$11)/$G$11,NA()) -> 0.004851752022
A67: =A66+1 -> 66 | B67: 14:00:00 | C67: -11 | D67: =RTD("cqg.rtd",,"StudyData", $D$12, "Tick", "FlatTicks=0", "Tick","D",C67,"PrimaryOnly") -> 191.45 | H67: =RTD("cqg.rtd",,"StudyData", "Close("&$D$12&") when LocalYear("&$D$12&")="&$D$1&" and localMonth("&$D$12&") ="&$E$1&" and LocalDay("&$D$12&")="&$F$1&" and Barix("&$D$12&",reference:=StartOfSession)="&A67&"", "Bar", "", "Close","5","0","PrimaryOnly",,,"False","T","EveryTick") ->  | I67: =IFERROR((H67-$G$2)/$G$2,NA()) ->  | J67: =RTD("cqg.rtd",,"StudyData", "Close("&$D$12&") when LocalYear("&$D$12&")="&$D$2&" and localMonth("&$D$12&") ="&$E$2&" and LocalDay("&$D$12&")="&$F$2&" and Barix("&$D$12&",reference:=StartOfSession)="&A67&"", "Bar", "", "Close","5","0","PrimaryOnly",,,"False","T","EveryTick") -> 191.11 | K67: 0.01719182457 | L67: =RTD("cqg.rtd",,"StudyData", "Close("&$D$12&") when LocalYear("&$D$12&")="&$D$3&" and localMonth("&$D$12&") ="&$E$3&" and LocalDay("&$D$12&")="&$F$3&" and Barix("&$D$12&",reference:=StartOfSession)="&A67&"", "Bar", "", "Close","5","0","PrimaryOnly",,,"False","T","EveryTick") -> 188.14 | M67: -0.01161019175 | N67: =RTD("cqg.rtd",,"StudyData", "Close("&$D$12&") when LocalYear("&$D$12&")="&$D$4&" and localMonth("&$D$12&") ="&$E$4&" and LocalDay("&$D$12&")="&$F$4&" and Barix("&$D$12&",reference:=StartOfSession)="&A67&"", "Bar", "", "Close","5","0","PrimaryOnly",,,"False","T","EveryTick") -> 190.64 | O67: 0.0003148284185 | P67: =RTD("cqg.rtd",,"StudyData", "Close("&$D$12&") when LocalYear("&$D$12&")="&$D$5&" and localMonth("&$D$12&") ="&$E$5&" and LocalDay("&$D$12&")="&$F$5&" and Barix("&$D$12&",reference:=StartOfSession)="&A67&"", "Bar", "", "Close","5","0","PrimaryOnly",,,"False","T","EveryTick") -> 190.39 | Q67: 0.01287439485 | R67: =RTD("cqg.rtd",,"StudyData", "Close("&$D$12&") when LocalYear("&$D$12&")="&$D$6&" and localMonth("&$D$12&") ="&$E$6&" and LocalDay("&$D$12&")="&$F$6&" and Barix("&$D$12&",reference:=StartOfSession)="&A67&"", "Bar", "", "Close","5","0","PrimaryOnly",,,"False","T","EveryTick") -> 187.78 | S67: 0.01283710895 | T67: =RTD("cqg.rtd",,"StudyData", "Close("&$D$12&") when LocalYear("&$D$12&")="&$D$7&" and localMonth("&$D$12&") ="&$E$7&" and LocalDay("&$D$12&")="&$F$7&" and Barix("&$D$12&",reference:=StartOfSession)="&A67&"", "Bar", "", "Close","5","0","PrimaryOnly",,,"False","T","EveryTick") -> 185.9 | U67: 0.01076555024 | V67: =RTD("cqg.rtd",,"StudyData", "Close("&$D$12&") when LocalYear("&$D$12&")="&$D$8&" and localMonth("&$D$12&") ="&$E$8&" and LocalDay("&$D$12&")="&$F$8&" and Barix("&$D$12&",reference:=StartOfSession)="&A67&"", "Bar", "", "Close","5","0","PrimaryOnly",,,"False","T","EveryTick") ->  | X67: =RTD("cqg.rtd",,"StudyData", "Close("&$D$12&") when LocalYear("&$D$12&")="&$D$9&" and localMonth("&$D$12&") ="&$E$9&" and LocalDay("&$D$12&")="&$F$9&" and Barix("&$D$12&",reference:=StartOfSession)="&A67&"", "Bar", "", "Close","5","0","PrimaryOnly",,,"False","T","EveryTick") -> 186.36 | Y67: 0.006752741613 | Z67: =RTD("cqg.rtd",,"StudyData", "Close("&$D$12&") when LocalYear("&$D$12&")="&$D$10&" and localMonth("&$D$12&") ="&$E$10&" and LocalDay("&$D$12&")="&$F$10&" and Barix("&$D$12&",reference:=StartOfSession)="&A67&"", "Bar", "", "Close","5","0","PrimaryOnly",,,"False","T","EveryTick") -> 186.38 | AA67: 0.00474393531 | AE67: =IF(AND(H66<>"",H67<>"",H68=""),A67,"") -> 
A68: 67 | B68: 14:05:00 | C68: -10 | D68: =RTD("cqg.rtd",,"StudyData", $D$12, "Tick", "FlatTicks=0", "Tick","D",C68,"PrimaryOnly") -> 191.44 | H68: =RTD("cqg.rtd",,"StudyData", "Close("&$D$12&") when LocalYear("&$D$12&")="&$D$1&" and localMonth("&$D$12&") ="&$E$1&" and LocalDay("&$D$12&")="&$F$1&" and Barix("&$D$12&",reference:=StartOfSession)="&A68&"", "Bar", "", "Close","5","0","PrimaryOnly",,,"False","T","EveryTick") ->  | J68: =RTD("cqg.rtd",,"StudyData", "Close("&$D$12&") when LocalYear("&$D$12&")="&$D$2&" and localMonth("&$D$12&") ="&$E$2&" and LocalDay("&$D$12&")="&$F$2&" and Barix("&$D$12&",reference:=StartOfSession)="&A68&"", "Bar", "", "Close","5","0","PrimaryOnly",,,"False","T","EveryTick") -> 191.05 | K68: 0.01687247179 | L68: =RTD("cqg.rtd",,"StudyData", "Close("&$D$12&") when LocalYear("&$D$12&")="&$D$3&" and localMonth("&$D$12&") ="&$E$3&" and LocalDay("&$D$12&")="&$F$3&" and Barix("&$D$12&",reference:=StartOfSession)="&A68&"", "Bar", "", "Close","5","0","PrimaryOnly",,,"False","T","EveryTick") -> 188.32 | M68: -0.01066456527 | N68: =RTD("cqg.rtd",,"StudyData", "Close("&$D$12&") when LocalYear("&$D$12&")="&$D$4&" and localMonth("&$D$12&") ="&$E$4&" and LocalDay("&$D$12&")="&$F$4&" and Barix("&$D$12&",reference:=StartOfSession)="&A68&"", "Bar", "", "Close","5","0","PrimaryOnly",,,"False","T","EveryTick") -> 190.66 | O68: 0.0004197712247 | P68: =RTD("cqg.rtd",,"StudyData", "Close("&$D$12&") when LocalYear("&$D$12&")="&$D$5&" and localMonth("&$D$12&") ="&$E$5&" and LocalDay("&$D$12&")="&$F$5&" and Barix("&$D$12&",reference:=StartOfSession)="&A68&"", "Bar", "", "Close","5","0","PrimaryOnly",,,"False","T","EveryTick") -> 190.48 | Q68: 0.01335319466 | R68: =RTD("cqg.rtd",,"StudyData", "Close("&$D$12&") when LocalYear("&$D$12&")="&$D$6&" and localMonth("&$D$12&") ="&$E$6&" and LocalDay("&$D$12&")="&$F$6&" and Barix("&$D$12&",reference:=StartOfSession)="&A68&"", "Bar", "", "Close","5","0","PrimaryOnly",,,"False","T","EveryTick") -> 187.89 | S68: 0.01343042071 | T68: =RTD("cqg.rtd",,"StudyData", "Close("&$D$12&") when LocalYear("&$D$12&")="&$D$7&" and localMonth("&$D$12&") ="&$E$7&" and LocalDay("&$D$12&")="&$F$7&" and Barix("&$D$12&",reference:=StartOfSession)="&A68&"", "Bar", "", "Close","5","0","PrimaryOnly",,,"False","T","EveryTick") -> 185.7 | U68: 0.009678120922 | V68: =RTD("cqg.rtd",,"StudyData", "Close("&$D$12&") when LocalYear("&$D$12&")="&$D$8&" and localMonth("&$D$12&") ="&$E$8&" and LocalDay("&$D$12&")="&$F$8&" and Barix("&$D$12&",reference:=StartOfSession)="&A68&"", "Bar", "", "Close","5","0","PrimaryOnly",,,"False","T","EveryTick") ->  | X68: =RTD("cqg.rtd",,"StudyData", "Close("&$D$12&") when LocalYear("&$D$12&")="&$D$9&" and localMonth("&$D$12&") ="&$E$9&" and LocalDay("&$D$12&")="&$F$9&" and Barix("&$D$12&",reference:=StartOfSession)="&A68&"", "Bar", "", "Close","5","0","PrimaryOnly",,,"False","T","EveryTick") -> 186.46 | Y68: 0.007292960942 | Z68: =RTD("cqg.rtd",,"StudyData", "Close("&$D$12&") when LocalYear("&$D$12&")="&$D$10&" and localMonth("&$D$12&") ="&$E$10&" and LocalDay("&$D$12&")="&$F$10&" and Barix("&$D$12&",reference:=StartOfSession)="&A68&"", "Bar", "", "Close","5","0","PrimaryOnly",,,"False","T","EveryTick") -> 186.38 | AA68: 0.00474393531
A69: 68 | B69: 14:10:00 | C69: =C68+1 -> -9 | D69: =RTD("cqg.rtd",,"StudyData", $D$12, "Tick", "FlatTicks=0", "Tick","D",C69,"PrimaryOnly") -> 191.43 | H69: =RTD("cqg.rtd",,"StudyData", "Close("&$D$12&") when LocalYear("&$D$12&")="&$D$1&" and localMonth("&$D$12&") ="&$E$1&" and LocalDay("&$D$12&")="&$F$1&" and Barix("&$D$12&",reference:=StartOfSession)="&A69&"", "Bar", "", "Close","5","0","PrimaryOnly",,,"False","T","EveryTick") ->  | J69: =RTD("cqg.rtd",,"StudyData", "Close("&$D$12&") when LocalYear("&$D$12&")="&$D$2&" and localMonth("&$D$12&") ="&$E$2&" and LocalDay("&$D$12&")="&$F$2&" and Barix("&$D$12&",reference:=StartOfSession)="&A69&"", "Bar", "", "Close","5","0","PrimaryOnly",,,"False","T","EveryTick") -> 190.93 | K69: 0.01623376623 | L69: =RTD("cqg.rtd",,"StudyData", "Close("&$D$12&") when LocalYear("&$D$12&")="&$D$3&" and localMonth("&$D$12&") ="&$E$3&" and LocalDay("&$D$12&")="&$F$3&" and Barix("&$D$12&",reference:=StartOfSession)="&A69&"", "Bar", "", "Close","5","0","PrimaryOnly",,,"False","T","EveryTick") -> 188.16 | M69: -0.01150512214 | N69: =RTD("cqg.rtd",,"StudyData", "Close("&$D$12&") when LocalYear("&$D$12&")="&$D$4&" and localMonth("&$D$12&") ="&$E$4&" and LocalDay("&$D$12&")="&$F$4&" and Barix("&$D$12&",reference:=StartOfSession)="&A69&"", "Bar", "", "Close","5","0","PrimaryOnly",,,"False","T","EveryTick") -> 190.72 | O69: 0.0007345996432 | P69: =RTD("cqg.rtd",,"StudyData", "Close("&$D$12&") when LocalYear("&$D$12&")="&$D$5&" and localMonth("&$D$12&") ="&$E$5&" and LocalDay("&$D$12&")="&$F$5&" and Barix("&$D$12&",reference:=StartOfSession)="&A69&"", "Bar", "", "Close","5","0","PrimaryOnly",,,"False","T","EveryTick") -> 190.43 | Q69: 0.01308719477 | R69: =RTD("cqg.rtd",,"StudyData", "Close("&$D$12&") when LocalYear("&$D$12&")="&$D$6&" and localMonth("&$D$12&") ="&$E$6&" and LocalDay("&$D$12&")="&$F$6&" and Barix("&$D$12&",reference:=StartOfSession)="&A69&"", "Bar", "", "Close","5","0","PrimaryOnly",,,"False","T","EveryTick") -> 187.92 | S69: 0.01359223301 | T69: =RTD("cqg.rtd",,"StudyData", "Close("&$D$12&") when LocalYear("&$D$12&")="&$D$7&" and localMonth("&$D$12&") ="&$E$7&" and LocalDay("&$D$12&")="&$F$7&" and Barix("&$D$12&",reference:=StartOfSession)="&A69&"", "Bar", "", "Close","5","0","PrimaryOnly",,,"False","T","EveryTick") -> 185.7 | U69: 0.009678120922 | V69: =RTD("cqg.rtd",,"StudyData", "Close("&$D$12&") when LocalYear("&$D$12&")="&$D$8&" and localMonth("&$D$12&") ="&$E$8&" and LocalDay("&$D$12&")="&$F$8&" and Barix("&$D$12&",reference:=StartOfSession)="&A69&"", "Bar", "", "Close","5","0","PrimaryOnly",,,"False","T","EveryTick") ->  | X69: =RTD("cqg.rtd",,"StudyData", "Close("&$D$12&") when LocalYear("&$D$12&")="&$D$9&" and localMonth("&$D$12&") ="&$E$9&" and LocalDay("&$D$12&")="&$F$9&" and Barix("&$D$12&",reference:=StartOfSession)="&A69&"", "Bar", "", "Close","5","0","PrimaryOnly",,,"False","T","EveryTick") -> 186.51 | Y69: 0.007563070607 | Z69: =RTD("cqg.rtd",,"StudyData", "Close("&$D$12&") when LocalYear("&$D$12&")="&$D$10&" and localMonth("&$D$12&") ="&$E$10&" and LocalDay("&$D$12&")="&$F$10&" and Barix("&$D$12&",reference:=StartOfSession)="&A69&"", "Bar", "", "Close","5","0","PrimaryOnly",,,"False","T","EveryTick") -> 186.24 | AA69: 0.003989218329
A70: 69 | B70: 14:15:00 | C70: -8 | D70: =RTD("cqg.rtd",,"StudyData", $D$12, "Tick", "FlatTicks=0", "Tick","D",C70,"PrimaryOnly") -> 191.44 | H70: =RTD("cqg.rtd",,"StudyData", "Close("&$D$12&") when LocalYear("&$D$12&")="&$D$1&" and localMonth("&$D$12&") ="&$E$1&" and LocalDay("&$D$12&")="&$F$1&" and Barix("&$D$12&",reference:=StartOfSession)="&A70&"", "Bar", "", "Close","5","0","PrimaryOnly",,,"False","T","EveryTick") ->  | J70: =RTD("cqg.rtd",,"StudyData", "Close("&$D$12&") when LocalYear("&$D$12&")="&$D$2&" and localMonth("&$D$12&") ="&$E$2&" and LocalDay("&$D$12&")="&$F$2&" and Barix("&$D$12&",reference:=StartOfSession)="&A70&"", "Bar", "", "Close","5","0","PrimaryOnly",,,"False","T","EveryTick") -> 190.98 | K70: 0.01649989355 | L70: =RTD("cqg.rtd",,"StudyData", "Close("&$D$12&") when LocalYear("&$D$12&")="&$D$3&" and localMonth("&$D$12&") ="&$E$3&" and LocalDay("&$D$12&")="&$F$3&" and Barix("&$D$12&",reference:=StartOfSession)="&A70&"", "Bar", "", "Close","5","0","PrimaryOnly",,,"False","T","EveryTick") -> 188.15 | M70: -0.01155765695 | N70: =RTD("cqg.rtd",,"StudyData", "Close("&$D$12&") when LocalYear("&$D$12&")="&$D$4&" and localMonth("&$D$12&") ="&$E$4&" and LocalDay("&$D$12&")="&$F$4&" and Barix("&$D$12&",reference:=StartOfSession)="&A70&"", "Bar", "", "Close","5","0","PrimaryOnly",,,"False","T","EveryTick") -> 190.77 | O70: 0.0009969566586 | P70: =RTD("cqg.rtd",,"StudyData", "Close("&$D$12&") when LocalYear("&$D$12&")="&$D$5&" and localMonth("&$D$12&") ="&$E$5&" and LocalDay("&$D$12&")="&$F$5&" and Barix("&$D$12&",reference:=StartOfSession)="&A70&"", "Bar", "", "Close","5","0","PrimaryOnly",,,"False","T","EveryTick") -> 190.39 | Q70: 0.01287439485 | R70: =RTD("cqg.rtd",,"StudyData", "Close("&$D$12&") when LocalYear("&$D$12&")="&$D$6&" and localMonth("&$D$12&") ="&$E$6&" and LocalDay("&$D$12&")="&$F$6&" and Barix("&$D$12&",reference:=StartOfSession)="&A70&"", "Bar", "", "Close","5","0","PrimaryOnly",,,"False","T","EveryTick") -> 187.91 | S70: 0.01353829558 | T70: =RTD("cqg.rtd",,"StudyData", "Close("&$D$12&") when LocalYear("&$D$12&")="&$D$7&" and localMonth("&$D$12&") ="&$E$7&" and LocalDay("&$D$12&")="&$F$7&" and Barix("&$D$12&",reference:=StartOfSession)="&A70&"", "Bar", "", "Close","5","0","PrimaryOnly",,,"False","T","EveryTick") -> 185.78 | U70: 0.01011309265 | V70: =RTD("cqg.rtd",,"StudyData", "Close("&$D$12&") when LocalYear("&$D$12&")="&$D$8&" and localMonth("&$D$12&") ="&$E$8&" and LocalDay("&$D$12&")="&$F$8&" and Barix("&$D$12&",reference:=StartOfSession)="&A70&"", "Bar", "", "Close","5","0","PrimaryOnly",,,"False","T","EveryTick") ->  | X70: =RTD("cqg.rtd",,"StudyData", "Close("&$D$12&") when LocalYear("&$D$12&")="&$D$9&" and localMonth("&$D$12&") ="&$E$9&" and LocalDay("&$D$12&")="&$F$9&" and Barix("&$D$12&",reference:=StartOfSession)="&A70&"", "Bar", "", "Close","5","0","PrimaryOnly",,,"False","T","EveryTick") -> 186.56 | Y70: 0.007833180271 | Z70: =RTD("cqg.rtd",,"StudyData", "Close("&$D$12&") when LocalYear("&$D$12&")="&$D$10&" and localMonth("&$D$12&") ="&$E$10&" and LocalDay("&$D$12&")="&$F$10&" and Barix("&$D$12&",reference:=StartOfSession)="&A70&"", "Bar", "", "Close","5","0","PrimaryOnly",,,"False","T","EveryTick") -> 186.27 | AA70: 0.004150943396
A71: 70 | B71: 14:20:00 | C71: -7 | D71: =RTD("cqg.rtd",,"StudyData", $D$12, "Tick", "FlatTicks=0", "Tick","D",C71,"PrimaryOnly") -> 191.46 | H71: =RTD("cqg.rtd",,"StudyData", "Close("&$D$12&") when LocalYear("&$D$12&")="&$D$1&" and localMonth("&$D$12&") ="&$E$1&" and LocalDay("&$D$12&")="&$F$1&" and Barix("&$D$12&",reference:=StartOfSession)="&A71&"", "Bar", "", "Close","5","0","PrimaryOnly",,,"False","T","EveryTick") ->  | J71: =RTD("cqg.rtd",,"StudyData", "Close("&$D$12&") when LocalYear("&$D$12&")="&$D$2&" and localMonth("&$D$12&") ="&$E$2&" and LocalDay("&$D$12&")="&$F$2&" and Barix("&$D$12&",reference:=StartOfSession)="&A71&"", "Bar", "", "Close","5","0","PrimaryOnly",,,"False","T","EveryTick") -> 190.76 | K71: 0.01532893336 | L71: =RTD("cqg.rtd",,"StudyData", "Close("&$D$12&") when LocalYear("&$D$12&")="&$D$3&" and localMonth("&$D$12&") ="&$E$3&" and LocalDay("&$D$12&")="&$F$3&" and Barix("&$D$12&",reference:=StartOfSession)="&A71&"", "Bar", "", "Close","5","0","PrimaryOnly",,,"False","T","EveryTick") -> 187.99 | M71: -0.01239821382 | N71: =RTD("cqg.rtd",,"StudyData", "Close("&$D$12&") when LocalYear("&$D$12&")="&$D$4&" and localMonth("&$D$12&") ="&$E$4&" and LocalDay("&$D$12&")="&$F$4&" and Barix("&$D$12&",reference:=StartOfSession)="&A71&"", "Bar", "", "Close","5","0","PrimaryOnly",,,"False","T","EveryTick") -> 190.76 | O71: 0.0009444852555 | P71: =RTD("cqg.rtd",,"StudyData", "Close("&$D$12&") when LocalYear("&$D$12&")="&$D$5&" and localMonth("&$D$12&") ="&$E$5&" and LocalDay("&$D$12&")="&$F$5&" and Barix("&$D$12&",reference:=StartOfSession)="&A71&"", "Bar", "", "Close","5","0","PrimaryOnly",,,"False","T","EveryTick") -> 190.46 | Q71: 0.0132467947 | R71: =RTD("cqg.rtd",,"StudyData", "Close("&$D$12&") when LocalYear("&$D$12&")="&$D$6&" and localMonth("&$D$12&") ="&$E$6&" and LocalDay("&$D$12&")="&$F$6&" and Barix("&$D$12&",reference:=StartOfSession)="&A71&"", "Bar", "", "Close","5","0","PrimaryOnly",,,"False","T","EveryTick") -> 188.12 | S71: 0.01467098166 | T71: =RTD("cqg.rtd",,"StudyData", "Close("&$D$12&") when LocalYear("&$D$12&")="&$D$7&" and localMonth("&$D$12&") ="&$E$7&" and LocalDay("&$D$12&")="&$F$7&" and Barix("&$D$12&",reference:=StartOfSession)="&A71&"", "Bar", "", "Close","5","0","PrimaryOnly",,,"False","T","EveryTick") -> 185.6 | U71: 0.009134406264 | V71: =RTD("cqg.rtd",,"StudyData", "Close("&$D$12&") when LocalYear("&$D$12&")="&$D$8&" and localMonth("&$D$12&") ="&$E$8&" and LocalDay("&$D$12&")="&$F$8&" and Barix("&$D$12&",reference:=StartOfSession)="&A71&"", "Bar", "", "Close","5","0","PrimaryOnly",,,"False","T","EveryTick") ->  | X71: =RTD("cqg.rtd",,"StudyData", "Close("&$D$12&") when LocalYear("&$D$12&")="&$D$9&" and localMonth("&$D$12&") ="&$E$9&" and LocalDay("&$D$12&")="&$F$9&" and Barix("&$D$12&",reference:=StartOfSession)="&A71&"", "Bar", "", "Close","5","0","PrimaryOnly",,,"False","T","EveryTick") -> 186.74 | Y71: 0.008805575063 | Z71: =RTD("cqg.rtd",,"StudyData", "Close("&$D$12&") when LocalYear("&$D$12&")="&$D$10&" and localMonth("&$D$12&") ="&$E$10&" and LocalDay("&$D$12&")="&$F$10&" and Barix("&$D$12&",reference:=StartOfSession)="&A71&"", "Bar", "", "Close","5","0","PrimaryOnly",,,"False","T","EveryTick") -> 186.26 | AA71: 0.00409703504
A72: 71 | B72: 14:25:00 | C72: -6 | D72: =RTD("cqg.rtd",,"StudyData", $D$12, "Tick", "FlatTicks=0", "Tick","D",C72,"PrimaryOnly") -> 191.47 | H72: =RTD("cqg.rtd",,"StudyData", "Close("&$D$12&") when LocalYear("&$D$12&")="&$D$1&" and localMonth("&$D$12&") ="&$E$1&" and LocalDay("&$D$12&")="&$F$1&" and Barix("&$D$12&",reference:=StartOfSession)="&A72&"", "Bar", "", "Close","5","0","PrimaryOnly",,,"False","T","EveryTick") ->  | J72: =RTD("cqg.rtd",,"StudyData", "Close("&$D$12&") when LocalYear("&$D$12&")="&$D$2&" and localMonth("&$D$12&") ="&$E$2&" and LocalDay("&$D$12&")="&$F$2&" and Barix("&$D$12&",reference:=StartOfSession)="&A72&"", "Bar", "", "Close","5","0","PrimaryOnly",,,"False","T","EveryTick") -> 190.91 | K72: 0.01612731531 | L72: =RTD("cqg.rtd",,"StudyData", "Close("&$D$12&") when LocalYear("&$D$12&")="&$D$3&" and localMonth("&$D$12&") ="&$E$3&" and LocalDay("&$D$12&")="&$F$3&" and Barix("&$D$12&",reference:=StartOfSession)="&A72&"", "Bar", "", "Close","5","0","PrimaryOnly",,,"False","T","EveryTick") -> 187.92 | M72: -0.01276595745 | N72: =RTD("cqg.rtd",,"StudyData", "Close("&$D$12&") when LocalYear("&$D$12&")="&$D$4&" and localMonth("&$D$12&") ="&$E$4&" and LocalDay("&$D$12&")="&$F$4&" and Barix("&$D$12&",reference:=StartOfSession)="&A72&"", "Bar", "", "Close","5","0","PrimaryOnly",,,"False","T","EveryTick") -> 190.64 | O72: 0.0003148284185 | P72: =RTD("cqg.rtd",,"StudyData", "Close("&$D$12&") when LocalYear("&$D$12&")="&$D$5&" and localMonth("&$D$12&") ="&$E$5&" and LocalDay("&$D$12&")="&$F$5&" and Barix("&$D$12&",reference:=StartOfSession)="&A72&"", "Bar", "", "Close","5","0","PrimaryOnly",,,"False","T","EveryTick") -> 190.48 | Q72: 0.01335319466 | R72: =RTD("cqg.rtd",,"StudyData", "Close("&$D$12&") when LocalYear("&$D$12&")="&$D$6&" and localMonth("&$D$12&") ="&$E$6&" and LocalDay("&$D$12&")="&$F$6&" and Barix("&$D$12&",reference:=StartOfSession)="&A72&"", "Bar", "", "Close","5","0","PrimaryOnly",,,"False","T","EveryTick") -> 188.33 | S72: 0.01580366775 | T72: =RTD("cqg.rtd",,"StudyData", "Close("&$D$12&") when LocalYear("&$D$12&")="&$D$7&" and localMonth("&$D$12&") ="&$E$7&" and LocalDay("&$D$12&")="&$F$7&" and Barix("&$D$12&",reference:=StartOfSession)="&A72&"", "Bar", "", "Close","5","0","PrimaryOnly",,,"False","T","EveryTick") -> 185.53 | U72: 0.008753806003 | V72: =RTD("cqg.rtd",,"StudyData", "Close("&$D$12&") when LocalYear("&$D$12&")="&$D$8&" and localMonth("&$D$12&") ="&$E$8&" and LocalDay("&$D$12&")="&$F$8&" and Barix("&$D$12&",reference:=StartOfSession)="&A72&"", "Bar", "", "Close","5","0","PrimaryOnly",,,"False","T","EveryTick") ->  | X72: =RTD("cqg.rtd",,"StudyData", "Close("&$D$12&") when LocalYear("&$D$12&")="&$D$9&" and localMonth("&$D$12&") ="&$E$9&" and LocalDay("&$D$12&")="&$F$9&" and Barix("&$D$12&",reference:=StartOfSession)="&A72&"", "Bar", "", "Close","5","0","PrimaryOnly",,,"False","T","EveryTick") -> 186.87 | Y72: 0.009507860191 | Z72: =RTD("cqg.rtd",,"StudyData", "Close("&$D$12&") when LocalYear("&$D$12&")="&$D$10&" and localMonth("&$D$12&") ="&$E$10&" and LocalDay("&$D$12&")="&$F$10&" and Barix("&$D$12&",reference:=StartOfSession)="&A72&"", "Bar", "", "Close","5","0","PrimaryOnly",,,"False","T","EveryTick") -> 186.2 | AA72: 0.003773584906
A73: 72 | B73: 14:30:00 | C73: -5 | D73: =RTD("cqg.rtd",,"StudyData", $D$12, "Tick", "FlatTicks=0", "Tick","D",C73,"PrimaryOnly") -> 191.49 | H73: =RTD("cqg.rtd",,"StudyData", "Close("&$D$12&") when LocalYear("&$D$12&")="&$D$1&" and localMonth("&$D$12&") ="&$E$1&" and LocalDay("&$D$12&")="&$F$1&" and Barix("&$D$12&",reference:=StartOfSession)="&A73&"", "Bar", "", "Close","5","0","PrimaryOnly",,,"False","T","EveryTick") ->  | J73: =RTD("cqg.rtd",,"StudyData", "Close("&$D$12&") when LocalYear("&$D$12&")="&$D$2&" and localMonth("&$D$12&") ="&$E$2&" and LocalDay("&$D$12&")="&$F$2&" and Barix("&$D$12&",reference:=StartOfSession)="&A73&"", "Bar", "", "Close","5","0","PrimaryOnly",,,"False","T","EveryTick") -> 190.92 | K73: 0.01618054077 | L73: =RTD("cqg.rtd",,"StudyData", "Close("&$D$12&") when LocalYear("&$D$12&")="&$D$3&" and localMonth("&$D$12&") ="&$E$3&" and LocalDay("&$D$12&")="&$F$3&" and Barix("&$D$12&",reference:=StartOfSession)="&A73&"", "Bar", "", "Close","5","0","PrimaryOnly",,,"False","T","EveryTick") -> 187.92 | M73: -0.01276595745 | N73: =RTD("cqg.rtd",,"StudyData", "Close("&$D$12&") when LocalYear("&$D$12&")="&$D$4&" and localMonth("&$D$12&") ="&$E$4&" and LocalDay("&$D$12&")="&$F$4&" and Barix("&$D$12&",reference:=StartOfSession)="&A73&"", "Bar", "", "Close","5","0","PrimaryOnly",,,"False","T","EveryTick") -> 190.77 | O73: 0.0009969566586 | P73: =RTD("cqg.rtd",,"StudyData", "Close("&$D$12&") when LocalYear("&$D$12&")="&$D$5&" and localMonth("&$D$12&") ="&$E$5&" and LocalDay("&$D$12&")="&$F$5&" and Barix("&$D$12&",reference:=StartOfSession)="&A73&"", "Bar", "", "Close","5","0","PrimaryOnly",,,"False","T","EveryTick") -> 190.4 | Q73: 0.01292759483 | R73: =RTD("cqg.rtd",,"StudyData", "Close("&$D$12&") when LocalYear("&$D$12&")="&$D$6&" and localMonth("&$D$12&") ="&$E$6&" and LocalDay("&$D$12&")="&$F$6&" and Barix("&$D$12&",reference:=StartOfSession)="&A73&"", "Bar", "", "Close","5","0","PrimaryOnly",,,"False","T","EveryTick") -> 188.28 | S73: 0.01553398058 | T73: =RTD("cqg.rtd",,"StudyData", "Close("&$D$12&") when LocalYear("&$D$12&")="&$D$7&" and localMonth("&$D$12&") ="&$E$7&" and LocalDay("&$D$12&")="&$F$7&" and Barix("&$D$12&",reference:=StartOfSession)="&A73&"", "Bar", "", "Close","5","0","PrimaryOnly",,,"False","T","EveryTick") -> 185.69 | U73: 0.009623749456 | V73: =RTD("cqg.rtd",,"StudyData", "Close("&$D$12&") when LocalYear("&$D$12&")="&$D$8&" and localMonth("&$D$12&") ="&$E$8&" and LocalDay("&$D$12&")="&$F$8&" and Barix("&$D$12&",reference:=StartOfSession)="&A73&"", "Bar", "", "Close","5","0","PrimaryOnly",,,"False","T","EveryTick") ->  | X73: =RTD("cqg.rtd",,"StudyData", "Close("&$D$12&") when LocalYear("&$D$12&")="&$D$9&" and localMonth("&$D$12&") ="&$E$9&" and LocalDay("&$D$12&")="&$F$9&" and Barix("&$D$12&",reference:=StartOfSession)="&A73&"", "Bar", "", "Close","5","0","PrimaryOnly",,,"False","T","EveryTick") -> 186.79 | Y73: 0.009075684728 | Z73: =RTD("cqg.rtd",,"StudyData", "Close("&$D$12&") when LocalYear("&$D$12&")="&$D$10&" and localMonth("&$D$12&") ="&$E$10&" and LocalDay("&$D$12&")="&$F$10&" and Barix("&$D$12&",reference:=StartOfSession)="&A73&"", "Bar", "", "Close","5","0","PrimaryOnly",,,"False","T","EveryTick") -> 186.11 | AA73: 0.003288409704
A74: 73 | B74: 14:35:00 | C74: -4 | D74: =RTD("cqg.rtd",,"StudyData", $D$12, "Tick", "FlatTicks=0", "Tick","D",C74,"PrimaryOnly") -> 191.5 | H74: =RTD("cqg.rtd",,"StudyData", "Close("&$D$12&") when LocalYear("&$D$12&")="&$D$1&" and localMonth("&$D$12&") ="&$E$1&" and LocalDay("&$D$12&")="&$F$1&" and Barix("&$D$12&",reference:=StartOfSession)="&A74&"", "Bar", "", "Close","5","0","PrimaryOnly",,,"False","T","EveryTick") ->  | J74: =RTD("cqg.rtd",,"StudyData", "Close("&$D$12&") when LocalYear("&$D$12&")="&$D$2&" and localMonth("&$D$12&") ="&$E$2&" and LocalDay("&$D$12&")="&$F$2&" and Barix("&$D$12&",reference:=StartOfSession)="&A74&"", "Bar", "", "Close","5","0","PrimaryOnly",,,"False","T","EveryTick") -> 190.88 | K74: 0.01596763892 | L74: =RTD("cqg.rtd",,"StudyData", "Close("&$D$12&") when LocalYear("&$D$12&")="&$D$3&" and localMonth("&$D$12&") ="&$E$3&" and LocalDay("&$D$12&")="&$F$3&" and Barix("&$D$12&",reference:=StartOfSession)="&A74&"", "Bar", "", "Close","5","0","PrimaryOnly",,,"False","T","EveryTick") -> 187.99 | M74: -0.01239821382 | N74: =RTD("cqg.rtd",,"StudyData", "Close("&$D$12&") when LocalYear("&$D$12&")="&$D$4&" and localMonth("&$D$12&") ="&$E$4&" and LocalDay("&$D$12&")="&$F$4&" and Barix("&$D$12&",reference:=StartOfSession)="&A74&"", "Bar", "", "Close","5","0","PrimaryOnly",,,"False","T","EveryTick") -> 190.73 | O74: 0.0007870710463 | P74: =RTD("cqg.rtd",,"StudyData", "Close("&$D$12&") when LocalYear("&$D$12&")="&$D$5&" and localMonth("&$D$12&") ="&$E$5&" and LocalDay("&$D$12&")="&$F$5&" and Barix("&$D$12&",reference:=StartOfSession)="&A74&"", "Bar", "", "Close","5","0","PrimaryOnly",,,"False","T","EveryTick") -> 190.52 | Q74: 0.01356599457 | R74: =RTD("cqg.rtd",,"StudyData", "Close("&$D$12&") when LocalYear("&$D$12&")="&$D$6&" and localMonth("&$D$12&") ="&$E$6&" and LocalDay("&$D$12&")="&$F$6&" and Barix("&$D$12&",reference:=StartOfSession)="&A74&"", "Bar", "", "Close","5","0","PrimaryOnly",,,"False","T","EveryTick") -> 188.35 | S74: 0.01591154261 | T74: =RTD("cqg.rtd",,"StudyData", "Close("&$D$12&") when LocalYear("&$D$12&")="&$D$7&" and localMonth("&$D$12&") ="&$E$7&" and LocalDay("&$D$12&")="&$F$7&" and Barix("&$D$12&",reference:=StartOfSession)="&A74&"", "Bar", "", "Close","5","0","PrimaryOnly",,,"False","T","EveryTick") -> 185.56 | U74: 0.0089169204 | V74: =RTD("cqg.rtd",,"StudyData", "Close("&$D$12&") when LocalYear("&$D$12&")="&$D$8&" and localMonth("&$D$12&") ="&$E$8&" and LocalDay("&$D$12&")="&$F$8&" and Barix("&$D$12&",reference:=StartOfSession)="&A74&"", "Bar", "", "Close","5","0","PrimaryOnly",,,"False","T","EveryTick") ->  | X74: =RTD("cqg.rtd",,"StudyData", "Close("&$D$12&") when LocalYear("&$D$12&")="&$D$9&" and localMonth("&$D$12&") ="&$E$9&" and LocalDay("&$D$12&")="&$F$9&" and Barix("&$D$12&",reference:=StartOfSession)="&A74&"", "Bar", "", "Close","5","0","PrimaryOnly",,,"False","T","EveryTick") -> 187 | Y74: 0.01021014532 | Z74: =RTD("cqg.rtd",,"StudyData", "Close("&$D$12&") when LocalYear("&$D$12&")="&$D$10&" and localMonth("&$D$12&") ="&$E$10&" and LocalDay("&$D$12&")="&$F$10&" and Barix("&$D$12&",reference:=StartOfSession)="&A74&"", "Bar", "", "Close","5","0","PrimaryOnly",,,"False","T","EveryTick") -> 185.96 | AA74: 0.002479784367
A75: 74 | B75: 14:40:00 | C75: -3 | D75: =RTD("cqg.rtd",,"StudyData", $D$12, "Tick", "FlatTicks=0", "Tick","D",C75,"PrimaryOnly") -> 191.49 | H75: =RTD("cqg.rtd",,"StudyData", "Close("&$D$12&") when LocalYear("&$D$12&")="&$D$1&" and localMonth("&$D$12&") ="&$E$1&" and LocalDay("&$D$12&")="&$F$1&" and Barix("&$D$12&",reference:=StartOfSession)="&A75&"", "Bar", "", "Close","5","0","PrimaryOnly",,,"False","T","EveryTick") ->  | J75: =RTD("cqg.rtd",,"StudyData", "Close("&$D$12&") when LocalYear("&$D$12&")="&$D$2&" and localMonth("&$D$12&") ="&$E$2&" and LocalDay("&$D$12&")="&$F$2&" and Barix("&$D$12&",reference:=StartOfSession)="&A75&"", "Bar", "", "Close","5","0","PrimaryOnly",,,"False","T","EveryTick") -> 190.88 | K75: 0.01596763892 | L75: =RTD("cqg.rtd",,"StudyData", "Close("&$D$12&") when LocalYear("&$D$12&")="&$D$3&" and localMonth("&$D$12&") ="&$E$3&" and LocalDay("&$D$12&")="&$F$3&" and Barix("&$D$12&",reference:=StartOfSession)="&A75&"", "Bar", "", "Close","5","0","PrimaryOnly",,,"False","T","EveryTick") -> 187.83 | M75: -0.01323877069 | N75: =RTD("cqg.rtd",,"StudyData", "Close("&$D$12&") when LocalYear("&$D$12&")="&$D$4&" and localMonth("&$D$12&") ="&$E$4&" and LocalDay("&$D$12&")="&$F$4&" and Barix("&$D$12&",reference:=StartOfSession)="&A75&"", "Bar", "", "Close","5","0","PrimaryOnly",,,"False","T","EveryTick") -> 190.55 | O75: -0.0001574142093 | P75: =RTD("cqg.rtd",,"StudyData", "Close("&$D$12&") when LocalYear("&$D$12&")="&$D$5&" and localMonth("&$D$12&") ="&$E$5&" and LocalDay("&$D$12&")="&$F$5&" and Barix("&$D$12&",reference:=StartOfSession)="&A75&"", "Bar", "", "Close","5","0","PrimaryOnly",,,"False","T","EveryTick") -> 190.58 | Q75: 0.01388519445 | R75: =RTD("cqg.rtd",,"StudyData", "Close("&$D$12&") when LocalYear("&$D$12&")="&$D$6&" and localMonth("&$D$12&") ="&$E$6&" and LocalDay("&$D$12&")="&$F$6&" and Barix("&$D$12&",reference:=StartOfSession)="&A75&"", "Bar", "", "Close","5","0","PrimaryOnly",,,"False","T","EveryTick") -> 188.13 | S75: 0.01472491909 | T75: =RTD("cqg.rtd",,"StudyData", "Close("&$D$12&") when LocalYear("&$D$12&")="&$D$7&" and localMonth("&$D$12&") ="&$E$7&" and LocalDay("&$D$12&")="&$F$7&" and Barix("&$D$12&",reference:=StartOfSession)="&A75&"", "Bar", "", "Close","5","0","PrimaryOnly",,,"False","T","EveryTick") -> 185.63 | U75: 0.009297520661 | V75: =RTD("cqg.rtd",,"StudyData", "Close("&$D$12&") when LocalYear("&$D$12&")="&$D$8&" and localMonth("&$D$12&") ="&$E$8&" and LocalDay("&$D$12&")="&$F$8&" and Barix("&$D$12&",reference:=StartOfSession)="&A75&"", "Bar", "", "Close","5","0","PrimaryOnly",,,"False","T","EveryTick") ->  | X75: =RTD("cqg.rtd",,"StudyData", "Close("&$D$12&") when LocalYear("&$D$12&")="&$D$9&" and localMonth("&$D$12&") ="&$E$9&" and LocalDay("&$D$12&")="&$F$9&" and Barix("&$D$12&",reference:=StartOfSession)="&A75&"", "Bar", "", "Close","5","0","PrimaryOnly",,,"False","T","EveryTick") -> 187 | Y75: 0.01021014532 | Z75: =RTD("cqg.rtd",,"StudyData", "Close("&$D$12&") when LocalYear("&$D$12&")="&$D$10&" and localMonth("&$D$12&") ="&$E$10&" and LocalDay("&$D$12&")="&$F$10&" and Barix("&$D$12&",reference:=StartOfSession)="&A75&"", "Bar", "", "Close","5","0","PrimaryOnly",,,"False","T","EveryTick") -> 186.15 | AA75: 0.003504043127
A76: 75 | B76: 14:45:00 | C76: -2 | D76: =RTD("cqg.rtd",,"StudyData", $D$12, "Tick", "FlatTicks=0", "Tick","D",C76,"PrimaryOnly") -> 191.5 | H76: =RTD("cqg.rtd",,"StudyData", "Close("&$D$12&") when LocalYear("&$D$12&")="&$D$1&" and localMonth("&$D$12&") ="&$E$1&" and LocalDay("&$D$12&")="&$F$1&" and Barix("&$D$12&",reference:=StartOfSession)="&A76&"", "Bar", "", "Close","5","0","PrimaryOnly",,,"False","T","EveryTick") ->  | J76: =RTD("cqg.rtd",,"StudyData", "Close("&$D$12&") when LocalYear("&$D$12&")="&$D$2&" and localMonth("&$D$12&") ="&$E$2&" and LocalDay("&$D$12&")="&$F$2&" and Barix("&$D$12&",reference:=StartOfSession)="&A76&"", "Bar", "", "Close","5","0","PrimaryOnly",,,"False","T","EveryTick") -> 190.94 | K76: 0.0162869917 | L76: =RTD("cqg.rtd",,"StudyData", "Close("&$D$12&") when LocalYear("&$D$12&")="&$D$3&" and localMonth("&$D$12&") ="&$E$3&" and LocalDay("&$D$12&")="&$F$3&" and Barix("&$D$12&",reference:=StartOfSession)="&A76&"", "Bar", "", "Close","5","0","PrimaryOnly",,,"False","T","EveryTick") -> 188 | M76: -0.01234567901 | N76: =RTD("cqg.rtd",,"StudyData", "Close("&$D$12&") when LocalYear("&$D$12&")="&$D$4&" and localMonth("&$D$12&") ="&$E$4&" and LocalDay("&$D$12&")="&$F$4&" and Barix("&$D$12&",reference:=StartOfSession)="&A76&"", "Bar", "", "Close","5","0","PrimaryOnly",,,"False","T","EveryTick") -> 190.3 | O76: -0.001469199286 | P76: =RTD("cqg.rtd",,"StudyData", "Close("&$D$12&") when LocalYear("&$D$12&")="&$D$5&" and localMonth("&$D$12&") ="&$E$5&" and LocalDay("&$D$12&")="&$F$5&" and Barix("&$D$12&",reference:=StartOfSession)="&A76&"", "Bar", "", "Close","5","0","PrimaryOnly",,,"False","T","EveryTick") -> 190.62 | Q76: 0.01409799436 | R76: =RTD("cqg.rtd",,"StudyData", "Close("&$D$12&") when LocalYear("&$D$12&")="&$D$6&" and localMonth("&$D$12&") ="&$E$6&" and LocalDay("&$D$12&")="&$F$6&" and Barix("&$D$12&",reference:=StartOfSession)="&A76&"", "Bar", "", "Close","5","0","PrimaryOnly",,,"False","T","EveryTick") -> 187.7 | S76: 0.01240560949 | T76: =RTD("cqg.rtd",,"StudyData", "Close("&$D$12&") when LocalYear("&$D$12&")="&$D$7&" and localMonth("&$D$12&") ="&$E$7&" and LocalDay("&$D$12&")="&$F$7&" and Barix("&$D$12&",reference:=StartOfSession)="&A76&"", "Bar", "", "Close","5","0","PrimaryOnly",,,"False","T","EveryTick") -> 185.51 | U76: 0.008645063071 | V76: =RTD("cqg.rtd",,"StudyData", "Close("&$D$12&") when LocalYear("&$D$12&")="&$D$8&" and localMonth("&$D$12&") ="&$E$8&" and LocalDay("&$D$12&")="&$F$8&" and Barix("&$D$12&",reference:=StartOfSession)="&A76&"", "Bar", "", "Close","5","0","PrimaryOnly",,,"False","T","EveryTick") ->  | X76: =RTD("cqg.rtd",,"StudyData", "Close("&$D$12&") when LocalYear("&$D$12&")="&$D$9&" and localMonth("&$D$12&") ="&$E$9&" and LocalDay("&$D$12&")="&$F$9&" and Barix("&$D$12&",reference:=StartOfSession)="&A76&"", "Bar", "", "Close","5","0","PrimaryOnly",,,"False","T","EveryTick") -> 186.95 | Y76: 0.009940035654 | Z76: =RTD("cqg.rtd",,"StudyData", "Close("&$D$12&") when LocalYear("&$D$12&")="&$D$10&" and localMonth("&$D$12&") ="&$E$10&" and LocalDay("&$D$12&")="&$F$10&" and Barix("&$D$12&",reference:=StartOfSession)="&A76&"", "Bar", "", "Close","5","0","PrimaryOnly",,,"False","T","EveryTick") -> 185.97 | AA76: 0.002533692722
A77: 76 | B77: 14:50:00 | C77: -1 | D77: =RTD("cqg.rtd",,"StudyData", $D$12, "Tick", "FlatTicks=0", "Tick","D",C77,"PrimaryOnly") -> 191.51 | H77: =RTD("cqg.rtd",,"StudyData", "Close("&$D$12&") when LocalYear("&$D$12&")="&$D$1&" and localMonth("&$D$12&") ="&$E$1&" and LocalDay("&$D$12&")="&$F$1&" and Barix("&$D$12&",reference:=StartOfSession)="&A77&"", "Bar", "", "Close","5","0","PrimaryOnly",,,"False","T","EveryTick") ->  | J77: =RTD("cqg.rtd",,"StudyData", "Close("&$D$12&") when LocalYear("&$D$12&")="&$D$2&" and localMonth("&$D$12&") ="&$E$2&" and LocalDay("&$D$12&")="&$F$2&" and Barix("&$D$12&",reference:=StartOfSession)="&A77&"", "Bar", "", "Close","5","0","PrimaryOnly",,,"False","T","EveryTick") -> 190.86 | K77: 0.01586118799 | L77: =RTD("cqg.rtd",,"StudyData", "Close("&$D$12&") when LocalYear("&$D$12&")="&$D$3&" and localMonth("&$D$12&") ="&$E$3&" and LocalDay("&$D$12&")="&$F$3&" and Barix("&$D$12&",reference:=StartOfSession)="&A77&"", "Bar", "", "Close","5","0","PrimaryOnly",,,"False","T","EveryTick") -> 187.82 | M77: -0.01329130549 | N77: =RTD("cqg.rtd",,"StudyData", "Close("&$D$12&") when LocalYear("&$D$12&")="&$D$4&" and localMonth("&$D$12&") ="&$E$4&" and LocalDay("&$D$12&")="&$F$4&" and Barix("&$D$12&",reference:=StartOfSession)="&A77&"", "Bar", "", "Close","5","0","PrimaryOnly",,,"False","T","EveryTick") -> 190.45 | O77: -0.0006821282401 | P77: =RTD("cqg.rtd",,"StudyData", "Close("&$D$12&") when LocalYear("&$D$12&")="&$D$5&" and localMonth("&$D$12&") ="&$E$5&" and LocalDay("&$D$12&")="&$F$5&" and Barix("&$D$12&",reference:=StartOfSession)="&A77&"", "Bar", "", "Close","5","0","PrimaryOnly",,,"False","T","EveryTick") -> 190.5 | Q77: 0.01345959462 | R77: =RTD("cqg.rtd",,"StudyData", "Close("&$D$12&") when LocalYear("&$D$12&")="&$D$6&" and localMonth("&$D$12&") ="&$E$6&" and LocalDay("&$D$12&")="&$F$6&" and Barix("&$D$12&",reference:=StartOfSession)="&A77&"", "Bar", "", "Close","5","0","PrimaryOnly",,,"False","T","EveryTick") -> 187.85 | S77: 0.01321467098 | T77: =RTD("cqg.rtd",,"StudyData", "Close("&$D$12&") when LocalYear("&$D$12&")="&$D$7&" and localMonth("&$D$12&") ="&$E$7&" and LocalDay("&$D$12&")="&$F$7&" and Barix("&$D$12&",reference:=StartOfSession)="&A77&"", "Bar", "", "Close","5","0","PrimaryOnly",,,"False","T","EveryTick") -> 185.5 | U77: 0.008590691605 | V77: =RTD("cqg.rtd",,"StudyData", "Close("&$D$12&") when LocalYear("&$D$12&")="&$D$8&" and localMonth("&$D$12&") ="&$E$8&" and LocalDay("&$D$12&")="&$F$8&" and Barix("&$D$12&",reference:=StartOfSession)="&A77&"", "Bar", "", "Close","5","0","PrimaryOnly",,,"False","T","EveryTick") ->  | X77: =RTD("cqg.rtd",,"StudyData", "Close("&$D$12&") when LocalYear("&$D$12&")="&$D$9&" and localMonth("&$D$12&") ="&$E$9&" and LocalDay("&$D$12&")="&$F$9&" and Barix("&$D$12&",reference:=StartOfSession)="&A77&"", "Bar", "", "Close","5","0","PrimaryOnly",,,"False","T","EveryTick") -> 187.04 | Y77: 0.01042623305 | Z77: =RTD("cqg.rtd",,"StudyData", "Close("&$D$12&") when LocalYear("&$D$12&")="&$D$10&" and localMonth("&$D$12&") ="&$E$10&" and LocalDay("&$D$12&")="&$F$10&" and Barix("&$D$12&",reference:=StartOfSession)="&A77&"", "Bar", "", "Close","5","0","PrimaryOnly",,,"False","T","EveryTick") -> 185.7 | AA77: 0.001078167116
A78: 77 | B78: 14:55:00 | C78: =C77+1 -> 0 | D78: =RTD("cqg.rtd",,"StudyData", $D$12, "Tick", "FlatTicks=0", "Tick","D",C78,"PrimaryOnly") -> 191.5 | H78: =RTD("cqg.rtd",,"StudyData", "Close("&$D$12&") when LocalYear("&$D$12&")="&$D$1&" and localMonth("&$D$12&") ="&$E$1&" and LocalDay("&$D$12&")="&$F$1&" and Barix("&$D$12&",reference:=StartOfSession)="&A78&"", "Bar", "", "Close","5","0","PrimaryOnly",,,"False","T","EveryTick") ->  | J78: =RTD("cqg.rtd",,"StudyData", "Close("&$D$12&") when LocalYear("&$D$12&")="&$D$2&" and localMonth("&$D$12&") ="&$E$2&" and LocalDay("&$D$12&")="&$F$2&" and Barix("&$D$12&",reference:=StartOfSession)="&A78&"", "Bar", "", "Close","5","0","PrimaryOnly",,,"False","T","EveryTick") -> 191.11 | K78: 0.01719182457 | L78: =RTD("cqg.rtd",,"StudyData", "Close("&$D$12&") when LocalYear("&$D$12&")="&$D$3&" and localMonth("&$D$12&") ="&$E$3&" and LocalDay("&$D$12&")="&$F$3&" and Barix("&$D$12&",reference:=StartOfSession)="&A78&"", "Bar", "", "Close","5","0","PrimaryOnly",,,"False","T","EveryTick") -> 187.88 | M78: -0.01297609666 | N78: =RTD("cqg.rtd",,"StudyData", "Close("&$D$12&") when LocalYear("&$D$12&")="&$D$4&" and localMonth("&$D$12&") ="&$E$4&" and LocalDay("&$D$12&")="&$F$4&" and Barix("&$D$12&",reference:=StartOfSession)="&A78&"", "Bar", "", "Close","5","0","PrimaryOnly",,,"False","T","EveryTick") -> 190.35 | O78: -0.001206842271 | P78: =RTD("cqg.rtd",,"StudyData", "Close("&$D$12&") when LocalYear("&$D$12&")="&$D$5&" and localMonth("&$D$12&") ="&$E$5&" and LocalDay("&$D$12&")="&$F$5&" and Barix("&$D$12&",reference:=StartOfSession)="&A78&"", "Bar", "", "Close","5","0","PrimaryOnly",,,"False","T","EveryTick") -> 190.58 | Q78: 0.01388519445 | R78: =RTD("cqg.rtd",,"StudyData", "Close("&$D$12&") when LocalYear("&$D$12&")="&$D$6&" and localMonth("&$D$12&") ="&$E$6&" and LocalDay("&$D$12&")="&$F$6&" and Barix("&$D$12&",reference:=StartOfSession)="&A78&"", "Bar", "", "Close","5","0","PrimaryOnly",,,"False","T","EveryTick") -> 187.97 | S78: 0.01386192017 | T78: =RTD("cqg.rtd",,"StudyData", "Close("&$D$12&") when LocalYear("&$D$12&")="&$D$7&" and localMonth("&$D$12&") ="&$E$7&" and LocalDay("&$D$12&")="&$F$7&" and Barix("&$D$12&",reference:=StartOfSession)="&A78&"", "Bar", "", "Close","5","0","PrimaryOnly",,,"False","T","EveryTick") -> 185.4 | U78: 0.008046976946 | V78: =RTD("cqg.rtd",,"StudyData", "Close("&$D$12&") when LocalYear("&$D$12&")="&$D$8&" and localMonth("&$D$12&") ="&$E$8&" and LocalDay("&$D$12&")="&$F$8&" and Barix("&$D$12&",reference:=StartOfSession)="&A78&"", "Bar", "", "Close","5","0","PrimaryOnly",,,"False","T","EveryTick") ->  | X78: =RTD("cqg.rtd",,"StudyData", "Close("&$D$12&") when LocalYear("&$D$12&")="&$D$9&" and localMonth("&$D$12&") ="&$E$9&" and LocalDay("&$D$12&")="&$F$9&" and Barix("&$D$12&",reference:=StartOfSession)="&A78&"", "Bar", "", "Close","5","0","PrimaryOnly",,,"False","T","EveryTick") -> 187.18 | Y78: 0.01118254011 | Z78: =RTD("cqg.rtd",,"StudyData", "Close("&$D$12&") when LocalYear("&$D$12&")="&$D$10&" and localMonth("&$D$12&") ="&$E$10&" and LocalDay("&$D$12&")="&$F$10&" and Barix("&$D$12&",reference:=StartOfSession)="&A78&"", "Bar", "", "Close","5","0","PrimaryOnly",,,"False","T","EveryTick") -> 185.11 | AA78: -0.002102425876
A79: 78 | B79: 15:00:00 | H79: =RTD("cqg.rtd",,"StudyData", "Close("&$D$12&") when LocalYear("&$D$12&")="&$D$1&" and localMonth("&$D$12&") ="&$E$1&" and LocalDay("&$D$12&")="&$F$1&" and Barix("&$D$12&",reference:=StartOfSession)="&A79&"", "Bar", "", "Close","5","0","PrimaryOnly",,,"False","T","EveryTick") ->  | J79: =RTD("cqg.rtd",,"StudyData", "Close("&$D$12&") when LocalYear("&$D$12&")="&$D$2&" and localMonth("&$D$12&") ="&$E$2&" and LocalDay("&$D$12&")="&$F$2&" and Barix("&$D$12&",reference:=StartOfSession)="&A79&"", "Bar", "", "Close","5","0","PrimaryOnly",,,"False","T","EveryTick") ->  | L79: =RTD("cqg.rtd",,"StudyData", "Close("&$D$12&") when LocalYear("&$D$12&")="&$D$3&" and localMonth("&$D$12&") ="&$E$3&" and LocalDay("&$D$12&")="&$F$3&" and Barix("&$D$12&",reference:=StartOfSession)="&A79&"", "Bar", "", "Close","5","0","PrimaryOnly",,,"False","T","EveryTick") ->  | N79: =RTD("cqg.rtd",,"StudyData", "Close("&$D$12&") when LocalYear("&$D$12&")="&$D$4&" and localMonth("&$D$12&") ="&$E$4&" and LocalDay("&$D$12&")="&$F$4&" and Barix("&$D$12&",reference:=StartOfSession)="&A79&"", "Bar", "", "Close","5","0","PrimaryOnly",,,"False","T","EveryTick") ->  | P79: =RTD("cqg.rtd",,"StudyData", "Close("&$D$12&") when LocalYear("&$D$12&")="&$D$5&" and localMonth("&$D$12&") ="&$E$5&" and LocalDay("&$D$12&")="&$F$5&" and Barix("&$D$12&",reference:=StartOfSession)="&A79&"", "Bar", "", "Close","5","0","PrimaryOnly",,,"False","T","EveryTick") ->  | R79: =RTD("cqg.rtd",,"StudyData", "Close("&$D$12&") when LocalYear("&$D$12&")="&$D$6&" and localMonth("&$D$12&") ="&$E$6&" and LocalDay("&$D$12&")="&$F$6&" and Barix("&$D$12&",reference:=StartOfSession)="&A79&"", "Bar", "", "Close","5","0","PrimaryOnly",,,"False","T","EveryTick") ->  | T79: =RTD("cqg.rtd",,"StudyData", "Close("&$D$12&") when LocalYear("&$D$12&")="&$D$7&" and localMonth("&$D$12&") ="&$E$7&" and LocalDay("&$D$12&")="&$F$7&" and Barix("&$D$12&",reference:=StartOfSession)="&A79&"", "Bar", "", "Close","5","0","PrimaryOnly",,,"False","T","EveryTick") ->  | V79: =RTD("cqg.rtd",,"StudyData", "Close("&$D$12&") when LocalYear("&$D$12&")="&$D$8&" and localMonth("&$D$12&") ="&$E$8&" and LocalDay("&$D$12&")="&$F$8&" and Barix("&$D$12&",reference:=StartOfSession)="&A79&"", "Bar", "", "Close","5","0","PrimaryOnly",,,"False","T","EveryTick") ->  | X79: =RTD("cqg.rtd",,"StudyData", "Close("&$D$12&") when LocalYear("&$D$12&")="&$D$9&" and localMonth("&$D$12&") ="&$E$9&" and LocalDay("&$D$12&")="&$F$9&" and Barix("&$D$12&",reference:=StartOfSession)="&A79&"", "Bar", "", "Close","5","0","PrimaryOnly",,,"False","T","EveryTick") ->  | Z79: =RTD("cqg.rtd",,"StudyData", "Close("&$D$12&") when LocalYear("&$D$12&")="&$D$10&" and localMonth("&$D$12&") ="&$E$10&" and LocalDay("&$D$12&")="&$F$10&" and Barix("&$D$12&",reference:=StartOfSession)="&A79&"", "Bar", "", "Close","5","0","PrimaryOnly",,,"False","T","EveryTick") -> 
A80: 79 | B80: 15:05:00 | H80: =RTD("cqg.rtd",,"StudyData", "Close("&$D$12&") when LocalYear("&$D$12&")="&$D$1&" and localMonth("&$D$12&") ="&$E$1&" and LocalDay("&$D$12&")="&$F$1&" and Barix("&$D$12&",reference:=StartOfSession)="&A80&"", "Bar", "", "Close","5","0","PrimaryOnly",,,"False","T","EveryTick") ->  | J80: =RTD("cqg.rtd",,"StudyData", "Close("&$D$12&") when LocalYear("&$D$12&")="&$D$2&" and localMonth("&$D$12&") ="&$E$2&" and LocalDay("&$D$12&")="&$F$2&" and Barix("&$D$12&",reference:=StartOfSession)="&A80&"", "Bar", "", "Close","5","0","PrimaryOnly",,,"False","T","EveryTick") ->  | L80: =RTD("cqg.rtd",,"StudyData", "Close("&$D$12&") when LocalYear("&$D$12&")="&$D$3&" and localMonth("&$D$12&") ="&$E$3&" and LocalDay("&$D$12&")="&$F$3&" and Barix("&$D$12&",reference:=StartOfSession)="&A80&"", "Bar", "", "Close","5","0","PrimaryOnly",,,"False","T","EveryTick") ->  | N80: =RTD("cqg.rtd",,"StudyData", "Close("&$D$12&") when LocalYear("&$D$12&")="&$D$4&" and localMonth("&$D$12&") ="&$E$4&" and LocalDay("&$D$12&")="&$F$4&" and Barix("&$D$12&",reference:=StartOfSession)="&A80&"", "Bar", "", "Close","5","0","PrimaryOnly",,,"False","T","EveryTick") ->  | P80: =RTD("cqg.rtd",,"StudyData", "Close("&$D$12&") when LocalYear("&$D$12&")="&$D$5&" and localMonth("&$D$12&") ="&$E$5&" and LocalDay("&$D$12&")="&$F$5&" and Barix("&$D$12&",reference:=StartOfSession)="&A80&"", "Bar", "", "Close","5","0","PrimaryOnly",,,"False","T","EveryTick") ->  | R80: =RTD("cqg.rtd",,"StudyData", "Close("&$D$12&") when LocalYear("&$D$12&")="&$D$6&" and localMonth("&$D$12&") ="&$E$6&" and LocalDay("&$D$12&")="&$F$6&" and Barix("&$D$12&",reference:=StartOfSession)="&A80&"", "Bar", "", "Close","5","0","PrimaryOnly",,,"False","T","EveryTick") ->  | T80: =RTD("cqg.rtd",,"StudyData", "Close("&$D$12&") when LocalYear("&$D$12&")="&$D$7&" and localMonth("&$D$12&") ="&$E$7&" and LocalDay("&$D$12&")="&$F$7&" and Barix("&$D$12&",reference:=StartOfSession)="&A80&"", "Bar", "", "Close","5","0","PrimaryOnly",,,"False","T","EveryTick") ->  | V80: =RTD("cqg.rtd",,"StudyData", "Close("&$D$12&") when LocalYear("&$D$12&")="&$D$8&" and localMonth("&$D$12&") ="&$E$8&" and LocalDay("&$D$12&")="&$F$8&" and Barix("&$D$12&",reference:=StartOfSession)="&A80&"", "Bar", "", "Close","5","0","PrimaryOnly",,,"False","T","EveryTick") ->  | X80: =RTD("cqg.rtd",,"StudyData", "Close("&$D$12&") when LocalYear("&$D$12&")="&$D$9&" and localMonth("&$D$12&") ="&$E$9&" and LocalDay("&$D$12&")="&$F$9&" and Barix("&$D$12&",reference:=StartOfSession)="&A80&"", "Bar", "", "Close","5","0","PrimaryOnly",,,"False","T","EveryTick") ->  | Z80: =RTD("cqg.rtd",,"StudyData", "Close("&$D$12&") when LocalYear("&$D$12&")="&$D$10&" and localMonth("&$D$12&") ="&$E$10&" and LocalDay("&$D$12&")="&$F$10&" and Barix("&$D$12&",reference:=StartOfSession)="&A80&"", "Bar", "", "Close","5","0","PrimaryOnly",,,"False","T","EveryTick") -> 
A81: 80 | B81: 15:10:00 | H81: =RTD("cqg.rtd",,"StudyData", "Close("&$D$12&") when LocalYear("&$D$12&")="&$D$1&" and localMonth("&$D$12&") ="&$E$1&" and LocalDay("&$D$12&")="&$F$1&" and Barix("&$D$12&",reference:=StartOfSession)="&A81&"", "Bar", "", "Close","5","0","PrimaryOnly",,,"False","T","EveryTick") ->  | J81: =RTD("cqg.rtd",,"StudyData", "Close("&$D$12&") when LocalYear("&$D$12&")="&$D$2&" and localMonth("&$D$12&") ="&$E$2&" and LocalDay("&$D$12&")="&$F$2&" and Barix("&$D$12&",reference:=StartOfSession)="&A81&"", "Bar", "", "Close","5","0","PrimaryOnly",,,"False","T","EveryTick") ->  | L81: =RTD("cqg.rtd",,"StudyData", "Close("&$D$12&") when LocalYear("&$D$12&")="&$D$3&" and localMonth("&$D$12&") ="&$E$3&" and LocalDay("&$D$12&")="&$F$3&" and Barix("&$D$12&",reference:=StartOfSession)="&A81&"", "Bar", "", "Close","5","0","PrimaryOnly",,,"False","T","EveryTick") ->  | N81: =RTD("cqg.rtd",,"StudyData", "Close("&$D$12&") when LocalYear("&$D$12&")="&$D$4&" and localMonth("&$D$12&") ="&$E$4&" and LocalDay("&$D$12&")="&$F$4&" and Barix("&$D$12&",reference:=StartOfSession)="&A81&"", "Bar", "", "Close","5","0","PrimaryOnly",,,"False","T","EveryTick") ->  | P81: =RTD("cqg.rtd",,"StudyData", "Close("&$D$12&") when LocalYear("&$D$12&")="&$D$5&" and localMonth("&$D$12&") ="&$E$5&" and LocalDay("&$D$12&")="&$F$5&" and Barix("&$D$12&",reference:=StartOfSession)="&A81&"", "Bar", "", "Close","5","0","PrimaryOnly",,,"False","T","EveryTick") ->  | R81: =RTD("cqg.rtd",,"StudyData", "Close("&$D$12&") when LocalYear("&$D$12&")="&$D$6&" and localMonth("&$D$12&") ="&$E$6&" and LocalDay("&$D$12&")="&$F$6&" and Barix("&$D$12&",reference:=StartOfSession)="&A81&"", "Bar", "", "Close","5","0","PrimaryOnly",,,"False","T","EveryTick") ->  | T81: =RTD("cqg.rtd",,"StudyData", "Close("&$D$12&") when LocalYear("&$D$12&")="&$D$7&" and localMonth("&$D$12&") ="&$E$7&" and LocalDay("&$D$12&")="&$F$7&" and Barix("&$D$12&",reference:=StartOfSession)="&A81&"", "Bar", "", "Close","5","0","PrimaryOnly",,,"False","T","EveryTick") ->  | V81: =RTD("cqg.rtd",,"StudyData", "Close("&$D$12&") when LocalYear("&$D$12&")="&$D$8&" and localMonth("&$D$12&") ="&$E$8&" and LocalDay("&$D$12&")="&$F$8&" and Barix("&$D$12&",reference:=StartOfSession)="&A81&"", "Bar", "", "Close","5","0","PrimaryOnly",,,"False","T","EveryTick") ->  | X81: =RTD("cqg.rtd",,"StudyData", "Close("&$D$12&") when LocalYear("&$D$12&")="&$D$9&" and localMonth("&$D$12&") ="&$E$9&" and LocalDay("&$D$12&")="&$F$9&" and Barix("&$D$12&",reference:=StartOfSession)="&A81&"", "Bar", "", "Close","5","0","PrimaryOnly",,,"False","T","EveryTick") ->  | Z81: =RTD("cqg.rtd",,"StudyData", "Close("&$D$12&") when LocalYear("&$D$12&")="&$D$10&" and localMonth("&$D$12&") ="&$E$10&" and LocalDay("&$D$12&")="&$F$10&" and Barix("&$D$12&",reference:=StartOfSession)="&A81&"", "Bar", "", "Close","5","0","PrimaryOnly",,,"False","T","EveryTick") -> 
AE83: =MAX(AE1:AE81) -> 22

Sheet Sheet4 (hidden)
B1: =Sheet3!I1 -> 0.0005234779878 | C1: =Sheet3!K1 -> 0.01250798382 | E1: =Sheet3!M1 -> -0.003467297084 | G1: =Sheet3!O1 -> 0.0003672998216 | I1: =Sheet3!Q1 -> 0.01048039581 | K1: =Sheet3!S1 -> 0.003613807983 | M1: =Sheet3!U1 -> 0.01168986516 | O1: =Sheet3!W1 -> 0.0004273960893 | Q1: =Sheet3!Y1 -> -0.004105666901 | S1: =Sheet3!AA1 -> 0.006576819407
B2: =Sheet3!I2 -> 0.001203999372 | C2: =Sheet3!K2 -> 0.01096444539 | D2: =IF(ISNUMBER(C2),CORREL($B$1:B2,$C$1:C2),"") -> -1 | E2: =Sheet3!M2 -> -0.005568689257 | F2: =IF(ISNUMBER(E2),CORREL($B$1:B2,$E$1:E2),"") -> -1 | G2: =Sheet3!O2 -> -0.0003672998216 | H2: =IF(ISNUMBER(G2),CORREL($B$1:B2,$G$1:G2),"") -> -1 | I2: =Sheet3!Q2 -> 0.01181039528 | J2: =IF(ISNUMBER(I2),CORREL($B$1:B2,$I$1:I2),"") -> 1 | K2: =Sheet3!S2 -> 0.00544768069 | L2: =IF(ISNUMBER(K2),CORREL($B$1:B2,$K$1:K2),"") -> 1 | M2: =Sheet3!U2 -> 0.01315789474 | N2: =IF(ISNUMBER(M2),CORREL($B$1:B2,$M$1:M2),"") -> 1 | O2: =Sheet3!W2 -> -0.002938348114 | P2: =IF(ISNUMBER(O2),CORREL($B$1:B2,$O$1:O2),"") -> -1 | Q2: =Sheet3!Y2 -> -0.0006482631949 | R2: =IF(ISNUMBER(Q2),CORREL($B$1:B2,$Q$1:Q2),"") -> 1 | S2: =Sheet3!AA2 -> 0.007061994609 | T2: =IF(ISNUMBER(S2),CORREL($B$1:B2,$S$1:S2),"") -> 1
B3: =Sheet3!I3 -> 0.002826781134 | C3: =Sheet3!K3 -> 0.01016606344 | D3: =IF(ISNUMBER(C3),CORREL($B$1:B3,$C$1:C3),"") -> -0.9156738721 | E3: =Sheet3!M3 -> -0.00646178093 | F3: =IF(ISNUMBER(E3),CORREL($B$1:B3,$E$1:E3),"") -> -0.8956874309 | G3: =Sheet3!O3 -> 0.0001049428062 | H3: =IF(ISNUMBER(G3),CORREL($B$1:B3,$G$1:G3),"") -> -0.1278249303 | I3: =Sheet3!Q3 -> 0.01361919455 | J3: =IF(ISNUMBER(I3),CORREL($B$1:B3,$I$1:I3),"") -> 0.9896363432 | K3: =Sheet3!S3 -> 0.005609492988 | L3: =IF(ISNUMBER(K3),CORREL($B$1:B3,$K$1:K3),"") -> 0.7760096803 | M3: =Sheet3!U3 -> 0.01283166594 | N3: =IF(ISNUMBER(M3),CORREL($B$1:B3,$M$1:M3),"") -> 0.5663281517 | O3: =Sheet3!W3 -> -0.003632866759 | P3: =IF(ISNUMBER(O3),CORREL($B$1:B3,$O$1:O3),"") -> -0.8281812133 | Q3: =Sheet3!Y3 -> -0.0001080438658 | R3: =IF(ISNUMBER(Q3),CORREL($B$1:B3,$Q$1:Q3),"") -> 0.8076273279 | S3: =Sheet3!AA3 -> 0.007223719677 | T3: =IF(ISNUMBER(S3),CORREL($B$1:B3,$S$1:S3),"") -> 0.8712892543
B4: =Sheet3!I4 -> 0.003821389311 | C4: =Sheet3!K4 -> 0.01075154354 | D4: =IF(ISNUMBER(C4),CORREL($B$1:B4,$C$1:C4),"") -> -0.7494890264 | E4: =Sheet3!M4 -> -0.005621224061 | F4: =IF(ISNUMBER(E4),CORREL($B$1:B4,$E$1:E4),"") -> -0.7031515017 | G4: =Sheet3!O4 -> -0.001154370868 | H4: =IF(ISNUMBER(G4),CORREL($B$1:B4,$G$1:G4),"") -> -0.7195467583 | I4: =Sheet3!Q4 -> 0.01383199447 | J4: =IF(ISNUMBER(I4),CORREL($B$1:B4,$I$1:I4),"") -> 0.9644343365 | K4: =Sheet3!S4 -> 0.006202804746 | L4: =IF(ISNUMBER(K4),CORREL($B$1:B4,$K$1:K4),"") -> 0.8534946049 | M4: =Sheet3!U4 -> 0.01196172249 | N4: =IF(ISNUMBER(M4),CORREL($B$1:B4,$M$1:M4),"") -> 2.446044237e-14 | O4: =Sheet3!W4 -> -0.002404103002 | P4: =IF(ISNUMBER(O4),CORREL($B$1:B4,$O$1:O4),"") -> -0.606184932 | Q4: =Sheet3!Y4 -> 0.005672302955 | R4: =IF(ISNUMBER(Q4),CORREL($B$1:B4,$Q$1:Q4),"") -> 0.9158936247 | S4: =Sheet3!AA4 -> 0.005121293801 | T4: =IF(ISNUMBER(S4),CORREL($B$1:B4,$S$1:S4),"") -> -0.5729125743
B5: =Sheet3!I5 -> 0.001779825158 | C5: =Sheet3!K5 -> 0.01186927826 | D5: =IF(ISNUMBER(C5),CORREL($B$1:B5,$C$1:C5),"") -> -0.731873347 | E5: =Sheet3!M5 -> -0.007144733386 | F5: =IF(ISNUMBER(E5),CORREL($B$1:B5,$E$1:E5),"") -> -0.4933181546 | G5: =Sheet3!O5 -> -0.001206842271 | H5: =IF(ISNUMBER(G5),CORREL($B$1:B5,$G$1:G5),"") -> -0.5144683346 | I5: =Sheet3!Q5 -> 0.01095919562 | J5: =IF(ISNUMBER(I5),CORREL($B$1:B5,$I$1:I5),"") -> 0.9108373781 | K5: =Sheet3!S5 -> 0.007982740022 | L5: =IF(ISNUMBER(K5),CORREL($B$1:B5,$K$1:K5),"") -> 0.4387508103 | M5: =Sheet3!U5 -> 0.01103740757 | N5: =IF(ISNUMBER(M5),CORREL($B$1:B5,$M$1:M5),"") -> 0.07650369019 | O5: =Sheet3!W5 -> -0.002778074581 | P5: =IF(ISNUMBER(O5),CORREL($B$1:B5,$O$1:O5),"") -> -0.5729560287 | Q5: =Sheet3!Y5 -> 0.005078061693 | R5: =IF(ISNUMBER(Q5),CORREL($B$1:B5,$Q$1:Q5),"") -> 0.7169611557 | S5: =Sheet3!AA5 -> 0.005175202156 | T5: =IF(ISNUMBER(S5),CORREL($B$1:B5,$S$1:S5),"") -> -0.4015571325
B6: =Sheet3!I6 -> 0.0008899125792 | C6: =Sheet3!K6 -> 0.0113902491 | D6: =IF(ISNUMBER(C6),CORREL($B$1:B6,$C$1:C6),"") -> -0.7034921664 | E6: =Sheet3!M6 -> -0.007354872603 | F6: =IF(ISNUMBER(E6),CORREL($B$1:B6,$E$1:E6),"") -> -0.2188280478 | G6: =Sheet3!O6 -> 0.0001049428062 | H6: =IF(ISNUMBER(G6),CORREL($B$1:B6,$G$1:G6),"") -> -0.5740562355 | I6: =Sheet3!Q6 -> 0.01191679523 | J6: =IF(ISNUMBER(I6),CORREL($B$1:B6,$I$1:I6),"") -> 0.8691060432 | K6: =Sheet3!S6 -> 0.009331175836 | L6: =IF(ISNUMBER(K6),CORREL($B$1:B6,$K$1:K6),"") -> 0.01751245015 | M6: =Sheet3!U6 -> 0.0089169204 | N6: =IF(ISNUMBER(M6),CORREL($B$1:B6,$M$1:M6),"") -> 0.3548411406 | O6: =Sheet3!W6 -> -0.002564376536 | P6: =IF(ISNUMBER(O6),CORREL($B$1:B6,$O$1:O6),"") -> -0.4983446651 | Q6: =Sheet3!Y6 -> 0.005456215223 | R6: =IF(ISNUMBER(Q6),CORREL($B$1:B6,$Q$1:Q6),"") -> 0.4444060643 | S6: =Sheet3!AA6 -> 0.00539083558 | T6: =IF(ISNUMBER(S6),CORREL($B$1:B6,$S$1:S6),"") -> -0.2186526706
B7: =Sheet3!I7 -> 0.001884520756 | C7: =Sheet3!K7 -> 0.01202895465 | D7: =IF(ISNUMBER(C7),CORREL($B$1:B7,$C$1:C7),"") -> -0.6538645315 | E7: =Sheet3!M7 -> -0.0060940373 | F7: =IF(ISNUMBER(E7),CORREL($B$1:B7,$E$1:E7),"") -> -0.2192326831 | G7: =Sheet3!O7 -> -0.0005247140309 | H7: =IF(ISNUMBER(G7),CORREL($B$1:B7,$G$1:G7),"") -> -0.5725219394 | I7: =Sheet3!Q7 -> 0.0117571953 | J7: =IF(ISNUMBER(I7),CORREL($B$1:B7,$I$1:I7),"") -> 0.8628003612 | K7: =Sheet3!S7 -> 0.007065803668 | L7: =IF(ISNUMBER(K7),CORREL($B$1:B7,$K$1:K7),"") -> 0.01937003744 | M7: =Sheet3!U7 -> 0.007883862549 | N7: =IF(ISNUMBER(M7),CORREL($B$1:B7,$M$1:M7),"") -> 0.2394486693 | O7: =Sheet3!W7 -> -0.002350678491 | P7: =IF(ISNUMBER(O7),CORREL($B$1:B7,$O$1:O7),"") -> -0.4984161494 | Q7: =Sheet3!Y7 -> 0.005132083626 | R7: =IF(ISNUMBER(Q7),CORREL($B$1:B7,$Q$1:Q7),"") -> 0.4266639319 | S7: =Sheet3!AA7 -> 0.005822102426 | T7: =IF(ISNUMBER(S7),CORREL($B$1:B7,$S$1:S7),"") -> -0.2188385373
B8: =Sheet3!I8 -> 0.003193215725 | C8: =Sheet3!K8 -> 0.0138386204 | D8: =IF(ISNUMBER(C8),CORREL($B$1:B8,$C$1:C8),"") -> -0.08322777753 | E8: =Sheet3!M8 -> -0.007249802994 | F8: =IF(ISNUMBER(E8),CORREL($B$1:B8,$E$1:E8),"") -> -0.3319773773 | G8: =Sheet3!O8 -> -0.001101899465 | H8: =IF(ISNUMBER(G8),CORREL($B$1:B8,$G$1:G8),"") -> -0.6428242662 | I8: =Sheet3!Q8 -> 0.01079959568 | J8: =IF(ISNUMBER(I8),CORREL($B$1:B8,$I$1:I8),"") -> 0.5906311137 | K8: =Sheet3!S8 -> 0.007389428263 | L8: =IF(ISNUMBER(K8),CORREL($B$1:B8,$K$1:K8),"") -> 0.09329386335 | M8: =Sheet3!U8 -> 0.008699434537 | N8: =IF(ISNUMBER(M8),CORREL($B$1:B8,$M$1:M8),"") -> 0.02900757943 | O8: =Sheet3!W8 -> -0.003098621648 | P8: =IF(ISNUMBER(O8),CORREL($B$1:B8,$O$1:O8),"") -> -0.5352162444 | Q8: =Sheet3!Y8 -> 0.005564259089 | R8: =IF(ISNUMBER(Q8),CORREL($B$1:B8,$Q$1:Q8),"") -> 0.4933902527 | S8: =Sheet3!AA8 -> 0.004636118598 | T8: =IF(ISNUMBER(S8),CORREL($B$1:B8,$S$1:S8),"") -> -0.3821571883
B9: =Sheet3!I9 -> 0.003036172329 | C9: =Sheet3!K9 -> 0.0132531403 | D9: =IF(ISNUMBER(C9),CORREL($B$1:B9,$C$1:C9),"") -> 0.05828952947 | E9: =Sheet3!M9 -> -0.008510638298 | F9: =IF(ISNUMBER(E9),CORREL($B$1:B9,$E$1:E9),"") -> -0.4286016947 | G9: =Sheet3!O9 -> -0.001469199286 | H9: =IF(ISNUMBER(G9),CORREL($B$1:B9,$G$1:G9),"") -> -0.6807717446 | I9: =Sheet3!Q9 -> 0.008511996595 | J9: =IF(ISNUMBER(I9),CORREL($B$1:B9,$I$1:I9),"") -> 0.1975824856 | K9: =Sheet3!S9 -> 0.007335490831 | L9: =IF(ISNUMBER(K9),CORREL($B$1:B9,$K$1:K9),"") -> 0.1331110752 | M9: =Sheet3!U9 -> 0.007122662027 | N9: =IF(ISNUMBER(M9),CORREL($B$1:B9,$M$1:M9),"") -> -0.1382972271 | O9: =Sheet3!W9 -> -0.002617801047 | P9: =IF(ISNUMBER(O9),CORREL($B$1:B9,$O$1:O9),"") -> -0.5274446539 | Q9: =Sheet3!Y9 -> 0.003133272108 | R9: =IF(ISNUMBER(Q9),CORREL($B$1:B9,$Q$1:Q9),"") -> 0.4812590157 | S9: =Sheet3!AA9 -> 0.003827493261 | T9: =IF(ISNUMBER(S9),CORREL($B$1:B9,$S$1:S9),"") -> -0.4704954634
B10: =Sheet3!I10 -> 0.00256504214 | C10: =Sheet3!K10 -> 0.01351926762 | D10: =IF(ISNUMBER(C10),CORREL($B$1:B10,$C$1:C10),"") -> 0.1059338721 | E10: =Sheet3!M10 -> -0.006776989756 | F10: =IF(ISNUMBER(E10),CORREL($B$1:B10,$E$1:E10),"") -> -0.4348858402 | G10: =Sheet3!O10 -> 0.000629656837 | H10: =IF(ISNUMBER(G10),CORREL($B$1:B10,$G$1:G10),"") -> -0.5135402121 | I10: =Sheet3!Q10 -> 0.008777996489 | J10: =IF(ISNUMBER(I10),CORREL($B$1:B10,$I$1:I10),"") -> 0.1077739062 | K10: =Sheet3!S10 -> 0.006418554477 | L10: =IF(ISNUMBER(K10),CORREL($B$1:B10,$K$1:K10),"") -> 0.1255852561 | M10: =Sheet3!U10 -> 0.006415832971 | N10: =IF(ISNUMBER(M10),CORREL($B$1:B10,$M$1:M10),"") -> -0.1826917707 | O10: =Sheet3!W10 -> -0.000961641201 | P10: =IF(ISNUMBER(O10),CORREL($B$1:B10,$O$1:O10),"") -> -0.4297209655 | Q10: =Sheet3!Y10 -> 0.005186105559 | R10: =IF(ISNUMBER(Q10),CORREL($B$1:B10,$Q$1:Q10),"") -> 0.4935828312 | S10: =Sheet3!AA10 -> 0.003989218329 | T10: =IF(ISNUMBER(S10),CORREL($B$1:B10,$S$1:S10),"") -> -0.4748715632
B11: =Sheet3!I11 -> 0.002774433335 | C11: =Sheet3!K11 -> 0.01266766021 | D11: =IF(ISNUMBER(C11),CORREL($B$1:B11,$C$1:C11),"") -> 0.1309234857 | E11: =Sheet3!M11 -> -0.006619385343 | F11: =IF(ISNUMBER(E11),CORREL($B$1:B11,$E$1:E11),"") -> -0.4356986341 | G11: =Sheet3!O11 -> 0.0004722426278 | H11: =IF(ISNUMBER(G11),CORREL($B$1:B11,$G$1:G11),"") -> -0.4056337368 | I11: =Sheet3!Q11 -> 0.00957599617 | J11: =IF(ISNUMBER(I11),CORREL($B$1:B11,$I$1:I11),"") -> 0.05144786727 | K11: =Sheet3!S11 -> 0.005124056095 | L11: =IF(ISNUMBER(K11),CORREL($B$1:B11,$K$1:K11),"") -> 0.06734270161 | M11: =Sheet3!U11 -> 0.005709003915 | N11: =IF(ISNUMBER(M11),CORREL($B$1:B11,$M$1:M11),"") -> -0.2413109635 | O11: =Sheet3!W11 -> 0 | P11: =IF(ISNUMBER(O11),CORREL($B$1:B11,$O$1:O11),"") -> -0.2685929255 | Q11: =Sheet3!Y11 -> 0.00502403976 | R11: =IF(ISNUMBER(Q11),CORREL($B$1:B11,$Q$1:Q11),"") -> 0.5094079718 | S11: =Sheet3!AA11 -> 0.005013477089 | T11: =IF(ISNUMBER(S11),CORREL($B$1:B11,$S$1:S11),"") -> -0.4855958259
B12: =Sheet3!I12 -> 0.002669737738 | C12: =Sheet3!K12 -> 0.01346604215 | D12: =IF(ISNUMBER(C12),CORREL($B$1:B12,$C$1:C12),"") -> 0.1644901665 | E12: =Sheet3!M12 -> -0.007407407407 | F12: =IF(ISNUMBER(E12),CORREL($B$1:B12,$E$1:E12),"") -> -0.4495111411 | G12: =Sheet3!O12 -> 0.001731556302 | H12: =IF(ISNUMBER(G12),CORREL($B$1:B12,$G$1:G12),"") -> -0.2265855488 | I12: =Sheet3!Q12 -> 0.009203596319 | J12: =IF(ISNUMBER(I12),CORREL($B$1:B12,$I$1:I12),"") -> 0.008818074379 | K12: =Sheet3!S12 -> 0.005339805825 | L12: =IF(ISNUMBER(K12),CORREL($B$1:B12,$K$1:K12),"") -> 0.03716762001 | M12: =Sheet3!U12 -> 0.005437146585 | N12: =IF(ISNUMBER(M12),CORREL($B$1:B12,$M$1:M12),"") -> -0.2706547908 | O12: =Sheet3!W12 -> -0.001015065712 | P12: =IF(ISNUMBER(O12),CORREL($B$1:B12,$O$1:O12),"") -> -0.2283072242 | Q12: =Sheet3!Y12 -> 0.006590675814 | R12: =IF(ISNUMBER(Q12),CORREL($B$1:B12,$Q$1:Q12),"") -> 0.5202893966 | S12: =Sheet3!AA12 -> 0.003935309973 | T12: =IF(ISNUMBER(S12),CORREL($B$1:B12,$S$1:S12),"") -> -0.4943626779
B13: =Sheet3!I13 -> 0.002879128933 | C13: =Sheet3!K13 -> 0.0146902278 | D13: =IF(ISNUMBER(C13),CORREL($B$1:B13,$C$1:C13),"") -> 0.2284787996 | E13: =Sheet3!M13 -> -0.007722616233 | F13: =IF(ISNUMBER(E13),CORREL($B$1:B13,$E$1:E13),"") -> -0.4729791228 | G13: =Sheet3!O13 -> 0.002151327526 | H13: =IF(ISNUMBER(G13),CORREL($B$1:B13,$G$1:G13),"") -> -0.07922813255 | I13: =Sheet3!Q13 -> 0.009522796191 | J13: =IF(ISNUMBER(I13),CORREL($B$1:B13,$I$1:I13),"") -> -0.03134152406 | K13: =Sheet3!S13 -> 0.00377562028 | L13: =IF(ISNUMBER(K13),CORREL($B$1:B13,$K$1:K13),"") -> -0.04531030234 | M13: =Sheet3!U13 -> 0.005219660722 | N13: =IF(ISNUMBER(M13),CORREL($B$1:B13,$M$1:M13),"") -> -0.3129951615 | O13: =Sheet3!W13 -> 0.000320547067 | P13: =IF(ISNUMBER(O13),CORREL($B$1:B13,$O$1:O13),"") -> -0.1189810793 | Q13: =Sheet3!Y13 -> 0.007455026741 | R13: =IF(ISNUMBER(Q13),CORREL($B$1:B13,$Q$1:Q13),"") -> 0.5411722361 | S13: =Sheet3!AA13 -> 0.004474393531 | T13: =IF(ISNUMBER(S13),CORREL($B$1:B13,$S$1:S13),"") -> -0.5121086815
B14: =Sheet3!I14 -> 0.003350259122 | C14: =Sheet3!K14 -> 0.01346604215 | D14: =IF(ISNUMBER(C14),CORREL($B$1:B14,$C$1:C14),"") -> 0.2752593337 | E14: =Sheet3!M14 -> -0.007249802994 | F14: =IF(ISNUMBER(E14),CORREL($B$1:B14,$E$1:E14),"") -> -0.4885625733 | G14: =Sheet3!O14 -> 0.003043341379 | H14: =IF(ISNUMBER(G14),CORREL($B$1:B14,$G$1:G14),"") -> 0.1114317485 | I14: =Sheet3!Q14 -> 0.0110123956 | J14: =IF(ISNUMBER(I14),CORREL($B$1:B14,$I$1:I14),"") -> -0.02160415192 | K14: =Sheet3!S14 -> 0.004476806904 | L14: =IF(ISNUMBER(K14),CORREL($B$1:B14,$K$1:K14),"") -> -0.1217498802 | M14: =Sheet3!U14 -> 0.005165289256 | N14: =IF(ISNUMBER(M14),CORREL($B$1:B14,$M$1:M14),"") -> -0.3784085076 | O14: =Sheet3!W14 -> 0.0008547921787 | P14: =IF(ISNUMBER(O14),CORREL($B$1:B14,$O$1:O14),"") -> 0.03279259566 | Q14: =Sheet3!Y14 -> 0.006806763546 | R14: =IF(ISNUMBER(Q14),CORREL($B$1:B14,$Q$1:Q14),"") -> 0.5720543486 | S14: =Sheet3!AA14 -> 0.004043126685 | T14: =IF(ISNUMBER(S14),CORREL($B$1:B14,$S$1:S14),"") -> -0.5510455251
B15: =Sheet3!I15 -> 0.00298382453 | C15: =Sheet3!K15 -> 0.01272088567 | D15: =IF(ISNUMBER(C15),CORREL($B$1:B15,$C$1:C15),"") -> 0.2794859391 | E15: =Sheet3!M15 -> -0.00719726819 | F15: =IF(ISNUMBER(E15),CORREL($B$1:B15,$E$1:E15),"") -> -0.4977293431 | G15: =Sheet3!O15 -> 0.002466155945 | H15: =IF(ISNUMBER(G15),CORREL($B$1:B15,$G$1:G15),"") -> 0.1665306883 | I15: =Sheet3!Q15 -> 0.009309996276 | J15: =IF(ISNUMBER(I15),CORREL($B$1:B15,$I$1:I15),"") -> -0.05960212206 | K15: =Sheet3!S15 -> 0.007011866235 | L15: =IF(ISNUMBER(K15),CORREL($B$1:B15,$K$1:K15),"") -> -0.09434887621 | M15: =Sheet3!U15 -> 0.00603523271 | N15: =IF(ISNUMBER(M15),CORREL($B$1:B15,$M$1:M15),"") -> -0.4005994027 | O15: =Sheet3!W15 -> 0.000320547067 | P15: =IF(ISNUMBER(O15),CORREL($B$1:B15,$O$1:O15),"") -> 0.08311706386 | Q15: =Sheet3!Y15 -> 0.008157311869 | R15: =IF(ISNUMBER(Q15),CORREL($B$1:B15,$Q$1:Q15),"") -> 0.5866161331 | S15: =Sheet3!AA15 -> 0.003557951482 | T15: =IF(ISNUMBER(S15),CORREL($B$1:B15,$S$1:S15),"") -> -0.5658389992
B16: =Sheet3!I16 -> 0.001989216353 | C16: =Sheet3!K16 -> 0.01197572919 | D16: =IF(ISNUMBER(C16),CORREL($B$1:B16,$C$1:C16),"") -> 0.2881466368 | E16: =Sheet3!M16 -> -0.008720777515 | F16: =IF(ISNUMBER(E16),CORREL($B$1:B16,$E$1:E16),"") -> -0.404659793 | G16: =Sheet3!O16 -> 0.001731556302 | H16: =IF(ISNUMBER(G16),CORREL($B$1:B16,$G$1:G16),"") -> 0.1319367541 | I16: =Sheet3!Q16 -> 0.01058679577 | J16: =IF(ISNUMBER(I16),CORREL($B$1:B16,$I$1:I16),"") -> -0.05635693122 | K16: =Sheet3!S16 -> 0.007227615965 | L16: =IF(ISNUMBER(K16),CORREL($B$1:B16,$K$1:K16),"") -> -0.1126456897 | M16: =Sheet3!U16 -> 0.006959547629 | N16: =IF(ISNUMBER(M16),CORREL($B$1:B16,$M$1:M16),"") -> -0.3787064324 | O16: =Sheet3!W16 -> -0.001709584357 | P16: =IF(ISNUMBER(O16),CORREL($B$1:B16,$O$1:O16),"") -> 0.08668362101 | Q16: =Sheet3!Y16 -> 0.007401004808 | R16: =IF(ISNUMBER(Q16),CORREL($B$1:B16,$Q$1:Q16),"") -> 0.5395969297 | S16: =Sheet3!AA16 -> 0.003881401617 | T16: =IF(ISNUMBER(S16),CORREL($B$1:B16,$S$1:S16),"") -> -0.5148475181
B17: =Sheet3!I17 -> 0.002460346542 | C17: =Sheet3!K17 -> 0.01234830743 | D17: =IF(ISNUMBER(C17),CORREL($B$1:B17,$C$1:C17),"") -> 0.2876805461 | E17: =Sheet3!M17 -> -0.008037825059 | F17: =IF(ISNUMBER(E17),CORREL($B$1:B17,$E$1:E17),"") -> -0.3970915039 | G17: =Sheet3!O17 -> 0.002571098751 | H17: =IF(ISNUMBER(G17),CORREL($B$1:B17,$G$1:G17),"") -> 0.1293521544 | I17: =Sheet3!Q17 -> 0.01085279566 | J17: =IF(ISNUMBER(I17),CORREL($B$1:B17,$I$1:I17),"") -> -0.05601333612 | K17: =Sheet3!S17 -> 0.007605177994 | L17: =IF(ISNUMBER(K17),CORREL($B$1:B17,$K$1:K17),"") -> -0.1062521191 | M17: =Sheet3!U17 -> 0.002827316224 | N17: =IF(ISNUMBER(M17),CORREL($B$1:B17,$M$1:M17),"") -> -0.3478464727 | O17: =Sheet3!W17 -> -0.001495886313 | P17: =IF(ISNUMBER(O17),CORREL($B$1:B17,$O$1:O17),"") -> 0.08670875462 | Q17: =Sheet3!Y17 -> 0.007130895143 | R17: =IF(ISNUMBER(Q17),CORREL($B$1:B17,$Q$1:Q17),"") -> 0.5325443271 | S17: =Sheet3!AA17 -> 0.003935309973 | T17: =IF(ISNUMBER(S17),CORREL($B$1:B17,$S$1:S17),"") -> -0.506053268
B18: =Sheet3!I18 -> 0.001989216353 | C18: =Sheet3!K18 -> 0.01144347456 | D18: =IF(ISNUMBER(C18),CORREL($B$1:B18,$C$1:C18),"") -> 0.3021989455 | E18: =Sheet3!M18 -> -0.007302337799 | F18: =IF(ISNUMBER(E18),CORREL($B$1:B18,$E$1:E18),"") -> -0.3846592986 | G18: =Sheet3!O18 -> 0.00204638472 | H18: =IF(ISNUMBER(G18),CORREL($B$1:B18,$G$1:G18),"") -> 0.0985143406 | I18: =Sheet3!Q18 -> 0.01122519551 | J18: =IF(ISNUMBER(I18),CORREL($B$1:B18,$I$1:I18),"") -> -0.06401878049 | K18: =Sheet3!S18 -> 0.006850053937 | L18: =IF(ISNUMBER(K18),CORREL($B$1:B18,$K$1:K18),"") -> -0.1148424985 | M18: =Sheet3!U18 -> 0.003425402349 | N18: =IF(ISNUMBER(M18),CORREL($B$1:B18,$M$1:M18),"") -> -0.2868325179 | O18: =Sheet3!W18 -> -0.001121914734 | P18: =IF(ISNUMBER(O18),CORREL($B$1:B18,$O$1:O18),"") -> 0.07883193321 | Q18: =Sheet3!Y18 -> 0.007887202204 | R18: =IF(ISNUMBER(Q18),CORREL($B$1:B18,$Q$1:Q18),"") -> 0.4892884833 | S18: =Sheet3!AA18 -> 0.003827493261 | T18: =IF(ISNUMBER(S18),CORREL($B$1:B18,$S$1:S18),"") -> -0.465830821
